Workbook

Sheet Home
BA1: 2 | BB1: 0
C21: Zoom | N21: Full screen
C22: Select a zoom level appropriate for your display.
N23: To maximise the viewing area, click for Full-Screen mode.
N24: Press Escape to return to normal display mode.
C25: Selected zoom will be applied to all worksheets except this one.

Sheet Contents (hidden)
BA1: 2 | BB1: 2
B6: CONTENT PAGE
C7: Summary
C9: The summary tab includes three sub-tabs: heat map, country summary and region summary. | E9: Click relevant box below to select
C11: Heat map
C12: The heat map gives a high-level overview of how countries scored across each of the four industry indices, at the overall score and domain level.
C14: Country summary
C15: The country summary gives a high-level overview of how countries scored and ranked across each of the four industry indices, at the overall, domain and category level. The country summary provides a side-by-side comparison of country results across each of the four industries.
C17: Region summary
C18: The region summary provides a regionally focused overview of how each of the five regions in the index scored and ranked across each of the four industry indices, at the overall, domain and category level. The regional summary provides a side-by-side tabular comparison as well as map view of regional results across each of the four industries.
C21: Industry-level index explorers | E21: FOOD AND BEVERAGE | F21: CONSUMER GOODS | G21: HEALTHCARE SERVICES | H21: HOSPITALITY SERVICES
C23: Each industry-level index ranks countries according to their level of resource intelligence.
C24: Each of the four industry indices includes the following results tabs: indicator ranking, country profile, country compare, region compare, data, scores, scatter and weights.
C27: Indicator ranking
C28: The indicator ranking tab gives a high and detailed level overview of how countries score and rank within an industry, at the overall, domain, category as well as individual indicator and sub-indicator level. The indicator ranking tab provides a comprehensive view of country-level results and allows for the ability to highlight and filter results at the country and regional level. The indicator ranking tab also provides additional detail around data sources, units, scoring criteria and indicator descriptions.
C30: Country profile
C31: The country profile page showcases key data and industry-level index results at the individual country level and showcases strengths and weaknesses across individual indicators.
C33: Country compare
C34: The country compare tab enables the user to select and compare up to six countries side-by-side. This page enables the user to view industry-level index scores and rankings at the overall, domain and category level.
C36: Region compare
C37: The region compare tab enables the user to select and compare results of up to six regions (including an All Region average) in tabular form. This page enables the user to view industry-level index scores and rankings at the overall, domain and category level.
C39: Data tab
C40: This page provides all of the raw data, final qualitative scores and scoring units for each of the indicators and sub-indicators that make up the industry-level index.
C42: Scores tab
C43: This page provides all of the final normalised index scores for each of the indicators and sub-indicators that make up the industry-level index. Scores are normalised (0-100, where 100=most favourable environment).
C45: Scatter
C46: This tab contains a scatter plot that provides additional data analysis capabilities. The user can select any of the index domains, categories, indicators and sub-indicators along the x and y axis to understand correlations in the data.
C48: Weights
C49: The weights tab provides insight into the specific weights (or level of importance) that was assigned to each of the domains, categories and indicators within the industry-level index. Weightings can be adjusted by the user.

Sheet About (hidden)
BA1: 2 | BB1: 1
F14: Domains: | G14: Natural resources | H14: Physical resources | I14: Labour resources
F15: Categories: | G15: Use of resources | H15: Use of resources | I15: Use of resources
G16: Resource capacity | H16: Resource capacity | I16: Resource capacity
G17: Commitment to sustainability | H17: Sustainability initiatives | I17: Sustainability initiatives
G18: Regulatory regime | H18: Regulatory regime | I18: Regulatory regime

Sheet tblNavHist (hidden)
A1: Section | B1: Page | C1: ScrollRow

Sheet uxb_works (hidden)
A1: TERRITORY_COUNT | B1: 25
A2: MODE | B2: PRODUCTION
A3: MAIN_DP | B3: 0
B5: FB | AA5: CG | BA5: HS
B6: 5 | AB6: 5 | BB6: 5 | CB6: 5
A7: WEIGHT_PROFILE_ID | B7: 1 | AA7: WEIGHT_PROFILE_ID | AB7: 1 | BA7: WEIGHT_PROFILE_ID | BB7: 1 | CA7: WEIGHT_PROFILE_ID | CB7: 1
B8: 1
C9: plus none | D9: ignore none | E9: Country Code | F9: Country Number | AC9: plus none | AD9: ignore none | AE9: Country Code | AF9: Country Number | BC9: plus none | BD9: ignore none | BE9: Country Code | BF9: Country Number | CC9: plus none | CD9: ignore none | CE9: Country Code | CF9: Country Number
A10: COUNTRY_HIGHLIGHT_DD | B10: 1 | C10: =INDEX(luCountriesPlusNone,B10) -> <none> | D10: =INDEX(luCountries,B11) -> Finland | E10: USA | F10: =MATCH(E10,tblTerritories!B2:B27,0) -> 25 | AA10: COUNTRY_HIGHLIGHT_DD | AB10: =B10 -> 1 | AC10: =INDEX(luCountriesPlusNone,AB10) -> <none> | AD10: =INDEX(luCountries,AB11) -> Finland | AE10: RUS | AF10: =MATCH(AE10,tblTerritories!AB2:AB27,0) ->  | BA10: COUNTRY_HIGHLIGHT_DD | BB10: =AB10 -> 1 | BC10: =INDEX(luCountriesPlusNone,BB10) -> <none> | BD10: =INDEX(luCountries,BB11) -> Finland | BE10: RUS | BF10: =MATCH(BE10,tblTerritories!BB2:BB27,0) ->  | CA10: COUNTRY_HIGHLIGHT_DD | CB10: =BB10 -> 1 | CC10: =INDEX(luCountriesPlusNone,CB10) -> <none> | CD10: =INDEX(luCountries,CB11) -> Finland | CE10: RUS | CF10: =MATCH(CE10,tblTerritories!CB2:CB27,0) -> 
A11: COUNTRY_HIGHLIGHT_ID | B11: =B10-1 -> 0 | AA11: COUNTRY_HIGHLIGHT_ID | AB11: =B11 -> 0 | BA11: COUNTRY_HIGHLIGHT_ID | BB11: =AB11 -> 0 | CA11: COUNTRY_HIGHLIGHT_ID | CB11: =BB11 -> 0
A12: GROUP_HIGHLIGHT_DD | B12: 1 | C12: =INDEX(luRegions,B12) -> View all Regions | AA12: GROUP_HIGHLIGHT_DD | AB12: 1 | AC12: =INDEX(luRegions,AB12) -> View all Regions | BA12: GROUP_HIGHLIGHT_DD | BB12: 1 | BC12: =INDEX(luRegions,BB12) -> View all Regions | CA12: GROUP_HIGHLIGHT_DD | CB12: 1 | CC12: =INDEX(luRegions,CB12) -> View all Regions
B13: =B12+1 -> 2 | E13: Check if Autoheight on Summary page should run | AB13: 2 | AE13: Check if Autoheight on Summary page should run | BB13: 2 | BE13: Check if Autoheight on Summary page should run | CB13: 2 | CE13: Check if Autoheight on Summary page should run
A14: GROUP_FILTER_ID | B14: 1 | C14: =INDEX(tblTerritories!O4:O8,B14) -> View all Regions | E14: =COUNTIF(iSummary!M8:M32,1) -> 25 | F14: 17 | AA14: GROUP_FILTER_ID | AB14: 1 | AC14: =INDEX(tblTerritories!AO4:AO8,AB14) -> 0 | AE14: =COUNTIF(iSummary!AM8:AM32,1) -> 0 | AF14: 17 | BA14: GROUP_FILTER_ID | BB14: 1 | BC14: =INDEX(tblTerritories!BO4:BO8,BB14) -> 0 | BE14: =COUNTIF(iSummary!BM8:BM32,1) -> 0 | BF14: 17 | CA14: GROUP_FILTER_ID | CB14: 1 | CC14: =INDEX(tblTerritories!CO4:CO8,CB14) -> 0 | CE14: =COUNTIF(iSummary!CM8:CM32,1) -> 0 | CF14: 17
B15: =B14-1 -> 0 | AB15: 0 | BB15: 0 | CB15: 0
A16: MAX_REGIONS | B16: 6 | AA16: MAX_REGIONS | AB16: 6 | BA16: MAX_REGIONS | BB16: 6 | CA16: MAX_REGIONS | CB16: 6
A18: NUMBER_OF_INDICATORS | B18: 1 | AA18: NUMBER_OF_INDICATORS | AB18: 1 | BA18: NUMBER_OF_INDICATORS | BB18: 1 | CA18: NUMBER_OF_INDICATORS | CB18: 1
A19: Indicator Ranking | B19: =COUNTA(tblIndiSets!A91:A204) -> 113 | C19: 1 | D19: 2 | AA19: Indicator Ranking | AB19: =COUNTA(tblIndiSets!G91:G204) -> 113 | AC19: 1 | AD19: 2 | BA19: Indicator Ranking | BB19: =COUNTA(tblIndiSets!M91:M206) -> 110 | BC19: 1 | BD19: 2 | CA19: Indicator Ranking | CB19: =COUNTA(tblIndiSets!Q91:Q206) -> 115 | CC19: 1 | CD19: 2
A20: INDI_ID | B20: =INDEX(tblIndiSets!$B$91:$B$203,B21) -> 1 | C20: =INDEX('tblIndicators-FB'!$Z$2:$AA$115,$B$20,C19) -> OVERALL SCORE | D20: =INDEX('tblIndicators-FB'!$Z$2:$AA$115,$B$20,D19) -> - | AA20: INDI_ID | AB20: =INDEX(tblIndiSets!$H$91:$H$203,AB21) -> 1 | AC20: =INDEX('tblIndicators-CG'!$Z$2:$AA$115,$AB$20,AC19) -> OVERALL SCORE | AD20: =INDEX('tblIndicators-CG'!$Z$2:AA$115,$AB$20,AD19) -> - | BA20: INDI_ID | BB20: =INDEX(tblIndiSets!$N$91:$N$200,BB21) -> 1 | BC20: =INDEX('tblIndicators-HS'!$Z$2:$AA$115,BB$20,BC19) -> OVERALL SCORE | BD20: =INDEX('tblIndicators-HS'!$Z$2:BA$115,$BB$20,BD19) -> - | CA20: INDI_ID | CB20: =INDEX(tblIndiSets!$R$91:$R$205,CB21) -> 1 | CC20: =INDEX('tblIndicators-HT'!$Z$2:$AA$117,CB$20,CC19) -> OVERALL SCORE | CD20: =INDEX('tblIndicators-HT'!$Z$2:CA$117,$CB$20,CD19) -> -
B21: 1 | AB21: 1 | BB21: 1 | CB21: 1
A22: INDI_OR_SUB_INDI | B22: TRUE | AA22: INDI_OR_SUB_INDI | AB22: TRUE | BA22: INDI_OR_SUB_INDI | BB22: TRUE | CA22: INDI_OR_SUB_INDI | CB22: TRUE
A23: BACKGROUND_PLACEHOLDER_NUMBER | B23: 104 | AB23: =AB19-10 -> 103 | BB23: =BB19-10 -> 100 | CB23: =CB19-10 -> 105
A25: SCATTER_PLOT | AA25: SCATTER_PLOT | BA25: SCATTER_PLOT | CA25: SCATTER_PLOT
C26: Scroll Max | F26: 1 | G26: 2 | AC26: Scroll Max | AF26: 1 | AG26: 2 | BC26: Scroll Max | BF26: 1 | BG26: 2 | CC26: Scroll Max | CF26: 1 | CG26: 2
A27: INDI_1 | B27: =B20 -> 1 | C27: =B19 -> 113 | D27: =INDEX('tblIndicators-FB'!$G$2:$G$152,uxb_works!B27) -> OVERALL SCORE | E27: =INDEX('tblIndicators-FB'!$Q$2:$Q$152,uxb_works!B27) -> EIU Calculation based on domains – see description | F27: =INDEX('tblIndicators-FB'!$Z$2:$AA$118,$B$27,F26) -> OVERALL SCORE | G27: =INDEX('tblIndicators-FB'!$Z$2:$AA$118,$B$27,G26) -> - | AA27: INDI_1 | AB27: =AB20 -> 1 | AC27: =AB19 -> 113 | AD27: =INDEX('tblIndicators-CG'!$G$2:$G$152,uxb_works!AB27) -> OVERALL SCORE | AE27: =INDEX('tblIndicators-CG'!$Q$2:$Q$152,uxb_works!AB27) -> EIU Calculation based on domains – see description | AF27: =INDEX('tblIndicators-CG'!$Z$2:$AA$118,AB$27,AF$26) -> OVERALL SCORE | AG27: =INDEX('tblIndicators-CG'!$Z$2:$AA$118,AB$27,AG$26) -> - | BA27: INDI_1 | BB27: =BB20 -> 1 | BC27: =BB19 -> 110 | BD27: =INDEX('tblIndicators-HS'!$G$2:$G$152,uxb_works!BB27) -> OVERALL SCORE | BE27: =INDEX('tblIndicators-HS'!$Q$2:$Q$152,uxb_works!BC27) -> 1,000 persons | BF27: =INDEX('tblIndicators-HS'!$Z$2:$AA$118,BB$27,BF$26) -> OVERALL SCORE | BG27: =INDEX('tblIndicators-HS'!$Z$2:$AA$118,BB$27,BG$26) -> - | CA27: INDI_1 | CB27: =CB20 -> 1 | CC27: =CB19 -> 115 | CD27: =INDEX('tblIndicators-HT'!$G$2:$G$153,uxb_works!CB27) -> OVERALL SCORE | CE27: =INDEX('tblIndicators-HT'!$Q$2:$Q$153,uxb_works!CC27) -> 1,000 persons | CF27: =INDEX('tblIndicators-HT'!$Z$2:$AA$118,CB$27,CF$26) -> OVERALL SCORE | CG27: =INDEX('tblIndicators-HT'!$Z$2:$AA$118,CB$27,$CG$26) -> -
A28: INDI_2 | B28: =INDEX(tblIndiSets!$B$91:$B$203,B29) -> 1 | C28: =B19 -> 113 | D28: =INDEX('tblIndicators-FB'!$G$2:$G$152,uxb_works!B28) -> OVERALL SCORE | E28: =INDEX('tblIndicators-FB'!$Q$2:$Q$152,uxb_works!B28) -> EIU Calculation based on domains – see description | F28: =INDEX('tblIndicators-FB'!$Z$2:$AA$118,$B$28,F26) -> OVERALL SCORE | G28: =INDEX('tblIndicators-FB'!$Z$2:$AA$118,$B$28,G26) -> - | AA28: INDI_2 | AB28: =INDEX(tblIndiSets!$H$91:$H$203,AB29) -> 1 | AC28: =AC27 -> 113 | AD28: =INDEX('tblIndicators-CG'!$G$2:$G$152,uxb_works!AB28) -> OVERALL SCORE | AE28: =INDEX('tblIndicators-CG'!$Q$2:$Q$152,uxb_works!AB28) -> EIU Calculation based on domains – see description | AF28: =INDEX('tblIndicators-CG'!$Z$2:$AA$118,AB$28,AF$26) -> OVERALL SCORE | AG28: =INDEX('tblIndicators-CG'!$Z$2:$AA$118,AB$28,AG$26) -> - | BA28: INDI_2 | BB28: =INDEX(tblIndiSets!$N$91:$N$200,BB29) -> 1 | BC28: =BC27 -> 110 | BD28: =INDEX('tblIndicators-HS'!$G$2:$G$152,uxb_works!BB28) -> OVERALL SCORE | BE28: =INDEX('tblIndicators-HS'!$Q$2:$Q$152,uxb_works!BC28) -> 1,000 persons | BF28: =INDEX('tblIndicators-HS'!$Z$2:$AA$118,BB$28,BF$26) -> OVERALL SCORE | BG28: =INDEX('tblIndicators-HS'!$Z$2:$AA$118,BB$28,BG$26) -> - | CA28: INDI_2 | CB28: =INDEX(tblIndiSets!$R$91:$R$205,CB29) -> 1 | CC28: =CC27 -> 115 | CD28: =INDEX('tblIndicators-HT'!$G$2:$G$153,uxb_works!CB28) -> OVERALL SCORE | CE28: =INDEX('tblIndicators-HT'!$Q$2:$Q$153,uxb_works!CC28) -> 1,000 persons | CF28: =INDEX('tblIndicators-HT'!$Z$2:$AA$118,CB$28,CF$26) -> OVERALL SCORE | CG28: =INDEX('tblIndicators-HT'!$Z$2:$AA$118,CB$28,$CG$26) -> -
B29: 1 | AB29: 1 | AC29: 106 | BB29: 1 | CB29: 1
A30: SHOW_LABELS | B30: FALSE | AA30: SHOW_LABELS | AB30: =B30 -> FALSE | BA30: SHOW_LABELS | BB30: =AB30 -> FALSE | CA30: SHOW_LABELS | CB30: =BB30 -> FALSE
A31: SHOW_OUTLIERS | B31: FALSE | AA31: SHOW_OUTLIERS | AB31: =B31 -> FALSE | BA31: SHOW_OUTLIERS | BB31: =AB31 -> FALSE | CA31: SHOW_OUTLIERS | CB31: =BB31 -> FALSE
A33: COUNTRY_PROFILE_COMPARE | AA33: COUNTRY_PROFILE_COMPARE | BA33: COUNTRY_PROFILE_COMPARE | CA33: COUNTRY_PROFILE_COMPARE
A35: COUNTRY_COMPARE_1 | B35: 1 | C35: =INDEX(luCountries,B35) -> Argentina | AA35: COUNTRY_COMPARE_1 | AB35: =B35 -> 1 | AC35: =INDEX(luCountries,AB35) -> Argentina | BA35: COUNTRY_COMPARE_1 | BB35: =AB35 -> 1 | BC35: =INDEX(luCountries,BB35) -> Argentina | CA35: COUNTRY_COMPARE_1 | CB35: =BB35 -> 1 | CC35: =INDEX(luCountries,CB35) -> Argentina
A36: COUNTRY_COMPARE_2 | B36: 1 | C36: =INDEX(luCountries,B36) -> Argentina | AA36: COUNTRY_COMPARE_2 | AB36: =B36 -> 1 | AC36: =INDEX(luCountries,AB36) -> Argentina | BA36: COUNTRY_COMPARE_2 | BB36: =AB36 -> 1 | BC36: =INDEX(luCountries,BB36) -> Argentina | CA36: COUNTRY_COMPARE_2 | CB36: =BB36 -> 1 | CC36: =INDEX(luCountries,CB36) -> Argentina
A37: INDICATOR_SELECT_WEIGHT_COMPARE | B37: FALSE | AA37: INDICATOR_SELECT_WEIGHT_COMPARE | AB37: FALSE | BA37: INDICATOR_SELECT_WEIGHT_COMPARE | BB37: FALSE | CA37: INDICATOR_SELECT_WEIGHT_COMPARE | CB37: FALSE
A38: COUNTRY_COMPARE_INDI | B38: 1 | AA38: COUNTRY_COMPARE_INDI | AB38: 1 | BA38: COUNTRY_COMPARE_INDI | BB38: 1 | CA38: COUNTRY_COMPARE_INDI | CB38: 1
A40: REGION_COMPARE | B40: 1 | C40: =INDEX(luRegions,B40) -> View all Regions | AA40: REGION_COMPARE | AB40: =B40 -> 1 | AC40: =INDEX(luRegions,AB40) -> View all Regions | BA40: REGION_COMPARE | BB40: =AB40 -> 1 | BC40: =INDEX(luRegions,BB40) -> View all Regions | CA40: REGION_COMPARE | CB40: =BB40 -> 1 | CC40: =INDEX(luRegions,CB40) -> View all Regions
A41: REGION_COMPARE_2 | B41: 4 | C41: =INDEX(luRegions,B41) -> Europe | AA41: REGION_COMPARE_2 | AB41: =B41 -> 4 | BA41: REGION_COMPARE_2 | BB41: =AB41 -> 4 | BC41: =INDEX(luRegions,BB41) -> Europe | CA41: REGION_COMPARE_2 | CB41: =BB41 -> 4 | CC41: =INDEX(luRegions,CB41) -> Europe
A42: NUMBER_OF_REGIONS | B42: 6 | AA42: NUMBER_OF_REGIONS | AB42: 6 | BA42: NUMBER_OF_REGIONS | BB42: 6 | CA42: NUMBER_OF_REGIONS | CB42: 6
B47: 70% (recommended for 1024 width displays) | C47: 70
B48: 0.8 | C48: 80
B49: 0.9 | C49: 90
B50: 100% (recommended for wide screen displays) | C50: 100
B51: 1.25 | C51: 125
A53: ZOOM | B53: 3 | C53: =INDEX(C47:C51,B53) -> 90
A59: Text | AA59: Text | BA59: Text | CA59: Text
B60: Scores are normalized (0-100, where 100=most favorable) | AB60: Scores are normalized (0-100, where 100=most favorable) | BB60: Scores are normalized (0-100, where 100=most favorable) | CB60: Scores are normalized (0-100, where 100=most favorable)
A63: Weight_Compare | AA63: Weight_Compare | BA63: Weight_Compare | CA63: Weight_Compare
A65: Indicator | B65: 1 | AA65: Indicator | AB65: 1 | BA65: Indicator | BB65: 1 | CA65: Indicator | CB65: 1
A66: WEIGHT_COMP | B66: 1 | AA66: WEIGHT_COMP | AB66: 1 | BA66: WEIGHT_COMP | BB66: 1 | CA66: WEIGHT_COMP | CB66: 1
A67: Order | B67: TRUE | AA67: Order | AB67: TRUE | BA67: Order | BB67: TRUE | CA67: Order | CB67: TRUE
A70: SUMMARY
A71: INDICATOR_SELECT | B71: 1 | C71: 16
A73: COUNTRY_SUMMARY
A74: COUNTRY_SELECT | B74: =B35 -> 1 | C74: =INDEX(luCountries,B74) -> Argentina
A75: INDICATOR_SELECT | B75: 1 | C75: 4 | D75: =INDEX(tblIndiSets!C5:C8,B75) -> OVERALL SCORE
A78: MAP
A79: INDUSTRY_SELECT | B79: 4 | C79: =INDEX(tblIndiSets!$A$227:$A$230,B79) -> Hospitality Services | E79: =INDEX(G79:G82,B79) -> Current weight profile: Default Profile | G79: =$C$118 -> Current weight profile: Default Profile
A80: DOMAIN_LEVEL_SELECT_MAP | B80: 1 | C80: =INDEX('iMap-Data'!$B$11:$B$14,B80) -> OVERALL SCORE | G80: =$AC$118 -> Current weight profile: Default Profile
G81: =$BC$118 -> Current weight profile: Default Profile
G82: =$CC$118 -> Current weight profile: Default Profile
A83: REGION_SUMMARY
A85: REGION_HIGHLIGHT | B85: 2
A90: Region_Compare | B90: Select between two and six regions above for comparison. In addition, a country can be included.
A91: Country_Compare | B91: Select between two and six countries above for comparison. In addition, a region can be included.
A92: SCORE_TEXT | B92: In the Global Resource Management Index scores of 0 and 100 represent the lowest and highest possible score, respectively, as measured by the index criteria. Scores are normalised (0-100, where 100 = most sustainable resource management)
A93: WEIGHT_TEXT | B93: Change weights by editing the numbers highlighted in yellow. Metrics with higher numbers will be weighted more heavily, while setting a number to zero will completely remove the influence of a domain, category, indicator or subindicator.
A94: DESC_TEXT | B94: 100 = most sustainable resource management
A96: COUNTRY_PROFILE_COMPARE | AA96: COUNTRY_PROFILE_COMPARE | BA96: COUNTRY_PROFILE_COMPARE | CA96: COUNTRY_PROFILE_COMPARE
A98: COUNTRY_COMPARE_6_1 | B98: =B35 -> 1 | C98: =B98 -> 1 | D98: =INDEX(luCountries,C98) -> Argentina | E98: =MATCH(D98,luCountries,0) -> 1 | AA98: COUNTRY_COMPARE_1 | AB98: =B98 -> 1 | AC98: =INDEX(luCountries,AB98) -> Argentina | BA98: COUNTRY_COMPARE_1 | BB98: =AB98 -> 1 | BC98: =INDEX(luCountries,BB98) -> Argentina | CA98: COUNTRY_COMPARE_1 | CB98: =BB98 -> 1 | CC98: =INDEX(luCountries,CB98) -> Argentina
A99: COUNTRY_COMPARE_6_2 | B99: =B36 -> 1 | C99: =B99 -> 1 | D99: =INDEX(luCountries,C99) -> Argentina | E99: =MATCH(D99,luCountries,0) -> 1 | AA99: COUNTRY_COMPARE_1 | AB99: =B99 -> 1 | AC99: Argentina | BA99: COUNTRY_COMPARE_1 | BB99: =AB99 -> 1 | BC99: Argentina | CA99: COUNTRY_COMPARE_1 | CB99: =BB99 -> 1 | CC99: Argentina
A100: COUNTRY_COMPARE_6_3 | B100: 1 | C100: =B100-1 -> 0 | D100: =INDEX(luCountriesPlusNone,B100) -> <none> | E100: =MATCH(D100,luCountriesPlusNone,0) -> 1 | AA100: COUNTRY_COMPARE_1 | AB100: 1 | AC100: Argentina | BA100: COUNTRY_COMPARE_1 | BB100: 1 | BC100: Argentina | CA100: COUNTRY_COMPARE_1 | CB100: 1 | CC100: Argentina
A101: COUNTRY_COMPARE_6_4 | B101: 1 | C101: =B101-1 -> 0 | D101: =INDEX(luCountriesPlusNone,B101) -> <none> | E101: =MATCH(D101,luCountriesPlusNone,0) -> 1 | AA101: COUNTRY_COMPARE_1 | AB101: 1 | AC101: Argentina | BA101: COUNTRY_COMPARE_1 | BB101: 1 | BC101: Argentina | CA101: COUNTRY_COMPARE_1 | CB101: 1 | CC101: Argentina
A102: COUNTRY_COMPARE_6_5 | B102: 1 | C102: 0 | D102: =INDEX(luCountriesPlusNone,B102) -> <none> | E102: =MATCH(D102,luCountriesPlusNone,0) -> 1 | AA102: COUNTRY_COMPARE_1 | AB102: 1 | AC102: Argentina | BA102: COUNTRY_COMPARE_1 | BB102: 1 | BC102: Argentina | CA102: COUNTRY_COMPARE_1 | CB102: 1 | CC102: Argentina
A103: COUNTRY_COMPARE_6_6 | B103: 1 | C103: 0 | D103: =INDEX(luCountriesPlusNone,B103) -> <none> | E103: =MATCH(D103,luCountriesPlusNone,0) -> 1 | AA103: COUNTRY_COMPARE_1 | AB103: 1 | AC103: Argentina | BA103: COUNTRY_COMPARE_1 | BB103: 1 | BC103: Argentina | CA103: COUNTRY_COMPARE_1 | CB103: 1 | CC103: Argentina
A104: REGION+COMP_6_1 | B104: 3 | C104: 2 | D104: =INDEX(tblTerritories!Y2:Y8,B104) -> North America | E104: =MATCH(D104,luCountriesPlusNone,0) ->  | AA104: COUNTRY_COMPARE_1 | AB104: 3 | AC104: Belgium | BA104: COUNTRY_COMPARE_1 | BB104: 3 | BC104: Belgium | CA104: COUNTRY_COMPARE_1 | CB104: 3 | CC104: Belgium
A108: REGION_COMPARE_6_1 | B108: =B40 -> 1 | C108: =B108 -> 1 | D108: =INDEX(tblTerritories!$Y$3:$Y$8,B108) -> All Regions
A109: REGION_COMPARE_6_2 | B109: =B41 -> 4 | C109: =B109 -> 4 | D109: =INDEX(tblTerritories!$Y$3:$Y$8,B109) -> Europe
A110: REGION_COMPARE_6_3 | B110: 4 | C110: =B110-1 -> 3 | D110: =INDEX(tblTerritories!$Y$2:$Y$8,B110) -> Latin America
A111: REGION_COMPARE_6_4 | B111: 1 | C111: =B111-1 -> 0 | D111: =INDEX(tblTerritories!$Y$2:$Y$8,B111) -> <none>
A112: REGION_COMPARE_6_5 | B112: 1 | C112: 0 | D112: =INDEX(tblTerritories!$Y$2:$Y$8,B112) -> <none>
A113: REGION_COMPARE_6_6 | B113: 1 | C113: 0 | D113: =INDEX(tblTerritories!$Y$2:$Y$8,B113) -> <none>
A114: COUNTRY_COMP_6_1 | B114: 12 | C114: 11 | D114: =INDEX(luCountriesPlusNone,B114) -> India
A116: WEIGHTS_HIDE | B116: 1
A118: Weight_Profile | B118: 1 | C118: =IF(C119=0,"Current weight profile: "&INDEX(WeightProfile,B118),$B$119) -> Current weight profile: Default Profile | AB118: 1 | AC118: =IF(AC119=0,"Current weight profile: "&INDEX(WeightProfile,AB118),$B$119) -> Current weight profile: Default Profile | BB118: 1 | BC118: =IF(BC119=0,"Current weight profile: "&INDEX(WeightProfile,BB118),$B$119) -> Current weight profile: Default Profile | CB118: 1 | CC118: =IF(CC119=0,"Current weight profile: "&INDEX(WeightProfile,CB118),$B$119) -> Current weight profile: Default Profile
A119: Weight_Texr | B119: Current weight profile: User defined profile | C119: =tblWeights!N5 -> 0 | AC119: =tblWeights!P5 -> 0 | BC119: =tblWeights!R5 -> 0 | CC119: =tblWeights!T5 -> 0
A120: nav_historyID | B120: 2
A122: PAGE_HOME | B122: Home,
A123: SHEET_SET_ON_OPEN | B123: Home,
A124: SHEET_SET_0
A125: SHEET_SET_1
A126: SHEET_SET_2 | B126: Home,About,Contents,
A127: SHEET_SET_3 | B127: Summary,SummaryC,RegionSummary,
A128: SHEET_SET_4 | B128: Indicator_RankingFB,CountryProfileFB,CountryCompareFB,RegionCompareFB,DataFB,ScoresFB,ScatterFB,WeightsFB,
A129: SHEET_SET_5 | B129: Indicator_RankingCG,CountryProfileCG,CountryCompareCG,RegionCompareCG,DataCG,ScoresCG,ScatterCG,WeightsCG,
A130: SHEET_SET_6 | B130: Indicator_RankingHS,CountryProfileHS,CountryCompareHS,RegionCompareHS,DataHS,ScoresHS,ScatterHS,WeightsHS,
A131: SHEET_SET_7 | B131: Indicator_RankingHT,CountryProfileHT,CountryCompareHT,RegionCompareHT,DataHT,ScoresHT,ScatterHT,WeightsHT,
A132: SHEET_SET_8
A133: SHEET_SET_9
A134: SHEET_SET_10

Sheet iCountryLists (hidden)
A1: =uxb_works!A98 -> COUNTRY_COMPARE_6_1 | B1: =uxb_works!B98 -> 1 | C1: =uxb_works!C98 -> 1 | D1: =uxb_works!D98 -> Argentina | I1: =COUNT(H8:H32) -> 24 | P1: =COUNT(O8:O32) -> 24 | W1: =COUNT(V8:V32) -> 24 | AD1: =COUNT(AC8:AC32) -> 24 | AK1: =COUNT(AJ8:AJ32) -> 24 | AR1: =COUNT(AQ8:AQ32) -> 24
A2: =uxb_works!A99 -> COUNTRY_COMPARE_6_2 | B2: =uxb_works!B99 -> 1 | C2: =uxb_works!C99 -> 1 | D2: =uxb_works!D99 -> Argentina
A3: =uxb_works!A100 -> COUNTRY_COMPARE_6_3 | B3: =uxb_works!B100 -> 1 | C3: =uxb_works!C100 -> 0 | D3: =uxb_works!D100 -> <none>
A4: =uxb_works!A101 -> COUNTRY_COMPARE_6_4 | B4: =uxb_works!B101 -> 1 | C4: =uxb_works!C101 -> 0 | D4: =uxb_works!D101 -> <none>
A5: =uxb_works!A102 -> COUNTRY_COMPARE_6_5 | B5: =uxb_works!B102 -> 1 | C5: =uxb_works!C102 -> 0 | D5: =uxb_works!D102 -> <none> | G5: =A1 -> COUNTRY_COMPARE_6_1 | N5: =A2 -> COUNTRY_COMPARE_6_2 | U5: =A3 -> COUNTRY_COMPARE_6_3 | AB5: =A4 -> COUNTRY_COMPARE_6_4 | AI5: =A5 -> COUNTRY_COMPARE_6_5 | AP5: =A6 -> COUNTRY_COMPARE_6_6
A6: =uxb_works!A103 -> COUNTRY_COMPARE_6_6 | B6: =uxb_works!B103 -> 1 | C6: =uxb_works!C103 -> 0 | D6: =uxb_works!D103 -> <none>
C7: <none> | D7: ActiveStatus(1) | F7: Score | G7: Rank | H7: LU | L7: ActiveStatus(2) | M7: Score | N7: Rank | O7: LU | S7: ActiveStatus(3) | T7: Score | U7: Rank | V7: LU | W7: <none> | Z7: ActiveStatus(4) | AA7: Score | AB7: Rank | AC7: LU | AD7: <none> | AG7: ActiveStatus(5) | AH7: Score | AI7: Rank | AJ7: LU | AK7: <none> | AN7: ActiveStatus(6) | AO7: Score | AP7: Rank | AQ7: LU | AR7: <none>
A8: =tblTerritories!A3 -> 1 | C8: =tblTerritories!E3 -> Argentina | D8: =IF(OR($C$2=$A8,$C$3=$A8,$C$4=$A8,$C$5=$A8,$C$6=$A8),0,1) -> 0 | F8: =IF(D8=0,"",A8) ->  | G8: =IF($D8=0,"",RANK(F8,F$8:F$32,1)+COUNTIF(F$8:F8,F8)-1) ->  | H8: =IF(ISERROR(MATCH($A8,G$8:G$32,0)),"",MATCH($A8,G$8:G$32,0)) -> 2 | I8: =IF(H8="","",INDEX($C$8:$C$32,H8)) -> Australia | L8: =IF(OR($C$1=$A8,$C$3=$A8,$C$4=$A8,$C$5=$A8,$C$6=$A8),0,1) -> 0 | M8: =IF(L8=0,"",$A8) ->  | N8: =IF(L8=0,"",RANK(M8,M$8:M$32,1)+COUNTIF(M$8:M8,M8)-1) ->  | O8: =IF(ISERROR(MATCH($A8,N$8:N$32,0)),"",MATCH($A8,N$8:N$32,0)) -> 2 | P8: =IF(O8="","",INDEX($C$8:$C$32,O8)) -> Australia | S8: =IF(OR($C$1=$A8,$C$2=$A8,$C$4=$A8,$C$5=$A8,$C$6=$A8),0,1) -> 0 | T8: =IF(S8=0,"",$A8) ->  | U8: =IF(S8=0,"",RANK(T8,T$8:T$32,1)+COUNTIF(T$8:T8,T8)-1) ->  | V8: =IF(ISERROR(MATCH($A8,U$8:U$32,0)),"",MATCH($A8,U$8:U$32,0)) -> 2 | W8: =IF(V8="","",INDEX($C$8:$C$32,V8)) -> Australia | Z8: =IF(OR($C$1=$A8,$C$2=$A8,$C$3=$A8,$C$5=$A8,$C$6=$A8),0,1) -> 0 | AA8: =IF(Z8=0,"",$A8) ->  | AB8: =IF(Z8=0,"",RANK(AA8,AA$8:AA$32,1)+COUNTIF(AA$8:AA8,AA8)-1) ->  | AC8: =IF(ISERROR(MATCH($A8,AB$8:AB$32,0)),"",MATCH($A8,AB$8:AB$32,0)) -> 2 | AD8: =IF(AC8="","",INDEX($C$8:$C$32,AC8)) -> Australia | AG8: =IF(OR($C$1=$A8,$C$2=$A8,$C$3=$A8,$C$4=$A8,$C$6=$A8),0,1) -> 0 | AH8: =IF(AG8=0,"",$A8) ->  | AI8: =IF(AG8=0,"",RANK(AH8,AH$8:AH$32,1)+COUNTIF(AH$8:AH8,AH8)-1) ->  | AJ8: =IF(ISERROR(MATCH($A8,AI$8:AI$32,0)),"",MATCH($A8,AI$8:AI$32,0)) -> 2 | AK8: =IF(AJ8="","",INDEX($C$8:$C$32,AJ8)) -> Australia | AN8: =IF(OR($C$1=$A8,$C$2=$A8,$C$3=$A8,$C$4=$A8,$C$5=$A8),0,1) -> 0 | AO8: =IF(AN8=0,"",$A8) ->  | AP8: =IF(AN8=0,"",RANK(AO8,AO$8:AO$32,1)+COUNTIF(AO$8:AO8,AO8)-1) ->  | AQ8: =IF(ISERROR(MATCH($A8,AP$8:AP$32,0)),"",MATCH($A8,AP$8:AP$32,0)) -> 2 | AR8: =IF(AQ8="","",INDEX($C$8:$C$32,AQ8)) -> Australia
A9: =tblTerritories!A4 -> 2 | C9: =tblTerritories!E4 -> Australia | D9: =IF(OR($C$2=$A9,$C$3=$A9,$C$4=$A9,$C$5=$A9,$C$6=$A9),0,1) -> 1 | F9: =IF(D9=0,"",A9) -> 2 | G9: =IF($D9=0,"",RANK(F9,F$8:F$32,1)+COUNTIF(F$8:F9,F9)-1) -> 1 | H9: 3 | I9: Belgium | L9: =IF(OR($C$1=$A9,$C$3=$A9,$C$4=$A9,$C$5=$A9,$C$6=$A9),0,1) -> 1 | M9: =IF(L9=0,"",$A9) -> 2 | N9: =IF(L9=0,"",RANK(M9,M$8:M$32,1)+COUNTIF(M$8:M9,M9)-1) -> 1 | O9: =IF(ISERROR(MATCH($A9,N$8:N$32,0)),"",MATCH($A9,N$8:N$32,0)) -> 3 | P9: Belgium | S9: =IF(OR($C$1=$A9,$C$2=$A9,$C$4=$A9,$C$5=$A9,$C$6=$A9),0,1) -> 1 | T9: =IF(S9=0,"",$A9) -> 2 | U9: =IF(S9=0,"",RANK(T9,T$8:T$32,1)+COUNTIF(T$8:T9,T9)-1) -> 1 | V9: =IF(ISERROR(MATCH($A9,U$8:U$32,0)),"",MATCH($A9,U$8:U$32,0)) -> 3 | W9: Belgium | Z9: =IF(OR($C$1=$A9,$C$2=$A9,$C$3=$A9,$C$5=$A9,$C$6=$A9),0,1) -> 1 | AA9: =IF(Z9=0,"",$A9) -> 2 | AB9: =IF(Z9=0,"",RANK(AA9,AA$8:AA$32,1)+COUNTIF(AA$8:AA9,AA9)-1) -> 1 | AC9: =IF(ISERROR(MATCH($A9,AB$8:AB$32,0)),"",MATCH($A9,AB$8:AB$32,0)) -> 3 | AD9: Belgium | AG9: =IF(OR($C$1=$A9,$C$2=$A9,$C$3=$A9,$C$4=$A9,$C$6=$A9),0,1) -> 1 | AH9: =IF(AG9=0,"",$A9) -> 2 | AI9: =IF(AG9=0,"",RANK(AH9,AH$8:AH$32,1)+COUNTIF(AH$8:AH9,AH9)-1) -> 1 | AJ9: =IF(ISERROR(MATCH($A9,AI$8:AI$32,0)),"",MATCH($A9,AI$8:AI$32,0)) -> 3 | AK9: Belgium | AN9: =IF(OR($C$1=$A9,$C$2=$A9,$C$3=$A9,$C$4=$A9,$C$5=$A9),0,1) -> 1 | AO9: =IF(AN9=0,"",$A9) -> 2 | AP9: =IF(AN9=0,"",RANK(AO9,AO$8:AO$32,1)+COUNTIF(AO$8:AO9,AO9)-1) -> 1 | AQ9: =IF(ISERROR(MATCH($A9,AP$8:AP$32,0)),"",MATCH($A9,AP$8:AP$32,0)) -> 3 | AR9: Belgium
A10: =tblTerritories!A5 -> 3 | C10: =tblTerritories!E5 -> Belgium | D10: 1 | F10: 3 | G10: =IF($D10=0,"",RANK(F10,F$8:F$32,1)+COUNTIF(F$8:F10,F10)-1) -> 2 | H10: 4 | I10: Brazil | L10: 1 | M10: 3 | N10: =IF(L10=0,"",RANK(M10,M$8:M$32,1)+COUNTIF(M$8:M10,M10)-1) -> 2 | O10: 4 | P10: Brazil | S10: 1 | T10: 3 | U10: =IF(S10=0,"",RANK(T10,T$8:T$32,1)+COUNTIF(T$8:T10,T10)-1) -> 2 | V10: 4 | W10: Brazil | Z10: 1 | AA10: 3 | AB10: =IF(Z10=0,"",RANK(AA10,AA$8:AA$32,1)+COUNTIF(AA$8:AA10,AA10)-1) -> 2 | AC10: 4 | AD10: Brazil | AG10: 1 | AH10: 3 | AI10: =IF(AG10=0,"",RANK(AH10,AH$8:AH$32,1)+COUNTIF(AH$8:AH10,AH10)-1) -> 2 | AJ10: 4 | AK10: Brazil | AN10: 1 | AO10: 3 | AP10: =IF(AN10=0,"",RANK(AO10,AO$8:AO$32,1)+COUNTIF(AO$8:AO10,AO10)-1) -> 2 | AQ10: 4 | AR10: Brazil
A11: =tblTerritories!A6 -> 4 | C11: =tblTerritories!E6 -> Brazil | D11: 1 | F11: 4 | G11: =IF($D11=0,"",RANK(F11,F$8:F$32,1)+COUNTIF(F$8:F11,F11)-1) -> 3 | H11: 5 | I11: Canada | L11: 1 | M11: 4 | N11: =IF(L11=0,"",RANK(M11,M$8:M$32,1)+COUNTIF(M$8:M11,M11)-1) -> 3 | O11: 5 | P11: Canada | S11: 1 | T11: 4 | U11: =IF(S11=0,"",RANK(T11,T$8:T$32,1)+COUNTIF(T$8:T11,T11)-1) -> 3 | V11: 5 | W11: Canada | Z11: 1 | AA11: 4 | AB11: =IF(Z11=0,"",RANK(AA11,AA$8:AA$32,1)+COUNTIF(AA$8:AA11,AA11)-1) -> 3 | AC11: 5 | AD11: Canada | AG11: 1 | AH11: 4 | AI11: =IF(AG11=0,"",RANK(AH11,AH$8:AH$32,1)+COUNTIF(AH$8:AH11,AH11)-1) -> 3 | AJ11: 5 | AK11: Canada | AN11: 1 | AO11: 4 | AP11: =IF(AN11=0,"",RANK(AO11,AO$8:AO$32,1)+COUNTIF(AO$8:AO11,AO11)-1) -> 3 | AQ11: 5 | AR11: Canada
A12: =tblTerritories!A7 -> 5 | C12: =tblTerritories!E7 -> Canada | D12: 1 | F12: 5 | G12: =IF($D12=0,"",RANK(F12,F$8:F$32,1)+COUNTIF(F$8:F12,F12)-1) -> 4 | H12: 6 | I12: Chile | L12: 1 | M12: 5 | N12: =IF(L12=0,"",RANK(M12,M$8:M$32,1)+COUNTIF(M$8:M12,M12)-1) -> 4 | O12: 6 | P12: Chile | S12: 1 | T12: 5 | U12: =IF(S12=0,"",RANK(T12,T$8:T$32,1)+COUNTIF(T$8:T12,T12)-1) -> 4 | V12: 6 | W12: Chile | Z12: 1 | AA12: 5 | AB12: =IF(Z12=0,"",RANK(AA12,AA$8:AA$32,1)+COUNTIF(AA$8:AA12,AA12)-1) -> 4 | AC12: 6 | AD12: Chile | AG12: 1 | AH12: 5 | AI12: =IF(AG12=0,"",RANK(AH12,AH$8:AH$32,1)+COUNTIF(AH$8:AH12,AH12)-1) -> 4 | AJ12: 6 | AK12: Chile | AN12: 1 | AO12: 5 | AP12: =IF(AN12=0,"",RANK(AO12,AO$8:AO$32,1)+COUNTIF(AO$8:AO12,AO12)-1) -> 4 | AQ12: 6 | AR12: Chile
A13: =tblTerritories!A8 -> 6 | C13: =tblTerritories!E8 -> Chile | D13: 1 | F13: 6 | G13: =IF($D13=0,"",RANK(F13,F$8:F$32,1)+COUNTIF(F$8:F13,F13)-1) -> 5 | H13: 7 | I13: China | L13: 1 | M13: 6 | N13: =IF(L13=0,"",RANK(M13,M$8:M$32,1)+COUNTIF(M$8:M13,M13)-1) -> 5 | O13: 7 | P13: China | S13: 1 | T13: 6 | U13: =IF(S13=0,"",RANK(T13,T$8:T$32,1)+COUNTIF(T$8:T13,T13)-1) -> 5 | V13: 7 | W13: China | Z13: 1 | AA13: 6 | AB13: =IF(Z13=0,"",RANK(AA13,AA$8:AA$32,1)+COUNTIF(AA$8:AA13,AA13)-1) -> 5 | AC13: 7 | AD13: China | AG13: 1 | AH13: 6 | AI13: =IF(AG13=0,"",RANK(AH13,AH$8:AH$32,1)+COUNTIF(AH$8:AH13,AH13)-1) -> 5 | AJ13: 7 | AK13: China | AN13: 1 | AO13: 6 | AP13: =IF(AN13=0,"",RANK(AO13,AO$8:AO$32,1)+COUNTIF(AO$8:AO13,AO13)-1) -> 5 | AQ13: 7 | AR13: China
A14: =tblTerritories!A9 -> 7 | C14: =tblTerritories!E9 -> China | D14: 1 | F14: 7 | G14: =IF($D14=0,"",RANK(F14,F$8:F$32,1)+COUNTIF(F$8:F14,F14)-1) -> 6 | H14: 8 | I14: Finland | L14: 1 | M14: 7 | N14: =IF(L14=0,"",RANK(M14,M$8:M$32,1)+COUNTIF(M$8:M14,M14)-1) -> 6 | O14: 8 | P14: Finland | S14: 1 | T14: 7 | U14: =IF(S14=0,"",RANK(T14,T$8:T$32,1)+COUNTIF(T$8:T14,T14)-1) -> 6 | V14: 8 | W14: Finland | Z14: 1 | AA14: 7 | AB14: =IF(Z14=0,"",RANK(AA14,AA$8:AA$32,1)+COUNTIF(AA$8:AA14,AA14)-1) -> 6 | AC14: 8 | AD14: Finland | AG14: 1 | AH14: 7 | AI14: =IF(AG14=0,"",RANK(AH14,AH$8:AH$32,1)+COUNTIF(AH$8:AH14,AH14)-1) -> 6 | AJ14: 8 | AK14: Finland | AN14: 1 | AO14: 7 | AP14: =IF(AN14=0,"",RANK(AO14,AO$8:AO$32,1)+COUNTIF(AO$8:AO14,AO14)-1) -> 6 | AQ14: 8 | AR14: Finland
A15: =tblTerritories!A10 -> 8 | C15: =tblTerritories!E10 -> Finland | D15: 1 | F15: 8 | G15: =IF($D15=0,"",RANK(F15,F$8:F$32,1)+COUNTIF(F$8:F15,F15)-1) -> 7 | H15: 9 | I15: France | L15: 1 | M15: 8 | N15: =IF(L15=0,"",RANK(M15,M$8:M$32,1)+COUNTIF(M$8:M15,M15)-1) -> 7 | O15: 9 | P15: France | S15: 1 | T15: 8 | U15: =IF(S15=0,"",RANK(T15,T$8:T$32,1)+COUNTIF(T$8:T15,T15)-1) -> 7 | V15: 9 | W15: France | Z15: 1 | AA15: 8 | AB15: =IF(Z15=0,"",RANK(AA15,AA$8:AA$32,1)+COUNTIF(AA$8:AA15,AA15)-1) -> 7 | AC15: 9 | AD15: France | AG15: 1 | AH15: 8 | AI15: =IF(AG15=0,"",RANK(AH15,AH$8:AH$32,1)+COUNTIF(AH$8:AH15,AH15)-1) -> 7 | AJ15: 9 | AK15: France | AN15: 1 | AO15: 8 | AP15: =IF(AN15=0,"",RANK(AO15,AO$8:AO$32,1)+COUNTIF(AO$8:AO15,AO15)-1) -> 7 | AQ15: 9 | AR15: France
A16: =tblTerritories!A11 -> 9 | C16: =tblTerritories!E11 -> France | D16: 1 | F16: 9 | G16: =IF($D16=0,"",RANK(F16,F$8:F$32,1)+COUNTIF(F$8:F16,F16)-1) -> 8 | H16: 10 | I16: Germany | L16: 1 | M16: 9 | N16: =IF(L16=0,"",RANK(M16,M$8:M$32,1)+COUNTIF(M$8:M16,M16)-1) -> 8 | O16: 10 | P16: Germany | S16: 1 | T16: 9 | U16: =IF(S16=0,"",RANK(T16,T$8:T$32,1)+COUNTIF(T$8:T16,T16)-1) -> 8 | V16: 10 | W16: Germany | Z16: 1 | AA16: 9 | AB16: =IF(Z16=0,"",RANK(AA16,AA$8:AA$32,1)+COUNTIF(AA$8:AA16,AA16)-1) -> 8 | AC16: 10 | AD16: Germany | AG16: 1 | AH16: 9 | AI16: =IF(AG16=0,"",RANK(AH16,AH$8:AH$32,1)+COUNTIF(AH$8:AH16,AH16)-1) -> 8 | AJ16: 10 | AK16: Germany | AN16: 1 | AO16: 9 | AP16: =IF(AN16=0,"",RANK(AO16,AO$8:AO$32,1)+COUNTIF(AO$8:AO16,AO16)-1) -> 8 | AQ16: 10 | AR16: Germany
A17: =tblTerritories!A12 -> 10 | C17: =tblTerritories!E12 -> Germany | D17: 1 | F17: 10 | G17: =IF($D17=0,"",RANK(F17,F$8:F$32,1)+COUNTIF(F$8:F17,F17)-1) -> 9 | H17: 11 | I17: India | L17: 1 | M17: 10 | N17: =IF(L17=0,"",RANK(M17,M$8:M$32,1)+COUNTIF(M$8:M17,M17)-1) -> 9 | O17: 11 | P17: India | S17: 1 | T17: 10 | U17: =IF(S17=0,"",RANK(T17,T$8:T$32,1)+COUNTIF(T$8:T17,T17)-1) -> 9 | V17: 11 | W17: India | Z17: 1 | AA17: 10 | AB17: =IF(Z17=0,"",RANK(AA17,AA$8:AA$32,1)+COUNTIF(AA$8:AA17,AA17)-1) -> 9 | AC17: 11 | AD17: India | AG17: 1 | AH17: 10 | AI17: =IF(AG17=0,"",RANK(AH17,AH$8:AH$32,1)+COUNTIF(AH$8:AH17,AH17)-1) -> 9 | AJ17: 11 | AK17: India | AN17: 1 | AO17: 10 | AP17: =IF(AN17=0,"",RANK(AO17,AO$8:AO$32,1)+COUNTIF(AO$8:AO17,AO17)-1) -> 9 | AQ17: 11 | AR17: India
A18: =tblTerritories!A13 -> 11 | C18: =tblTerritories!E13 -> India | D18: 1 | F18: 11 | G18: =IF($D18=0,"",RANK(F18,F$8:F$32,1)+COUNTIF(F$8:F18,F18)-1) -> 10 | H18: 12 | I18: Indonesia | L18: 1 | M18: 11 | N18: =IF(L18=0,"",RANK(M18,M$8:M$32,1)+COUNTIF(M$8:M18,M18)-1) -> 10 | O18: 12 | P18: Indonesia | S18: 1 | T18: 11 | U18: =IF(S18=0,"",RANK(T18,T$8:T$32,1)+COUNTIF(T$8:T18,T18)-1) -> 10 | V18: 12 | W18: Indonesia | Z18: 1 | AA18: 11 | AB18: =IF(Z18=0,"",RANK(AA18,AA$8:AA$32,1)+COUNTIF(AA$8:AA18,AA18)-1) -> 10 | AC18: 12 | AD18: Indonesia | AG18: 1 | AH18: 11 | AI18: =IF(AG18=0,"",RANK(AH18,AH$8:AH$32,1)+COUNTIF(AH$8:AH18,AH18)-1) -> 10 | AJ18: 12 | AK18: Indonesia | AN18: 1 | AO18: 11 | AP18: =IF(AN18=0,"",RANK(AO18,AO$8:AO$32,1)+COUNTIF(AO$8:AO18,AO18)-1) -> 10 | AQ18: 12 | AR18: Indonesia
A19: =tblTerritories!A14 -> 12 | C19: =tblTerritories!E14 -> Indonesia | D19: 1 | F19: 12 | G19: =IF($D19=0,"",RANK(F19,F$8:F$32,1)+COUNTIF(F$8:F19,F19)-1) -> 11 | H19: 13 | I19: Japan | L19: 1 | M19: 12 | N19: =IF(L19=0,"",RANK(M19,M$8:M$32,1)+COUNTIF(M$8:M19,M19)-1) -> 11 | O19: 13 | P19: Japan | S19: 1 | T19: 12 | U19: =IF(S19=0,"",RANK(T19,T$8:T$32,1)+COUNTIF(T$8:T19,T19)-1) -> 11 | V19: 13 | W19: Japan | Z19: 1 | AA19: 12 | AB19: =IF(Z19=0,"",RANK(AA19,AA$8:AA$32,1)+COUNTIF(AA$8:AA19,AA19)-1) -> 11 | AC19: 13 | AD19: Japan | AG19: 1 | AH19: 12 | AI19: =IF(AG19=0,"",RANK(AH19,AH$8:AH$32,1)+COUNTIF(AH$8:AH19,AH19)-1) -> 11 | AJ19: 13 | AK19: Japan | AN19: 1 | AO19: 12 | AP19: =IF(AN19=0,"",RANK(AO19,AO$8:AO$32,1)+COUNTIF(AO$8:AO19,AO19)-1) -> 11 | AQ19: 13 | AR19: Japan
A20: =tblTerritories!A15 -> 13 | C20: =tblTerritories!E15 -> Japan | D20: 1 | F20: 13 | G20: =IF($D20=0,"",RANK(F20,F$8:F$32,1)+COUNTIF(F$8:F20,F20)-1) -> 12 | H20: 14 | I20: Malaysia | L20: 1 | M20: 13 | N20: =IF(L20=0,"",RANK(M20,M$8:M$32,1)+COUNTIF(M$8:M20,M20)-1) -> 12 | O20: 14 | P20: Malaysia | S20: 1 | T20: 13 | U20: =IF(S20=0,"",RANK(T20,T$8:T$32,1)+COUNTIF(T$8:T20,T20)-1) -> 12 | V20: 14 | W20: Malaysia | Z20: 1 | AA20: 13 | AB20: =IF(Z20=0,"",RANK(AA20,AA$8:AA$32,1)+COUNTIF(AA$8:AA20,AA20)-1) -> 12 | AC20: 14 | AD20: Malaysia | AG20: 1 | AH20: 13 | AI20: =IF(AG20=0,"",RANK(AH20,AH$8:AH$32,1)+COUNTIF(AH$8:AH20,AH20)-1) -> 12 | AJ20: 14 | AK20: Malaysia | AN20: 1 | AO20: 13 | AP20: =IF(AN20=0,"",RANK(AO20,AO$8:AO$32,1)+COUNTIF(AO$8:AO20,AO20)-1) -> 12 | AQ20: 14 | AR20: Malaysia
A21: =tblTerritories!A16 -> 14 | C21: =tblTerritories!E16 -> Malaysia | D21: 1 | F21: 14 | G21: =IF($D21=0,"",RANK(F21,F$8:F$32,1)+COUNTIF(F$8:F21,F21)-1) -> 13 | H21: 15 | I21: Mexico | L21: 1 | M21: 14 | N21: =IF(L21=0,"",RANK(M21,M$8:M$32,1)+COUNTIF(M$8:M21,M21)-1) -> 13 | O21: 15 | P21: Mexico | S21: 1 | T21: 14 | U21: =IF(S21=0,"",RANK(T21,T$8:T$32,1)+COUNTIF(T$8:T21,T21)-1) -> 13 | V21: 15 | W21: Mexico | Z21: 1 | AA21: 14 | AB21: =IF(Z21=0,"",RANK(AA21,AA$8:AA$32,1)+COUNTIF(AA$8:AA21,AA21)-1) -> 13 | AC21: 15 | AD21: Mexico | AG21: 1 | AH21: 14 | AI21: =IF(AG21=0,"",RANK(AH21,AH$8:AH$32,1)+COUNTIF(AH$8:AH21,AH21)-1) -> 13 | AJ21: 15 | AK21: Mexico | AN21: 1 | AO21: 14 | AP21: =IF(AN21=0,"",RANK(AO21,AO$8:AO$32,1)+COUNTIF(AO$8:AO21,AO21)-1) -> 13 | AQ21: 15 | AR21: Mexico
A22: =tblTerritories!A17 -> 15 | C22: =tblTerritories!E17 -> Mexico | D22: 1 | F22: 15 | G22: =IF($D22=0,"",RANK(F22,F$8:F$32,1)+COUNTIF(F$8:F22,F22)-1) -> 14 | H22: 16 | I22: Netherlands | L22: 1 | M22: 15 | N22: =IF(L22=0,"",RANK(M22,M$8:M$32,1)+COUNTIF(M$8:M22,M22)-1) -> 14 | O22: 16 | P22: Netherlands | S22: 1 | T22: 15 | U22: =IF(S22=0,"",RANK(T22,T$8:T$32,1)+COUNTIF(T$8:T22,T22)-1) -> 14 | V22: 16 | W22: Netherlands | Z22: 1 | AA22: 15 | AB22: =IF(Z22=0,"",RANK(AA22,AA$8:AA$32,1)+COUNTIF(AA$8:AA22,AA22)-1) -> 14 | AC22: 16 | AD22: Netherlands | AG22: 1 | AH22: 15 | AI22: =IF(AG22=0,"",RANK(AH22,AH$8:AH$32,1)+COUNTIF(AH$8:AH22,AH22)-1) -> 14 | AJ22: 16 | AK22: Netherlands | AN22: 1 | AO22: 15 | AP22: =IF(AN22=0,"",RANK(AO22,AO$8:AO$32,1)+COUNTIF(AO$8:AO22,AO22)-1) -> 14 | AQ22: 16 | AR22: Netherlands
A23: =tblTerritories!A18 -> 16 | C23: =tblTerritories!E18 -> Netherlands | D23: 1 | F23: 16 | G23: =IF($D23=0,"",RANK(F23,F$8:F$32,1)+COUNTIF(F$8:F23,F23)-1) -> 15 | H23: 17 | I23: Norway | L23: 1 | M23: 16 | N23: =IF(L23=0,"",RANK(M23,M$8:M$32,1)+COUNTIF(M$8:M23,M23)-1) -> 15 | O23: 17 | P23: Norway | S23: 1 | T23: 16 | U23: =IF(S23=0,"",RANK(T23,T$8:T$32,1)+COUNTIF(T$8:T23,T23)-1) -> 15 | V23: 17 | W23: Norway | Z23: 1 | AA23: 16 | AB23: =IF(Z23=0,"",RANK(AA23,AA$8:AA$32,1)+COUNTIF(AA$8:AA23,AA23)-1) -> 15 | AC23: 17 | AD23: Norway | AG23: 1 | AH23: 16 | AI23: =IF(AG23=0,"",RANK(AH23,AH$8:AH$32,1)+COUNTIF(AH$8:AH23,AH23)-1) -> 15 | AJ23: 17 | AK23: Norway | AN23: 1 | AO23: 16 | AP23: =IF(AN23=0,"",RANK(AO23,AO$8:AO$32,1)+COUNTIF(AO$8:AO23,AO23)-1) -> 15 | AQ23: 17 | AR23: Norway
A24: =tblTerritories!A19 -> 17 | C24: =tblTerritories!E19 -> Norway | D24: 1 | F24: 17 | G24: =IF($D24=0,"",RANK(F24,F$8:F$32,1)+COUNTIF(F$8:F24,F24)-1) -> 16 | H24: 18 | I24: Singapore | L24: 1 | M24: 17 | N24: =IF(L24=0,"",RANK(M24,M$8:M$32,1)+COUNTIF(M$8:M24,M24)-1) -> 16 | O24: 18 | P24: Singapore | S24: 1 | T24: 17 | U24: =IF(S24=0,"",RANK(T24,T$8:T$32,1)+COUNTIF(T$8:T24,T24)-1) -> 16 | V24: 18 | W24: Singapore | Z24: 1 | AA24: 17 | AB24: =IF(Z24=0,"",RANK(AA24,AA$8:AA$32,1)+COUNTIF(AA$8:AA24,AA24)-1) -> 16 | AC24: 18 | AD24: Singapore | AG24: 1 | AH24: 17 | AI24: =IF(AG24=0,"",RANK(AH24,AH$8:AH$32,1)+COUNTIF(AH$8:AH24,AH24)-1) -> 16 | AJ24: 18 | AK24: Singapore | AN24: 1 | AO24: 17 | AP24: =IF(AN24=0,"",RANK(AO24,AO$8:AO$32,1)+COUNTIF(AO$8:AO24,AO24)-1) -> 16 | AQ24: 18 | AR24: Singapore
A25: =tblTerritories!A20 -> 18 | C25: =tblTerritories!E20 -> Singapore | D25: 1 | F25: 18 | G25: =IF($D25=0,"",RANK(F25,F$8:F$32,1)+COUNTIF(F$8:F25,F25)-1) -> 17 | H25: 19 | I25: South Korea | L25: 1 | M25: 18 | N25: =IF(L25=0,"",RANK(M25,M$8:M$32,1)+COUNTIF(M$8:M25,M25)-1) -> 17 | O25: 19 | P25: South Korea | S25: 1 | T25: 18 | U25: =IF(S25=0,"",RANK(T25,T$8:T$32,1)+COUNTIF(T$8:T25,T25)-1) -> 17 | V25: 19 | W25: South Korea | Z25: 1 | AA25: 18 | AB25: =IF(Z25=0,"",RANK(AA25,AA$8:AA$32,1)+COUNTIF(AA$8:AA25,AA25)-1) -> 17 | AC25: 19 | AD25: South Korea | AG25: 1 | AH25: 18 | AI25: =IF(AG25=0,"",RANK(AH25,AH$8:AH$32,1)+COUNTIF(AH$8:AH25,AH25)-1) -> 17 | AJ25: 19 | AK25: South Korea | AN25: 1 | AO25: 18 | AP25: =IF(AN25=0,"",RANK(AO25,AO$8:AO$32,1)+COUNTIF(AO$8:AO25,AO25)-1) -> 17 | AQ25: 19 | AR25: South Korea
A26: =tblTerritories!A21 -> 19 | C26: =tblTerritories!E21 -> South Korea | D26: 1 | F26: 19 | G26: =IF($D26=0,"",RANK(F26,F$8:F$32,1)+COUNTIF(F$8:F26,F26)-1) -> 18 | H26: 20 | I26: Spain | L26: 1 | M26: 19 | N26: =IF(L26=0,"",RANK(M26,M$8:M$32,1)+COUNTIF(M$8:M26,M26)-1) -> 18 | O26: 20 | P26: Spain | S26: 1 | T26: 19 | U26: =IF(S26=0,"",RANK(T26,T$8:T$32,1)+COUNTIF(T$8:T26,T26)-1) -> 18 | V26: 20 | W26: Spain | Z26: 1 | AA26: 19 | AB26: =IF(Z26=0,"",RANK(AA26,AA$8:AA$32,1)+COUNTIF(AA$8:AA26,AA26)-1) -> 18 | AC26: 20 | AD26: Spain | AG26: 1 | AH26: 19 | AI26: =IF(AG26=0,"",RANK(AH26,AH$8:AH$32,1)+COUNTIF(AH$8:AH26,AH26)-1) -> 18 | AJ26: 20 | AK26: Spain | AN26: 1 | AO26: 19 | AP26: =IF(AN26=0,"",RANK(AO26,AO$8:AO$32,1)+COUNTIF(AO$8:AO26,AO26)-1) -> 18 | AQ26: 20 | AR26: Spain
A27: =tblTerritories!A22 -> 20 | C27: =tblTerritories!E22 -> Spain | D27: 1 | F27: 20 | G27: =IF($D27=0,"",RANK(F27,F$8:F$32,1)+COUNTIF(F$8:F27,F27)-1) -> 19 | H27: 21 | I27: Sweden | L27: 1 | M27: 20 | N27: =IF(L27=0,"",RANK(M27,M$8:M$32,1)+COUNTIF(M$8:M27,M27)-1) -> 19 | O27: 21 | P27: Sweden | S27: 1 | T27: 20 | U27: =IF(S27=0,"",RANK(T27,T$8:T$32,1)+COUNTIF(T$8:T27,T27)-1) -> 19 | V27: 21 | W27: Sweden | Z27: 1 | AA27: 20 | AB27: =IF(Z27=0,"",RANK(AA27,AA$8:AA$32,1)+COUNTIF(AA$8:AA27,AA27)-1) -> 19 | AC27: 21 | AD27: Sweden | AG27: 1 | AH27: 20 | AI27: =IF(AG27=0,"",RANK(AH27,AH$8:AH$32,1)+COUNTIF(AH$8:AH27,AH27)-1) -> 19 | AJ27: 21 | AK27: Sweden | AN27: 1 | AO27: 20 | AP27: =IF(AN27=0,"",RANK(AO27,AO$8:AO$32,1)+COUNTIF(AO$8:AO27,AO27)-1) -> 19 | AQ27: 21 | AR27: Sweden
A28: =tblTerritories!A23 -> 21 | C28: =tblTerritories!E23 -> Sweden | D28: 1 | F28: 21 | G28: =IF($D28=0,"",RANK(F28,F$8:F$32,1)+COUNTIF(F$8:F28,F28)-1) -> 20 | H28: 22 | I28: Thailand | L28: 1 | M28: 21 | N28: =IF(L28=0,"",RANK(M28,M$8:M$32,1)+COUNTIF(M$8:M28,M28)-1) -> 20 | O28: 22 | P28: Thailand | S28: 1 | T28: 21 | U28: =IF(S28=0,"",RANK(T28,T$8:T$32,1)+COUNTIF(T$8:T28,T28)-1) -> 20 | V28: 22 | W28: Thailand | Z28: 1 | AA28: 21 | AB28: =IF(Z28=0,"",RANK(AA28,AA$8:AA$32,1)+COUNTIF(AA$8:AA28,AA28)-1) -> 20 | AC28: 22 | AD28: Thailand | AG28: 1 | AH28: 21 | AI28: =IF(AG28=0,"",RANK(AH28,AH$8:AH$32,1)+COUNTIF(AH$8:AH28,AH28)-1) -> 20 | AJ28: 22 | AK28: Thailand | AN28: 1 | AO28: 21 | AP28: =IF(AN28=0,"",RANK(AO28,AO$8:AO$32,1)+COUNTIF(AO$8:AO28,AO28)-1) -> 20 | AQ28: 22 | AR28: Thailand
A29: =tblTerritories!A24 -> 22 | C29: =tblTerritories!E24 -> Thailand | D29: 1 | F29: 22 | G29: =IF($D29=0,"",RANK(F29,F$8:F$32,1)+COUNTIF(F$8:F29,F29)-1) -> 21 | H29: 23 | I29: United Kingdom | L29: 1 | M29: 22 | N29: =IF(L29=0,"",RANK(M29,M$8:M$32,1)+COUNTIF(M$8:M29,M29)-1) -> 21 | O29: 23 | P29: United Kingdom | S29: 1 | T29: 22 | U29: =IF(S29=0,"",RANK(T29,T$8:T$32,1)+COUNTIF(T$8:T29,T29)-1) -> 21 | V29: 23 | W29: United Kingdom | Z29: 1 | AA29: 22 | AB29: =IF(Z29=0,"",RANK(AA29,AA$8:AA$32,1)+COUNTIF(AA$8:AA29,AA29)-1) -> 21 | AC29: 23 | AD29: United Kingdom | AG29: 1 | AH29: 22 | AI29: =IF(AG29=0,"",RANK(AH29,AH$8:AH$32,1)+COUNTIF(AH$8:AH29,AH29)-1) -> 21 | AJ29: 23 | AK29: United Kingdom | AN29: 1 | AO29: 22 | AP29: =IF(AN29=0,"",RANK(AO29,AO$8:AO$32,1)+COUNTIF(AO$8:AO29,AO29)-1) -> 21 | AQ29: 23 | AR29: United Kingdom
A30: =tblTerritories!A25 -> 23 | C30: =tblTerritories!E25 -> United Kingdom | D30: 1 | F30: 23 | G30: =IF($D30=0,"",RANK(F30,F$8:F$32,1)+COUNTIF(F$8:F30,F30)-1) -> 22 | H30: 24 | I30: United States | L30: 1 | M30: 23 | N30: =IF(L30=0,"",RANK(M30,M$8:M$32,1)+COUNTIF(M$8:M30,M30)-1) -> 22 | O30: 24 | P30: United States | S30: 1 | T30: 23 | U30: =IF(S30=0,"",RANK(T30,T$8:T$32,1)+COUNTIF(T$8:T30,T30)-1) -> 22 | V30: 24 | W30: United States | Z30: 1 | AA30: 23 | AB30: =IF(Z30=0,"",RANK(AA30,AA$8:AA$32,1)+COUNTIF(AA$8:AA30,AA30)-1) -> 22 | AC30: 24 | AD30: United States | AG30: 1 | AH30: 23 | AI30: =IF(AG30=0,"",RANK(AH30,AH$8:AH$32,1)+COUNTIF(AH$8:AH30,AH30)-1) -> 22 | AJ30: 24 | AK30: United States | AN30: 1 | AO30: 23 | AP30: =IF(AN30=0,"",RANK(AO30,AO$8:AO$32,1)+COUNTIF(AO$8:AO30,AO30)-1) -> 22 | AQ30: 24 | AR30: United States
A31: =tblTerritories!A26 -> 24 | C31: =tblTerritories!E26 -> United States | D31: 1 | F31: 24 | G31: =IF($D31=0,"",RANK(F31,F$8:F$32,1)+COUNTIF(F$8:F31,F31)-1) -> 23 | H31: 25 | I31: Vietnam | L31: 1 | M31: 24 | N31: =IF(L31=0,"",RANK(M31,M$8:M$32,1)+COUNTIF(M$8:M31,M31)-1) -> 23 | O31: 25 | P31: Vietnam | S31: 1 | T31: 24 | U31: =IF(S31=0,"",RANK(T31,T$8:T$32,1)+COUNTIF(T$8:T31,T31)-1) -> 23 | V31: 25 | W31: Vietnam | Z31: 1 | AA31: 24 | AB31: =IF(Z31=0,"",RANK(AA31,AA$8:AA$32,1)+COUNTIF(AA$8:AA31,AA31)-1) -> 23 | AC31: 25 | AD31: Vietnam | AG31: 1 | AH31: 24 | AI31: =IF(AG31=0,"",RANK(AH31,AH$8:AH$32,1)+COUNTIF(AH$8:AH31,AH31)-1) -> 23 | AJ31: 25 | AK31: Vietnam | AN31: 1 | AO31: 24 | AP31: =IF(AN31=0,"",RANK(AO31,AO$8:AO$32,1)+COUNTIF(AO$8:AO31,AO31)-1) -> 23 | AQ31: 25 | AR31: Vietnam
A32: =tblTerritories!A27 -> 25 | C32: =tblTerritories!E27 -> Vietnam | D32: 1 | F32: 25 | G32: =IF($D32=0,"",RANK(F32,F$8:F$32,1)+COUNTIF(F$8:F32,F32)-1) -> 24 | L32: 1 | M32: 25 | N32: =IF(L32=0,"",RANK(M32,M$8:M$32,1)+COUNTIF(M$8:M32,M32)-1) -> 24 | S32: 1 | T32: 25 | U32: =IF(S32=0,"",RANK(T32,T$8:T$32,1)+COUNTIF(T$8:T32,T32)-1) -> 24 | Z32: 1 | AA32: 25 | AB32: =IF(Z32=0,"",RANK(AA32,AA$8:AA$32,1)+COUNTIF(AA$8:AA32,AA32)-1) -> 24 | AG32: 1 | AH32: 25 | AI32: =IF(AG32=0,"",RANK(AH32,AH$8:AH$32,1)+COUNTIF(AH$8:AH32,AH32)-1) -> 24 | AN32: 1 | AO32: 25 | AP32: =IF(AN32=0,"",RANK(AO32,AO$8:AO$32,1)+COUNTIF(AO$8:AO32,AO32)-1) -> 24
C37: =INDEX(CC_6_1,1) -> 

Sheet iMap-Data (hidden)
A1: =uxb_works!A79 -> INDUSTRY_SELECT | B1: =uxb_works!B79 -> 4 | C1: ="aScores"&INDEX($C$4:$F$4,B1) -> aScoresHT | H1: =INDEX('iMap-Data'!$H$5:$H$8,'iMap-Data'!B2) -> The Overall Score is the combination of the three index domains, as determined by the weighting profile.
A2: =uxb_works!A80 -> DOMAIN_LEVEL_SELECT_MAP | B2: =uxb_works!B80 -> 1
C4: FB | D4: CG | E4: HS | F4: HT
C5: ='tblIndicators-FB'!D2 -> OVERALL SCORE | D5: =C5 -> OVERALL SCORE | E5: =C5 -> OVERALL SCORE | F5: =C5 -> OVERALL SCORE | H5: The Overall Score is the combination of the three index domains, as determined by the weighting profile.
B6: =iFB!A4 -> 1 | C6: =iFB!B4 -> Natural Resource Inputs | D6: =iCG!B4 -> Natural Resource Inputs | E6: =iHS!B4 -> Natural Resource Inputs | F6: =iHT!B4 -> Natural Resource Inputs | G6: are | H6: ="The "&C6&G6&" the combination of the four categories, as determined by the weighting profile." -> The Natural Resource Inputs are the combination of the four categories, as determined by the weighting profile.
B7: =iFB!A48 -> 2 | C7: =iFB!B48 -> Physical Resource Infrastructure | D7: =iCG!B48 -> Physical Resource Infrastructure | E7: =iHS!B48 -> Physical Resource Infrastructure | F7: =iHT!B48 -> Physical Resource Infrastructure | G7: is | H7: ="The "&C7&G7&" the combination of the four categories, as determined by the weighting profile." -> The Physical Resource Infrastructure is the combination of the four categories, as determined by the weighting profile.
B8: =iFB!A74 -> 3 | C8: =iFB!B74 -> Labour Resources | D8: =iCG!B74 -> Labour Resources | E8: =iHS!B71 -> Labour Resources | F8: =iHT!B76 -> Labour Resources | G8: is | H8: The Labour Resources is the combination of the four categories, as determined by the weighting profile.
C10: FB | D10: CG | E10: HS | F10: HT
A11: 1 | B11: =INDEX($C$5:$F$8,A11,$B$1) -> OVERALL SCORE | C11: =MATCH($B11,'tblIndicators-FB'!$G$2:$G$115,0) -> 1 | D11: =MATCH($B11,'tblIndicators-CG'!$G$2:$G$115,0) -> 1 | E11: =MATCH($B11,'tblIndicators-HS'!$G$2:$G$115,0) -> 1 | F11: =MATCH($B11,'tblIndicators-HT'!$G$2:$G$115,0) -> 1
A12: 2 | B12: =INDEX($C$5:$F$8,A12,$B$1) -> Natural Resource Inputs | C12: =MATCH($B12,'tblIndicators-FB'!$G$2:$G$115,0) -> 2 | D12: =MATCH($B12,'tblIndicators-CG'!$G$2:$G$115,0) -> 2 | E12: =MATCH($B12,'tblIndicators-HS'!$G$2:$G$115,0) -> 2 | F12: =MATCH($B12,'tblIndicators-HT'!$G$2:$G$115,0) -> 2
A13: 3 | B13: Physical Resource Infrastructure | C13: =MATCH($B13,'tblIndicators-FB'!$G$2:$G$115,0) -> 46 | D13: =MATCH($B13,'tblIndicators-CG'!$G$2:$G$115,0) -> 46 | E13: =MATCH($B13,'tblIndicators-HS'!$G$2:$G$115,0) -> 46 | F13: =MATCH($B13,'tblIndicators-HT'!$G$2:$G$115,0) -> 46
A14: 4 | B14: Labour Resources | C14: =MATCH($B14,'tblIndicators-FB'!$G$2:$G$115,0) -> 72 | D14: =MATCH($B14,'tblIndicators-CG'!$G$2:$G$115,0) -> 72 | E14: =MATCH($B14,'tblIndicators-HS'!$G$2:$G$115,0) -> 69 | F14: =MATCH($B14,'tblIndicators-HT'!$G$2:$G$115,0) -> 74
D16: 1 | E16: 2 | F16: 3 | G16: 4 | H16: 5 | I16: 6 | J16: 7 | K16: 8 | L16: 9 | M16: 10 | N16: 11 | O16: 12 | P16: 13 | Q16: 14 | R16: 15 | S16: 16 | T16: 17 | U16: 18 | V16: 19 | W16: 20 | X16: 21 | Y16: 22 | Z16: 23 | AA16: 24 | AB16: 25
D17: =iFB!I3 -> Argentina | E17: =iFB!J3 -> Australia | F17: =iFB!K3 -> Belgium | G17: =iFB!L3 -> Brazil | H17: =iFB!M3 -> Canada | I17: =iFB!N3 -> Chile | J17: =iFB!O3 -> China | K17: =iFB!P3 -> Finland | L17: =iFB!Q3 -> France | M17: =iFB!R3 -> Germany | N17: =iFB!S3 -> India | O17: =iFB!T3 -> Indonesia | P17: =iFB!U3 -> Japan | Q17: =iFB!V3 -> Malaysia | R17: =iFB!W3 -> Mexico | S17: =iFB!X3 -> Netherlands | T17: =iFB!Y3 -> Norway | U17: =iFB!Z3 -> Singapore | V17: =iFB!AA3 -> South Korea | W17: =iFB!AB3 -> Spain | X17: =iFB!AC3 -> Sweden | Y17: =iFB!AD3 -> Thailand | Z17: =iFB!AE3 -> United Kingdom | AA17: =iFB!AF3 -> United States | AB17: =iFB!AG3 -> Vietnam
A18: 1 | B18: =INDEX($C$11:$F$14,A18,$B$1) -> 1 | C18: =INDEX($C$5:$F$8,A18,$B$1) -> OVERALL SCORE | D18: =INDEX(INDIRECT($C$1),$B18,D$16) -> 48.05827274 | E18: =INDEX(INDIRECT($C$1),$B18,E$16) -> 60.08847513 | F18: 55.64223398 | G18: 58.23453182 | H18: 58.36870766 | I18: 62.82639319 | J18: 47.25142802 | K18: 63.80237046 | L18: 61.47106886 | M18: 64.50126895 | N18: 48.65393183 | O18: 46.84753612 | P18: 58.96584517 | Q18: 57.59529827 | R18: 52.76491396 | S18: 58.90313749 | T18: 66.12023977 | U18: 57.23918773 | V18: 52.73273811 | W18: 61.01349764 | X18: 67.56945913 | Y18: 50.5465773 | Z18: 60.0302724 | AA18: 58.8605402 | AB18: 45.43062794
A19: 2 | B19: =INDEX($C$11:$F$14,A19,$B$1) -> 2 | C19: =INDEX($C$5:$F$8,A19,$B$1) -> Natural Resource Inputs | D19: =INDEX(INDIRECT($C$1),$B19,D$16) -> 50.63286299 | E19: 49.35109859 | F19: 46.90524376 | G19: 63.94039116 | H19: 50.61266856 | I19: 56.74052625 | J19: 50.53955192 | K19: 56.77479196 | L19: 55.88834122 | M19: 52.13204572 | N19: 44.13358227 | O19: 53.98325767 | P19: 45.72965213 | Q19: 51.46172031 | R19: 56.57819856 | S19: 48.32014951 | T19: 70.35886286 | U19: 39.94896581 | V19: 44.14650091 | W19: 51.72768644 | X19: 60.23835432 | Y19: 46.84068126 | Z19: 52.20339555 | AA19: 42.10845172 | AB19: 52.76885482
A20: 3 | B20: 46 | C20: Physical Resource Infrastructure | D20: 53.17462603 | E20: 66.92625348 | F20: 58.30460158 | G20: 55.30894019 | H20: 64.00753272 | I20: 64.32906113 | J20: 49.73691256 | K20: 72.59804955 | L20: 67.17788225 | M20: 72.23504982 | N20: 47.39318123 | O20: 29.30521831 | P20: 62.80418455 | Q20: 51.90854081 | R20: 56.2823496 | S20: 66.35140047 | T20: 59.67427477 | U20: 65.49169303 | V20: 61.20013565 | W20: 70.995908 | X20: 72.81359299 | Y20: 48.11414092 | Z20: 61.46403595 | AA20: 68.48195055 | AB20: 36.16433405
A21: 4 | B21: 74 | C21: Labour Resources | D21: 41.2218785 | E21: 63.55478463 | F21: 61.04189852 | G21: 55.76318275 | H21: 60.25067569 | I21: 66.90034786 | J21: 42.11933163 | K21: 62.2307255 | L21: 61.36077043 | M21: 68.62166215 | N21: 53.79268751 | O21: 56.0978439 | P21: 67.31949286 | Q21: 68.1022631 | R21: 46.24871817 | S21: 61.68955973 | T21: 68.08232148 | U21: 65.2727136 | V21: 52.83837337 | W21: 60.3942984 | X21: 69.42454443 | Y21: 56.00287279 | Z21: 65.71303977 | AA21: 65.19892076 | AB21: 47.1444653

Sheet tblTerritories (hidden)
A1: CountryID | C1: Country | D1: RegionID | E1: DisplayName | F1: MAP OBJECT IDENTIFIER | H1: Display_Status | I1: Region_Highlight | L1: Tier No. | Q1: 1 | R1: 2 | S1: 3 | T1: 4 | U1: 5 | V1: 6 | W1: 7
A2: 0 | C2: <none> | D2: 0 | E2: =C2 -> <none> | G2: 0 | I2: =uxb_works!B85 -> 2 | O2: Groups | Q2: =INDEX(luRegionsPlusNone,Q1) -> <none> | R2: View all Regions | S2: North America | T2: Latin America | U2: Europe | V2: Asia (high-income) | W2: Asia (emerging-market) | Y2: <none>
A3: =A2+1 -> 1 | B3: ARG | C3: Argentina | D3: =H3 -> 0 | E3: =C3 -> Argentina | F3: =C3 -> Argentina | G3: =IF(A3=$K$3,3,IF(INDEX($R3:$W3,$K$5)=0,0,IF(INDEX($Q3:$W3,$K$4)=1,2,1))) -> 1 | I3: =IF($I$2=N3,3,1) -> 1 | J3: CITY_HIGHLIGHT_ID | K3: =uxb_works!B11 -> 0 | L3: =MATCH(1,S3:W3,0) -> 2 | N3: 1 | O3: <none> | Q3: 0 | R3: 1 | S3: 0 | T3: 1 | U3: 0 | V3: 0 | W3: 0 | Y3: All Regions | Z3: =O3 -> <none>
A4: =A3+1 -> 2 | B4: AUS | C4: Australia | D4: =H4 -> 0 | E4: =C4 -> Australia | F4: =C4 -> Australia | G4: =IF(A4=$K$3,3,IF(INDEX($R4:$W4,$K$5)=0,0,IF(INDEX($Q4:$W4,$K$4)=1,2,1))) -> 1 | I4: =IF($I$2=N4,3,1) -> 3 | J4: GROUP_HIGHLIGHT_ID | K4: =IF(uxb_works!B13=2,1,uxb_works!B13) -> 1 | L4: =MATCH(1,S4:W4,0) -> 4 | N4: 2 | O4: View all Regions | Q4: 0 | R4: 1 | S4: 0 | T4: 0 | U4: 0 | V4: 1 | W4: 0 | Y4: =Z4 -> North America | Z4: =O5 -> North America
A5: 3 | B5: BEL | C5: Belgium | D5: 0 | E5: Belgium | F5: Belgium | G5: =IF(A5=$K$3,3,IF(INDEX($R5:$W5,$K$5)=0,0,IF(INDEX($Q5:$W5,$K$4)=1,2,1))) -> 1 | I5: 1 | J5: GROUP_FILTER_ID | K5: =uxb_works!B14 -> 1 | L5: =MATCH(1,S5:W5,0) -> 3 | M5: 1 | N5: 3 | O5: North America | Q5: 0 | R5: 1 | S5: 0 | T5: 0 | U5: 1 | V5: 0 | W5: 0 | Y5: =Z5 -> Latin America | Z5: =O6 -> Latin America
A6: 4 | B6: BRA | C6: Brazil | D6: 0 | E6: Brazil | F6: Brazil | G6: =IF(A6=$K$3,3,IF(INDEX($R6:$W6,$K$5)=0,0,IF(INDEX($Q6:$W6,$K$4)=1,2,1))) -> 1 | I6: 1 | L6: =MATCH(1,S6:W6,0) -> 2 | M6: 2 | N6: 4 | O6: Latin America | Q6: 0 | R6: 1 | S6: 0 | T6: 1 | U6: 0 | V6: 0 | W6: 0 | Y6: Europe | Z6: =O7 -> Europe
A7: 5 | B7: CAN | C7: Canada | D7: 0 | E7: Canada | F7: Canada | G7: 1 | I7: 1 | L7: 1 | M7: 3 | N7: 5 | O7: Europe | Q7: 0 | R7: 1 | S7: 1 | T7: 0 | U7: 0 | V7: 0 | W7: 0 | Y7: Asia (high-income) | Z7: =O8 -> Asia (high-income)
A8: 6 | B8: CHL | C8: Chile | D8: 0 | E8: Chile | F8: Chile | G8: 1 | I8: 1 | L8: 2 | M8: 4 | N8: 6 | O8: Asia (high-income) | Q8: 0 | R8: 1 | S8: 0 | T8: 1 | U8: 0 | V8: 0 | W8: 0 | Y8: Asia (emerging-market) | Z8: =O9 -> Asia (emerging-market)
A9: 7 | B9: CHN | C9: China | D9: 0 | E9: China | F9: China | G9: 1 | I9: 1 | L9: 5 | N9: 7 | O9: Asia (emerging-market) | Q9: 0 | R9: 1 | S9: 0 | T9: 0 | U9: 0 | V9: 0 | W9: 1
A10: 8 | B10: FIN | C10: Finland | D10: 0 | E10: Finland | F10: Finland | G10: 1 | L10: 3 | Q10: 0 | R10: 1 | S10: 0 | T10: 0 | U10: 1 | V10: 0 | W10: 0
A11: 9 | B11: FRA | C11: France | D11: 0 | E11: France | F11: France | G11: 1 | L11: 3 | Q11: 0 | R11: 1 | S11: 0 | T11: 0 | U11: 1 | V11: 0 | W11: 0
A12: 10 | B12: DEU | C12: Germany | D12: 0 | E12: Germany | F12: Germany | G12: 1 | L12: 3 | Q12: 0 | R12: 1 | S12: 0 | T12: 0 | U12: 1 | V12: 0 | W12: 0
A13: 11 | B13: IND | C13: India | D13: 0 | E13: India | F13: India | G13: 1 | L13: 5 | Q13: 0 | R13: 1 | S13: 0 | T13: 0 | U13: 0 | V13: 0 | W13: 1
A14: 12 | B14: IDN | C14: Indonesia | D14: 0 | E14: Indonesia | F14: Indonesia | G14: 1 | L14: 5 | Q14: 0 | R14: 1 | S14: 0 | T14: 0 | U14: 0 | V14: 0 | W14: 1
A15: 13 | B15: JPN | C15: Japan | D15: 0 | E15: Japan | F15: Japan | G15: 1 | L15: 4 | Q15: 0 | R15: 1 | S15: 0 | T15: 0 | U15: 0 | V15: 1 | W15: 0
A16: 14 | B16: MYS | C16: Malaysia | D16: 0 | E16: Malaysia | F16: Malaysia | G16: 1 | L16: 5 | Q16: 0 | R16: 1 | S16: 0 | T16: 0 | U16: 0 | V16: 0 | W16: 1
A17: 15 | B17: MEX | C17: Mexico | D17: 0 | E17: Mexico | F17: Mexico | G17: 1 | L17: 2 | Q17: 0 | R17: 1 | S17: 0 | T17: 1 | U17: 0 | V17: 0 | W17: 0
A18: 16 | B18: NLD | C18: Netherlands | D18: 0 | E18: Netherlands | F18: Netherlands | G18: 1 | L18: 3 | Q18: 0 | R18: 1 | S18: 0 | T18: 0 | U18: 1 | V18: 0 | W18: 0
A19: 17 | B19: NOR | C19: Norway | D19: 0 | E19: Norway | F19: Norway | G19: =IF(A19=$K$3,3,IF(INDEX($R19:$W19,$K$5)=0,0,IF(INDEX($Q19:$W19,$K$4)=1,2,1))) -> 1 | L19: =MATCH(1,S19:W19,0) -> 3 | Q19: 0 | R19: 1 | S19: 0 | T19: 0 | U19: 1 | V19: 0 | W19: 0
A20: 18 | B20: SGP | C20: Singapore | D20: =H20 -> 0 | E20: =C20 -> Singapore | F20: =C20 -> Singapore | G20: 1 | L20: 4 | Q20: 0 | R20: 1 | S20: 0 | T20: 0 | U20: 0 | V20: 1 | W20: 0
A21: 19 | B21: KOR | C21: South Korea | D21: 0 | E21: South Korea | F21: South Korea | G21: 1 | L21: 4 | Q21: 0 | R21: 1 | S21: 0 | T21: 0 | U21: 0 | V21: 1 | W21: 0
A22: 20 | B22: ESP | C22: Spain | D22: 0 | E22: Spain | F22: Spain | G22: 1 | L22: 3 | Q22: 0 | R22: 1 | S22: 0 | T22: 0 | U22: 1 | V22: 0 | W22: 0
A23: 21 | B23: SWE | C23: Sweden | D23: 0 | E23: Sweden | F23: Sweden | G23: 1 | L23: 3 | Q23: 0 | R23: 1 | S23: 0 | T23: 0 | U23: 1 | V23: 0 | W23: 0
A24: 22 | B24: THA | C24: Thailand | D24: 0 | E24: Thailand | F24: Thailand | G24: 1 | L24: 5 | Q24: 0 | R24: 1 | S24: 0 | T24: 0 | U24: 0 | V24: 0 | W24: 1
A25: 23 | B25: GBR | C25: United Kingdom | D25: 0 | E25: United Kingdom | F25: United Kingdom | G25: 1 | L25: 3 | Q25: 0 | R25: 1 | S25: 0 | T25: 0 | U25: 1 | V25: 0 | W25: 0
A26: 24 | B26: USA | C26: United States | D26: 0 | E26: United States | F26: United States | G26: 1 | L26: 1 | Q26: 0 | R26: 1 | S26: 1 | T26: 0 | U26: 0 | V26: 0 | W26: 0
A27: 25 | B27: VNM | C27: Vietnam | D27: 0 | E27: Vietnam | F27: Vietnam | G27: 1 | L27: 5 | Q27: 0 | R27: 1 | S27: 0 | T27: 0 | U27: 0 | V27: 0 | W27: 1
S29: =SUM(S3:S27) -> 2 | T29: =SUM(T3:T27) -> 4 | U29: =SUM(U3:U27) -> 9 | V29: =SUM(V3:V27) -> 4 | W29: =SUM(W3:W27) -> 6 | X29: =SUM(S29:W29) -> 25

Sheet uxb_regions (hidden)
B1: RegionCode | C1: <none> | I1: MAPCODE
A2: 1 | C2: <none>
A3: 2 | B3: =tblTerritories!B3 -> ARG | C3: =tblTerritories!C3 -> Argentina | E3: =B3 -> ARG | I3: =B3 -> ARG
A4: 3 | B4: =tblTerritories!B4 -> AUS | C4: =tblTerritories!C4 -> Australia | E4: =B4 -> AUS | I4: =B4 -> AUS
A5: 4 | B5: =tblTerritories!B5 -> BEL | C5: =tblTerritories!C5 -> Belgium | E5: BEL | I5: BEL
A6: 5 | B6: =tblTerritories!B6 -> BRA | C6: =tblTerritories!C6 -> Brazil | E6: BRA | I6: BRA
A7: 6 | B7: =tblTerritories!B7 -> CAN | C7: =tblTerritories!C7 -> Canada | E7: CAN | I7: CAN
A8: 7 | B8: =tblTerritories!B8 -> CHL | C8: =tblTerritories!C8 -> Chile | E8: CHL | I8: CHL
A9: 8 | B9: =tblTerritories!B9 -> CHN | C9: =tblTerritories!C9 -> China | E9: CHN | I9: CHN
A10: 9 | B10: =tblTerritories!B10 -> FIN | C10: =tblTerritories!C10 -> Finland | E10: FIN | I10: FIN
A11: 10 | B11: =tblTerritories!B11 -> FRA | C11: =tblTerritories!C11 -> France | E11: FRA | I11: FRA
A12: 11 | B12: =tblTerritories!B12 -> DEU | C12: =tblTerritories!C12 -> Germany | E12: DEU | I12: DEU
A13: 12 | B13: =tblTerritories!B13 -> IND | C13: =tblTerritories!C13 -> India | E13: IND | I13: IND
A14: 13 | B14: =tblTerritories!B14 -> IDN | C14: =tblTerritories!C14 -> Indonesia | E14: IDN | I14: IDN
A15: 14 | B15: =tblTerritories!B15 -> JPN | C15: =tblTerritories!C15 -> Japan | E15: JPN | I15: JPN
A16: 15 | B16: =tblTerritories!B16 -> MYS | C16: =tblTerritories!C16 -> Malaysia | E16: MYS | I16: MYS
A17: 16 | B17: =tblTerritories!B17 -> MEX | C17: =tblTerritories!C17 -> Mexico | E17: MEX | I17: MEX
A18: 17 | B18: =tblTerritories!B18 -> NLD | C18: =tblTerritories!C18 -> Netherlands | E18: NLD | I18: NLD
A19: 18 | B19: =tblTerritories!B19 -> NOR | C19: =tblTerritories!C19 -> Norway | E19: NOR | I19: NOR
A20: 19 | B20: =tblTerritories!B20 -> SGP | C20: =tblTerritories!C20 -> Singapore | E20: SGP | I20: SGP
A21: 20 | B21: =tblTerritories!B21 -> KOR | C21: =tblTerritories!C21 -> South Korea | E21: KOR | I21: KOR
A22: 21 | B22: =tblTerritories!B22 -> ESP | C22: =tblTerritories!C22 -> Spain | E22: ESP | I22: ESP
A23: 22 | B23: =tblTerritories!B23 -> SWE | C23: =tblTerritories!C23 -> Sweden | E23: SWE | I23: SWE
A24: 23 | B24: =tblTerritories!B24 -> THA | C24: =tblTerritories!C24 -> Thailand | E24: THA | I24: THA
A25: 24 | B25: =tblTerritories!B25 -> GBR | C25: =tblTerritories!C25 -> United Kingdom | E25: GBR | I25: GBR
A26: 25 | B26: =tblTerritories!B26 -> USA | C26: =tblTerritories!C26 -> United States | E26: USA | I26: USA
A27: 26 | B27: =tblTerritories!B27 -> VNM | C27: =tblTerritories!C27 -> Vietnam | E27: VNM | I27: VNM

Sheet uxb_mapdata (hidden)
N1: 1 | P1: 2 | R1: 3 | T1: 4 | V1: 5
L5: =#REF! -> 
L6: EIU Calculation
I12: Highlight outline | J12: Shape outline | K12: N/A Fill | M12: 1 | N12: 2 | O12: 3 | P12: 4
J13: x
M16: Regions
I17: x

Sheet iMap_Rank (hidden)
A1: =uxb_works!A79 -> INDUSTRY_SELECT | B1: =uxb_works!B79 -> 4 | C1: =uxb_works!C18 -> 0 | D1: =uxb_works!D18 -> 0
A2: =uxb_works!A80 -> DOMAIN_LEVEL_SELECT_MAP | B2: =uxb_works!B80 -> 1 | C2: =uxb_works!C20 -> OVERALL SCORE | D2: =uxb_works!D20 -> -
A3: INDI_IS_NATIONAL | B3: =D2 -> -
R5: percentiles | S5: equal buckets
A6: SERIES_LEVEL | B6: 1 | O6: Fifths | Q6: 0 | R6: =IF($U$2=1,PERCENTILE(R$19:R$43,Q6),Q6*100) -> 0 | S6: =iScoreSummary!H26 -> 38.81441684
A7: Rank_Order | B7: 0 | Q7: 0.33 | R7: =IF($U$2=1,PERCENTILE(R$19:R$43,Q7),Q7*100) -> 33 | S7: =S6+(S9-S6)/3 -> 48.74785528 | T7: 1 | Z7: =56/6 -> 9.333333333
Q8: 0.66 | R8: =IF($U$2=1,PERCENTILE(R$19:R$43,Q8),Q8*100) -> 66 | S8: =S7+(S9-S6)/3 -> 58.68129372 | T8: 2 | AF8: =45/5 -> 9
A9: =uxb_works!A10 -> COUNTRY_HIGHLIGHT_DD | B9: =uxb_works!B10 -> 1 | C9: =IF(uxb_works!C10="<none>","Click on map or select from the country highlight drop down box",uxb_works!C10) -> Click on map or select from the country highlight drop down box | D9: =IF(ISNA(INDEX(P19:P43,MATCH(C9,N19:N43,0))),"",INDEX(P19:P43,MATCH(C9,N19:N43,0))) ->  | Q9: 1 | R9: =IF($U$2=1,PERCENTILE(R$19:R$43,Q9),Q9*100) -> 100 | S9: =iScoreSummary!H27 -> 68.61473216 | T9: 3
Q10: 1 | R10: =IF($U$2=1,PERCENTILE(R$19:R$43,Q10),Q10*100) -> 100 | T10: 4
T11: 5 | U11: =80/5 -> 16
S13: =PERCENTILE(R$19:R$43,Q11) -> 45.43062794
AI14: Buckets
AQ15: ="Score "&ROUND($S$8+0.1,1)&" to "&ROUND($S$9,1) -> Score 58.8 to 68.6 | AT15: ="Score "&ROUND($S$7+0.1,1)&" to "&ROUND($S$8,1) -> Score 48.8 to 58.7 | AW15: ="Score "&ROUND($S$6,1)&" to "&ROUND($S$7,1) -> Score 38.8 to 48.7
A17: SHOW_DATA | B17: =IF(OR(P2=1,AC2=0),FALSE,TRUE) -> FALSE | E17: Highlight | T17: ALL UNFILTERED DATA POINTS | V17: Country Highlight | W17: Country Filter | AI17: 4 | AJ17: 5 | AK17: 3 | AL17: 1 | AQ17: 1 | AR17: 3 | AT17: 1 | AU17: 3 | AW17: 1 | AX17: 3
D18: IsRegion | E18: Status | F18: ActiveStatus | G18: Score (unrounded) | H18: Rank unrounded | I18: LU | J18: yScatter | K18: RankRounded | O18: Score | P18: Score Display | Q18: =IF($B$17,"Data","") ->  | R18: Map Display | T18: X | U18: Y | AF18: Main Set | AG18: Highlighted | AI18: 0 | AJ18: 0 | AK18: 0 | AL18: 0 | AP18: =$F$18 -> ActiveStatus | AQ18: B2 | AR18: B2a | AS18: =$F$18 -> ActiveStatus | AT18: B3 | AU18: B3a | AV18: =$F$18 -> ActiveStatus | AW18: B4 | AX18: B4a
A19: =tblTerritories!A3 -> 1 | B19: =tblTerritories!B3 -> ARG | C19: =tblTerritories!C3 -> Argentina | D19: =tblTerritories!D3 -> 0 | E19: 1 | F19: =tblTerritories!G3 -> 1 | G19: =IF(F19=0,"",INDEX('iMap-Data'!$D$18:$AB$21,$B$2,$A19)) -> 48.05827274 | H19: =IF(F19=0,"",RANK(G19,G$19:G$43,$B$7)+COUNTIF(G$19:G19,G19)-1) -> 22 | I19: =IF(ISERROR(MATCH($A19,H$19:H$43,0)),"",MATCH($A19,H$19:H$43,0)) -> 21 | J19: =IF(I19="","",1) -> 1 | K19: =IF(I19="","",RANK(O19,O$19:O$43,$B$7)) -> 1 | L19: =IF(I19="",0,INDEX($F$19:$F$43,I19)) -> 1 | M19: =IF(I19="","",IF(OR(K19=K18,K19=K20),CONCATENATE("=",K19),K19)) -> 1 | N19: =IF(I19="","",INDEX($C$19:$C$43,I19)) -> Sweden | O19: =IF(I19="","",INDEX('iMap-Data'!$D$18:$AB$21,$B$2,I19)) -> 67.56945913 | P19: =IF(L19=0,"",IF($C$2=1,"-",O19)) -> 67.56945913 | Q19: =IF(ISNA(VLOOKUP(N19,uxb_regions!$C$3:$I$27,7,FALSE)),"",VLOOKUP(N19,uxb_regions!$C$3:$I$35,7,FALSE)) -> SWE | R19: =IF(L19=0,"",O19) -> 67.56945913 | S19: =IF(Q19="","",IF(R19<=S$7,1,IF(R19<=S$8,3,5))) -> 5 | T19: =IF(ISNUMBER(O19),O19,NA()) -> 67.56945913 | U19: =1 -> 1 | V19: =IF(ISNA(INDEX($F$19:$F$43,MATCH(N19,$C$19:$C$43,0))),0,INDEX($F$19:$F$43,MATCH(N19,$C$19:$C$43,0))) -> 1 | W19: =IF(V19=3,Q19,0) -> 0 | X19: =IF(ISNA(V19),"",Q19) -> SWE | Y19: =IF(L19=2,T19,NA()) ->  | Z19: =IF(L19=2,1,NA()) ->  | AA19: =IF(OR(V19=2),Q19,0) -> 0 | AB19: =LARGE($R$19:$R$43,ROW(R1)-ROW($R$1)+1) -> 67.56945913 | AE19: =IF(ISNUMBER(O19),N19,CONCATENATE(N19)) -> Sweden | AF19: =IF(ISNUMBER(P19),P19,"-") -> 67.56945913 | AG19: =IF(W19=0,NA(),AF19) ->  | AH19: =TEXT(AF19,$Q$2) ->  | AI19: =AI18+MATCH(AI$17,OFFSET($S$19:$S$43,AI18,0),0) ->  | AJ19: =AJ18+MATCH(AJ$17,OFFSET($S$19:$S$43,AJ18,0),0) -> 1 | AK19: =AK18+MATCH(AK$17,OFFSET($S$19:$S$43,AK18,0),0) -> 13 | AL19: =AL18+MATCH(AL$17,OFFSET($S$19:$S$43,AL18,0),0) -> 21 | AP19: =IF(AQ19="",0,INDEX($F$19:$F$43,MATCH(AQ19,$C$19:$C$43,0))) -> 1 | AQ19: =IF(ISNA(AJ19),"",INDEX($N$19:$P$43,$AJ19,AQ$17)) -> Sweden | AR19: =IF(ISNA(AJ19),"",INDEX($N$19:$P$43,$AJ19,AR$17)) -> 67.56945913 | AS19: =IF(AT19="",0,INDEX($F$19:$F$43,MATCH(AT19,$C$19:$C$43,0))) -> 1 | AT19: =IF(ISNA(AK19),"",INDEX($N$19:$P$43,$AK19,AT$17)) -> Canada | AU19: =IF(ISNA(AK19),"",INDEX($N$19:$P$43,$AK19,AU$17)) -> 58.36870766 | AV19: =IF(AW19="",0,INDEX($F$19:$F$43,MATCH(AW19,$C$19:$C$43,0))) -> 1 | AW19: =IF(ISNA(AL19),"",INDEX($N$19:$P$43,$AL19,AW$17)) -> India | AX19: =IF(ISNA(AL19),"",INDEX($N$19:$P$43,$AL19,AX$17)) -> 48.65393183
A20: =tblTerritories!A4 -> 2 | B20: =tblTerritories!B4 -> AUS | C20: =tblTerritories!C4 -> Australia | D20: =tblTerritories!D4 -> 0 | E20: 1 | F20: =tblTerritories!G4 -> 1 | G20: =IF(F20=0,"",INDEX('iMap-Data'!$D$18:$AB$21,$B$2,$A20)) -> 60.08847513 | H20: =IF(F20=0,"",RANK(G20,G$19:G$43,$B$7)+COUNTIF(G$19:G20,G20)-1) -> 8 | I20: =IF(ISERROR(MATCH($A20,H$19:H$43,0)),"",MATCH($A20,H$19:H$43,0)) -> 17 | J20: =IF(I20="","",1) -> 1 | K20: =IF(I20="","",RANK(O20,O$19:O$43,$B$7)) -> 2 | L20: =IF(I20="",0,INDEX($F$19:$F$43,I20)) -> 1 | M20: =IF(I20="","",IF(OR(K20=K19,K20=K21),CONCATENATE("=",K20),K20)) -> 2 | N20: =IF(I20="","",INDEX($C$19:$C$43,I20)) -> Norway | O20: =IF(I20="","",INDEX('iMap-Data'!$D$18:$AB$21,$B$2,I20)) -> 66.12023977 | P20: =IF(L20=0,"",IF($C$2=1,"-",O20)) -> 66.12023977 | Q20: =IF(ISNA(VLOOKUP(N20,uxb_regions!$C$3:$I$27,7,FALSE)),"",VLOOKUP(N20,uxb_regions!$C$3:$I$35,7,FALSE)) -> NOR | R20: =IF(L20=0,"",O20) -> 66.12023977 | S20: =IF(Q20="","",IF(R20<=S$7,1,IF(R20<=S$8,3,5))) -> 5 | T20: =IF(ISNUMBER(O20),O20,NA()) -> 66.12023977 | U20: =1 -> 1 | V20: =IF(ISNA(INDEX($F$19:$F$43,MATCH(N20,$C$19:$C$43,0))),0,INDEX($F$19:$F$43,MATCH(N20,$C$19:$C$43,0))) -> 1 | W20: =IF(V20=3,Q20,0) -> 0 | X20: =IF(ISNA(V20),"",Q20) -> NOR | Y20: =IF(L20=2,T20,NA()) ->  | Z20: =IF(L20=2,1,NA()) ->  | AA20: =IF(OR(V20=2),Q20,0) -> 0 | AB20: =LARGE($R$19:$R$43,ROW(R2)-ROW($R$1)+1) -> 66.12023977 | AE20: =IF(ISNUMBER(O20),N20,CONCATENATE(N20)) -> Norway | AF20: =IF(ISNUMBER(P20),P20,"-") -> 66.12023977 | AG20: =IF(W20=0,NA(),AF20) ->  | AH20: =TEXT(AF20,$Q$2) ->  | AI20: =AI19+MATCH(AI$17,OFFSET($S$19:$S$43,AI19,0),0) ->  | AJ20: =AJ19+MATCH(AJ$17,OFFSET($S$19:$S$43,AJ19,0),0) -> 2 | AK20: =AK19+MATCH(AK$17,OFFSET($S$19:$S$43,AK19,0),0) -> 14 | AL20: =AL19+MATCH(AL$17,OFFSET($S$19:$S$43,AL19,0),0) -> 22 | AP20: =IF(AQ20="",0,INDEX($F$19:$F$43,MATCH(AQ20,$C$19:$C$43,0))) -> 1 | AQ20: =IF(ISNA(AJ20),"",INDEX($N$19:$P$43,$AJ20,AQ$17)) -> Norway | AR20: =IF(ISNA(AJ20),"",INDEX($N$19:$P$43,$AJ20,AR$17)) -> 66.12023977 | AS20: =IF(AT20="",0,INDEX($F$19:$F$43,MATCH(AT20,$C$19:$C$43,0))) -> 1 | AT20: =IF(ISNA(AK20),"",INDEX($N$19:$P$43,$AK20,AT$17)) -> Brazil | AU20: =IF(ISNA(AK20),"",INDEX($N$19:$P$43,$AK20,AU$17)) -> 58.23453182 | AV20: =IF(AW20="",0,INDEX($F$19:$F$43,MATCH(AW20,$C$19:$C$43,0))) -> 1 | AW20: =IF(ISNA(AL20),"",INDEX($N$19:$P$43,$AL20,AW$17)) -> Argentina | AX20: =IF(ISNA(AL20),"",INDEX($N$19:$P$43,$AL20,AX$17)) -> 48.05827274
A21: =tblTerritories!A5 -> 3 | B21: =tblTerritories!B5 -> BEL | C21: =tblTerritories!C5 -> Belgium | D21: =tblTerritories!D5 -> 0 | E21: 1 | F21: =tblTerritories!G5 -> 1 | G21: =IF(F21=0,"",INDEX('iMap-Data'!$D$18:$AB$21,$B$2,$A21)) -> 55.64223398 | H21: =IF(F21=0,"",RANK(G21,G$19:G$43,$B$7)+COUNTIF(G$19:G21,G21)-1) -> 17 | I21: 10 | J21: 1 | K21: 3 | L21: 1 | M21: 3 | N21: Germany | O21: =IF(I21="","",INDEX('iMap-Data'!$D$18:$AB$21,$B$2,I21)) -> 64.50126895 | P21: 64.50126895 | Q21: =IF(ISNA(VLOOKUP(N21,uxb_regions!$C$3:$I$27,7,FALSE)),"",VLOOKUP(N21,uxb_regions!$C$3:$I$35,7,FALSE)) -> DEU | R21: 64.50126895 | S21: 5 | T21: 64.50126895 | U21: =1 -> 1 | V21: 1 | W21: 0 | X21: DEU | AA21: 0 | AB21: 64.50126895 | AE21: Germany | AF21: 64.50126895 | AJ21: 3 | AK21: 15 | AL21: 23 | AP21: 1 | AQ21: Germany | AR21: 64.50126895 | AS21: 1 | AT21: Malaysia | AU21: 57.59529827 | AV21: 1 | AW21: China | AX21: 47.25142802
A22: =tblTerritories!A6 -> 4 | B22: =tblTerritories!B6 -> BRA | C22: =tblTerritories!C6 -> Brazil | D22: =tblTerritories!D6 -> 0 | E22: 1 | F22: =tblTerritories!G6 -> 1 | G22: =IF(F22=0,"",INDEX('iMap-Data'!$D$18:$AB$21,$B$2,$A22)) -> 58.23453182 | H22: =IF(F22=0,"",RANK(G22,G$19:G$43,$B$7)+COUNTIF(G$19:G22,G22)-1) -> 14 | I22: 8 | J22: 1 | K22: 4 | L22: 1 | M22: 4 | N22: Finland | O22: =IF(I22="","",INDEX('iMap-Data'!$D$18:$AB$21,$B$2,I22)) -> 63.80237046 | P22: 63.80237046 | Q22: =IF(ISNA(VLOOKUP(N22,uxb_regions!$C$3:$I$27,7,FALSE)),"",VLOOKUP(N22,uxb_regions!$C$3:$I$35,7,FALSE)) -> FIN | R22: 63.80237046 | S22: 5 | T22: 63.80237046 | U22: =1 -> 1 | V22: 1 | W22: 0 | X22: FIN | AA22: 0 | AB22: 63.80237046 | AE22: Finland | AF22: 63.80237046 | AJ22: 4 | AK22: 16 | AL22: 24 | AP22: 1 | AQ22: Finland | AR22: 63.80237046 | AS22: 1 | AT22: Singapore | AU22: 57.23918773 | AV22: 1 | AW22: Indonesia | AX22: 46.84753612
A23: =tblTerritories!A7 -> 5 | B23: =tblTerritories!B7 -> CAN | C23: =tblTerritories!C7 -> Canada | D23: =tblTerritories!D7 -> 0 | E23: 1 | F23: =tblTerritories!G7 -> 1 | G23: =IF(F23=0,"",INDEX('iMap-Data'!$D$18:$AB$21,$B$2,$A23)) -> 58.36870766 | H23: =IF(F23=0,"",RANK(G23,G$19:G$43,$B$7)+COUNTIF(G$19:G23,G23)-1) -> 13 | I23: 6 | J23: 1 | K23: 5 | L23: 1 | M23: 5 | N23: Chile | O23: =IF(I23="","",INDEX('iMap-Data'!$D$18:$AB$21,$B$2,I23)) -> 62.82639319 | P23: 62.82639319 | Q23: =IF(ISNA(VLOOKUP(N23,uxb_regions!$C$3:$I$27,7,FALSE)),"",VLOOKUP(N23,uxb_regions!$C$3:$I$35,7,FALSE)) -> CHL | R23: 62.82639319 | S23: 5 | T23: 62.82639319 | U23: =1 -> 1 | V23: 1 | W23: 0 | X23: CHL | AA23: 0 | AB23: 62.82639319 | AE23: Chile | AF23: 62.82639319 | AJ23: 5 | AK23: 17 | AL23: 25 | AP23: 1 | AQ23: Chile | AR23: 62.82639319 | AS23: 1 | AT23: Belgium | AU23: 55.64223398 | AV23: 1 | AW23: Vietnam | AX23: 45.43062794
A24: =tblTerritories!A8 -> 6 | B24: =tblTerritories!B8 -> CHL | C24: =tblTerritories!C8 -> Chile | D24: =tblTerritories!D8 -> 0 | E24: 1 | F24: =tblTerritories!G8 -> 1 | G24: =IF(F24=0,"",INDEX('iMap-Data'!$D$18:$AB$21,$B$2,$A24)) -> 62.82639319 | H24: =IF(F24=0,"",RANK(G24,G$19:G$43,$B$7)+COUNTIF(G$19:G24,G24)-1) -> 5 | I24: 9 | J24: 1 | K24: 6 | L24: 1 | M24: 6 | N24: France | O24: =IF(I24="","",INDEX('iMap-Data'!$D$18:$AB$21,$B$2,I24)) -> 61.47106886 | P24: 61.47106886 | Q24: =IF(ISNA(VLOOKUP(N24,uxb_regions!$C$3:$I$27,7,FALSE)),"",VLOOKUP(N24,uxb_regions!$C$3:$I$35,7,FALSE)) -> FRA | R24: 61.47106886 | S24: 5 | T24: 61.47106886 | U24: =1 -> 1 | V24: 1 | W24: 0 | X24: FRA | AA24: 0 | AB24: 61.47106886 | AE24: France | AF24: 61.47106886 | AJ24: 6 | AK24: 18 | AP24: 1 | AQ24: France | AR24: 61.47106886 | AS24: 1 | AT24: Mexico | AU24: 52.76491396 | AV24: 0
A25: =tblTerritories!A9 -> 7 | B25: =tblTerritories!B9 -> CHN | C25: =tblTerritories!C9 -> China | D25: =tblTerritories!D9 -> 0 | E25: 1 | F25: =tblTerritories!G9 -> 1 | G25: =IF(F25=0,"",INDEX('iMap-Data'!$D$18:$AB$21,$B$2,$A25)) -> 47.25142802 | H25: =IF(F25=0,"",RANK(G25,G$19:G$43,$B$7)+COUNTIF(G$19:G25,G25)-1) -> 23 | I25: 20 | J25: 1 | K25: 7 | L25: 1 | M25: 7 | N25: Spain | O25: =IF(I25="","",INDEX('iMap-Data'!$D$18:$AB$21,$B$2,I25)) -> 61.01349764 | P25: 61.01349764 | Q25: =IF(ISNA(VLOOKUP(N25,uxb_regions!$C$3:$I$27,7,FALSE)),"",VLOOKUP(N25,uxb_regions!$C$3:$I$35,7,FALSE)) -> ESP | R25: 61.01349764 | S25: 5 | T25: 61.01349764 | U25: =1 -> 1 | V25: 1 | W25: 0 | X25: ESP | AA25: 0 | AB25: 61.01349764 | AE25: Spain | AF25: 61.01349764 | AJ25: 7 | AK25: 19 | AP25: 1 | AQ25: Spain | AR25: 61.01349764 | AS25: 1 | AT25: South Korea | AU25: 52.73273811 | AV25: 0
A26: =tblTerritories!A10 -> 8 | B26: =tblTerritories!B10 -> FIN | C26: =tblTerritories!C10 -> Finland | D26: =tblTerritories!D10 -> 0 | E26: 1 | F26: =tblTerritories!G10 -> 1 | G26: =IF(F26=0,"",INDEX('iMap-Data'!$D$18:$AB$21,$B$2,$A26)) -> 63.80237046 | H26: =IF(F26=0,"",RANK(G26,G$19:G$43,$B$7)+COUNTIF(G$19:G26,G26)-1) -> 4 | I26: 2 | J26: 1 | K26: 8 | L26: 1 | M26: 8 | N26: Australia | O26: =IF(I26="","",INDEX('iMap-Data'!$D$18:$AB$21,$B$2,I26)) -> 60.08847513 | P26: 60.08847513 | Q26: =IF(ISNA(VLOOKUP(N26,uxb_regions!$C$3:$I$27,7,FALSE)),"",VLOOKUP(N26,uxb_regions!$C$3:$I$35,7,FALSE)) -> AUS | R26: 60.08847513 | S26: 5 | T26: 60.08847513 | U26: =1 -> 1 | V26: 1 | W26: 0 | X26: AUS | AA26: 0 | AB26: 60.08847513 | AE26: Australia | AF26: 60.08847513 | AJ26: 8 | AK26: 20 | AP26: 1 | AQ26: Australia | AR26: 60.08847513 | AS26: 1 | AT26: Thailand | AU26: 50.5465773 | AV26: 0
A27: =tblTerritories!A11 -> 9 | B27: =tblTerritories!B11 -> FRA | C27: =tblTerritories!C11 -> France | D27: =tblTerritories!D11 -> 0 | E27: 1 | F27: =tblTerritories!G11 -> 1 | G27: =IF(F27=0,"",INDEX('iMap-Data'!$D$18:$AB$21,$B$2,$A27)) -> 61.47106886 | H27: =IF(F27=0,"",RANK(G27,G$19:G$43,$B$7)+COUNTIF(G$19:G27,G27)-1) -> 6 | I27: 23 | J27: 1 | K27: 9 | L27: 1 | M27: 9 | N27: United Kingdom | O27: =IF(I27="","",INDEX('iMap-Data'!$D$18:$AB$21,$B$2,I27)) -> 60.0302724 | P27: 60.0302724 | Q27: =IF(ISNA(VLOOKUP(N27,uxb_regions!$C$3:$I$27,7,FALSE)),"",VLOOKUP(N27,uxb_regions!$C$3:$I$35,7,FALSE)) -> GBR | R27: 60.0302724 | S27: 5 | T27: 60.0302724 | U27: =1 -> 1 | V27: 1 | W27: 0 | X27: GBR | AA27: 0 | AB27: 60.0302724 | AE27: United Kingdom | AF27: 60.0302724 | AJ27: 9 | AP27: 1 | AQ27: United Kingdom | AR27: 60.0302724 | AS27: 0 | AV27: 0
A28: =tblTerritories!A12 -> 10 | B28: =tblTerritories!B12 -> DEU | C28: =tblTerritories!C12 -> Germany | D28: =tblTerritories!D12 -> 0 | E28: 1 | F28: =tblTerritories!G12 -> 1 | G28: =IF(F28=0,"",INDEX('iMap-Data'!$D$18:$AB$21,$B$2,$A28)) -> 64.50126895 | H28: =IF(F28=0,"",RANK(G28,G$19:G$43,$B$7)+COUNTIF(G$19:G28,G28)-1) -> 3 | I28: 13 | J28: 1 | K28: 10 | L28: 1 | M28: 10 | N28: Japan | O28: =IF(I28="","",INDEX('iMap-Data'!$D$18:$AB$21,$B$2,I28)) -> 58.96584517 | P28: 58.96584517 | Q28: =IF(ISNA(VLOOKUP(N28,uxb_regions!$C$3:$I$27,7,FALSE)),"",VLOOKUP(N28,uxb_regions!$C$3:$I$35,7,FALSE)) -> JPN | R28: 58.96584517 | S28: 5 | T28: 58.96584517 | U28: =1 -> 1 | V28: 1 | W28: 0 | X28: JPN | AA28: 0 | AB28: 58.96584517 | AE28: Japan | AF28: 58.96584517 | AJ28: 10 | AP28: 1 | AQ28: Japan | AR28: 58.96584517 | AS28: 0 | AV28: 0
A29: =tblTerritories!A13 -> 11 | B29: =tblTerritories!B13 -> IND | C29: =tblTerritories!C13 -> India | D29: =tblTerritories!D13 -> 0 | E29: 1 | F29: =tblTerritories!G13 -> 1 | G29: =IF(F29=0,"",INDEX('iMap-Data'!$D$18:$AB$21,$B$2,$A29)) -> 48.65393183 | H29: =IF(F29=0,"",RANK(G29,G$19:G$43,$B$7)+COUNTIF(G$19:G29,G29)-1) -> 21 | I29: 16 | J29: 1 | K29: 11 | L29: 1 | M29: 11 | N29: Netherlands | O29: =IF(I29="","",INDEX('iMap-Data'!$D$18:$AB$21,$B$2,I29)) -> 58.90313749 | P29: 58.90313749 | Q29: =IF(ISNA(VLOOKUP(N29,uxb_regions!$C$3:$I$27,7,FALSE)),"",VLOOKUP(N29,uxb_regions!$C$3:$I$35,7,FALSE)) -> NLD | R29: 58.90313749 | S29: 5 | T29: 58.90313749 | U29: =1 -> 1 | V29: 1 | W29: 0 | X29: NLD | AA29: 0 | AB29: 58.90313749 | AE29: Netherlands | AF29: 58.90313749 | AJ29: 11 | AP29: 1 | AQ29: Netherlands | AR29: 58.90313749 | AS29: 0 | AV29: 0
A30: =tblTerritories!A14 -> 12 | B30: =tblTerritories!B14 -> IDN | C30: =tblTerritories!C14 -> Indonesia | D30: =tblTerritories!D14 -> 0 | E30: 1 | F30: =tblTerritories!G14 -> 1 | G30: =IF(F30=0,"",INDEX('iMap-Data'!$D$18:$AB$21,$B$2,$A30)) -> 46.84753612 | H30: =IF(F30=0,"",RANK(G30,G$19:G$43,$B$7)+COUNTIF(G$19:G30,G30)-1) -> 24 | I30: 24 | J30: 1 | K30: 12 | L30: 1 | M30: 12 | N30: United States | O30: =IF(I30="","",INDEX('iMap-Data'!$D$18:$AB$21,$B$2,I30)) -> 58.8605402 | P30: 58.8605402 | Q30: =IF(ISNA(VLOOKUP(N30,uxb_regions!$C$3:$I$27,7,FALSE)),"",VLOOKUP(N30,uxb_regions!$C$3:$I$35,7,FALSE)) -> USA | R30: 58.8605402 | S30: 5 | T30: 58.8605402 | U30: =1 -> 1 | V30: 1 | W30: 0 | X30: USA | AA30: 0 | AB30: 58.8605402 | AE30: United States | AF30: 58.8605402 | AJ30: 12 | AP30: 1 | AQ30: United States | AR30: 58.8605402 | AS30: 0 | AV30: 0
A31: =tblTerritories!A15 -> 13 | B31: =tblTerritories!B15 -> JPN | C31: =tblTerritories!C15 -> Japan | D31: =tblTerritories!D15 -> 0 | E31: 1 | F31: =tblTerritories!G15 -> 1 | G31: =IF(F31=0,"",INDEX('iMap-Data'!$D$18:$AB$21,$B$2,$A31)) -> 58.96584517 | H31: =IF(F31=0,"",RANK(G31,G$19:G$43,$B$7)+COUNTIF(G$19:G31,G31)-1) -> 10 | I31: 5 | J31: 1 | K31: 13 | L31: 1 | M31: 13 | N31: Canada | O31: =IF(I31="","",INDEX('iMap-Data'!$D$18:$AB$21,$B$2,I31)) -> 58.36870766 | P31: 58.36870766 | Q31: =IF(ISNA(VLOOKUP(N31,uxb_regions!$C$3:$I$27,7,FALSE)),"",VLOOKUP(N31,uxb_regions!$C$3:$I$35,7,FALSE)) -> CAN | R31: 58.36870766 | S31: 3 | T31: 58.36870766 | U31: =1 -> 1 | V31: 1 | W31: 0 | X31: CAN | AA31: 0 | AB31: 58.36870766 | AE31: Canada | AF31: 58.36870766 | AP31: 0 | AS31: 0 | AV31: 0
A32: =tblTerritories!A16 -> 14 | B32: =tblTerritories!B16 -> MYS | C32: =tblTerritories!C16 -> Malaysia | D32: =tblTerritories!D16 -> 0 | E32: 1 | F32: =tblTerritories!G16 -> 1 | G32: =IF(F32=0,"",INDEX('iMap-Data'!$D$18:$AB$21,$B$2,$A32)) -> 57.59529827 | H32: =IF(F32=0,"",RANK(G32,G$19:G$43,$B$7)+COUNTIF(G$19:G32,G32)-1) -> 15 | I32: 4 | J32: 1 | K32: 14 | L32: 1 | M32: 14 | N32: Brazil | O32: =IF(I32="","",INDEX('iMap-Data'!$D$18:$AB$21,$B$2,I32)) -> 58.23453182 | P32: 58.23453182 | Q32: =IF(ISNA(VLOOKUP(N32,uxb_regions!$C$3:$I$27,7,FALSE)),"",VLOOKUP(N32,uxb_regions!$C$3:$I$35,7,FALSE)) -> BRA | R32: 58.23453182 | S32: 3 | T32: 58.23453182 | U32: =1 -> 1 | V32: 1 | W32: 0 | X32: BRA | AA32: 0 | AB32: 58.23453182 | AE32: Brazil | AF32: 58.23453182 | AP32: 0 | AS32: 0 | AV32: 0
A33: =tblTerritories!A17 -> 15 | B33: =tblTerritories!B17 -> MEX | C33: =tblTerritories!C17 -> Mexico | D33: =tblTerritories!D17 -> 0 | E33: 1 | F33: =tblTerritories!G17 -> 1 | G33: =IF(F33=0,"",INDEX('iMap-Data'!$D$18:$AB$21,$B$2,$A33)) -> 52.76491396 | H33: =IF(F33=0,"",RANK(G33,G$19:G$43,$B$7)+COUNTIF(G$19:G33,G33)-1) -> 18 | I33: 14 | J33: 1 | K33: 15 | L33: 1 | M33: 15 | N33: Malaysia | O33: =IF(I33="","",INDEX('iMap-Data'!$D$18:$AB$21,$B$2,I33)) -> 57.59529827 | P33: 57.59529827 | Q33: =IF(ISNA(VLOOKUP(N33,uxb_regions!$C$3:$I$27,7,FALSE)),"",VLOOKUP(N33,uxb_regions!$C$3:$I$35,7,FALSE)) -> MYS | R33: 57.59529827 | S33: 3 | T33: 57.59529827 | U33: =1 -> 1 | V33: 1 | W33: 0 | X33: MYS | AA33: 0 | AB33: 57.59529827 | AE33: Malaysia | AF33: 57.59529827 | AP33: 0 | AS33: 0 | AV33: 0
A34: =tblTerritories!A18 -> 16 | B34: =tblTerritories!B18 -> NLD | C34: =tblTerritories!C18 -> Netherlands | D34: =tblTerritories!D18 -> 0 | E34: 1 | F34: =tblTerritories!G18 -> 1 | G34: =IF(F34=0,"",INDEX('iMap-Data'!$D$18:$AB$21,$B$2,$A34)) -> 58.90313749 | H34: =IF(F34=0,"",RANK(G34,G$19:G$43,$B$7)+COUNTIF(G$19:G34,G34)-1) -> 11 | I34: 18 | J34: 1 | K34: 16 | L34: 1 | M34: 16 | N34: Singapore | O34: =IF(I34="","",INDEX('iMap-Data'!$D$18:$AB$21,$B$2,I34)) -> 57.23918773 | P34: 57.23918773 | Q34: =IF(ISNA(VLOOKUP(N34,uxb_regions!$C$3:$I$27,7,FALSE)),"",VLOOKUP(N34,uxb_regions!$C$3:$I$35,7,FALSE)) -> SGP | R34: 57.23918773 | S34: 3 | T34: 57.23918773 | U34: =1 -> 1 | V34: 1 | W34: 0 | X34: SGP | AA34: 0 | AB34: 57.23918773 | AE34: Singapore | AF34: 57.23918773 | AP34: 0 | AS34: 0 | AV34: 0
A35: =tblTerritories!A19 -> 17 | B35: =tblTerritories!B19 -> NOR | C35: =tblTerritories!C19 -> Norway | D35: =tblTerritories!D19 -> 0 | E35: 1 | F35: =tblTerritories!G19 -> 1 | G35: =IF(F35=0,"",INDEX('iMap-Data'!$D$18:$AB$21,$B$2,$A35)) -> 66.12023977 | H35: =IF(F35=0,"",RANK(G35,G$19:G$43,$B$7)+COUNTIF(G$19:G35,G35)-1) -> 2 | I35: 3 | J35: 1 | K35: 17 | L35: 1 | M35: 17 | N35: Belgium | O35: =IF(I35="","",INDEX('iMap-Data'!$D$18:$AB$21,$B$2,I35)) -> 55.64223398 | P35: 55.64223398 | Q35: =IF(ISNA(VLOOKUP(N35,uxb_regions!$C$3:$I$27,7,FALSE)),"",VLOOKUP(N35,uxb_regions!$C$3:$I$35,7,FALSE)) -> BEL | R35: 55.64223398 | S35: 3 | T35: 55.64223398 | U35: =1 -> 1 | V35: 1 | W35: 0 | X35: BEL | AA35: 0 | AB35: 55.64223398 | AE35: Belgium | AF35: 55.64223398 | AP35: 0 | AS35: 0 | AV35: 0
A36: =tblTerritories!A20 -> 18 | B36: =tblTerritories!B20 -> SGP | C36: =tblTerritories!C20 -> Singapore | D36: =tblTerritories!D20 -> 0 | E36: 1 | F36: =tblTerritories!G20 -> 1 | G36: =IF(F36=0,"",INDEX('iMap-Data'!$D$18:$AB$21,$B$2,$A36)) -> 57.23918773 | H36: =IF(F36=0,"",RANK(G36,G$19:G$43,$B$7)+COUNTIF(G$19:G36,G36)-1) -> 16 | I36: 15 | J36: 1 | K36: 18 | L36: 1 | M36: 18 | N36: Mexico | O36: =IF(I36="","",INDEX('iMap-Data'!$D$18:$AB$21,$B$2,I36)) -> 52.76491396 | P36: 52.76491396 | Q36: =IF(ISNA(VLOOKUP(N36,uxb_regions!$C$3:$I$27,7,FALSE)),"",VLOOKUP(N36,uxb_regions!$C$3:$I$35,7,FALSE)) -> MEX | R36: 52.76491396 | S36: 3 | T36: 52.76491396 | U36: =1 -> 1 | V36: 1 | W36: 0 | X36: MEX | AA36: 0 | AB36: 52.76491396 | AE36: Mexico | AF36: 52.76491396 | AP36: 0 | AS36: 0 | AV36: 0
A37: =tblTerritories!A21 -> 19 | B37: =tblTerritories!B21 -> KOR | C37: =tblTerritories!C21 -> South Korea | D37: =tblTerritories!D21 -> 0 | E37: 1 | F37: =tblTerritories!G21 -> 1 | G37: =IF(F37=0,"",INDEX('iMap-Data'!$D$18:$AB$21,$B$2,$A37)) -> 52.73273811 | H37: =IF(F37=0,"",RANK(G37,G$19:G$43,$B$7)+COUNTIF(G$19:G37,G37)-1) -> 19 | I37: 19 | J37: 1 | K37: 19 | L37: 1 | M37: 19 | N37: South Korea | O37: =IF(I37="","",INDEX('iMap-Data'!$D$18:$AB$21,$B$2,I37)) -> 52.73273811 | P37: 52.73273811 | Q37: =IF(ISNA(VLOOKUP(N37,uxb_regions!$C$3:$I$27,7,FALSE)),"",VLOOKUP(N37,uxb_regions!$C$3:$I$35,7,FALSE)) -> KOR | R37: 52.73273811 | S37: 3 | T37: 52.73273811 | U37: =1 -> 1 | V37: 1 | W37: 0 | X37: KOR | AA37: 0 | AB37: 52.73273811 | AE37: South Korea | AF37: 52.73273811 | AP37: 0 | AS37: 0 | AV37: 0
A38: =tblTerritories!A22 -> 20 | B38: =tblTerritories!B22 -> ESP | C38: =tblTerritories!C22 -> Spain | D38: =tblTerritories!D22 -> 0 | E38: 1 | F38: =tblTerritories!G22 -> 1 | G38: =IF(F38=0,"",INDEX('iMap-Data'!$D$18:$AB$21,$B$2,$A38)) -> 61.01349764 | H38: =IF(F38=0,"",RANK(G38,G$19:G$43,$B$7)+COUNTIF(G$19:G38,G38)-1) -> 7 | I38: 22 | J38: 1 | K38: 20 | L38: 1 | M38: 20 | N38: Thailand | O38: =IF(I38="","",INDEX('iMap-Data'!$D$18:$AB$21,$B$2,I38)) -> 50.5465773 | P38: 50.5465773 | Q38: =IF(ISNA(VLOOKUP(N38,uxb_regions!$C$3:$I$27,7,FALSE)),"",VLOOKUP(N38,uxb_regions!$C$3:$I$35,7,FALSE)) -> THA | R38: 50.5465773 | S38: 3 | T38: 50.5465773 | U38: =1 -> 1 | V38: 1 | W38: 0 | X38: THA | AA38: 0 | AB38: 50.5465773 | AE38: Thailand | AF38: 50.5465773 | AP38: 0 | AS38: 0 | AV38: 0
A39: =tblTerritories!A23 -> 21 | B39: =tblTerritories!B23 -> SWE | C39: =tblTerritories!C23 -> Sweden | D39: =tblTerritories!D23 -> 0 | E39: 1 | F39: =tblTerritories!G23 -> 1 | G39: =IF(F39=0,"",INDEX('iMap-Data'!$D$18:$AB$21,$B$2,$A39)) -> 67.56945913 | H39: =IF(F39=0,"",RANK(G39,G$19:G$43,$B$7)+COUNTIF(G$19:G39,G39)-1) -> 1 | I39: 11 | J39: 1 | K39: 21 | L39: 1 | M39: 21 | N39: India | O39: =IF(I39="","",INDEX('iMap-Data'!$D$18:$AB$21,$B$2,I39)) -> 48.65393183 | P39: 48.65393183 | Q39: =IF(ISNA(VLOOKUP(N39,uxb_regions!$C$3:$I$27,7,FALSE)),"",VLOOKUP(N39,uxb_regions!$C$3:$I$35,7,FALSE)) -> IND | R39: 48.65393183 | S39: 1 | T39: 48.65393183 | U39: =1 -> 1 | V39: 1 | W39: 0 | X39: IND | AA39: 0 | AB39: 48.65393183 | AE39: India | AF39: 48.65393183 | AP39: 0 | AS39: 0 | AV39: 0
A40: =tblTerritories!A24 -> 22 | B40: =tblTerritories!B24 -> THA | C40: =tblTerritories!C24 -> Thailand | D40: =tblTerritories!D24 -> 0 | E40: 1 | F40: =tblTerritories!G24 -> 1 | G40: =IF(F40=0,"",INDEX('iMap-Data'!$D$18:$AB$21,$B$2,$A40)) -> 50.5465773 | H40: =IF(F40=0,"",RANK(G40,G$19:G$43,$B$7)+COUNTIF(G$19:G40,G40)-1) -> 20 | I40: 1 | J40: 1 | K40: 22 | L40: 1 | M40: 22 | N40: Argentina | O40: =IF(I40="","",INDEX('iMap-Data'!$D$18:$AB$21,$B$2,I40)) -> 48.05827274 | P40: 48.05827274 | Q40: =IF(ISNA(VLOOKUP(N40,uxb_regions!$C$3:$I$27,7,FALSE)),"",VLOOKUP(N40,uxb_regions!$C$3:$I$35,7,FALSE)) -> ARG | R40: 48.05827274 | S40: 1 | T40: 48.05827274 | U40: =1 -> 1 | V40: 1 | W40: 0 | X40: ARG | AA40: 0 | AB40: 48.05827274 | AE40: Argentina | AF40: 48.05827274 | AP40: 0 | AS40: 0 | AV40: 0
A41: =tblTerritories!A25 -> 23 | B41: =tblTerritories!B25 -> GBR | C41: =tblTerritories!C25 -> United Kingdom | D41: =tblTerritories!D25 -> 0 | E41: 1 | F41: =tblTerritories!G25 -> 1 | G41: =IF(F41=0,"",INDEX('iMap-Data'!$D$18:$AB$21,$B$2,$A41)) -> 60.0302724 | H41: =IF(F41=0,"",RANK(G41,G$19:G$43,$B$7)+COUNTIF(G$19:G41,G41)-1) -> 9 | I41: 7 | J41: 1 | K41: 23 | L41: 1 | M41: 23 | N41: China | O41: =IF(I41="","",INDEX('iMap-Data'!$D$18:$AB$21,$B$2,I41)) -> 47.25142802 | P41: 47.25142802 | Q41: =IF(ISNA(VLOOKUP(N41,uxb_regions!$C$3:$I$27,7,FALSE)),"",VLOOKUP(N41,uxb_regions!$C$3:$I$35,7,FALSE)) -> CHN | R41: 47.25142802 | S41: 1 | T41: 47.25142802 | U41: =1 -> 1 | V41: 1 | W41: 0 | X41: CHN | AA41: 0 | AB41: 47.25142802 | AE41: China | AF41: 47.25142802 | AP41: 0 | AS41: 0 | AV41: 0
A42: =tblTerritories!A26 -> 24 | B42: =tblTerritories!B26 -> USA | C42: =tblTerritories!C26 -> United States | D42: =tblTerritories!D26 -> 0 | E42: 1 | F42: =tblTerritories!G26 -> 1 | G42: =IF(F42=0,"",INDEX('iMap-Data'!$D$18:$AB$21,$B$2,$A42)) -> 58.8605402 | H42: =IF(F42=0,"",RANK(G42,G$19:G$43,$B$7)+COUNTIF(G$19:G42,G42)-1) -> 12 | I42: 12 | J42: 1 | K42: 24 | L42: 1 | M42: 24 | N42: Indonesia | O42: =IF(I42="","",INDEX('iMap-Data'!$D$18:$AB$21,$B$2,I42)) -> 46.84753612 | P42: 46.84753612 | Q42: =IF(ISNA(VLOOKUP(N42,uxb_regions!$C$3:$I$27,7,FALSE)),"",VLOOKUP(N42,uxb_regions!$C$3:$I$35,7,FALSE)) -> IDN | R42: 46.84753612 | S42: 1 | T42: 46.84753612 | U42: =1 -> 1 | V42: 1 | W42: 0 | X42: IDN | AA42: 0 | AB42: 46.84753612 | AE42: Indonesia | AF42: 46.84753612 | AP42: 0 | AS42: 0 | AV42: 0
A43: =tblTerritories!A27 -> 25 | B43: =tblTerritories!B27 -> VNM | C43: =tblTerritories!C27 -> Vietnam | D43: =tblTerritories!D27 -> 0 | E43: 1 | F43: =tblTerritories!G27 -> 1 | G43: =IF(F43=0,"",INDEX('iMap-Data'!$D$18:$AB$21,$B$2,$A43)) -> 45.43062794 | H43: =IF(F43=0,"",RANK(G43,G$19:G$43,$B$7)+COUNTIF(G$19:G43,G43)-1) -> 25 | I43: 25 | J43: 1 | K43: 25 | L43: 1 | M43: 25 | N43: Vietnam | O43: =IF(I43="","",INDEX('iMap-Data'!$D$18:$AB$21,$B$2,I43)) -> 45.43062794 | P43: 45.43062794 | Q43: =IF(ISNA(VLOOKUP(N43,uxb_regions!$C$3:$I$27,7,FALSE)),"",VLOOKUP(N43,uxb_regions!$C$3:$I$35,7,FALSE)) -> VNM | R43: 45.43062794 | S43: 1 | T43: 45.43062794 | U43: =1 -> 1 | V43: 1 | W43: 0 | X43: VNM | AA43: 0 | AB43: 45.43062794 | AE43: Vietnam | AF43: 45.43062794 | AP43: 0 | AS43: 0 | AV43: 0
J47: 1 | O47: =IF(uxb_works!B7>1,INDEX(G18:G43,uxb_works!B7),NA()) -> 

Sheet iMap_Region (hidden)
A1: =uxb_works!A79 -> INDUSTRY_SELECT | B1: =uxb_works!B79 -> 4 | C1: =uxb_works!C18 -> 0 | D1: =uxb_works!D18 -> 0
A2: =uxb_works!A80 -> DOMAIN_LEVEL_SELECT_MAP | B2: =uxb_works!B80 -> 1 | C2: =uxb_works!C20 -> OVERALL SCORE | D2: =uxb_works!D20 -> -
A3: =uxb_works!A85 -> REGION_HIGHLIGHT | B3: =uxb_works!B85 -> 2
R5: percentiles | S5: equal buckets
A6: SERIES_LEVEL | B6: 1 | O6: Fifths | Q6: 0 | R6: =IF($W$2=1,PERCENTILE(R$19:R$43,Q6),Q6*100) -> 0 | S6: =MIN(R19:R43) -> 45.43062794
A7: Rank_Order | B7: 0 | Q7: 0.33 | R7: =IF($W$2=1,PERCENTILE(R$19:R$43,Q7),Q7*100) -> 33 | S7: =S6+(S9-S6)/3 -> 52.81023834 | V7: 1 | AB7: =56/6 -> 9.333333333
Q8: 0.66 | R8: =IF($W$2=1,PERCENTILE(R$19:R$43,Q8),Q8*100) -> 66 | S8: =S7+(S9-S6)/3 -> 60.18984874 | V8: 2 | AH8: =45/5 -> 9
A9: =uxb_works!A6 -> 0 | B9: =uxb_works!B6 -> 5 | C9: =IF(uxb_works!C6="<none>","Click on map or select from the country highlight drop down box",uxb_works!C6) -> 0 | D9: =IF(ISNA(INDEX(P19:P43,MATCH(C9,N19:N43,0))),"",INDEX(P19:P43,MATCH(C9,N19:N43,0))) ->  | Q9: 1 | R9: =IF($W$2=1,PERCENTILE(R$19:R$43,Q9),Q9*100) -> 100 | S9: =MAX(R19:R43) -> 67.56945913 | V9: 3
Q10: 1 | R10: =IF($W$2=1,PERCENTILE(R$19:R$43,Q10),Q10*100) -> 100 | V10: 4
V11: 5 | W11: =80/5 -> 16
S13: =PERCENTILE(R$19:R$43,Q11) -> 45.43062794
AK14: Buckets
F15: =INDEX(tblTerritories!$Q$3:$W$27,iMap_Region!A15,iMap_Region!$B$3) -> 1 | AS15: ="Score "&ROUND($S$8+0.1,1)&" to "&ROUND($S$9,1) -> Score 60.3 to 67.6 | AV15: ="Score "&ROUND($S$7+0.1,1)&" to "&ROUND($S$8,1) -> Score 52.9 to 60.2 | AY15: ="Score "&ROUND($S$6,1)&" to "&ROUND($S$7,1) -> Score 45.4 to 52.8
A17: SHOW_DATA | B17: =IF(OR(P2=1,AE2=0),FALSE,TRUE) -> FALSE | E17: Highlight | V17: ALL UNFILTERED DATA POINTS | X17: Country Highlight | Y17: Country Filter | AK17: 4 | AL17: 3 | AM17: 2 | AN17: 1 | AS17: 1 | AT17: 3 | AV17: 1 | AW17: 3 | AY17: 1 | AZ17: 3
D18: IsRegion | E18: Status | F18: ActiveStatus | G18: Score (unrounded) | H18: Rank unrounded | I18: LU | J18: yScatter | K18: RankRounded | O18: Score | P18: Score Display | Q18: =IF($B$17,"Data","") ->  | R18: Map Display | V18: X | W18: Y | AH18: Main Set | AI18: Highlighted | AK18: 0 | AL18: 0 | AM18: 0 | AN18: 0 | AR18: =$F$18 -> ActiveStatus | AS18: B2 | AT18: B2a | AU18: =$F$18 -> ActiveStatus | AV18: B3 | AW18: B3a | AX18: =$F$18 -> ActiveStatus | AY18: B4 | AZ18: B4a
A19: =tblTerritories!A3 -> 1 | B19: =tblTerritories!B3 -> ARG | C19: =tblTerritories!C3 -> Argentina | D19: =tblTerritories!D3 -> 0 | E19: 1 | F19: =INDEX(tblTerritories!$Q$3:$W$27,iMap_Region!A19,iMap_Region!$B$3) -> 1 | G19: 50 | H19: =IF(F19=0,"",RANK(G19,G$19:G$43,$B$7)+COUNTIF(G$19:G19,G19)-1) -> 1 | I19: =IF(ISERROR(MATCH($A19,H$19:H$43,0)),"",MATCH($A19,H$19:H$43,0)) -> 1 | J19: =IF(I19="","",1) -> 1 | K19: =IF(I19="","",RANK(O19,O$19:O$43,$B$7)) -> 22 | L19: =IF(I19="",0,INDEX($F$19:$F$43,I19)) -> 1 | M19: =IF(I19="","",IF(OR(K19=K18,K19=K20),CONCATENATE("=",K19),K19)) -> 22 | N19: =IF(I19="","",INDEX($C$19:$C$43,I19)) -> Argentina | O19: =IF(I19="","",INDEX('iMap-Data'!$D$18:$AB$21,$B$2,I19)) -> 48.05827274 | P19: =IF(L19=0,"",IF($C$2=1,"-",O19)) -> 48.05827274 | Q19: =B19 -> ARG | R19: =IF(L19=0,"",O19) -> 48.05827274 | S19: =IF($B$3=1,"",IF($B$3=2,T19,U19)) -> 2 | T19: =IF(B19="","",INDEX(tblTerritories!$L$3:$L$27,MATCH(B19,tblTerritories!$B$3:$B$27,0))) -> 2 | U19: =IF(R19="",T19,6) -> 6 | V19: =IF(ISNUMBER(O19),O19,NA()) -> 48.05827274 | W19: =1 -> 1 | X19: =IF(ISNA(INDEX($F$19:$F$43,MATCH(N19,$C$19:$C$43,0))),0,INDEX($F$19:$F$43,MATCH(N19,$C$19:$C$43,0))) -> 1 | Y19: =IF(OR(X19=3,X19=2),Q19,0) -> 0 | Z19: =IF(ISNA(X19),"",Q19) -> ARG | AA19: =IF(L19=2,V19,NA()) ->  | AB19: =IF(L19=2,1,NA()) ->  | AD19: =LARGE($R$19:$R$43,ROW(R1)-ROW($R$1)+1) -> 67.56945913 | AG19: =IF(ISNUMBER(O19),N19,CONCATENATE(N19)) -> Argentina | AH19: =IF(ISNUMBER(P19),P19,"-") -> 48.05827274 | AI19: =IF(Y19=0,NA(),AH19) ->  | AJ19: =TEXT(AH19,$Q$2) ->  | AK19: =AK18+MATCH(AK$17,OFFSET($S$19:$S$43,AK18,0),0) -> 2 | AL19: =AL18+MATCH(AL$17,OFFSET($S$19:$S$43,AL18,0),0) -> 3 | AM19: =AM18+MATCH(AM$17,OFFSET($S$19:$S$43,AM18,0),0) -> 1 | AN19: =AN18+MATCH(AN$17,OFFSET($S$19:$S$43,AN18,0),0) -> 5 | AR19: =IF(AS19="",0,INDEX($F$19:$F$43,MATCH(AS19,$C$19:$C$43,0))) -> 1 | AS19: =IF(ISNA(AL19),"",INDEX($N$19:$P$43,$AL19,AS$17)) -> Belgium | AT19: =IF(ISNA(AL19),"",INDEX($N$19:$P$43,$AL19,AT$17)) -> 55.64223398 | AU19: =IF(AV19="",0,INDEX($F$19:$F$43,MATCH(AV19,$C$19:$C$43,0))) -> 1 | AV19: =IF(ISNA(AM19),"",INDEX($N$19:$P$43,$AM19,AV$17)) -> Argentina | AW19: =IF(ISNA(AM19),"",INDEX($N$19:$P$43,$AM19,AW$17)) -> 48.05827274 | AX19: =IF(AY19="",0,INDEX($F$19:$F$43,MATCH(AY19,$C$19:$C$43,0))) -> 1 | AY19: =IF(ISNA(AN19),"",INDEX($N$19:$P$43,$AN19,AY$17)) -> Canada | AZ19: =IF(ISNA(AN19),"",INDEX($N$19:$P$43,$AN19,AZ$17)) -> 58.36870766
A20: =tblTerritories!A4 -> 2 | B20: =tblTerritories!B4 -> AUS | C20: =tblTerritories!C4 -> Australia | D20: =tblTerritories!D4 -> 0 | E20: 1 | F20: =INDEX(tblTerritories!$Q$3:$W$27,iMap_Region!A20,iMap_Region!$B$3) -> 1 | G20: 49 | H20: =IF(F20=0,"",RANK(G20,G$19:G$43,$B$7)+COUNTIF(G$19:G20,G20)-1) -> 2 | I20: =IF(ISERROR(MATCH($A20,H$19:H$43,0)),"",MATCH($A20,H$19:H$43,0)) -> 2 | J20: =IF(I20="","",1) -> 1 | K20: =IF(I20="","",RANK(O20,O$19:O$43,$B$7)) -> 8 | L20: =IF(I20="",0,INDEX($F$19:$F$43,I20)) -> 1 | M20: =IF(I20="","",IF(OR(K20=K19,K20=K21),CONCATENATE("=",K20),K20)) -> 8 | N20: =IF(I20="","",INDEX($C$19:$C$43,I20)) -> Australia | O20: =IF(I20="","",INDEX('iMap-Data'!$D$18:$AB$21,$B$2,I20)) -> 60.08847513 | P20: =IF(L20=0,"",IF($C$2=1,"-",O20)) -> 60.08847513 | Q20: =B20 -> AUS | R20: =IF(L20=0,"",O20) -> 60.08847513 | S20: =IF($B$3=1,"",IF($B$3=2,T20,U20)) -> 4 | T20: =IF(B20="","",INDEX(tblTerritories!$L$3:$L$27,MATCH(B20,tblTerritories!$B$3:$B$27,0))) -> 4 | U20: =IF(R20="",T20,6) -> 6 | V20: =IF(ISNUMBER(O20),O20,NA()) -> 60.08847513 | W20: =1 -> 1 | X20: =IF(ISNA(INDEX($F$19:$F$43,MATCH(N20,$C$19:$C$43,0))),0,INDEX($F$19:$F$43,MATCH(N20,$C$19:$C$43,0))) -> 1 | Y20: =IF(OR(X20=3,X20=2),Q20,0) -> 0 | Z20: =IF(ISNA(X20),"",Q20) -> AUS | AA20: =IF(L20=2,V20,NA()) ->  | AB20: =IF(L20=2,1,NA()) ->  | AD20: =LARGE($R$19:$R$43,ROW(R2)-ROW($R$1)+1) -> 66.12023977 | AG20: =IF(ISNUMBER(O20),N20,CONCATENATE(N20)) -> Australia | AH20: =IF(ISNUMBER(P20),P20,"-") -> 60.08847513 | AJ20: =TEXT(AH20,$Q$2) ->  | AK20: =AK19+MATCH(AK$17,OFFSET($S$19:$S$43,AK19,0),0) -> 13 | AL20: 8 | AM20: 4 | AN20: 24 | AR20: =IF(AS20="",0,INDEX($F$19:$F$43,MATCH(AS20,$C$19:$C$43,0))) -> 1 | AS20: =IF(ISNA(AL20),"",INDEX($N$19:$P$43,$AL20,AS$17)) -> Finland | AT20: =IF(ISNA(AL20),"",INDEX($N$19:$P$43,$AL20,AT$17)) -> 63.80237046 | AU20: =IF(AV20="",0,INDEX($F$19:$F$43,MATCH(AV20,$C$19:$C$43,0))) -> 1 | AV20: =IF(ISNA(AM20),"",INDEX($N$19:$P$43,$AM20,AV$17)) -> Brazil | AW20: =IF(ISNA(AM20),"",INDEX($N$19:$P$43,$AM20,AW$17)) -> 58.23453182 | AX20: =IF(AY20="",0,INDEX($F$19:$F$43,MATCH(AY20,$C$19:$C$43,0))) -> 1 | AY20: =IF(ISNA(AN20),"",INDEX($N$19:$P$43,$AN20,AY$17)) -> United States | AZ20: =IF(ISNA(AN20),"",INDEX($N$19:$P$43,$AN20,AZ$17)) -> 58.8605402
A21: =tblTerritories!A5 -> 3 | B21: =tblTerritories!B5 -> BEL | C21: =tblTerritories!C5 -> Belgium | D21: =tblTerritories!D5 -> 0 | E21: 1 | F21: =INDEX(tblTerritories!$Q$3:$W$27,iMap_Region!A21,iMap_Region!$B$3) -> 1 | G21: 48 | H21: =IF(F21=0,"",RANK(G21,G$19:G$43,$B$7)+COUNTIF(G$19:G21,G21)-1) -> 3 | I21: 3 | J21: 1 | K21: 17 | L21: 1 | M21: 17 | N21: Belgium | O21: =IF(I21="","",INDEX('iMap-Data'!$D$18:$AB$21,$B$2,I21)) -> 55.64223398 | P21: 55.64223398 | Q21: BEL | R21: 55.64223398 | S21: 3 | T21: =IF(B21="","",INDEX(tblTerritories!$L$3:$L$27,MATCH(B21,tblTerritories!$B$3:$B$27,0))) -> 3 | U21: 6 | V21: 55.64223398 | W21: =1 -> 1 | X21: 1 | Y21: 0 | Z21: BEL | AD21: 64.50126895 | AG21: Belgium | AH21: 55.64223398 | AK21: 18 | AL21: 9 | AM21: 6 | AR21: 1 | AS21: France | AT21: 61.47106886 | AU21: 1 | AV21: Chile | AW21: 62.82639319 | AX21: 0
A22: =tblTerritories!A6 -> 4 | B22: =tblTerritories!B6 -> BRA | C22: =tblTerritories!C6 -> Brazil | D22: =tblTerritories!D6 -> 0 | E22: 1 | F22: =INDEX(tblTerritories!$Q$3:$W$27,iMap_Region!A22,iMap_Region!$B$3) -> 1 | G22: 47 | H22: =IF(F22=0,"",RANK(G22,G$19:G$43,$B$7)+COUNTIF(G$19:G22,G22)-1) -> 4 | I22: 4 | J22: 1 | K22: 14 | L22: 1 | M22: 14 | N22: Brazil | O22: =IF(I22="","",INDEX('iMap-Data'!$D$18:$AB$21,$B$2,I22)) -> 58.23453182 | P22: 58.23453182 | Q22: BRA | R22: 58.23453182 | S22: 2 | T22: =IF(B22="","",INDEX(tblTerritories!$L$3:$L$27,MATCH(B22,tblTerritories!$B$3:$B$27,0))) -> 2 | U22: 6 | V22: 58.23453182 | W22: =1 -> 1 | X22: 1 | Y22: 0 | Z22: BRA | AD22: 63.80237046 | AG22: Brazil | AH22: 58.23453182 | AK22: 19 | AL22: 10 | AM22: 15 | AR22: 1 | AS22: Germany | AT22: 64.50126895 | AU22: 1 | AV22: Mexico | AW22: 52.76491396 | AX22: 0
A23: =tblTerritories!A7 -> 5 | B23: =tblTerritories!B7 -> CAN | C23: =tblTerritories!C7 -> Canada | D23: =tblTerritories!D7 -> 0 | E23: 1 | F23: =INDEX(tblTerritories!$Q$3:$W$27,iMap_Region!A23,iMap_Region!$B$3) -> 1 | G23: 46 | H23: =IF(F23=0,"",RANK(G23,G$19:G$43,$B$7)+COUNTIF(G$19:G23,G23)-1) -> 5 | I23: 5 | J23: 1 | K23: 13 | L23: 1 | M23: 13 | N23: Canada | O23: =IF(I23="","",INDEX('iMap-Data'!$D$18:$AB$21,$B$2,I23)) -> 58.36870766 | P23: 58.36870766 | Q23: CAN | R23: 58.36870766 | S23: 1 | T23: =IF(B23="","",INDEX(tblTerritories!$L$3:$L$27,MATCH(B23,tblTerritories!$B$3:$B$27,0))) -> 1 | U23: 6 | V23: 58.36870766 | W23: =1 -> 1 | X23: 1 | Y23: 0 | Z23: CAN | AD23: 62.82639319 | AG23: Canada | AH23: 58.36870766 | AL23: 16 | AR23: 1 | AS23: Netherlands | AT23: 58.90313749 | AU23: 0 | AX23: 0
A24: =tblTerritories!A8 -> 6 | B24: =tblTerritories!B8 -> CHL | C24: =tblTerritories!C8 -> Chile | D24: =tblTerritories!D8 -> 0 | E24: 1 | F24: =INDEX(tblTerritories!$Q$3:$W$27,iMap_Region!A24,iMap_Region!$B$3) -> 1 | G24: 45 | H24: =IF(F24=0,"",RANK(G24,G$19:G$43,$B$7)+COUNTIF(G$19:G24,G24)-1) -> 6 | I24: 6 | J24: 1 | K24: 5 | L24: 1 | M24: 5 | N24: Chile | O24: =IF(I24="","",INDEX('iMap-Data'!$D$18:$AB$21,$B$2,I24)) -> 62.82639319 | P24: 62.82639319 | Q24: CHL | R24: 62.82639319 | S24: 2 | T24: =IF(B24="","",INDEX(tblTerritories!$L$3:$L$27,MATCH(B24,tblTerritories!$B$3:$B$27,0))) -> 2 | U24: 6 | V24: 62.82639319 | W24: =1 -> 1 | X24: 1 | Y24: 0 | Z24: CHL | AD24: 61.47106886 | AG24: Chile | AH24: 62.82639319 | AL24: 17 | AR24: 1 | AS24: Norway | AT24: 66.12023977 | AU24: 0 | AX24: 0
A25: =tblTerritories!A9 -> 7 | B25: =tblTerritories!B9 -> CHN | C25: =tblTerritories!C9 -> China | D25: =tblTerritories!D9 -> 0 | E25: 1 | F25: =INDEX(tblTerritories!$Q$3:$W$27,iMap_Region!A25,iMap_Region!$B$3) -> 1 | G25: 44 | H25: =IF(F25=0,"",RANK(G25,G$19:G$43,$B$7)+COUNTIF(G$19:G25,G25)-1) -> 7 | I25: 7 | J25: 1 | K25: 23 | L25: 1 | M25: 23 | N25: China | O25: =IF(I25="","",INDEX('iMap-Data'!$D$18:$AB$21,$B$2,I25)) -> 47.25142802 | P25: 47.25142802 | Q25: CHN | R25: 47.25142802 | S25: 5 | T25: =IF(B25="","",INDEX(tblTerritories!$L$3:$L$27,MATCH(B25,tblTerritories!$B$3:$B$27,0))) -> 5 | U25: 6 | V25: 47.25142802 | W25: =1 -> 1 | X25: 1 | Y25: 0 | Z25: CHN | AD25: 61.01349764 | AG25: China | AH25: 47.25142802 | AL25: 20 | AR25: 1 | AS25: Spain | AT25: 61.01349764 | AU25: 0 | AX25: 0
A26: =tblTerritories!A10 -> 8 | B26: =tblTerritories!B10 -> FIN | C26: =tblTerritories!C10 -> Finland | D26: =tblTerritories!D10 -> 0 | E26: 1 | F26: =INDEX(tblTerritories!$Q$3:$W$27,iMap_Region!A26,iMap_Region!$B$3) -> 1 | G26: 43 | H26: =IF(F26=0,"",RANK(G26,G$19:G$43,$B$7)+COUNTIF(G$19:G26,G26)-1) -> 8 | I26: 8 | J26: 1 | K26: 4 | L26: 1 | M26: 4 | N26: Finland | O26: =IF(I26="","",INDEX('iMap-Data'!$D$18:$AB$21,$B$2,I26)) -> 63.80237046 | P26: 63.80237046 | Q26: FIN | R26: 63.80237046 | S26: 3 | T26: =IF(B26="","",INDEX(tblTerritories!$L$3:$L$27,MATCH(B26,tblTerritories!$B$3:$B$27,0))) -> 3 | U26: 6 | V26: 63.80237046 | W26: =1 -> 1 | X26: 1 | Y26: 0 | Z26: FIN | AD26: 60.08847513 | AG26: Finland | AH26: 63.80237046 | AL26: 21 | AR26: 1 | AS26: Sweden | AT26: 67.56945913 | AU26: 0 | AX26: 0
A27: =tblTerritories!A11 -> 9 | B27: =tblTerritories!B11 -> FRA | C27: =tblTerritories!C11 -> France | D27: =tblTerritories!D11 -> 0 | E27: 1 | F27: =INDEX(tblTerritories!$Q$3:$W$27,iMap_Region!A27,iMap_Region!$B$3) -> 1 | G27: 42 | H27: =IF(F27=0,"",RANK(G27,G$19:G$43,$B$7)+COUNTIF(G$19:G27,G27)-1) -> 9 | I27: 9 | J27: 1 | K27: 6 | L27: 1 | M27: 6 | N27: France | O27: =IF(I27="","",INDEX('iMap-Data'!$D$18:$AB$21,$B$2,I27)) -> 61.47106886 | P27: 61.47106886 | Q27: FRA | R27: 61.47106886 | S27: 3 | T27: =IF(B27="","",INDEX(tblTerritories!$L$3:$L$27,MATCH(B27,tblTerritories!$B$3:$B$27,0))) -> 3 | U27: 6 | V27: 61.47106886 | W27: =1 -> 1 | X27: 1 | Y27: 0 | Z27: FRA | AD27: 60.0302724 | AG27: France | AH27: 61.47106886 | AL27: 23 | AR27: 1 | AS27: United Kingdom | AT27: 60.0302724 | AU27: 0 | AX27: 0
A28: =tblTerritories!A12 -> 10 | B28: =tblTerritories!B12 -> DEU | C28: =tblTerritories!C12 -> Germany | D28: =tblTerritories!D12 -> 0 | E28: 1 | F28: =INDEX(tblTerritories!$Q$3:$W$27,iMap_Region!A28,iMap_Region!$B$3) -> 1 | G28: 41 | H28: =IF(F28=0,"",RANK(G28,G$19:G$43,$B$7)+COUNTIF(G$19:G28,G28)-1) -> 10 | I28: 10 | J28: 1 | K28: 3 | L28: 1 | M28: 3 | N28: Germany | O28: =IF(I28="","",INDEX('iMap-Data'!$D$18:$AB$21,$B$2,I28)) -> 64.50126895 | P28: 64.50126895 | Q28: DEU | R28: 64.50126895 | S28: 3 | T28: =IF(B28="","",INDEX(tblTerritories!$L$3:$L$27,MATCH(B28,tblTerritories!$B$3:$B$27,0))) -> 3 | U28: 6 | V28: 64.50126895 | W28: =1 -> 1 | X28: 1 | Y28: 0 | Z28: DEU | AD28: 58.96584517 | AG28: Germany | AH28: 64.50126895 | AR28: 0 | AU28: 0 | AX28: 0
A29: =tblTerritories!A13 -> 11 | B29: =tblTerritories!B13 -> IND | C29: =tblTerritories!C13 -> India | D29: =tblTerritories!D13 -> 0 | E29: 1 | F29: =INDEX(tblTerritories!$Q$3:$W$27,iMap_Region!A29,iMap_Region!$B$3) -> 1 | G29: 40 | H29: =IF(F29=0,"",RANK(G29,G$19:G$43,$B$7)+COUNTIF(G$19:G29,G29)-1) -> 11 | I29: 11 | J29: 1 | K29: 21 | L29: 1 | M29: 21 | N29: India | O29: =IF(I29="","",INDEX('iMap-Data'!$D$18:$AB$21,$B$2,I29)) -> 48.65393183 | P29: 48.65393183 | Q29: IND | R29: 48.65393183 | S29: 5 | T29: =IF(B29="","",INDEX(tblTerritories!$L$3:$L$27,MATCH(B29,tblTerritories!$B$3:$B$27,0))) -> 5 | U29: 6 | V29: 48.65393183 | W29: =1 -> 1 | X29: 1 | Y29: 0 | Z29: IND | AD29: 58.90313749 | AG29: India | AH29: 48.65393183 | AR29: 0 | AU29: 0 | AX29: 0
A30: =tblTerritories!A14 -> 12 | B30: =tblTerritories!B14 -> IDN | C30: =tblTerritories!C14 -> Indonesia | D30: =tblTerritories!D14 -> 0 | E30: 1 | F30: =INDEX(tblTerritories!$Q$3:$W$27,iMap_Region!A30,iMap_Region!$B$3) -> 1 | G30: 39 | H30: =IF(F30=0,"",RANK(G30,G$19:G$43,$B$7)+COUNTIF(G$19:G30,G30)-1) -> 12 | I30: 12 | J30: 1 | K30: 24 | L30: 1 | M30: 24 | N30: Indonesia | O30: =IF(I30="","",INDEX('iMap-Data'!$D$18:$AB$21,$B$2,I30)) -> 46.84753612 | P30: 46.84753612 | Q30: IDN | R30: 46.84753612 | S30: 5 | T30: =IF(B30="","",INDEX(tblTerritories!$L$3:$L$27,MATCH(B30,tblTerritories!$B$3:$B$27,0))) -> 5 | U30: 6 | V30: 46.84753612 | W30: =1 -> 1 | X30: 1 | Y30: 0 | Z30: IDN | AD30: 58.8605402 | AG30: Indonesia | AH30: 46.84753612 | AR30: 0 | AU30: 0 | AX30: 0
A31: =tblTerritories!A15 -> 13 | B31: =tblTerritories!B15 -> JPN | C31: =tblTerritories!C15 -> Japan | D31: =tblTerritories!D15 -> 0 | E31: 1 | F31: =INDEX(tblTerritories!$Q$3:$W$27,iMap_Region!A31,iMap_Region!$B$3) -> 1 | G31: 38 | H31: =IF(F31=0,"",RANK(G31,G$19:G$43,$B$7)+COUNTIF(G$19:G31,G31)-1) -> 13 | I31: 13 | J31: 1 | K31: 10 | L31: 1 | M31: 10 | N31: Japan | O31: =IF(I31="","",INDEX('iMap-Data'!$D$18:$AB$21,$B$2,I31)) -> 58.96584517 | P31: 58.96584517 | Q31: JPN | R31: 58.96584517 | S31: 4 | T31: =IF(B31="","",INDEX(tblTerritories!$L$3:$L$27,MATCH(B31,tblTerritories!$B$3:$B$27,0))) -> 4 | U31: 6 | V31: 58.96584517 | W31: =1 -> 1 | X31: 1 | Y31: 0 | Z31: JPN | AD31: 58.36870766 | AG31: Japan | AH31: 58.96584517 | AR31: 0 | AU31: 0 | AX31: 0
A32: =tblTerritories!A16 -> 14 | B32: =tblTerritories!B16 -> MYS | C32: =tblTerritories!C16 -> Malaysia | D32: =tblTerritories!D16 -> 0 | E32: 1 | F32: =INDEX(tblTerritories!$Q$3:$W$27,iMap_Region!A32,iMap_Region!$B$3) -> 1 | G32: 37 | H32: =IF(F32=0,"",RANK(G32,G$19:G$43,$B$7)+COUNTIF(G$19:G32,G32)-1) -> 14 | I32: 14 | J32: 1 | K32: 15 | L32: 1 | M32: 15 | N32: Malaysia | O32: =IF(I32="","",INDEX('iMap-Data'!$D$18:$AB$21,$B$2,I32)) -> 57.59529827 | P32: 57.59529827 | Q32: MYS | R32: 57.59529827 | S32: 5 | T32: =IF(B32="","",INDEX(tblTerritories!$L$3:$L$27,MATCH(B32,tblTerritories!$B$3:$B$27,0))) -> 5 | U32: 6 | V32: 57.59529827 | W32: =1 -> 1 | X32: 1 | Y32: 0 | Z32: MYS | AD32: 58.23453182 | AG32: Malaysia | AH32: 57.59529827 | AR32: 0 | AU32: 0 | AX32: 0
A33: =tblTerritories!A17 -> 15 | B33: =tblTerritories!B17 -> MEX | C33: =tblTerritories!C17 -> Mexico | D33: =tblTerritories!D17 -> 0 | E33: 1 | F33: =INDEX(tblTerritories!$Q$3:$W$27,iMap_Region!A33,iMap_Region!$B$3) -> 1 | G33: 36 | H33: =IF(F33=0,"",RANK(G33,G$19:G$43,$B$7)+COUNTIF(G$19:G33,G33)-1) -> 15 | I33: 15 | J33: 1 | K33: 18 | L33: 1 | M33: 18 | N33: Mexico | O33: =IF(I33="","",INDEX('iMap-Data'!$D$18:$AB$21,$B$2,I33)) -> 52.76491396 | P33: 52.76491396 | Q33: MEX | R33: 52.76491396 | S33: 2 | T33: =IF(B33="","",INDEX(tblTerritories!$L$3:$L$27,MATCH(B33,tblTerritories!$B$3:$B$27,0))) -> 2 | U33: 6 | V33: 52.76491396 | W33: =1 -> 1 | X33: 1 | Y33: 0 | Z33: MEX | AD33: 57.59529827 | AG33: Mexico | AH33: 52.76491396 | AR33: 0 | AU33: 0 | AX33: 0
A34: =tblTerritories!A18 -> 16 | B34: =tblTerritories!B18 -> NLD | C34: =tblTerritories!C18 -> Netherlands | D34: =tblTerritories!D18 -> 0 | E34: 1 | F34: =INDEX(tblTerritories!$Q$3:$W$27,iMap_Region!A34,iMap_Region!$B$3) -> 1 | G34: 35 | H34: =IF(F34=0,"",RANK(G34,G$19:G$43,$B$7)+COUNTIF(G$19:G34,G34)-1) -> 16 | I34: 16 | J34: 1 | K34: 11 | L34: 1 | M34: 11 | N34: Netherlands | O34: =IF(I34="","",INDEX('iMap-Data'!$D$18:$AB$21,$B$2,I34)) -> 58.90313749 | P34: 58.90313749 | Q34: NLD | R34: 58.90313749 | S34: 3 | T34: =IF(B34="","",INDEX(tblTerritories!$L$3:$L$27,MATCH(B34,tblTerritories!$B$3:$B$27,0))) -> 3 | U34: 6 | V34: 58.90313749 | W34: =1 -> 1 | X34: 1 | Y34: 0 | Z34: NLD | AD34: 57.23918773 | AG34: Netherlands | AH34: 58.90313749 | AR34: 0 | AU34: 0 | AX34: 0
A35: =tblTerritories!A19 -> 17 | B35: =tblTerritories!B19 -> NOR | C35: =tblTerritories!C19 -> Norway | D35: =tblTerritories!D19 -> 0 | E35: 1 | F35: =INDEX(tblTerritories!$Q$3:$W$27,iMap_Region!A35,iMap_Region!$B$3) -> 1 | G35: 34 | H35: =IF(F35=0,"",RANK(G35,G$19:G$43,$B$7)+COUNTIF(G$19:G35,G35)-1) -> 17 | I35: 17 | J35: 1 | K35: 2 | L35: 1 | M35: 2 | N35: Norway | O35: =IF(I35="","",INDEX('iMap-Data'!$D$18:$AB$21,$B$2,I35)) -> 66.12023977 | P35: 66.12023977 | Q35: NOR | R35: 66.12023977 | S35: 3 | T35: =IF(B35="","",INDEX(tblTerritories!$L$3:$L$27,MATCH(B35,tblTerritories!$B$3:$B$27,0))) -> 3 | U35: 6 | V35: 66.12023977 | W35: =1 -> 1 | X35: 1 | Y35: 0 | Z35: NOR | AD35: 55.64223398 | AG35: Norway | AH35: 66.12023977 | AR35: 0 | AU35: 0 | AX35: 0
A36: =tblTerritories!A20 -> 18 | B36: =tblTerritories!B20 -> SGP | C36: =tblTerritories!C20 -> Singapore | D36: =tblTerritories!D20 -> 0 | E36: 1 | F36: =INDEX(tblTerritories!$Q$3:$W$27,iMap_Region!A36,iMap_Region!$B$3) -> 1 | G36: 33 | H36: =IF(F36=0,"",RANK(G36,G$19:G$43,$B$7)+COUNTIF(G$19:G36,G36)-1) -> 18 | I36: 18 | J36: 1 | K36: 16 | L36: 1 | M36: 16 | N36: Singapore | O36: =IF(I36="","",INDEX('iMap-Data'!$D$18:$AB$21,$B$2,I36)) -> 57.23918773 | P36: 57.23918773 | Q36: SGP | R36: 57.23918773 | S36: 4 | T36: =IF(B36="","",INDEX(tblTerritories!$L$3:$L$27,MATCH(B36,tblTerritories!$B$3:$B$27,0))) -> 4 | U36: 6 | V36: 57.23918773 | W36: =1 -> 1 | X36: 1 | Y36: 0 | Z36: SGP | AD36: 52.76491396 | AG36: Singapore | AH36: 57.23918773 | AK36: =AK35+MATCH(AK$17,OFFSET($S$19:$S$43,AK35,0),0) ->  | AR36: 0 | AU36: 0 | AX36: 0
A37: =tblTerritories!A21 -> 19 | B37: =tblTerritories!B21 -> KOR | C37: =tblTerritories!C21 -> South Korea | D37: =tblTerritories!D21 -> 0 | E37: 1 | F37: =INDEX(tblTerritories!$Q$3:$W$27,iMap_Region!A37,iMap_Region!$B$3) -> 1 | G37: 32 | H37: =IF(F37=0,"",RANK(G37,G$19:G$43,$B$7)+COUNTIF(G$19:G37,G37)-1) -> 19 | I37: 19 | J37: 1 | K37: 19 | L37: 1 | M37: 19 | N37: South Korea | O37: =IF(I37="","",INDEX('iMap-Data'!$D$18:$AB$21,$B$2,I37)) -> 52.73273811 | P37: 52.73273811 | Q37: KOR | R37: 52.73273811 | S37: 4 | T37: =IF(B37="","",INDEX(tblTerritories!$L$3:$L$27,MATCH(B37,tblTerritories!$B$3:$B$27,0))) -> 4 | U37: 6 | V37: 52.73273811 | W37: =1 -> 1 | X37: 1 | Y37: 0 | Z37: KOR | AD37: 52.73273811 | AG37: South Korea | AH37: 52.73273811 | AR37: 0 | AU37: 0 | AX37: 0
A38: =tblTerritories!A22 -> 20 | B38: =tblTerritories!B22 -> ESP | C38: =tblTerritories!C22 -> Spain | D38: =tblTerritories!D22 -> 0 | E38: 1 | F38: =INDEX(tblTerritories!$Q$3:$W$27,iMap_Region!A38,iMap_Region!$B$3) -> 1 | G38: 31 | H38: =IF(F38=0,"",RANK(G38,G$19:G$43,$B$7)+COUNTIF(G$19:G38,G38)-1) -> 20 | I38: 20 | J38: 1 | K38: 7 | L38: 1 | M38: 7 | N38: Spain | O38: =IF(I38="","",INDEX('iMap-Data'!$D$18:$AB$21,$B$2,I38)) -> 61.01349764 | P38: 61.01349764 | Q38: ESP | R38: 61.01349764 | S38: 3 | T38: =IF(B38="","",INDEX(tblTerritories!$L$3:$L$27,MATCH(B38,tblTerritories!$B$3:$B$27,0))) -> 3 | U38: 6 | V38: 61.01349764 | W38: =1 -> 1 | X38: 1 | Y38: 0 | Z38: ESP | AD38: 50.5465773 | AG38: Spain | AH38: 61.01349764 | AR38: 0 | AU38: 0 | AX38: 0
A39: =tblTerritories!A23 -> 21 | B39: =tblTerritories!B23 -> SWE | C39: =tblTerritories!C23 -> Sweden | D39: =tblTerritories!D23 -> 0 | E39: 1 | F39: =INDEX(tblTerritories!$Q$3:$W$27,iMap_Region!A39,iMap_Region!$B$3) -> 1 | G39: 30 | H39: =IF(F39=0,"",RANK(G39,G$19:G$43,$B$7)+COUNTIF(G$19:G39,G39)-1) -> 21 | I39: 21 | J39: 1 | K39: 1 | L39: 1 | M39: 1 | N39: Sweden | O39: =IF(I39="","",INDEX('iMap-Data'!$D$18:$AB$21,$B$2,I39)) -> 67.56945913 | P39: 67.56945913 | Q39: SWE | R39: 67.56945913 | S39: 3 | T39: =IF(B39="","",INDEX(tblTerritories!$L$3:$L$27,MATCH(B39,tblTerritories!$B$3:$B$27,0))) -> 3 | U39: 6 | V39: 67.56945913 | W39: =1 -> 1 | X39: 1 | Y39: 0 | Z39: SWE | AD39: 48.65393183 | AG39: Sweden | AH39: 67.56945913 | AR39: 0 | AU39: 0 | AX39: 0
A40: =tblTerritories!A24 -> 22 | B40: =tblTerritories!B24 -> THA | C40: =tblTerritories!C24 -> Thailand | D40: =tblTerritories!D24 -> 0 | E40: 1 | F40: =INDEX(tblTerritories!$Q$3:$W$27,iMap_Region!A40,iMap_Region!$B$3) -> 1 | G40: 29 | H40: =IF(F40=0,"",RANK(G40,G$19:G$43,$B$7)+COUNTIF(G$19:G40,G40)-1) -> 22 | I40: 22 | J40: 1 | K40: 20 | L40: 1 | M40: 20 | N40: Thailand | O40: =IF(I40="","",INDEX('iMap-Data'!$D$18:$AB$21,$B$2,I40)) -> 50.5465773 | P40: 50.5465773 | Q40: THA | R40: 50.5465773 | S40: 5 | T40: =IF(B40="","",INDEX(tblTerritories!$L$3:$L$27,MATCH(B40,tblTerritories!$B$3:$B$27,0))) -> 5 | U40: 6 | V40: 50.5465773 | W40: =1 -> 1 | X40: 1 | Y40: 0 | Z40: THA | AD40: 48.05827274 | AG40: Thailand | AH40: 50.5465773 | AR40: 0 | AU40: 0 | AX40: 0
A41: =tblTerritories!A25 -> 23 | B41: =tblTerritories!B25 -> GBR | C41: =tblTerritories!C25 -> United Kingdom | D41: =tblTerritories!D25 -> 0 | E41: 1 | F41: =INDEX(tblTerritories!$Q$3:$W$27,iMap_Region!A41,iMap_Region!$B$3) -> 1 | G41: 28 | H41: =IF(F41=0,"",RANK(G41,G$19:G$43,$B$7)+COUNTIF(G$19:G41,G41)-1) -> 23 | I41: 23 | J41: 1 | K41: 9 | L41: 1 | M41: 9 | N41: United Kingdom | O41: =IF(I41="","",INDEX('iMap-Data'!$D$18:$AB$21,$B$2,I41)) -> 60.0302724 | P41: 60.0302724 | Q41: GBR | R41: 60.0302724 | S41: 3 | T41: =IF(B41="","",INDEX(tblTerritories!$L$3:$L$27,MATCH(B41,tblTerritories!$B$3:$B$27,0))) -> 3 | U41: 6 | V41: 60.0302724 | W41: =1 -> 1 | X41: 1 | Y41: 0 | Z41: GBR | AD41: 47.25142802 | AG41: United Kingdom | AH41: 60.0302724 | AR41: 0 | AU41: 0 | AX41: 0
A42: =tblTerritories!A26 -> 24 | B42: =tblTerritories!B26 -> USA | C42: =tblTerritories!C26 -> United States | D42: =tblTerritories!D26 -> 0 | E42: 1 | F42: =INDEX(tblTerritories!$Q$3:$W$27,iMap_Region!A42,iMap_Region!$B$3) -> 1 | G42: 27 | H42: =IF(F42=0,"",RANK(G42,G$19:G$43,$B$7)+COUNTIF(G$19:G42,G42)-1) -> 24 | I42: 24 | J42: 1 | K42: 12 | L42: 1 | M42: 12 | N42: United States | O42: =IF(I42="","",INDEX('iMap-Data'!$D$18:$AB$21,$B$2,I42)) -> 58.8605402 | P42: 58.8605402 | Q42: USA | R42: 58.8605402 | S42: 1 | T42: =IF(B42="","",INDEX(tblTerritories!$L$3:$L$27,MATCH(B42,tblTerritories!$B$3:$B$27,0))) -> 1 | U42: 6 | V42: 58.8605402 | W42: =1 -> 1 | X42: 1 | Y42: 0 | Z42: USA | AD42: 46.84753612 | AG42: United States | AH42: 58.8605402 | AR42: 0 | AU42: 0 | AX42: 0
A43: =tblTerritories!A27 -> 25 | B43: =tblTerritories!B27 -> VNM | C43: =tblTerritories!C27 -> Vietnam | D43: =tblTerritories!D27 -> 0 | E43: 1 | F43: =INDEX(tblTerritories!$Q$3:$W$27,iMap_Region!A43,iMap_Region!$B$3) -> 1 | G43: 26 | H43: =IF(F43=0,"",RANK(G43,G$19:G$43,$B$7)+COUNTIF(G$19:G43,G43)-1) -> 25 | I43: 25 | J43: 1 | K43: 25 | L43: 1 | M43: 25 | N43: Vietnam | O43: =IF(I43="","",INDEX('iMap-Data'!$D$18:$AB$21,$B$2,I43)) -> 45.43062794 | P43: 45.43062794 | Q43: VNM | R43: 45.43062794 | S43: 5 | T43: =IF(B43="","",INDEX(tblTerritories!$L$3:$L$27,MATCH(B43,tblTerritories!$B$3:$B$27,0))) -> 5 | U43: 6 | V43: 45.43062794 | W43: =1 -> 1 | X43: 1 | Y43: 0 | Z43: VNM | AD43: 45.43062794 | AG43: Vietnam | AH43: 45.43062794 | AR43: 0 | AU43: 0 | AX43: 0
J47: 1 | O47: =IF(uxb_works!B7>1,INDEX(G18:G43,uxb_works!B7),NA()) -> 

Sheet iMap_Graph (hidden)
A1: =uxb_works!A79 -> INDUSTRY_SELECT | B1: =uxb_works!B79 -> 4
A2: =uxb_works!A80 -> DOMAIN_LEVEL_SELECT_MAP | B2: =uxb_works!B80 -> 1
A3: INDI_IS_NATIONAL | B3: =D2 -> 0 | U3: 1
A6: SERIES_LEVEL | B6: 1
A7: Rank_Order | B7: 0 | Z7: =56/6 -> 9.333333333
A9: =uxb_works!A6 -> 0 | B9: =uxb_works!B6 -> 5 | C9: =uxb_works!C6 -> 0 | D9: =INDEX(P19:P43,MATCH(C9,N19:N43,0)) -> 
AB15: =uxb_works!B10 -> 1 | AE15: =uxb_works!B12 -> 1
A17: SHOW_DATA | B17: =IF(OR(P2=1,AK2=0),FALSE,TRUE) -> FALSE | E17: Highlight | T17: ALL UNFILTERED DATA POINTS | V17: Country Highlight | W17: Country Filter | AB17: Region Filter | AE17: Income Filter
D18: IsRegion | E18: Status | F18: ActiveStatus | G18: Score (unrounded) | H18: Rank unrounded | I18: LU | J18: yScatter | K18: RankRounded | O18: Score | P18: Score Display | Q18: =IF($B$17,"Data","") ->  | R18: Map Display | T18: X | U18: Y | AB18: Unsorted | AC18: Sorted | AE18: Unsorted | AF18: Sorted | AN18: Main Set | AO18: Region Filter | AP18: Highlighted
A19: =tblTerritories!A3 -> 1 | B19: =tblTerritories!B3 -> ARG | C19: =tblTerritories!C3 -> Argentina | D19: 1 | E19: =F19 -> 1 | F19: =IF(tblTerritories!G3=3,3,IF(tblTerritories!G3=2,2,1)) -> 1 | G19: =IF(F19=0,"",INDEX('iMap-Data'!$D$18:$AB$21,$B$2,$A19)) -> 48.05827274 | H19: =IF(F19=0,"",RANK(G19,G$19:G$43,$B$7)+COUNTIF(G$19:G19,G19)-1) -> 22 | I19: =IF(ISERROR(MATCH($A19,H$19:H$43,0)),"",MATCH($A19,H$19:H$43,0)) -> 21 | J19: =IF(I19="","",1) -> 1 | K19: =IF(I19="","",RANK(O19,O$19:O$43,$B$7)) -> 1 | L19: =IF(I19="",0,INDEX($F$19:$F$43,I19)) -> 1 | M19: =IF(I19="","",IF(OR(K19=K18,K19=K20),CONCATENATE("=",K19),K19)) -> 1 | N19: =IF(I19="","",INDEX($C$19:$C$43,I19)) -> Sweden | O19: =IF(I19="","",INDEX('iMap-Data'!$D$18:$AB$21,$B$2,I19)) -> 67.56945913 | P19: =IF(L19=0,"",IF($C$2=1,"-",O19)) -> 67.56945913 | Q19: =IF(ISNA(VLOOKUP(N19,uxb_regions!$C$3:$I$35,7,FALSE)),"",VLOOKUP(N19,uxb_regions!$C$3:$I$35,7,FALSE)) -> SWE | R19: =IF(L19=0,"",O19) -> 67.56945913 | T19: =IF(ISNUMBER(O19),O19,NA()) -> 67.56945913 | U19: =1 -> 1 | V19: =IF(ISNA(INDEX($F$19:$F$43,MATCH(N19,$C$19:$C$43,0))),0,INDEX($F$19:$F$43,MATCH(N19,$C$19:$C$43,0))) -> 1 | W19: =IF(OR(V19=3,V19=2),Q19,0) -> 0 | X19: =IF(ISNA(V19),"",Q19) -> SWE | Y19: =IF(L19=2,T19,NA()) ->  | Z19: =IF(L19=2,1,NA()) ->  | AB19: =IF($AB$15=1,0,INDEX(tblTerritories!$AU$3:$BE$47,A19,$AB$15)) -> 0 | AC19: =IF(ISNA(INDEX($AB$19:$AB$43,MATCH(N19,$C$19:$C$43,0))),0,INDEX($AB$19:$AB$43,MATCH(N19,$C$19:$C$43,0))) -> 0 | AE19: =IF($AE$15=1,0,tblTerritories!AP3) -> 0 | AF19: =IF(ISNA(INDEX($AE$19:$AE$43,MATCH(N19,$C$19:$C$43,0))),0,INDEX($AE$19:$AE$43,MATCH(N19,$C$19:$C$43,0))) -> 0 | AJ19: =LARGE($R$19:$R$43,ROW(R1)-ROW($R$1)+1) -> 67.56945913 | AM19: =IF(ISNUMBER(O19),N19,CONCATENATE(N19)) -> Sweden | AN19: =IF(ISNUMBER(P19),P19,"-") -> 67.56945913 | AO19: =IF(W19=0,NA(),IF(V19=2,$AN19,NA())) ->  | AP19: =IF(W19=0,NA(),IF(V19=3,$AN19,NA())) -> 
A20: =tblTerritories!A4 -> 2 | B20: =tblTerritories!B4 -> AUS | C20: =tblTerritories!C4 -> Australia | D20: 1 | E20: =F20 -> 1 | F20: =IF(tblTerritories!G4=3,3,IF(tblTerritories!G4=2,2,1)) -> 1 | G20: =IF(F20=0,"",INDEX('iMap-Data'!$D$18:$AB$21,$B$2,$A20)) -> 60.08847513 | H20: =IF(F20=0,"",RANK(G20,G$19:G$43,$B$7)+COUNTIF(G$19:G20,G20)-1) -> 8 | I20: =IF(ISERROR(MATCH($A20,H$19:H$43,0)),"",MATCH($A20,H$19:H$43,0)) -> 17 | J20: =IF(I20="","",1) -> 1 | K20: =IF(I20="","",RANK(O20,O$19:O$43,$B$7)) -> 2 | L20: =IF(I20="",0,INDEX($F$19:$F$43,I20)) -> 1 | M20: =IF(I20="","",IF(OR(K20=K19,K20=K21),CONCATENATE("=",K20),K20)) -> 2 | N20: =IF(I20="","",INDEX($C$19:$C$43,I20)) -> Norway | O20: =IF(I20="","",INDEX('iMap-Data'!$D$18:$AB$21,$B$2,I20)) -> 66.12023977 | P20: =IF(L20=0,"",IF($C$2=1,"-",O20)) -> 66.12023977 | Q20: =IF(ISNA(VLOOKUP(N20,uxb_regions!$C$3:$I$35,7,FALSE)),"",VLOOKUP(N20,uxb_regions!$C$3:$I$35,7,FALSE)) -> NOR | R20: =IF(L20=0,"",O20) -> 66.12023977 | T20: =IF(ISNUMBER(O20),O20,NA()) -> 66.12023977 | U20: =1 -> 1 | V20: =IF(ISNA(INDEX($F$19:$F$43,MATCH(N20,$C$19:$C$43,0))),0,INDEX($F$19:$F$43,MATCH(N20,$C$19:$C$43,0))) -> 1 | W20: =IF(OR(V20=3,V20=2),Q20,0) -> 0 | X20: =IF(ISNA(V20),"",Q20) -> NOR | Y20: =IF(L20=2,T20,NA()) ->  | Z20: =IF(L20=2,1,NA()) ->  | AB20: =IF($AB$15=1,0,INDEX(tblTerritories!$AU$3:$BE$47,A20,$AB$15)) -> 0 | AC20: =IF(ISNA(INDEX($AB$19:$AB$43,MATCH(N20,$C$19:$C$43,0))),0,INDEX($AB$19:$AB$43,MATCH(N20,$C$19:$C$43,0))) -> 0 | AE20: =IF($AE$15=1,0,tblTerritories!AP4) -> 0 | AF20: =IF(ISNA(INDEX($AE$19:$AE$43,MATCH(N20,$C$19:$C$43,0))),0,INDEX($AE$19:$AE$43,MATCH(N20,$C$19:$C$43,0))) -> 0 | AJ20: =LARGE($R$19:$R$43,ROW(R2)-ROW($R$1)+1) -> 66.12023977 | AM20: =IF(ISNUMBER(O20),N20,CONCATENATE(N20)) -> Norway | AN20: =IF(ISNUMBER(P20),P20,"-") -> 66.12023977 | AO20: =IF(W20=0,NA(),IF(V20=2,$AN20,NA())) ->  | AP20: =IF(W20=0,NA(),IF(V20=3,$AN20,NA())) -> 
A21: =tblTerritories!A5 -> 3 | B21: =tblTerritories!B5 -> BEL | C21: =tblTerritories!C5 -> Belgium | D21: 1 | E21: 1 | F21: =IF(tblTerritories!G5=3,3,IF(tblTerritories!G5=2,2,1)) -> 1 | G21: =IF(F21=0,"",INDEX('iMap-Data'!$D$18:$AB$21,$B$2,$A21)) -> 55.64223398 | H21: =IF(F21=0,"",RANK(G21,G$19:G$43,$B$7)+COUNTIF(G$19:G21,G21)-1) -> 17 | I21: 10 | J21: 1 | K21: 3 | L21: 1 | M21: 3 | N21: Germany | O21: =IF(I21="","",INDEX('iMap-Data'!$D$18:$AB$21,$B$2,I21)) -> 64.50126895 | P21: 64.50126895 | Q21: =IF(ISNA(VLOOKUP(N21,uxb_regions!$C$3:$I$35,7,FALSE)),"",VLOOKUP(N21,uxb_regions!$C$3:$I$35,7,FALSE)) -> DEU | R21: 64.50126895 | T21: 64.50126895 | U21: =1 -> 1 | V21: 1 | W21: 0 | X21: DEU | AB21: =IF($AB$15=1,0,INDEX(tblTerritories!$AU$3:$BE$47,A21,$AB$15)) -> 0 | AC21: 0 | AE21: =IF($AE$15=1,0,tblTerritories!AP5) -> 0 | AF21: 0 | AJ21: 64.50126895 | AM21: Germany | AN21: 64.50126895
A22: =tblTerritories!A6 -> 4 | B22: =tblTerritories!B6 -> BRA | C22: =tblTerritories!C6 -> Brazil | D22: 1 | E22: 1 | F22: =IF(tblTerritories!G6=3,3,IF(tblTerritories!G6=2,2,1)) -> 1 | G22: =IF(F22=0,"",INDEX('iMap-Data'!$D$18:$AB$21,$B$2,$A22)) -> 58.23453182 | H22: =IF(F22=0,"",RANK(G22,G$19:G$43,$B$7)+COUNTIF(G$19:G22,G22)-1) -> 14 | I22: 8 | J22: 1 | K22: 4 | L22: 1 | M22: 4 | N22: Finland | O22: =IF(I22="","",INDEX('iMap-Data'!$D$18:$AB$21,$B$2,I22)) -> 63.80237046 | P22: 63.80237046 | Q22: =IF(ISNA(VLOOKUP(N22,uxb_regions!$C$3:$I$35,7,FALSE)),"",VLOOKUP(N22,uxb_regions!$C$3:$I$35,7,FALSE)) -> FIN | R22: 63.80237046 | T22: 63.80237046 | U22: =1 -> 1 | V22: 1 | W22: 0 | X22: FIN | AB22: =IF($AB$15=1,0,INDEX(tblTerritories!$AU$3:$BE$47,A22,$AB$15)) -> 0 | AC22: 0 | AE22: =IF($AE$15=1,0,tblTerritories!AP6) -> 0 | AF22: 0 | AJ22: 63.80237046 | AM22: Finland | AN22: 63.80237046
A23: =tblTerritories!A7 -> 5 | B23: =tblTerritories!B7 -> CAN | C23: =tblTerritories!C7 -> Canada | D23: 1 | E23: 1 | F23: =IF(tblTerritories!G7=3,3,IF(tblTerritories!G7=2,2,1)) -> 1 | G23: =IF(F23=0,"",INDEX('iMap-Data'!$D$18:$AB$21,$B$2,$A23)) -> 58.36870766 | H23: =IF(F23=0,"",RANK(G23,G$19:G$43,$B$7)+COUNTIF(G$19:G23,G23)-1) -> 13 | I23: 6 | J23: 1 | K23: 5 | L23: 1 | M23: 5 | N23: Chile | O23: =IF(I23="","",INDEX('iMap-Data'!$D$18:$AB$21,$B$2,I23)) -> 62.82639319 | P23: 62.82639319 | Q23: =IF(ISNA(VLOOKUP(N23,uxb_regions!$C$3:$I$35,7,FALSE)),"",VLOOKUP(N23,uxb_regions!$C$3:$I$35,7,FALSE)) -> CHL | R23: 62.82639319 | T23: 62.82639319 | U23: =1 -> 1 | V23: 1 | W23: 0 | X23: CHL | AB23: =IF($AB$15=1,0,INDEX(tblTerritories!$AU$3:$BE$47,A23,$AB$15)) -> 0 | AC23: 0 | AE23: =IF($AE$15=1,0,tblTerritories!AP7) -> 0 | AF23: 0 | AJ23: 62.82639319 | AM23: Chile | AN23: 62.82639319
A24: =tblTerritories!A8 -> 6 | B24: =tblTerritories!B8 -> CHL | C24: =tblTerritories!C8 -> Chile | D24: 1 | E24: 1 | F24: =IF(tblTerritories!G8=3,3,IF(tblTerritories!G8=2,2,1)) -> 1 | G24: =IF(F24=0,"",INDEX('iMap-Data'!$D$18:$AB$21,$B$2,$A24)) -> 62.82639319 | H24: =IF(F24=0,"",RANK(G24,G$19:G$43,$B$7)+COUNTIF(G$19:G24,G24)-1) -> 5 | I24: 9 | J24: 1 | K24: 6 | L24: 1 | M24: 6 | N24: France | O24: =IF(I24="","",INDEX('iMap-Data'!$D$18:$AB$21,$B$2,I24)) -> 61.47106886 | P24: 61.47106886 | Q24: =IF(ISNA(VLOOKUP(N24,uxb_regions!$C$3:$I$35,7,FALSE)),"",VLOOKUP(N24,uxb_regions!$C$3:$I$35,7,FALSE)) -> FRA | R24: 61.47106886 | T24: 61.47106886 | U24: =1 -> 1 | V24: 1 | W24: 0 | X24: FRA | AB24: =IF($AB$15=1,0,INDEX(tblTerritories!$AU$3:$BE$47,A24,$AB$15)) -> 0 | AC24: 0 | AE24: =IF($AE$15=1,0,tblTerritories!AP8) -> 0 | AF24: 0 | AJ24: 61.47106886 | AM24: France | AN24: 61.47106886
A25: =tblTerritories!A9 -> 7 | B25: =tblTerritories!B9 -> CHN | C25: =tblTerritories!C9 -> China | D25: 1 | E25: 1 | F25: =IF(tblTerritories!G9=3,3,IF(tblTerritories!G9=2,2,1)) -> 1 | G25: =IF(F25=0,"",INDEX('iMap-Data'!$D$18:$AB$21,$B$2,$A25)) -> 47.25142802 | H25: =IF(F25=0,"",RANK(G25,G$19:G$43,$B$7)+COUNTIF(G$19:G25,G25)-1) -> 23 | I25: 20 | J25: 1 | K25: 7 | L25: 1 | M25: 7 | N25: Spain | O25: =IF(I25="","",INDEX('iMap-Data'!$D$18:$AB$21,$B$2,I25)) -> 61.01349764 | P25: 61.01349764 | Q25: =IF(ISNA(VLOOKUP(N25,uxb_regions!$C$3:$I$35,7,FALSE)),"",VLOOKUP(N25,uxb_regions!$C$3:$I$35,7,FALSE)) -> ESP | R25: 61.01349764 | T25: 61.01349764 | U25: =1 -> 1 | V25: 1 | W25: 0 | X25: ESP | AB25: =IF($AB$15=1,0,INDEX(tblTerritories!$AU$3:$BE$47,A25,$AB$15)) -> 0 | AC25: 0 | AE25: =IF($AE$15=1,0,tblTerritories!AP9) -> 0 | AF25: 0 | AJ25: 61.01349764 | AM25: Spain | AN25: 61.01349764
A26: =tblTerritories!A10 -> 8 | B26: =tblTerritories!B10 -> FIN | C26: =tblTerritories!C10 -> Finland | D26: 1 | E26: 1 | F26: =IF(tblTerritories!G10=3,3,IF(tblTerritories!G10=2,2,1)) -> 1 | G26: =IF(F26=0,"",INDEX('iMap-Data'!$D$18:$AB$21,$B$2,$A26)) -> 63.80237046 | H26: =IF(F26=0,"",RANK(G26,G$19:G$43,$B$7)+COUNTIF(G$19:G26,G26)-1) -> 4 | I26: 2 | J26: 1 | K26: 8 | L26: 1 | M26: 8 | N26: Australia | O26: =IF(I26="","",INDEX('iMap-Data'!$D$18:$AB$21,$B$2,I26)) -> 60.08847513 | P26: 60.08847513 | Q26: =IF(ISNA(VLOOKUP(N26,uxb_regions!$C$3:$I$35,7,FALSE)),"",VLOOKUP(N26,uxb_regions!$C$3:$I$35,7,FALSE)) -> AUS | R26: 60.08847513 | T26: 60.08847513 | U26: =1 -> 1 | V26: 1 | W26: 0 | X26: AUS | AB26: =IF($AB$15=1,0,INDEX(tblTerritories!$AU$3:$BE$47,A26,$AB$15)) -> 0 | AC26: 0 | AE26: =IF($AE$15=1,0,tblTerritories!AP10) -> 0 | AF26: 0 | AJ26: 60.08847513 | AM26: Australia | AN26: 60.08847513
A27: =tblTerritories!A11 -> 9 | B27: =tblTerritories!B11 -> FRA | C27: =tblTerritories!C11 -> France | D27: 1 | E27: 1 | F27: =IF(tblTerritories!G11=3,3,IF(tblTerritories!G11=2,2,1)) -> 1 | G27: =IF(F27=0,"",INDEX('iMap-Data'!$D$18:$AB$21,$B$2,$A27)) -> 61.47106886 | H27: =IF(F27=0,"",RANK(G27,G$19:G$43,$B$7)+COUNTIF(G$19:G27,G27)-1) -> 6 | I27: 23 | J27: 1 | K27: 9 | L27: 1 | M27: 9 | N27: United Kingdom | O27: =IF(I27="","",INDEX('iMap-Data'!$D$18:$AB$21,$B$2,I27)) -> 60.0302724 | P27: 60.0302724 | Q27: =IF(ISNA(VLOOKUP(N27,uxb_regions!$C$3:$I$35,7,FALSE)),"",VLOOKUP(N27,uxb_regions!$C$3:$I$35,7,FALSE)) -> GBR | R27: 60.0302724 | T27: 60.0302724 | U27: =1 -> 1 | V27: 1 | W27: 0 | X27: GBR | AB27: =IF($AB$15=1,0,INDEX(tblTerritories!$AU$3:$BE$47,A27,$AB$15)) -> 0 | AC27: 0 | AE27: =IF($AE$15=1,0,tblTerritories!AP11) -> 0 | AF27: 0 | AJ27: 60.0302724 | AM27: United Kingdom | AN27: 60.0302724
A28: =tblTerritories!A12 -> 10 | B28: =tblTerritories!B12 -> DEU | C28: =tblTerritories!C12 -> Germany | D28: 1 | E28: 1 | F28: =IF(tblTerritories!G12=3,3,IF(tblTerritories!G12=2,2,1)) -> 1 | G28: =IF(F28=0,"",INDEX('iMap-Data'!$D$18:$AB$21,$B$2,$A28)) -> 64.50126895 | H28: =IF(F28=0,"",RANK(G28,G$19:G$43,$B$7)+COUNTIF(G$19:G28,G28)-1) -> 3 | I28: 13 | J28: 1 | K28: 10 | L28: 1 | M28: 10 | N28: Japan | O28: =IF(I28="","",INDEX('iMap-Data'!$D$18:$AB$21,$B$2,I28)) -> 58.96584517 | P28: 58.96584517 | Q28: =IF(ISNA(VLOOKUP(N28,uxb_regions!$C$3:$I$35,7,FALSE)),"",VLOOKUP(N28,uxb_regions!$C$3:$I$35,7,FALSE)) -> JPN | R28: 58.96584517 | T28: 58.96584517 | U28: =1 -> 1 | V28: 1 | W28: 0 | X28: JPN | AB28: =IF($AB$15=1,0,INDEX(tblTerritories!$AU$3:$BE$47,A28,$AB$15)) -> 0 | AC28: 0 | AE28: =IF($AE$15=1,0,tblTerritories!AP12) -> 0 | AF28: 0 | AJ28: 58.96584517 | AM28: Japan | AN28: 58.96584517
A29: =tblTerritories!A13 -> 11 | B29: =tblTerritories!B13 -> IND | C29: =tblTerritories!C13 -> India | D29: 1 | E29: 1 | F29: =IF(tblTerritories!G13=3,3,IF(tblTerritories!G13=2,2,1)) -> 1 | G29: =IF(F29=0,"",INDEX('iMap-Data'!$D$18:$AB$21,$B$2,$A29)) -> 48.65393183 | H29: =IF(F29=0,"",RANK(G29,G$19:G$43,$B$7)+COUNTIF(G$19:G29,G29)-1) -> 21 | I29: 16 | J29: 1 | K29: 11 | L29: 1 | M29: 11 | N29: Netherlands | O29: =IF(I29="","",INDEX('iMap-Data'!$D$18:$AB$21,$B$2,I29)) -> 58.90313749 | P29: 58.90313749 | Q29: =IF(ISNA(VLOOKUP(N29,uxb_regions!$C$3:$I$35,7,FALSE)),"",VLOOKUP(N29,uxb_regions!$C$3:$I$35,7,FALSE)) -> NLD | R29: 58.90313749 | T29: 58.90313749 | U29: =1 -> 1 | V29: 1 | W29: 0 | X29: NLD | AB29: =IF($AB$15=1,0,INDEX(tblTerritories!$AU$3:$BE$47,A29,$AB$15)) -> 0 | AC29: 0 | AE29: =IF($AE$15=1,0,tblTerritories!AP13) -> 0 | AF29: 0 | AJ29: 58.90313749 | AM29: Netherlands | AN29: 58.90313749
A30: =tblTerritories!A14 -> 12 | B30: =tblTerritories!B14 -> IDN | C30: =tblTerritories!C14 -> Indonesia | D30: 1 | E30: 1 | F30: =IF(tblTerritories!G14=3,3,IF(tblTerritories!G14=2,2,1)) -> 1 | G30: =IF(F30=0,"",INDEX('iMap-Data'!$D$18:$AB$21,$B$2,$A30)) -> 46.84753612 | H30: =IF(F30=0,"",RANK(G30,G$19:G$43,$B$7)+COUNTIF(G$19:G30,G30)-1) -> 24 | I30: 24 | J30: 1 | K30: 12 | L30: 1 | M30: 12 | N30: United States | O30: =IF(I30="","",INDEX('iMap-Data'!$D$18:$AB$21,$B$2,I30)) -> 58.8605402 | P30: 58.8605402 | Q30: =IF(ISNA(VLOOKUP(N30,uxb_regions!$C$3:$I$35,7,FALSE)),"",VLOOKUP(N30,uxb_regions!$C$3:$I$35,7,FALSE)) -> USA | R30: 58.8605402 | T30: 58.8605402 | U30: =1 -> 1 | V30: 1 | W30: 0 | X30: USA | AB30: =IF($AB$15=1,0,INDEX(tblTerritories!$AU$3:$BE$47,A30,$AB$15)) -> 0 | AC30: 0 | AE30: =IF($AE$15=1,0,tblTerritories!AP14) -> 0 | AF30: 0 | AJ30: 58.8605402 | AM30: United States | AN30: 58.8605402
A31: =tblTerritories!A15 -> 13 | B31: =tblTerritories!B15 -> JPN | C31: =tblTerritories!C15 -> Japan | D31: 1 | E31: 1 | F31: =IF(tblTerritories!G15=3,3,IF(tblTerritories!G15=2,2,1)) -> 1 | G31: =IF(F31=0,"",INDEX('iMap-Data'!$D$18:$AB$21,$B$2,$A31)) -> 58.96584517 | H31: =IF(F31=0,"",RANK(G31,G$19:G$43,$B$7)+COUNTIF(G$19:G31,G31)-1) -> 10 | I31: 5 | J31: 1 | K31: 13 | L31: 1 | M31: 13 | N31: Canada | O31: =IF(I31="","",INDEX('iMap-Data'!$D$18:$AB$21,$B$2,I31)) -> 58.36870766 | P31: 58.36870766 | Q31: =IF(ISNA(VLOOKUP(N31,uxb_regions!$C$3:$I$35,7,FALSE)),"",VLOOKUP(N31,uxb_regions!$C$3:$I$35,7,FALSE)) -> CAN | R31: 58.36870766 | T31: 58.36870766 | U31: =1 -> 1 | V31: 1 | W31: 0 | X31: CAN | AB31: =IF($AB$15=1,0,INDEX(tblTerritories!$AU$3:$BE$47,A31,$AB$15)) -> 0 | AC31: 0 | AE31: =IF($AE$15=1,0,tblTerritories!AP15) -> 0 | AF31: 0 | AJ31: 58.36870766 | AM31: Canada | AN31: 58.36870766
A32: =tblTerritories!A16 -> 14 | B32: =tblTerritories!B16 -> MYS | C32: =tblTerritories!C16 -> Malaysia | D32: 1 | E32: 1 | F32: =IF(tblTerritories!G16=3,3,IF(tblTerritories!G16=2,2,1)) -> 1 | G32: =IF(F32=0,"",INDEX('iMap-Data'!$D$18:$AB$21,$B$2,$A32)) -> 57.59529827 | H32: =IF(F32=0,"",RANK(G32,G$19:G$43,$B$7)+COUNTIF(G$19:G32,G32)-1) -> 15 | I32: 4 | J32: 1 | K32: 14 | L32: 1 | M32: 14 | N32: Brazil | O32: =IF(I32="","",INDEX('iMap-Data'!$D$18:$AB$21,$B$2,I32)) -> 58.23453182 | P32: 58.23453182 | Q32: =IF(ISNA(VLOOKUP(N32,uxb_regions!$C$3:$I$35,7,FALSE)),"",VLOOKUP(N32,uxb_regions!$C$3:$I$35,7,FALSE)) -> BRA | R32: 58.23453182 | T32: 58.23453182 | U32: =1 -> 1 | V32: 1 | W32: 0 | X32: BRA | AB32: =IF($AB$15=1,0,INDEX(tblTerritories!$AU$3:$BE$47,A32,$AB$15)) -> 0 | AC32: 0 | AE32: =IF($AE$15=1,0,tblTerritories!AP16) -> 0 | AF32: 0 | AJ32: 58.23453182 | AM32: Brazil | AN32: 58.23453182
A33: =tblTerritories!A17 -> 15 | B33: =tblTerritories!B17 -> MEX | C33: =tblTerritories!C17 -> Mexico | D33: 1 | E33: 1 | F33: =IF(tblTerritories!G17=3,3,IF(tblTerritories!G17=2,2,1)) -> 1 | G33: =IF(F33=0,"",INDEX('iMap-Data'!$D$18:$AB$21,$B$2,$A33)) -> 52.76491396 | H33: =IF(F33=0,"",RANK(G33,G$19:G$43,$B$7)+COUNTIF(G$19:G33,G33)-1) -> 18 | I33: 14 | J33: 1 | K33: 15 | L33: 1 | M33: 15 | N33: Malaysia | O33: =IF(I33="","",INDEX('iMap-Data'!$D$18:$AB$21,$B$2,I33)) -> 57.59529827 | P33: 57.59529827 | Q33: =IF(ISNA(VLOOKUP(N33,uxb_regions!$C$3:$I$35,7,FALSE)),"",VLOOKUP(N33,uxb_regions!$C$3:$I$35,7,FALSE)) -> MYS | R33: 57.59529827 | T33: 57.59529827 | U33: =1 -> 1 | V33: 1 | W33: 0 | X33: MYS | AB33: =IF($AB$15=1,0,INDEX(tblTerritories!$AU$3:$BE$47,A33,$AB$15)) -> 0 | AC33: 0 | AE33: =IF($AE$15=1,0,tblTerritories!AP17) -> 0 | AF33: 0 | AJ33: 57.59529827 | AM33: Malaysia | AN33: 57.59529827
A34: =tblTerritories!A18 -> 16 | B34: =tblTerritories!B18 -> NLD | C34: =tblTerritories!C18 -> Netherlands | D34: 1 | E34: 1 | F34: =IF(tblTerritories!G18=3,3,IF(tblTerritories!G18=2,2,1)) -> 1 | G34: =IF(F34=0,"",INDEX('iMap-Data'!$D$18:$AB$21,$B$2,$A34)) -> 58.90313749 | H34: =IF(F34=0,"",RANK(G34,G$19:G$43,$B$7)+COUNTIF(G$19:G34,G34)-1) -> 11 | I34: 18 | J34: 1 | K34: 16 | L34: 1 | M34: 16 | N34: Singapore | O34: =IF(I34="","",INDEX('iMap-Data'!$D$18:$AB$21,$B$2,I34)) -> 57.23918773 | P34: 57.23918773 | Q34: =IF(ISNA(VLOOKUP(N34,uxb_regions!$C$3:$I$35,7,FALSE)),"",VLOOKUP(N34,uxb_regions!$C$3:$I$35,7,FALSE)) -> SGP | R34: 57.23918773 | T34: 57.23918773 | U34: =1 -> 1 | V34: 1 | W34: 0 | X34: SGP | AB34: =IF($AB$15=1,0,INDEX(tblTerritories!$AU$3:$BE$47,A34,$AB$15)) -> 0 | AC34: 0 | AE34: =IF($AE$15=1,0,tblTerritories!AP18) -> 0 | AF34: 0 | AJ34: 57.23918773 | AM34: Singapore | AN34: 57.23918773
A35: =tblTerritories!A19 -> 17 | B35: =tblTerritories!B19 -> NOR | C35: =tblTerritories!C19 -> Norway | D35: 1 | E35: 1 | F35: =IF(tblTerritories!G19=3,3,IF(tblTerritories!G19=2,2,1)) -> 1 | G35: =IF(F35=0,"",INDEX('iMap-Data'!$D$18:$AB$21,$B$2,$A35)) -> 66.12023977 | H35: =IF(F35=0,"",RANK(G35,G$19:G$43,$B$7)+COUNTIF(G$19:G35,G35)-1) -> 2 | I35: 3 | J35: 1 | K35: 17 | L35: 1 | M35: 17 | N35: Belgium | O35: =IF(I35="","",INDEX('iMap-Data'!$D$18:$AB$21,$B$2,I35)) -> 55.64223398 | P35: 55.64223398 | Q35: =IF(ISNA(VLOOKUP(N35,uxb_regions!$C$3:$I$35,7,FALSE)),"",VLOOKUP(N35,uxb_regions!$C$3:$I$35,7,FALSE)) -> BEL | R35: 55.64223398 | T35: 55.64223398 | U35: =1 -> 1 | V35: 1 | W35: 0 | X35: BEL | AB35: =IF($AB$15=1,0,INDEX(tblTerritories!$AU$3:$BE$47,A35,$AB$15)) -> 0 | AC35: 0 | AE35: =IF($AE$15=1,0,tblTerritories!AP19) -> 0 | AF35: 0 | AJ35: 55.64223398 | AM35: Belgium | AN35: 55.64223398
A36: =tblTerritories!A20 -> 18 | B36: =tblTerritories!B20 -> SGP | C36: =tblTerritories!C20 -> Singapore | D36: 1 | E36: 1 | F36: =IF(tblTerritories!G20=3,3,IF(tblTerritories!G20=2,2,1)) -> 1 | G36: =IF(F36=0,"",INDEX('iMap-Data'!$D$18:$AB$21,$B$2,$A36)) -> 57.23918773 | H36: =IF(F36=0,"",RANK(G36,G$19:G$43,$B$7)+COUNTIF(G$19:G36,G36)-1) -> 16 | I36: 15 | J36: 1 | K36: 18 | L36: 1 | M36: 18 | N36: Mexico | O36: =IF(I36="","",INDEX('iMap-Data'!$D$18:$AB$21,$B$2,I36)) -> 52.76491396 | P36: 52.76491396 | Q36: =IF(ISNA(VLOOKUP(N36,uxb_regions!$C$3:$I$35,7,FALSE)),"",VLOOKUP(N36,uxb_regions!$C$3:$I$35,7,FALSE)) -> MEX | R36: 52.76491396 | T36: 52.76491396 | U36: =1 -> 1 | V36: 1 | W36: 0 | X36: MEX | AB36: =IF($AB$15=1,0,INDEX(tblTerritories!$AU$3:$BE$47,A36,$AB$15)) -> 0 | AC36: 0 | AE36: =IF($AE$15=1,0,tblTerritories!AP20) -> 0 | AF36: 0 | AJ36: 52.76491396 | AM36: Mexico | AN36: 52.76491396
A37: =tblTerritories!A21 -> 19 | B37: =tblTerritories!B21 -> KOR | C37: =tblTerritories!C21 -> South Korea | D37: 1 | E37: 1 | F37: =IF(tblTerritories!G21=3,3,IF(tblTerritories!G21=2,2,1)) -> 1 | G37: =IF(F37=0,"",INDEX('iMap-Data'!$D$18:$AB$21,$B$2,$A37)) -> 52.73273811 | H37: =IF(F37=0,"",RANK(G37,G$19:G$43,$B$7)+COUNTIF(G$19:G37,G37)-1) -> 19 | I37: 19 | J37: 1 | K37: 19 | L37: 1 | M37: 19 | N37: South Korea | O37: =IF(I37="","",INDEX('iMap-Data'!$D$18:$AB$21,$B$2,I37)) -> 52.73273811 | P37: 52.73273811 | Q37: =IF(ISNA(VLOOKUP(N37,uxb_regions!$C$3:$I$35,7,FALSE)),"",VLOOKUP(N37,uxb_regions!$C$3:$I$35,7,FALSE)) -> KOR | R37: 52.73273811 | T37: 52.73273811 | U37: =1 -> 1 | V37: 1 | W37: 0 | X37: KOR | AB37: =IF($AB$15=1,0,INDEX(tblTerritories!$AU$3:$BE$47,A37,$AB$15)) -> 0 | AC37: 0 | AE37: =IF($AE$15=1,0,tblTerritories!AP21) -> 0 | AF37: 0 | AJ37: 52.73273811 | AM37: South Korea | AN37: 52.73273811
A38: =tblTerritories!A22 -> 20 | B38: =tblTerritories!B22 -> ESP | C38: =tblTerritories!C22 -> Spain | D38: 1 | E38: 1 | F38: =IF(tblTerritories!G22=3,3,IF(tblTerritories!G22=2,2,1)) -> 1 | G38: =IF(F38=0,"",INDEX('iMap-Data'!$D$18:$AB$21,$B$2,$A38)) -> 61.01349764 | H38: =IF(F38=0,"",RANK(G38,G$19:G$43,$B$7)+COUNTIF(G$19:G38,G38)-1) -> 7 | I38: 22 | J38: 1 | K38: 20 | L38: 1 | M38: 20 | N38: Thailand | O38: =IF(I38="","",INDEX('iMap-Data'!$D$18:$AB$21,$B$2,I38)) -> 50.5465773 | P38: 50.5465773 | Q38: =IF(ISNA(VLOOKUP(N38,uxb_regions!$C$3:$I$35,7,FALSE)),"",VLOOKUP(N38,uxb_regions!$C$3:$I$35,7,FALSE)) -> THA | R38: 50.5465773 | T38: 50.5465773 | U38: =1 -> 1 | V38: 1 | W38: 0 | X38: THA | AB38: =IF($AB$15=1,0,INDEX(tblTerritories!$AU$3:$BE$47,A38,$AB$15)) -> 0 | AC38: 0 | AE38: =IF($AE$15=1,0,tblTerritories!AP22) -> 0 | AF38: 0 | AJ38: 50.5465773 | AM38: Thailand | AN38: 50.5465773
A39: =tblTerritories!A23 -> 21 | B39: =tblTerritories!B23 -> SWE | C39: =tblTerritories!C23 -> Sweden | D39: 1 | E39: 1 | F39: =IF(tblTerritories!G23=3,3,IF(tblTerritories!G23=2,2,1)) -> 1 | G39: =IF(F39=0,"",INDEX('iMap-Data'!$D$18:$AB$21,$B$2,$A39)) -> 67.56945913 | H39: =IF(F39=0,"",RANK(G39,G$19:G$43,$B$7)+COUNTIF(G$19:G39,G39)-1) -> 1 | I39: 11 | J39: 1 | K39: 21 | L39: 1 | M39: 21 | N39: India | O39: =IF(I39="","",INDEX('iMap-Data'!$D$18:$AB$21,$B$2,I39)) -> 48.65393183 | P39: 48.65393183 | Q39: =IF(ISNA(VLOOKUP(N39,uxb_regions!$C$3:$I$35,7,FALSE)),"",VLOOKUP(N39,uxb_regions!$C$3:$I$35,7,FALSE)) -> IND | R39: 48.65393183 | T39: 48.65393183 | U39: =1 -> 1 | V39: 1 | W39: 0 | X39: IND | AB39: =IF($AB$15=1,0,INDEX(tblTerritories!$AU$3:$BE$47,A39,$AB$15)) -> 0 | AC39: 0 | AE39: =IF($AE$15=1,0,tblTerritories!AP23) -> 0 | AF39: 0 | AJ39: 48.65393183 | AM39: India | AN39: 48.65393183
A40: =tblTerritories!A24 -> 22 | B40: =tblTerritories!B24 -> THA | C40: =tblTerritories!C24 -> Thailand | D40: 1 | E40: 1 | F40: =IF(tblTerritories!G24=3,3,IF(tblTerritories!G24=2,2,1)) -> 1 | G40: =IF(F40=0,"",INDEX('iMap-Data'!$D$18:$AB$21,$B$2,$A40)) -> 50.5465773 | H40: =IF(F40=0,"",RANK(G40,G$19:G$43,$B$7)+COUNTIF(G$19:G40,G40)-1) -> 20 | I40: 1 | J40: 1 | K40: 22 | L40: 1 | M40: 22 | N40: Argentina | O40: =IF(I40="","",INDEX('iMap-Data'!$D$18:$AB$21,$B$2,I40)) -> 48.05827274 | P40: 48.05827274 | Q40: =IF(ISNA(VLOOKUP(N40,uxb_regions!$C$3:$I$35,7,FALSE)),"",VLOOKUP(N40,uxb_regions!$C$3:$I$35,7,FALSE)) -> ARG | R40: 48.05827274 | T40: 48.05827274 | U40: =1 -> 1 | V40: 1 | W40: 0 | X40: ARG | AB40: =IF($AB$15=1,0,INDEX(tblTerritories!$AU$3:$BE$47,A40,$AB$15)) -> 0 | AC40: 0 | AE40: =IF($AE$15=1,0,tblTerritories!AP24) -> 0 | AF40: 0 | AJ40: 48.05827274 | AM40: Argentina | AN40: 48.05827274
A41: =tblTerritories!A25 -> 23 | B41: =tblTerritories!B25 -> GBR | C41: =tblTerritories!C25 -> United Kingdom | D41: 1 | E41: 1 | F41: =IF(tblTerritories!G25=3,3,IF(tblTerritories!G25=2,2,1)) -> 1 | G41: =IF(F41=0,"",INDEX('iMap-Data'!$D$18:$AB$21,$B$2,$A41)) -> 60.0302724 | H41: =IF(F41=0,"",RANK(G41,G$19:G$43,$B$7)+COUNTIF(G$19:G41,G41)-1) -> 9 | I41: 7 | J41: 1 | K41: 23 | L41: 1 | M41: 23 | N41: China | O41: =IF(I41="","",INDEX('iMap-Data'!$D$18:$AB$21,$B$2,I41)) -> 47.25142802 | P41: 47.25142802 | Q41: =IF(ISNA(VLOOKUP(N41,uxb_regions!$C$3:$I$35,7,FALSE)),"",VLOOKUP(N41,uxb_regions!$C$3:$I$35,7,FALSE)) -> CHN | R41: 47.25142802 | T41: 47.25142802 | U41: =1 -> 1 | V41: 1 | W41: 0 | X41: CHN | AB41: =IF($AB$15=1,0,INDEX(tblTerritories!$AU$3:$BE$47,A41,$AB$15)) -> 0 | AC41: 0 | AE41: =IF($AE$15=1,0,tblTerritories!AP25) -> 0 | AF41: 0 | AJ41: 47.25142802 | AM41: China | AN41: 47.25142802
A42: =tblTerritories!A26 -> 24 | B42: =tblTerritories!B26 -> USA | C42: =tblTerritories!C26 -> United States | D42: 1 | E42: 1 | F42: =IF(tblTerritories!G26=3,3,IF(tblTerritories!G26=2,2,1)) -> 1 | G42: =IF(F42=0,"",INDEX('iMap-Data'!$D$18:$AB$21,$B$2,$A42)) -> 58.8605402 | H42: =IF(F42=0,"",RANK(G42,G$19:G$43,$B$7)+COUNTIF(G$19:G42,G42)-1) -> 12 | I42: 12 | J42: 1 | K42: 24 | L42: 1 | M42: 24 | N42: Indonesia | O42: =IF(I42="","",INDEX('iMap-Data'!$D$18:$AB$21,$B$2,I42)) -> 46.84753612 | P42: 46.84753612 | Q42: =IF(ISNA(VLOOKUP(N42,uxb_regions!$C$3:$I$35,7,FALSE)),"",VLOOKUP(N42,uxb_regions!$C$3:$I$35,7,FALSE)) -> IDN | R42: 46.84753612 | T42: 46.84753612 | U42: =1 -> 1 | V42: 1 | W42: 0 | X42: IDN | AB42: =IF($AB$15=1,0,INDEX(tblTerritories!$AU$3:$BE$47,A42,$AB$15)) -> 0 | AC42: 0 | AE42: =IF($AE$15=1,0,tblTerritories!AP26) -> 0 | AF42: 0 | AJ42: 46.84753612 | AM42: Indonesia | AN42: 46.84753612
A43: =tblTerritories!A27 -> 25 | B43: =tblTerritories!B27 -> VNM | C43: =tblTerritories!C27 -> Vietnam | D43: 1 | E43: 1 | F43: =IF(tblTerritories!G27=3,3,IF(tblTerritories!G27=2,2,1)) -> 1 | G43: =IF(F43=0,"",INDEX('iMap-Data'!$D$18:$AB$21,$B$2,$A43)) -> 45.43062794 | H43: =IF(F43=0,"",RANK(G43,G$19:G$43,$B$7)+COUNTIF(G$19:G43,G43)-1) -> 25 | I43: 25 | J43: 1 | K43: 25 | L43: 1 | M43: 25 | N43: Vietnam | O43: =IF(I43="","",INDEX('iMap-Data'!$D$18:$AB$21,$B$2,I43)) -> 45.43062794 | P43: 45.43062794 | Q43: =IF(ISNA(VLOOKUP(N43,uxb_regions!$C$3:$I$35,7,FALSE)),"",VLOOKUP(N43,uxb_regions!$C$3:$I$35,7,FALSE)) -> VNM | R43: 45.43062794 | T43: 45.43062794 | U43: =1 -> 1 | V43: 1 | W43: 0 | X43: VNM | AB43: =IF($AB$15=1,0,INDEX(tblTerritories!$AU$3:$BE$47,A43,$AB$15)) -> 0 | AC43: 0 | AE43: =IF($AE$15=1,0,tblTerritories!AP27) -> 0 | AF43: 0 | AJ43: 45.43062794 | AM43: Vietnam | AN43: 45.43062794
J47: 1 | O47: =IF(uxb_works!B7>1,INDEX(G18:G43,uxb_works!B7),NA()) -> 

Sheet iScoreSummary (hidden)
A1: Overall Score | H1: 1 | I1: 2 | J1: 3 | K1: 4 | N1: FB | O1: CG | P1: HS | Q1: HT
A2: =uxb_works!A74 -> COUNTRY_SELECT | B2: =uxb_works!B35 -> 1 | C2: =uxb_works!C35 -> Argentina | G2: 1 | H2: =INDEX($C$9:$F$24,$G2,H$1) -> 1 | I2: =INDEX($C$9:$F$24,$G2,I$1) -> 1 | J2: 1 | K2: 1 | M2: Min | N2: =MIN(aScoresFB) -> 0 | O2: =MIN(aScoresFB) -> 0 | P2: =MIN(aScoresFB) -> 0 | Q2: =MIN(aScoresFB) -> 0
A3: =uxb_works!A79 -> INDUSTRY_SELECT | B3: =uxb_works!B79 -> 4 | C3: =uxb_works!C79 -> Hospitality Services | G3: 2 | H3: =INDEX($C$9:$F$24,$G3,H$1) -> 2 | I3: 2 | J3: 2 | K3: 2 | M3: Max | N3: =MAX(aScoresFB) -> 100 | O3: =MAX(aScoresFB) -> 100 | P3: =MAX(aScoresFB) -> 100 | Q3: =MAX(aScoresFB) -> 100
A4: =uxb_works!A80 -> DOMAIN_LEVEL_SELECT_MAP | B4: =uxb_works!B80 -> 1 | C4: =uxb_works!C80 -> OVERALL SCORE | G4: 7 | H4: 46 | I4: 46 | J4: 46 | K4: 46
A5: =C3&" for "&C2 -> Hospitality Services for Argentina | G5: 12 | H5: 72 | I5: 72 | J5: 69 | K5: 74
L7: 1 | M7: 2 | N7: 3 | O7: 4 | P7: 5 | Q7: 6 | R7: 7 | S7: 8 | T7: 9 | U7: 10 | V7: 11 | W7: 12 | X7: 13 | Y7: 14 | Z7: 15 | AA7: 16 | AB7: 17 | AC7: 18 | AD7: 19 | AE7: 20 | AF7: 21 | AG7: 22 | AH7: 23 | AI7: 24 | AJ7: 25 | AL7: =L7 -> 1 | AM7: =AL7+1 -> 2 | AN7: =AM7+1 -> 3 | AO7: 4 | AP7: 5 | AQ7: 6 | AR7: 7 | AS7: 8 | AT7: 9 | AU7: 10 | AV7: 11 | AW7: 12 | AX7: 13 | AY7: 14 | AZ7: 15 | BA7: 16 | BB7: 17 | BC7: 18 | BD7: 19 | BE7: 20 | BF7: 21 | BG7: 22 | BH7: 23 | BI7: 24 | BJ7: 25 | BL7: =AL7 -> 1 | BM7: =BL7+1 -> 2 | BN7: =BM7+1 -> 3 | BO7: 4 | BP7: 5 | BQ7: 6 | BR7: 7 | BS7: 8 | BT7: 9 | BU7: 10 | BV7: 11 | BW7: 12 | BX7: 13 | BY7: 14 | BZ7: 15 | CA7: 16 | CB7: 17 | CC7: 18 | CD7: 19 | CE7: 20 | CF7: 21 | CG7: 22 | CH7: 23 | CI7: 24 | CJ7: 25 | CL7: =BL7 -> 1 | CM7: =CL7+1 -> 2 | CN7: =CM7+1 -> 3 | CO7: 4 | CP7: 5 | CQ7: 6 | CR7: 7 | CS7: 8 | CT7: 9 | CU7: 10 | CV7: 11 | CW7: 12 | CX7: 13 | CY7: 14 | CZ7: 15 | DA7: 16 | DB7: 17 | DC7: 18 | DD7: 19 | DE7: 20 | DF7: 21 | DG7: 22 | DH7: 23 | DI7: 24 | DJ7: 25
C8: FB | D8: CG | E8: HS | F8: HT | L8: =C8 -> FB
A9: 1 | B9: =tblIndiSets!C12 -> OVERALL SCORE | C9: =tblIndiSets!B12 -> 1 | D9: =tblIndiSets!H12 -> 1 | E9: =tblIndiSets!N12 -> 1 | F9: =tblIndiSets!R12 -> 1 | I9: =MIN($L9:$AJ9) -> 44.57976069 | J9: =MAX($L9:$SAJ9) -> 68.61473216 | L9: =INDEX(aScoresFB,$C9,L$7) -> 51.34794276 | M9: 60.30904189 | N9: 56.63730202 | O9: 59.20091368 | P9: 58.10357746 | Q9: 62.05318222 | R9: 47.44435974 | S9: 60.57053355 | T9: 65.70559852 | U9: 61.09241539 | V9: =INDEX(aScoresFB,$C9,V$7) -> 48.55259981 | W9: 44.57976069 | X9: 63.85543388 | Y9: 51.87219894 | Z9: 55.61810563 | AA9: 58.71830606 | AB9: 63.23206348 | AC9: 58.5096637 | AD9: 62.3072771 | AE9: 59.08982363 | AF9: 61.97296482 | AG9: 45.11360344 | AH9: 62.69150958 | AI9: 63.58126447 | AJ9: 46.99247298 | AL9: =INDEX(aScoresCG,$D9,AL$7) -> 49.19305218 | AM9: 54.87604602 | AN9: 57.26069633 | AO9: 55.05762418 | AP9: 58.09096921 | AQ9: 58.57906323 | AR9: 48.35226568 | AS9: 59.7463013 | AT9: 64.17204616 | AU9: 63.80119558 | AV9: =INDEX(aScoresCG,$D9,AV$7) -> 48.35932154 | AW9: 40.84162476 | AX9: 56.79208288 | AY9: 47.63861668 | AZ9: 52.88087014 | BA9: 58.83048927 | BB9: 63.84275978 | BC9: 53.68017531 | BD9: 58.5222602 | BE9: 56.66441237 | BF9: 64.01199555 | BG9: 40.88711072 | BH9: 64.52878342 | BI9: 63.56337016 | BJ9: 42.55593172 | BL9: =INDEX(aScoresHS,$E9,BL$7) -> 45.02309238 | BM9: 59.78871485 | BN9: 56.04326665 | BO9: 54.83769554 | BP9: 64.4789072 | BQ9: 56.82909218 | BR9: 44.32386159 | BS9: 60.06739464 | BT9: 61.40343003 | BU9: 61.2998492 | BV9: =INDEX(aScoresHS,$E9,BV$7) -> 42.08060665 | BW9: 38.81441684 | BX9: 59.57132485 | BY9: 52.69968154 | BZ9: 47.68636849 | CA9: 59.56330965 | CB9: 64.80229791 | CC9: 57.70731378 | CD9: 56.21599512 | CE9: 59.81544803 | CF9: 65.6895567 | CG9: 44.0625586 | CH9: 63.62082833 | CI9: 68.61473216 | CJ9: 42.54077493 | CL9: =INDEX(aScoresHT,$F9,CL$7) -> 48.05827274 | CM9: 60.08847513 | CN9: 55.64223398 | CO9: 58.23453182 | CP9: 58.36870766 | CQ9: 62.82639319 | CR9: 47.25142802 | CS9: 63.80237046 | CT9: 61.47106886 | CU9: 64.50126895 | CV9: =INDEX(aScoresHT,$F9,CV$7) -> 48.65393183 | CW9: 46.84753612 | CX9: 58.96584517 | CY9: 57.59529827 | CZ9: 52.76491396 | DA9: 58.90313749 | DB9: 66.12023977 | DC9: 57.23918773 | DD9: 52.73273811 | DE9: 61.01349764 | DF9: 67.56945913 | DG9: 50.5465773 | DH9: 60.0302724 | DI9: 58.8605402 | DJ9: 45.43062794
A10: 2 | B10: =tblIndiSets!C13 -> 1) NATURAL RESOURCE INPUTS | C10: =tblIndiSets!B13 -> 2 | D10: =tblIndiSets!H13 -> 2 | E10: =tblIndiSets!N13 -> 2 | F10: =tblIndiSets!R13 -> 2 | I10: =MIN($L10:$AJ10) -> 35.96032435 | J10: =MAX($L10:$SAJ10) -> 70.92706742 | L10: 45.52068378 | M10: 53.37022761 | N10: 43.99312299 | O10: 62.53507403 | P10: 44.03732644 | Q10: 49.38430843 | R10: 45.15289833 | S10: 51.95927686 | T10: 63.73916295 | U10: 47.62077505 | V10: 35.96032435 | W10: 48.2835461 | X10: 59.64918944 | Y10: 44.332941 | Z10: 53.76005214 | AA10: 43.20594 | AB10: 62.25058092 | AC10: 47.51296837 | AD10: 53.92066043 | AE10: 45.54912676 | AF10: 54.7464751 | AG10: 40.68386881 | AH10: 48.92568405 | AI10: 48.18616082 | AJ10: 48.57825798 | AL10: 51.95464603 | AM10: 41.68844931 | AN10: 48.43532654 | AO10: 65.26630831 | AP10: 49.19127151 | AQ10: 50.279424 | AR10: 47.93091811 | AS10: 56.19317655 | AT10: 63.17923739 | AU10: 56.89580763 | AV10: 34.96245536 | AW10: 45.98372701 | AX10: 48.83986146 | AY10: 39.39905421 | AZ10: 57.89595804 | BA10: 47.54814642 | BB10: 69.65106562 | BC10: 37.68004952 | BD10: 48.61641466 | BE10: 51.16233663 | BF10: 58.09805552 | BG10: 37.43886369 | BH10: 55.27999329 | BI10: 47.87519838 | BJ10: 46.7916292 | BL10: 37.42701877 | BM10: 47.53840809 | BN10: 45.85495911 | BO10: 54.3135362 | BP10: 61.69613844 | BQ10: 38.72897189 | BR10: 37.72877094 | BS10: 54.33294369 | BT10: 52.09440218 | BU10: 49.93098796 | BV10: 28.13596306 | BW10: 41.83913028 | BX10: 52.07472614 | BY10: 35.31757254 | BZ10: 46.40245274 | CA10: 46.06001662 | CB10: 70.92706742 | CC10: 41.18216289 | CD10: 49.1056315 | CE10: 50.77126152 | CF10: 57.77247746 | CG10: 34.62238973 | CH10: 48.83059629 | CI10: 58.09134789 | CJ10: 40.86982135 | CL10: 50.63286299 | CM10: 49.35109859 | CN10: 46.90524376 | CO10: 63.94039116 | CP10: 50.61266856 | CQ10: 56.74052625 | CR10: 50.53955192 | CS10: 56.77479196 | CT10: 55.88834122 | CU10: 52.13204572 | CV10: 44.13358227 | CW10: 53.98325767 | CX10: 45.72965213 | CY10: 51.46172031 | CZ10: 56.57819856 | DA10: 48.32014951 | DB10: 70.35886286 | DC10: 39.94896581 | DD10: 44.14650091 | DE10: 51.72768644 | DF10: 60.23835432 | DG10: 46.84068126 | DH10: 52.20339555 | DI10: 42.10845172 | DJ10: 52.76885482
A11: 3 | B11: =tblIndiSets!C14 -> 1A) Natural Resource Inputs - Use | C11: =tblIndiSets!B14 -> 3 | D11: =tblIndiSets!H14 -> 3 | E11: =tblIndiSets!N14 -> 3 | F11: =tblIndiSets!R14 -> 3 | I11: 37.34939759 | J11: 99.96987952 | L11: 63.24297189 | M11: 79.24698795 | N11: 45 | O11: 69.6686747 | P11: 41.51606426 | Q11: 60.83333333 | R11: 47.91164659 | S11: 44.93975904 | T11: 76.66666667 | U11: 45 | V11: 37.34939759 | W11: 47.73594378 | X11: 80 | Y11: 48.27309237 | Z11: 63.15261044 | AA11: 45 | AB11: 45 | AC11: 80 | AD11: 80 | AE11: 45 | AF11: 44.90963855 | AG11: 46.42821285 | AH11: 45 | AI11: 56.63654618 | AJ11: 46.78463855 | AL11: 85.04417671 | AM11: 48.92369478 | AN11: 57.33333333 | AO11: 78.93975904 | AP11: 58.18473896 | AQ11: 77.33333333 | AR11: 57.31726908 | AS11: 57.14056225 | AT11: 72 | AU11: 64.66666667 | AV11: 42.85140562 | AW11: 49.42168675 | AX11: 51.33333333 | AY11: 51.14056225 | AZ11: 84.75502008 | BA11: 57.33333333 | BB11: 57.33333333 | BC11: 51.33333333 | BD11: 51.33333333 | BE11: 57.33333333 | BF11: 49.71084337 | BG11: 45.23694779 | BH11: 66 | BI11: 58.57028112 | BJ11: 46.37751004 | BL11: 48.24297189 | BM11: 72.58032129 | BN11: 63.33333333 | BO11: 46.33534137 | BP11: 99.84939759 | BQ11: 45.83333333 | BR11: 32.91164659 | BS11: 63.27309237 | BT11: 63.33333333 | BU11: 63.33333333 | BV11: 30.68273092 | BW11: 32.73594378 | BX11: 81.66666667 | BY11: 33.27309237 | BZ11: 48.15261044 | CA11: 63.33333333 | CB11: 63.33333333 | CC11: 73.33333333 | CD11: 73.33333333 | CE11: 63.33333333 | CF11: 63.24297189 | CG11: 31.42821285 | CH11: 63.33333333 | CI11: 99.96987952 | CJ11: 31.78463855 | CL11: 81.48594378 | CM11: 73.4939759 | CN11: 70 | CO11: 77.67068273 | CP11: 56.36546185 | CQ11: 76.66666667 | CR11: 82.48995984 | CS11: 69.87951807 | CT11: 70 | CU11: 70 | CV11: 78.03212851 | CW11: 82.13855422 | CX11: 66.66666667 | CY11: 83.21285141 | CZ11: 81.30522088 | DA11: 70 | DB11: 70 | DC11: 66.66666667 | DD11: 66.66666667 | DE11: 70 | DF11: 69.81927711 | DG11: 79.52309237 | DH11: 78.33333333 | DI11: 48.27309237 | DJ11: 80.23594378
A12: 4 | B12: =tblIndiSets!C15 -> 1B) Natural Resource Inputs - Capacity | C12: =tblIndiSets!B15 -> 11 | D12: =tblIndiSets!H15 -> 11 | E12: =tblIndiSets!N15 -> 11 | F12: =tblIndiSets!R15 -> 11 | I12: 16.66666667 | J12: 97.09352104 | L12: 29.08577315 | M12: 42.50748528 | N12: 26.93192906 | O12: 64.1704674 | P12: 63.61421575 | Q12: 42.55596885 | R12: 39.58538121 | S12: 57.0046102 | T12: 44.34936314 | U12: 42.17149039 | V12: 33.93293436 | W12: 50.95932199 | X12: 34.32857681 | Y12: 46.52804381 | Z12: 33.34357983 | AA12: 27.29128198 | AB12: 96.08284961 | AC12: 16.66666667 | AD12: 29.36548762 | AE12: 36.22750369 | AF12: 62.73894724 | AG12: 38.08786356 | AH12: 38.0620484 | AI12: 34.98611233 | AJ12: 54.03043251 | AL12: 26.87437619 | AM12: 40.071049 | AN12: 23.86613188 | AO12: 61.9792334 | AP12: 59.4540488 | AQ12: 40.57112421 | AR12: 35.69058994 | AS12: 51.88440132 | AT12: 38.66080432 | AU12: 37.80489011 | AV12: 32.76434287 | AW12: 49.23050638 | AX12: 28.4110655 | AY12: 39.92344591 | AZ12: 30.47022156 | BA12: 24.12896504 | BB12: 96.73470074 | BC12: 13.33333333 | BD12: 23.81127268 | BE12: 33.45291833 | BF12: 59.27783647 | BG12: 34.11738919 | BH12: 32.6651897 | BI12: 30.69832369 | BJ12: 52.06178757 | BL12: 25.5390356 | BM12: 39.53923611 | BN12: 21.91792737 | BO12: 58.8751732 | BP12: 56.59866022 | BQ12: 38.24237129 | BR12: 33.39278982 | BS12: 48.15337059 | BT12: 35.44188586 | BU12: 34.89041266 | BV12: 31.28253912 | BW12: 47.90993493 | BX12: 25.24259267 | BY12: 36.75590429 | BZ12: 28.93662917 | CA12: 22.58330262 | CB12: 97.09352104 | CC12: 11.66666667 | CD12: 21.07684857 | CE12: 31.16289043 | CF12: 55.80790962 | CG12: 31.65521533 | CH12: 29.86459965 | CI12: 28.55729017 | CJ12: 49.75023754 | CL12: 26.87437619 | CM12: 40.071049 | CN12: 23.86613188 | CO12: 61.9792334 | CP12: 59.4540488 | CQ12: 40.57112421 | CR12: 35.69058994 | CS12: 51.88440132 | CT12: 38.66080432 | CU12: 37.80489011 | CV12: 32.76434287 | CW12: 49.23050638 | CX12: 28.4110655 | CY12: 39.92344591 | CZ12: 30.47022156 | DA12: 24.12896504 | DB12: 96.73470074 | DC12: 13.33333333 | DD12: 23.81127268 | DE12: 33.45291833 | DF12: 59.27783647 | DG12: 34.11738919 | DH12: 32.6651897 | DI12: 30.69832369 | DJ12: 52.06178757
A13: 5 | B13: =tblIndiSets!C16 -> 1C) Natural Resource Inputs - Commitment to Sustainability | C13: =tblIndiSets!B16 -> 20 | D13: =tblIndiSets!H16 -> 20 | E13: =tblIndiSets!N16 -> 20 | F13: =tblIndiSets!R16 -> 20 | I13: 30.08608338 | J13: 57.28851905 | L13: 40.02066173 | M13: 38.43643542 | N13: 44.31160982 | O13: 45.12364867 | P13: 31.53760004 | Q13: 39.48692667 | R13: 34.81982014 | S13: 40.56160982 | T13: 51.9982357 | U13: 41.81160982 | V13: 30.08608338 | W13: 30.76446424 | X13: 44.28060209 | Y13: 38.96005412 | Z13: 44.64704154 | AA13: 41.78719015 | AB13: 37.88223038 | AC13: 38.84297495 | AD13: 35.97368012 | AE13: 43.06160982 | AF13: 45.56160982 | AG13: 35.91205298 | AH13: 45.23680372 | AI13: 37.28673735 | AJ13: 34.66205298 | AL13: 44.30967642 | AM13: 31.18603902 | AN13: 43.43657016 | AO13: 46.61157501 | AP13: 36.98935051 | AQ13: 39.30967642 | AR13: 31.07891059 | AS13: 39.1793305 | AT13: 57.28851905 | AU13: 52.17834041 | AV13: 30.95296111 | AW13: 29.95827504 | AX13: 39.36494184 | AY13: 23.95564725 | AZ13: 40.55967642 | BA13: 40.93657016 | BB13: 39.68657016 | BC13: 33.7305556 | BD13: 53.92975398 | BE13: 47.18657016 | BF13: 47.71224109 | BG13: 27.70564725 | BH13: 41.38293804 | BI13: 35.61062721 | BJ13: 23.95564725 | BL13: 28.23518332 | BM13: 21.86069333 | BN13: 27.68298273 | BO13: 39.90184999 | BP13: 18.18360549 | BQ13: 30.31851665 | BR13: 13.97038884 | BS13: 26.43298273 | BT13: 27.68298273 | BU13: 25.65265414 | BV13: 15.17670518 | BW13: 8.926705185 | BX13: 20.86377694 | BY13: 11.94213982 | BZ13: 25.31851665 | CA13: 29.34964939 | CB13: 22.26631606 | CC13: 20.84042803 | CD13: 30.0070947 | CE13: 41.43298273 | CF13: 31.43298273 | CG13: 13.92670518 | CH13: 22.84960855 | CI13: 28.19827001 | CJ13: 7.676705185 | CL13: 45.4652569 | CM13: 30.61018893 | CN13: 37.63526229 | CO13: 47.9652569 | CP13: 35.18105122 | CQ13: 46.7152569 | CR13: 26.87901953 | CS13: 41.38526229 | CT13: 49.1471555 | CU13: 40.13526229 | CV13: 19.76929007 | CW13: 22.55842225 | CX13: 30.69467557 | CY13: 30.34091663 | CZ13: 46.7152569 | DA13: 42.63526229 | DB13: 38.88526229 | DC13: 39.38975722 | DD13: 33.70846703 | DE13: 45.13526229 | DF13: 45.13526229 | DG13: 25.05842225 | DH13: 35.56619322 | DI13: 37.13696247 | DJ13: 20.05842225
A14: 6 | B14: =tblIndiSets!C17 -> 1D) Natural Resource Inputs- Regulation | C14: =tblIndiSets!B17 -> 29 | D14: =tblIndiSets!H17 -> 29 | E14: =tblIndiSets!N17 -> 29 | F14: =tblIndiSets!R17 -> 29 | I14: 35.98534437 | J14: 91.72873948 | L14: 40.72689932 | M14: 35.98534437 | N14: 69.54825513 | O14: 72.18339248 | P14: 38.125 | Q14: 50.54611922 | R14: 65.21681125 | S14: 78.92537461 | T14: 85.45953273 | U14: 72.5 | V14: 45.88853838 | W14: 74.30012815 | X14: 79.97929811 | Y14: 40.43556125 | Z14: 81.05988762 | AA14: 67.90881309 | AB14: 86.72873948 | AC14: 37.57038644 | AD14: 63.90578996 | AE14: 66.51232256 | AF14: 79.68641562 | AG14: 39.56010121 | AH14: 82.33980678 | AI14: 68.63438157 | AJ14: 66.87008741 | AL14: 43.22689932 | AM14: 45.98534437 | AN14: 72.04825513 | AO14: 72.18339248 | AP14: 38.125 | AQ14: 35.54611922 | AR14: 70.21681125 | AS14: 81.42537461 | AT14: 87.95953273 | AU14: 75 | AV14: 30.88853838 | AW14: 56.80012815 | AX14: 82.47929811 | AY14: 40.43556125 | AZ14: 73.55988762 | BA14: 70.40881309 | BB14: 91.72873948 | BC14: 52.57038644 | BD14: 68.90578996 | BE14: 69.01232256 | BF14: 82.18641562 | BG14: 42.06010121 | BH14: 84.83980678 | BI14: 68.63438157 | BJ14: 69.37008741 | BL14: 48.22689932 | BM14: 47.65201104 | BN14: 73.71492179 | BO14: 73.85005915 | BP14: 55.625 | BQ14: 37.21278588 | BR14: 75.21681125 | BS14: 78.09204127 | BT14: 84.6261994 | BU14: 76.66666667 | BV14: 32.55520505 | BW14: 79.30012815 | BX14: 79.14596477 | BY14: 59.60222792 | BZ14: 91.05988762 | CA14: 72.07547976 | CB14: 91.72873948 | CC14: 57.57038644 | CD14: 73.90578996 | CE14: 70.67898922 | CF14: 78.85308228 | CG14: 64.56010121 | CH14: 81.50647345 | CI14: 69.46771491 | CJ14: 74.37008741 | CL14: 44.85189932 | CM14: 60.98534437 | CN14: 74.54825513 | CO14: 76.55839248 | CP14: 53.125 | CQ14: 75.54611922 | CR14: 70.21681125 | CS14: 78.30037461 | CT14: 85.45953273 | CU14: 77.5 | CV14: 49.63853838 | CW14: 78.05012815 | CX14: 79.97929811 | CY14: 54.18556125 | CZ14: 90.30988762 | DA14: 72.90881309 | DB14: 86.72873948 | DC14: 41.32038644 | DD14: 68.90578996 | DE14: 71.51232256 | DF14: 79.68641562 | DG14: 52.31010121 | DH14: 82.33980678 | DI14: 72.75938157 | DJ14: 70.62008741
A15: 7 | B15: =tblIndiSets!C18 -> 2) PHYSICAL RESOURCE INFRASTRUCTURE | C15: =tblIndiSets!B18 -> 46 | D15: =tblIndiSets!H18 -> 46 | E15: =tblIndiSets!N18 -> 46 | F15: =tblIndiSets!R18 -> 46 | I15: 30.12486638 | J15: 82.04034039 | L15: 60.76305752 | M15: 67.39998364 | N15: 70.33683237 | O15: 54.58278186 | P15: 71.86456948 | Q15: 76.13640382 | R15: 55.76405846 | S15: 74.70323003 | T15: 74.15680666 | U15: 77.08713046 | V15: 52.18773319 | W15: 30.12486638 | X15: 70.39025705 | Y15: 55.43813711 | Z15: 61.38219401 | AA15: 80.88046094 | AB15: 65.48077758 | AC15: 69.06019244 | AD15: 80.24266696 | AE15: 79.67646273 | AF15: 71.51034299 | AG15: 52.55053358 | AH15: 79.7456769 | AI15: 80.32462552 | AJ15: 43.6085463 | AL15: 52.2007275 | AM15: 61.93619609 | AN15: 61.62607718 | AO15: 44.64085518 | AP15: 68.51630335 | AQ15: 63.64959976 | AR15: 47.2992545 | AS15: 64.54527294 | AT15: 64.56604076 | AU15: 67.67788259 | AV15: 51.51142411 | AW15: 31.72459732 | AX15: 62.43688925 | AY15: 43.02174662 | AZ15: 54.14030019 | BA15: 72.53725326 | BB15: 54.62486888 | BC15: 62.84466529 | BD15: 74.93427699 | BE15: 69.24572452 | BF15: 66.96175709 | BG15: 43.06531618 | BH15: 71.6351471 | BI15: 73.30586423 | BJ15: 42.8944476 | BL15: 61.47625512 | BM15: 63.62393789 | BN15: 59.20895364 | BO15: 58.94576403 | BP15: 72.10674201 | BQ15: 61.74104222 | BR15: 45.16657806 | BS15: 67.83901818 | BT15: 71.19519698 | BU15: 73.62649644 | BV15: 50.30376457 | BW15: 18.21556626 | BX15: 65.64637065 | BY15: 54.31395417 | BZ15: 58.0613139 | CA15: 73.51757385 | CB15: 55.2760742 | CC15: 61.94486993 | CD15: 66.26731045 | CE15: 78.35182841 | CF15: 72.45188538 | CG15: 41.11675737 | CH15: 82.04034039 | CI15: 78.3350373 | CJ15: 39.97015354 | CL15: 53.17462603 | CM15: 66.92625348 | CN15: 58.30460158 | CO15: 55.30894019 | CP15: 64.00753272 | CQ15: 64.32906113 | CR15: 49.73691256 | CS15: 72.59804955 | CT15: 67.17788225 | CU15: 72.23504982 | CV15: 47.39318123 | CW15: 29.30521831 | CX15: 62.80418455 | CY15: 51.90854081 | CZ15: 56.2823496 | DA15: 66.35140047 | DB15: 59.67427477 | DC15: 65.49169303 | DD15: 61.20013565 | DE15: 70.995908 | DF15: 72.81359299 | DG15: 48.11414092 | DH15: 61.46403595 | DI15: 68.48195055 | DJ15: 36.16433405
A16: 8 | B16: =tblIndiSets!C19 -> 2A) Physical Resource Infrastructure - Use | C16: =tblIndiSets!B19 -> 47 | D16: =tblIndiSets!H19 -> 47 | E16: =tblIndiSets!N19 -> 47 | F16: =tblIndiSets!R19 -> 47 | I16: 25.83295156 | J16: 91.36581987 | L16: 67.92438203 | M16: 72.4570961 | N16: 79.18142583 | O16: 66.32087335 | P16: 58.7287019 | Q16: 73.23462317 | R16: 61.33268404 | S16: 78.0473239 | T16: 75.53373331 | U16: 86.16322989 | V16: 39.57175469 | W16: 25.83295156 | X16: 73.89597252 | Y16: 52.07358901 | Z16: 65.39946589 | AA16: 78.71560269 | AB16: 71.05936451 | AC16: 90.54340698 | AD16: 90.75727974 | AE16: 77.33275065 | AF16: 76.82002759 | AG16: 62.28315717 | AH16: 90.27336257 | AI16: 75.45675318 | AJ16: 37.55503024 | AL16: 57.46803345 | AM16: 60.52806103 | AN16: 59.49433136 | AO16: 46.32983472 | AP16: 46.5495826 | AQ16: 54.30818966 | AR16: 41.65889066 | AS16: 53.29905796 | AT16: 48.37569141 | AU16: 66.90405308 | AV16: 36.01797453 | AW16: 17.4227318 | AX16: 54.8562975 | AY16: 24.41111307 | AZ16: 48.4507361 | BA16: 56.23528866 | BB16: 43.19400738 | BC16: 84.85258799 | BD16: 80.99785452 | BE16: 51.93019284 | BF16: 54.81326438 | BG16: 56.30237668 | BH16: 71.38382365 | BI16: 56.6819813 | BJ16: 44.75397877 | BL16: 62.14241671 | BM16: 77.30400479 | BN16: 77.61264314 | BO16: 63.90848275 | BP16: 56.81367542 | BQ16: 66.87687038 | BR16: 57.09276731 | BS16: 76.09371227 | BT16: 71.55171261 | BU16: 80.40596764 | BV16: 31.69491335 | BW16: 20.90373937 | BX16: 68.12679104 | BY16: 49.03647847 | BZ16: 58.65042017 | CA16: 74.29794284 | CB16: 63.02424183 | CC16: 91.36581987 | CD16: 86.50223341 | CE16: 70.14123396 | CF16: 70.69590812 | CG16: 58.99767871 | CH16: 89.32523931 | CI16: 72.23446122 | CJ16: 35.22398461 | CL16: 68.91211398 | CM16: 72.26283116 | CN16: 74.97271419 | CO16: 67.98255894 | CP16: 68.09123316 | CQ16: 75.37609312 | CR16: 54.33252624 | CS16: 72.05232237 | CT16: 73.56831468 | CU16: 82.39966773 | CV16: 47.48363079 | CW16: 39.70256831 | CX16: 71.06575465 | CY16: 62.38772231 | CZ16: 66.69621192 | DA16: 72.89693713 | DB16: 68.40339174 | DC16: 87.36369987 | DD16: 76.60593287 | DE16: 75.28344582 | DF16: 66.36131862 | DG16: 61.68665538 | DH16: 75.19280991 | DI16: 60.53605891 | DJ16: 41.13817859
A17: 9 | B17: =tblIndiSets!C20 -> 2B) Physical Resource Infrastructure - Capacity | C17: =tblIndiSets!B20 -> 52 | D17: =tblIndiSets!H20 -> 52 | E17: =tblIndiSets!N20 -> 52 | F17: =tblIndiSets!R20 -> 54 | I17: 20 | J17: 100 | L17: 67.14285714 | M17: 90 | N17: 90 | O17: 51.46825397 | P17: 89.36507937 | Q17: 76.82539683 | R17: 68.21428571 | S17: 87.5 | T17: 100 | U17: 95 | V17: 41.26984127 | W17: 20 | X17: 87.5 | Y17: 76.78571429 | Z17: 62.61904762 | AA17: 97.5 | AB17: 92.5 | AC17: 100 | AD17: 77.38095238 | AE17: 92.5 | AF17: 97.5 | AG17: 58.01587302 | AH17: 85 | AI17: 87.46031746 | AJ17: 52.38095238 | AL17: 58.57142857 | AM17: 86.66666667 | AN17: 86.66666667 | AO17: 40.31746032 | AP17: 86.34920635 | AQ17: 71.74603175 | AR17: 69.52380952 | AS17: 83.33333333 | AT17: 100 | AU17: 93.33333333 | AV17: 37.3015873 | AW17: 26.66666667 | AX17: 83.33333333 | AY17: 73.80952381 | AZ17: 60.47619048 | BA17: 96.66666667 | BB17: 90 | BC17: 100 | BD17: 76.19047619 | BE17: 90 | BF17: 96.66666667 | BG17: 49.84126984 | BH17: 80 | BI17: 85.3968254 | BJ17: 42.85714286 | BL17: 63.61176702 | BM17: 83.84986226 | BN17: 78.54683196 | BO17: 53.41073068 | BP17: 76.13472386 | BQ17: 69.48215925 | BR17: 59.89767808 | BS17: 81.74931129 | BT17: 91.4600551 | BU17: 84.22865014 | BV17: 35.05837597 | BW17: 8.333333333 | BX17: 91.66666667 | BY17: 65.34336875 | BZ17: 56.18358914 | CA17: 82.33471074 | CB17: 81.64600551 | CC17: 85.95041322 | CD17: 77.90731995 | CE17: 83.16115702 | CF17: 81.9214876 | CG17: 55.83595697 | CH17: 77.89256198 | CI17: 74.9934409 | CJ17: 50.32467532 | CL17: 67.26190476 | CM17: 93.75 | CN17: 91.66666667 | CO17: 63.29365079 | CP17: 92.95634921 | CQ17: 81.4484127 | CR17: 63.39285714 | CS17: 91.66666667 | CT17: 100 | CU17: 95.83333333 | CV17: 39.08730159 | CW17: 14.58333333 | CX17: 91.66666667 | CY17: 72.02380952 | CZ17: 67.85714286 | DA17: 97.91666667 | DB17: 95.83333333 | DC17: 91.66666667 | DD17: 73.80952381 | DE17: 93.75 | DF17: 97.91666667 | DG17: 66.26984127 | DH17: 79.16666667 | DI17: 88.49206349 | DJ17: 55.05952381
A18: 10 | B18: =tblIndiSets!C21 -> 2C) Physical Resource Infrastructure - Sustainability Initiatives | C18: =tblIndiSets!B21 -> 61 | D18: =tblIndiSets!H21 -> 61 | E18: =tblIndiSets!N21 -> 58 | F18: =tblIndiSets!R21 -> 63 | I18: 19.06666667 | J18: 84.44444444 | L18: 45.64444444 | M18: 33.6 | N18: 37.48888889 | O18: 39.53333333 | P18: 30 | Q18: 49.71111111 | R18: 58.88888889 | S18: 40.91111111 | T18: 51.46666667 | U18: 56.2 | V18: 39.71111111 | W18: 33.88888889 | X18: 55.17777778 | Y18: 61.17777778 | Z18: 31.37777778 | AA18: 60.53333333 | AB18: 19.06666667 | AC18: 49.13333333 | AD18: 35.08888889 | AE18: 65.73333333 | AF18: 35.82222222 | AG18: 55.64444444 | AH18: 51 | AI18: 51.17777778 | AJ18: 31.66666667 | AL18: 36.94444444 | AM18: 38.88888889 | AN18: 38.88888889 | AO18: 43.23333333 | AP18: 43.23333333 | AQ18: 29.16666667 | AR18: 44.72222222 | AS18: 42.77777778 | AT18: 50.26666667 | AU18: 48.03333333 | AV18: 47.57777778 | AW18: 42.48888889 | AX18: 54.9 | AY18: 42.77777778 | AZ18: 32.31111111 | BA18: 58.33333333 | BB18: 23.33333333 | BC18: 36.94444444 | BD18: 38.88888889 | BE18: 58.33333333 | BF18: 57.58888889 | BG18: 31.11111111 | BH18: 56.1 | BI18: 53.41111111 | BJ18: 33.05555556 | BL18: 65 | BM18: 31.11111111 | BN18: 19.44444444 | BO18: 65 | BP18: 68.88888889 | BQ18: 23.33333333 | BR18: 25.27777778 | BS18: 36.94444444 | BT18: 59.16666667 | BU18: 66.94444444 | BV18: 61.11111111 | BW18: 7.777777778 | BX18: 40.83333333 | BY18: 65 | BZ18: 49.44444444 | CA18: 61.11111111 | CB18: 17.5 | CC18: 35 | CD18: 7.777777778 | CE18: 84.44444444 | CF18: 76.66666667 | CG18: 11.66666667 | CH18: 82.5 | CI18: 76.66666667 | CJ18: 27.22222222 | CL18: 26.66666667 | CM18: 36.66666667 | CN18: 3.333333333 | CO18: 36.66666667 | CP18: 23.33333333 | CQ18: 31.2 | CR18: 41.66666667 | CS18: 53.33333333 | CT18: 27.86666667 | CU18: 41.2 | CV18: 58.33333333 | CW18: 30 | CX18: 26.2 | CY18: 26.66666667 | CZ18: 36.66666667 | DA18: 23.33333333 | DB18: 5 | DC18: 25 | DD18: 30 | DE18: 45.73333333 | DF18: 59.53333333 | DG18: 18.33333333 | DH18: 23.33333333 | DI18: 63.33333333 | DJ18: 6.666666667
A19: 11 | B19: =tblIndiSets!C22 -> 2D) Physical Resource Infrastructure - Regulation | C19: =tblIndiSets!B22 -> 67 | D19: =tblIndiSets!H22 -> 67 | E19: =tblIndiSets!N22 -> 64 | F19: =tblIndiSets!R22 -> 69 | I19: 0 | J19: 100 | L19: =INDEX(aScoresFB,$C19,L$7) -> 50 | M19: 50 | N19: 50 | O19: 50 | P19: 100 | Q19: 100 | R19: 25 | S19: 75 | T19: 50 | U19: 50 | V19: =INDEX(aScoresFB,$C19,V$7) -> 100 | W19: 50 | X19: 50 | Y19: 25 | Z19: 75 | AA19: 75 | AB19: 50 | AC19: 0 | AD19: 100 | AE19: 75 | AF19: 50 | AG19: 25 | AH19: 75 | AI19: 100 | AJ19: 50 | AL19: =INDEX(aScoresCG,$D19,AL$7) -> 50 | AM19: 50 | AN19: 50 | AO19: 50 | AP19: 100 | AQ19: 100 | AR19: 25 | AS19: 75 | AT19: 50 | AU19: 50 | AV19: =INDEX(aScoresCG,$D19,AV$7) -> 100 | AW19: 50 | AX19: 50 | AY19: 25 | AZ19: 75 | BA19: 75 | BB19: 50 | BC19: 0 | BD19: 100 | BE19: 75 | BF19: 50 | BG19: 25 | BH19: 75 | BI19: 100 | BJ19: 50 | BL19: =INDEX(aScoresHS,$E19,BL$7) -> 50 | BM19: 50 | BN19: 50 | BO19: 50 | BP19: 100 | BQ19: 100 | BR19: 25 | BS19: 75 | BT19: 50 | BU19: 50 | BV19: =INDEX(aScoresHS,$E19,BV$7) -> 100 | BW19: 50 | BX19: 50 | BY19: 25 | BZ19: 75 | CA19: 75 | CB19: 50 | CC19: 0 | CD19: 100 | CE19: 75 | CF19: 50 | CG19: 25 | CH19: 75 | CI19: 100 | CJ19: 50 | CL19: =INDEX(aScoresHT,$F19,CL$7) -> 41.25 | CM19: 57.5 | CN19: 53.75 | CO19: 48.75 | CP19: 70 | CQ19: 67.5 | CR19: 30 | CS19: 72.5 | CT19: 58.75 | CU19: 61.25 | CV19: =INDEX(aScoresHT,$F19,CV$7) -> 48.75 | CW19: 38.75 | CX19: 53.75 | CY19: 36.25 | CZ19: 48.75 | DA19: 66.25 | DB19: 65 | DC19: 41.25 | DD19: 61.25 | DE19: 63.75 | DF19: 62.5 | DG19: 37.5 | DH19: 66.25 | DI19: 57.5 | DJ19: 40
A20: 12 | B20: =tblIndiSets!C23 -> 3) LABOUR RESOURCES | C20: =tblIndiSets!B23 -> 72 | D20: =tblIndiSets!H23 -> 72 | E20: =tblIndiSets!N23 -> 69 | F20: =tblIndiSets!R23 -> 74 | I20: 42.17994288 | J20: 70.49999415 | L20: 49.70250664 | M20: 62.46985251 | N20: 59.79667706 | O20: 59.37349836 | P20: 63.0975868 | Q20: 64.86179234 | R20: 42.17994288 | S20: 57.91951265 | T20: 59.87630446 | U20: 63.05988744 | V20: 61.70716703 | W20: 54.09627445 | X20: 62.92893663 | Y20: 58.35860469 | Z20: 52.3314219 | AA20: 57.23930594 | AB20: 62.29199279 | AC20: 62.62139539 | AD20: 55.55404281 | AE20: 56.55744702 | AF20: 62.07090627 | AG20: 43.58298614 | AH20: 63.99177632 | AI20: 67.3647083 | AJ20: 48.26201966 | AL20: 42.46223816 | AM20: 62.02473376 | AN20: 62.46401676 | AO20: 55.30038987 | AP20: 56.31106003 | AQ20: 62.34634971 | AR20: 50.07235089 | AS20: 58.29281325 | AT20: 64.87066271 | AU20: 67.33468002 | AV20: 60.31154575 | AW20: 45.47903747 | AX20: 59.48406711 | AY20: 62.63778797 | AZ20: 45.56059919 | BA20: 56.00199794 | BB20: 67.82060902 | BC20: 61.65508377 | BD20: 50.93172707 | BE20: 48.40530323 | BF20: 67.47020379 | BG20: 42.36882589 | BH20: 67.02828094 | BI20: 70.49999415 | BJ20: 37.21934946 | BL20: 38.38027553 | BM20: 66.10002765 | BN20: 61.31023205 | BO20: 52.14976367 | BP20: 60.84510767 | BQ20: 66.72021985 | BR20: 48.63814222 | BS20: 58.53951519 | BT20: 61.0413757 | BU20: 60.58150969 | BV20: 46.37172091 | BW20: 51.9950197 | BX20: 60.63748954 | BY20: 64.52555883 | BZ20: 40.86809625 | CA20: 59.22508127 | CB20: 67.35338855 | CC20: 66.92300983 | CD20: 54.01028133 | CE20: 52.69630262 | CF20: 66.55561963 | CG20: 53.35203618 | CH20: 60.89886831 | CI20: 69.21704151 | CJ20: 45.72195616 | CL20: 41.2218785 | CM20: 63.55478463 | CN20: 61.04189852 | CO20: 55.76318275 | CP20: 60.25067569 | CQ20: 66.90034786 | CR20: 42.11933163 | CS20: 62.2307255 | CT20: 61.36077043 | CU20: 68.62166215 | CV20: 53.79268751 | CW20: 56.0978439 | CX20: 67.31949286 | CY20: 68.1022631 | CZ20: 46.24871817 | DA20: 61.68955973 | DB20: 68.08232148 | DC20: 65.2727136 | DD20: 52.83837337 | DE20: 60.3942984 | DF20: 69.42454443 | DG20: 56.00287279 | DH20: 65.71303977 | DI20: 65.19892076 | DJ20: 47.1444653
A21: 13 | B21: =tblIndiSets!C24 -> 3A) Labour Resources - Use | C21: =tblIndiSets!B24 -> 73 | D21: =tblIndiSets!H24 -> 73 | E21: =tblIndiSets!N24 -> 70 | F21: =tblIndiSets!R24 -> 75 | I21: 23.15238159 | J21: 83.16497677 | L21: 49.5648511 | M21: 64.0683487 | N21: 65.7724924 | O21: 63.67722408 | P21: 71.37991684 | Q21: 56.5787079 | R21: 42.23980973 | S21: 65.50918209 | T21: 64.50561543 | U21: 65.3197932 | V21: 60.61079159 | W21: 34.8320684 | X21: 60.16574512 | Y21: 44.60863834 | Z21: 54.75368398 | AA21: 65.95071753 | AB21: 65.73082415 | AC21: 67.64946668 | AD21: 52.40340944 | AE21: 60.4707956 | AF21: 66.57266427 | AG21: 23.15238159 | AH21: 64.80182914 | AI21: 64.27216866 | AJ21: 40.46497789 | AL21: 50.45525761 | AM21: 67.5893024 | AN21: 69.29303966 | AO21: 61.19681318 | AP21: 76.87992389 | AQ21: 58.42286275 | AR21: 42.18166095 | AS21: 69.11115603 | AT21: 68.35652927 | AU21: 69.19736879 | AV21: 57.4588408 | AW21: 26.8653013 | AX21: 63.34842876 | AY21: 44.99493372 | AZ21: 55.58949811 | BA21: 70.00955182 | BB21: 69.48294633 | BC21: 71.76710109 | BD21: 54.08636797 | BE21: 62.98422791 | BF21: 70.58130193 | BG21: 19.17516246 | BH21: 68.84293358 | BI21: 66.80225507 | BJ21: 32.0062196 | BL21: 21.6395282 | BM21: 72.01699514 | BN21: 77.81051012 | BO21: 51.37835254 | BP21: 83.16497677 | BQ21: 57.60972769 | BR21: 41.62349858 | BS21: 79.71858542 | BT21: 75.16570915 | BU21: 75.06157512 | BV21: 35.23352972 | BW21: 37.74331249 | BX21: 70.52159089 | BY21: 61.70489216 | BZ21: 55.66357029 | CA21: 76.87356112 | CB21: 77.87776308 | CC21: 78.3287644 | CD21: 58.73198319 | CE21: 71.51322928 | CF21: 80.37262525 | CG21: 58.21626563 | CH21: 74.75381177 | CI21: 73.62646706 | CJ21: 54.49212134 | CL21: 23.87027725 | CM21: 67.54153497 | CN21: 72.95184881 | CO21: 56.16454559 | CP21: 75.79802486 | CQ21: 55.87350192 | CR21: 42.38864872 | CS21: 74.50100339 | CT21: 70.1575744 | CU21: 70.12465856 | CV21: 42.30564019 | CW21: 46.03822158 | CX21: 66.86890052 | CY21: 59.75381277 | CZ21: 55.41289779 | DA21: 71.57330012 | DB21: 72.53270666 | DC21: 72.75264484 | DD21: 56.93987595 | DE21: 68.13936646 | DF21: 74.64250815 | DG21: 58.59446143 | DH21: 69.508303 | DI21: 70.29852361 | DJ21: 62.05791789
A22: 14 | B22: =tblIndiSets!C25 -> 3B) Labour Resources - Capacity | C22: =tblIndiSets!B25 -> 79 | D22: =tblIndiSets!H25 -> 79 | E22: =tblIndiSets!N25 -> 76 | F22: =tblIndiSets!R25 -> 81 | I22: 36.33362489 | J22: 79.04301806 | L22: 53.14960252 | M22: 52.1868698 | N22: 42.88409966 | O22: 60.2930229 | P22: 51.37540899 | Q22: 75.96902765 | R22: 49.86866957 | S22: 38.91072717 | T22: 44.99339035 | U22: 54.83175436 | V22: 61.92849038 | W22: 67.04740035 | X22: 53.30772613 | Y22: 74.88279185 | Z22: 36.33362489 | AA22: 40.40737612 | AB22: 53.07516897 | AC22: 59.18857413 | AD22: 61.53949424 | AE22: 46.03604807 | AF22: 51.57518127 | AG22: 60.38663732 | AH22: 43.01718823 | AI22: 55.32814948 | AJ22: 54.95531307 | AL22: 49.43831387 | AM22: 52.80614927 | AN22: 41.01582092 | AO22: 60.27918519 | AP22: 49.77238578 | AQ22: 74.61311148 | AR22: 48.42839316 | AS22: 38.09321965 | AT22: 43.51090677 | AU22: 52.78107606 | AV22: 59.59150619 | AW22: 64.97420586 | AX22: 50.2226233 | AY22: 72.97794834 | AZ22: 33.62776236 | BA22: 38.92179382 | BB22: 50.59367129 | BC22: 62.46640194 | BD22: 61.88192349 | BE22: 44.7186397 | BF22: 49.99989768 | BG22: 57.38600617 | BH22: 41.92043293 | BI22: 53.40256846 | BJ22: 53.43513318 | BL22: 47.42586673 | BM22: 60.22731383 | BN22: 46.13308872 | BO22: 61.36033434 | BP22: 50.67030782 | BQ22: 77.28696585 | BR22: 50.77101055 | BS22: 40.56584652 | BT22: 43.51669294 | BU22: 49.48540483 | BV22: 53.33290207 | BW22: 62.79821146 | BX22: 51.16521405 | BY22: 66.4495705 | BZ22: 26.77070896 | CA22: 42.38354702 | CB22: 53.21373142 | CC22: 64.0166498 | CD22: 57.79650372 | CE22: 43.37087376 | CF22: 50.80358202 | CG22: 54.6781475 | CH22: 42.82979219 | CI22: 59.05919797 | CJ22: 43.18783019 | CL22: 52.44783481 | CM22: 53.0935122 | CN22: 43.36081373 | CO22: 66.22319301 | CP22: 50.80647982 | CQ22: 76.79882645 | CR22: 52.32694398 | CS22: 32.63216709 | CT22: 45.40948871 | CU22: 53.88043668 | CV22: 65.84207852 | CW22: 73.36944253 | CX22: 57.03189199 | CY22: 79.04301806 | CZ22: 33.60885799 | DA22: 40.57260134 | DB22: 53.68101539 | DC22: 65.47117171 | DD22: 56.88728905 | DE22: 45.99635056 | DF22: 51.00410928 | DG22: 64.59968025 | DH22: 41.87895704 | DI22: 55.45637776 | DJ22: 57.84874357
A23: 15 | B23: =tblIndiSets!C26 -> 3C) Labour Resources - Sustainability Initiatives | C23: =tblIndiSets!B26 -> 92 | D23: =tblIndiSets!H26 -> 92 | E23: =tblIndiSets!N26 -> 89 | F23: =tblIndiSets!R26 -> 94 | I23: 18.20455142 | J23: 84.69711372 | L23: 18.20455142 | M23: 71.48801906 | N23: 59.40716546 | O23: 50.03933729 | P23: 44.67995473 | Q23: 57.49953604 | R23: 29.93836343 | S23: 48.7872051 | T23: 63.11992413 | U23: 62.76733454 | V23: 67.62236264 | W23: 72.42803781 | X23: 81.41294218 | Y23: 52.9827359 | Z23: 63.69837857 | AA23: 46.89561312 | AB23: 55.75769098 | AC23: 52.36117652 | AD23: 49.45111935 | AE23: 46.10124978 | AF23: 55.31946265 | AG23: 46.70113882 | AH23: 80.48430878 | AI23: 70.69558506 | AJ23: 55.19566762 | AL23: 18.20455142 | AM23: 63.48801906 | AN23: 71.40716546 | AO23: 46.03933729 | AP23: 32.67995473 | AQ23: 53.49953604 | AR23: 61.93836343 | AS23: 56.7872051 | AT23: 79.11992413 | AU23: 78.76733454 | AV23: 64.62236264 | AW23: 44.42803781 | AX23: 61.41294218 | AY23: 72.9827359 | AZ23: 35.69837857 | BA23: 50.89561312 | BB23: 81.09102431 | BC23: 48.36117652 | BD23: 37.45111935 | BE23: 26.10124978 | BF23: 79.31946265 | BG23: 46.70113882 | BH23: 80.48430878 | BI23: 78.69558506 | BJ23: 19.19566762 | BL23: 22.75568928 | BM23: 72.69335716 | BN23: 63.42562349 | BO23: 27.54917162 | BP23: 30.84994342 | BQ23: 56.04108672 | BR23: 60.75628762 | BS23: 49.31733971 | BT23: 75.56657183 | BU23: 56.79250151 | BV23: 37.86128663 | BW23: 51.36838059 | BX23: 63.43284439 | BY23: 69.56175321 | BZ23: 24.62297321 | CA23: 61.39729417 | CB23: 84.69711372 | CC23: 52.11813731 | CD23: 35.14723253 | CE23: 22.62656223 | CF23: 80.81599498 | CG23: 38.37642353 | CH23: 63.93871931 | CI23: 66.70281466 | CJ23: 23.99458452 | CL23: 18.20455142 | CM23: 63.48801906 | CN23: 47.40716546 | CO23: 34.03933729 | CP23: 24.67995473 | CQ23: 66.49953604 | CR23: 33.93836343 | CS23: 63.7872051 | CT23: 55.11992413 | CU23: 78.76733454 | CV23: 47.62236264 | CW23: 44.42803781 | CX23: 77.41294218 | CY23: 68.9827359 | CZ23: 35.69837857 | DA23: 56.89561312 | DB23: 67.75769098 | DC23: 52.36117652 | DD23: 33.45111935 | DE23: 54.10124978 | DF23: 75.31946265 | DG23: 46.70113882 | DH23: 76.48430878 | DI23: 50.69558506 | DJ23: 19.19566762
A24: 16 | B24: =tblIndiSets!C27 -> 3D) Labour Resources - Regulation | C24: =tblIndiSets!B27 -> 95 | D24: =tblIndiSets!H27 -> 95 | E24: =tblIndiSets!N27 -> 92 | F24: =tblIndiSets!R27 -> 97 | I24: 39.72327044 | J24: 90 | L24: 68.39622642 | M24: 68.33333333 | N24: 75 | O24: 57.46331237 | P24: 80 | Q24: 68.21802935 | R24: 39.72327044 | S24: 80 | T24: 71.66666667 | U24: 71.66666667 | V24: 58.85744235 | W24: 54.63312369 | X24: 68.33333333 | Y24: 61.66666667 | Z24: 63.5639413 | AA24: 75 | AB24: 75 | AC24: 66.66666667 | AD24: 56.66666667 | AE24: 73.33333333 | AF24: 75 | AG24: 51.79245283 | AH24: 81.66666667 | AI24: 88.33333333 | AJ24: 46.66666667 | AL24: 63.36477987 | AM24: 63.33333333 | AN24: 66.66666667 | AO24: 53.73165618 | AP24: 73.33333333 | AQ24: 67.44234801 | AR24: 44.86163522 | AS24: 73.33333333 | AT24: 65 | AU24: 65 | AV24: 58.59538784 | AW24: 52.31656184 | AX24: 63.33333333 | AY24: 60 | AZ24: 65.11530398 | BA24: 66.66666667 | BB24: 66.66666667 | BC24: 66.66666667 | BD24: 53.33333333 | BE24: 70 | BF24: 66.66666667 | BG24: 55.06289308 | BH24: 78.33333333 | BI24: 90 | BJ24: 56.66666667 | BL24: 63.36477987 | BM24: 63.33333333 | BN24: 66.66666667 | BO24: 53.73165618 | BP24: 73.33333333 | BQ24: 67.44234801 | BR24: 44.86163522 | BS24: 73.33333333 | BT24: 65 | BU24: 65 | BV24: 58.59538784 | BW24: 52.31656184 | BX24: 63.33333333 | BY24: 60 | BZ24: 65.11530398 | CA24: 66.66666667 | CB24: 66.66666667 | CC24: 66.66666667 | CD24: 53.33333333 | CE24: 70 | CF24: 66.66666667 | CG24: 55.06289308 | CH24: 78.33333333 | CI24: 90 | CJ24: 56.66666667 | CL24: 73.42767296 | CM24: 73.33333333 | CN24: 83.33333333 | CO24: 61.19496855 | CP24: 86.66666667 | CQ24: 68.99371069 | CR24: 34.58490566 | CS24: 86.66666667 | CT24: 78.33333333 | CU24: 78.33333333 | CV24: 59.11949686 | CW24: 56.94968553 | CX24: 73.33333333 | CY24: 63.33333333 | CZ24: 62.01257862 | DA24: 83.33333333 | DB24: 83.33333333 | DC24: 66.66666667 | DD24: 60 | DE24: 76.66666667 | DF24: 83.33333333 | DG24: 48.52201258 | DH24: 85 | DI24: 86.66666667 | DJ24: 36.66666667
B26: Min | C26: =MIN(C32:C56) -> 44.57976069 | D26: =MIN(D32:D56) -> 40.84162476 | E26: 38.81441684 | F26: 45.43062794 | H26: =MIN(C26:F26) -> 38.81441684 | I26: =MIN(I9:I24) -> 0 | J26: =MAX(J9:J24) -> 100
B27: Max | C27: =MAX(C32:C56) -> 65.70559852 | D27: =MAX(D32:D56) -> 64.52878342 | E27: 68.61473216 | F27: 67.56945913 | H27: =MAX(C27:F27) -> 68.61473216
C29: 1 | D29: 2 | E29: 3 | F29: 4
C30: 1 | D30: 1 | E30: 1 | F30: 1
C31: FB | D31: CG | E31: HS | F31: HT
A32: =tblTerritories!A3 -> 1 | B32: =tblTerritories!C3 -> Argentina | C32: =INDEX(aScoresFB,C$30,$A32) -> 51.34794276 | D32: =INDEX(aScoresCG,D$30,$A32) -> 49.19305218 | E32: =INDEX(aScoresHS,E$30,$A32) -> 45.02309238 | F32: =INDEX(aScoresHT,F$30,$A32) -> 48.05827274
A33: =tblTerritories!A4 -> 2 | B33: =tblTerritories!C4 -> Australia | C33: 60.30904189 | D33: 54.87604602 | E33: 59.78871485 | F33: 60.08847513
A34: =tblTerritories!A5 -> 3 | B34: =tblTerritories!C5 -> Belgium | C34: 56.63730202 | D34: 57.26069633 | E34: 56.04326665 | F34: 55.64223398
A35: =tblTerritories!A6 -> 4 | B35: =tblTerritories!C6 -> Brazil | C35: 59.20091368 | D35: 55.05762418 | E35: 54.83769554 | F35: 58.23453182
A36: =tblTerritories!A7 -> 5 | B36: =tblTerritories!C7 -> Canada | C36: 58.10357746 | D36: 58.09096921 | E36: 64.4789072 | F36: 58.36870766
A37: =tblTerritories!A8 -> 6 | B37: =tblTerritories!C8 -> Chile | C37: 62.05318222 | D37: 58.57906323 | E37: 56.82909218 | F37: 62.82639319
A38: =tblTerritories!A9 -> 7 | B38: =tblTerritories!C9 -> China | C38: 47.44435974 | D38: 48.35226568 | E38: 44.32386159 | F38: 47.25142802
A39: =tblTerritories!A10 -> 8 | B39: =tblTerritories!C10 -> Finland | C39: 60.57053355 | D39: 59.7463013 | E39: 60.06739464 | F39: 63.80237046
A40: =tblTerritories!A11 -> 9 | B40: =tblTerritories!C11 -> France | C40: 65.70559852 | D40: 64.17204616 | E40: 61.40343003 | F40: 61.47106886
A41: =tblTerritories!A12 -> 10 | B41: =tblTerritories!C12 -> Germany | C41: 61.09241539 | D41: 63.80119558 | E41: 61.2998492 | F41: 64.50126895
A42: =tblTerritories!A13 -> 11 | B42: =tblTerritories!C13 -> India | C42: 48.55259981 | D42: 48.35932154 | E42: 42.08060665 | F42: 48.65393183
A43: =tblTerritories!A14 -> 12 | B43: =tblTerritories!C14 -> Indonesia | C43: 44.57976069 | D43: 40.84162476 | E43: 38.81441684 | F43: 46.84753612
A44: =tblTerritories!A15 -> 13 | B44: =tblTerritories!C15 -> Japan | C44: 63.85543388 | D44: 56.79208288 | E44: 59.57132485 | F44: 58.96584517
A45: =tblTerritories!A16 -> 14 | B45: =tblTerritories!C16 -> Malaysia | C45: 51.87219894 | D45: 47.63861668 | E45: 52.69968154 | F45: 57.59529827
A46: =tblTerritories!A17 -> 15 | B46: =tblTerritories!C17 -> Mexico | C46: 55.61810563 | D46: 52.88087014 | E46: 47.68636849 | F46: 52.76491396
A47: =tblTerritories!A18 -> 16 | B47: =tblTerritories!C18 -> Netherlands | C47: 58.71830606 | D47: 58.83048927 | E47: 59.56330965 | F47: 58.90313749
A48: =tblTerritories!A19 -> 17 | B48: =tblTerritories!C19 -> Norway | C48: 63.23206348 | D48: 63.84275978 | E48: 64.80229791 | F48: 66.12023977
A49: =tblTerritories!A20 -> 18 | B49: =tblTerritories!C20 -> Singapore | C49: 58.5096637 | D49: 53.68017531 | E49: 57.70731378 | F49: 57.23918773
A50: =tblTerritories!A21 -> 19 | B50: =tblTerritories!C21 -> South Korea | C50: 62.3072771 | D50: 58.5222602 | E50: 56.21599512 | F50: 52.73273811
A51: =tblTerritories!A22 -> 20 | B51: =tblTerritories!C22 -> Spain | C51: 59.08982363 | D51: 56.66441237 | E51: 59.81544803 | F51: 61.01349764
A52: =tblTerritories!A23 -> 21 | B52: =tblTerritories!C23 -> Sweden | C52: 61.97296482 | D52: 64.01199555 | E52: 65.6895567 | F52: 67.56945913
A53: =tblTerritories!A24 -> 22 | B53: =tblTerritories!C24 -> Thailand | C53: 45.11360344 | D53: 40.88711072 | E53: 44.0625586 | F53: 50.5465773
A54: =tblTerritories!A25 -> 23 | B54: =tblTerritories!C25 -> United Kingdom | C54: 62.69150958 | D54: 64.52878342 | E54: 63.62082833 | F54: 60.0302724
A55: =tblTerritories!A26 -> 24 | B55: =tblTerritories!C26 -> United States | C55: 63.58126447 | D55: 63.56337016 | E55: 68.61473216 | F55: 58.8605402
A56: =tblTerritories!A27 -> 25 | B56: =tblTerritories!C27 -> Vietnam | C56: 46.99247298 | D56: 42.55593172 | E56: 42.54077493 | F56: 45.43062794

Sheet Summary (hidden)
BA1: 3 | BB1: 0
B6: =uxb_works!C80 -> OVERALL SCORE
B7: =uxb_works!C79 -> Hospitality Services | I7: =IF(uxb_works!$B$6=1,"No Country Highlighted","SELECTED COUNTRY") -> SELECTED COUNTRY
I8: =iMap_Rank!C9 -> Click on map or select from the country highlight drop down box
I9: =TEXT(iMap_Rank!D9,iMap_Rank!Q2) -> 
B39: BEST ENVIRONMENT | E39: MODERATE ENVIRONMENT | H39: NEEDS IMPROVEMENT
B40: =iMap_Rank!AQ15 -> Score 58.8 to 68.6 | E40: =iMap_Rank!AT15 -> Score 48.8 to 58.7 | H40: =iMap_Rank!AW15 -> Score 38.8 to 48.7
A41: =iMap_Rank!AP19 -> 1 | B41: =iMap_Rank!AQ19 -> Sweden | C41: =iMap_Rank!AR19 -> 67.56945913 | D41: =iMap_Rank!AS19 -> 1 | E41: =iMap_Rank!AT19 -> Canada | F41: =iMap_Rank!AU19 -> 58.36870766 | G41: =iMap_Rank!AV19 -> 1 | H41: =iMap_Rank!AW19 -> India | I41: =iMap_Rank!AX19 -> 48.65393183
A42: =iMap_Rank!AP20 -> 1 | B42: =iMap_Rank!AQ20 -> Norway | C42: =iMap_Rank!AR20 -> 66.12023977 | D42: =iMap_Rank!AS20 -> 1 | E42: =iMap_Rank!AT20 -> Brazil | F42: =iMap_Rank!AU20 -> 58.23453182 | G42: =iMap_Rank!AV20 -> 1 | H42: =iMap_Rank!AW20 -> Argentina | I42: =iMap_Rank!AX20 -> 48.05827274
A43: =iMap_Rank!AP21 -> 1 | B43: =iMap_Rank!AQ21 -> Germany | C43: =iMap_Rank!AR21 -> 64.50126895 | D43: =iMap_Rank!AS21 -> 1 | E43: =iMap_Rank!AT21 -> Malaysia | F43: =iMap_Rank!AU21 -> 57.59529827 | G43: =iMap_Rank!AV21 -> 1 | H43: =iMap_Rank!AW21 -> China | I43: =iMap_Rank!AX21 -> 47.25142802
A44: =iMap_Rank!AP22 -> 1 | B44: =iMap_Rank!AQ22 -> Finland | C44: =iMap_Rank!AR22 -> 63.80237046 | D44: =iMap_Rank!AS22 -> 1 | E44: =iMap_Rank!AT22 -> Singapore | F44: =iMap_Rank!AU22 -> 57.23918773 | G44: =iMap_Rank!AV22 -> 1 | H44: =iMap_Rank!AW22 -> Indonesia | I44: =iMap_Rank!AX22 -> 46.84753612
A45: =iMap_Rank!AP23 -> 1 | B45: =iMap_Rank!AQ23 -> Chile | C45: =iMap_Rank!AR23 -> 62.82639319 | D45: =iMap_Rank!AS23 -> 1 | E45: =iMap_Rank!AT23 -> Belgium | F45: =iMap_Rank!AU23 -> 55.64223398 | G45: =iMap_Rank!AV23 -> 1 | H45: =iMap_Rank!AW23 -> Vietnam | I45: =iMap_Rank!AX23 -> 45.43062794
A46: =iMap_Rank!AP24 -> 1 | B46: =iMap_Rank!AQ24 -> France | C46: =iMap_Rank!AR24 -> 61.47106886 | D46: =iMap_Rank!AS24 -> 1 | E46: =iMap_Rank!AT24 -> Mexico | F46: =iMap_Rank!AU24 -> 52.76491396 | G46: =iMap_Rank!AV24 -> 0 | H46: =iMap_Rank!AW24 ->  | I46: =iMap_Rank!AX24 -> 
A47: =iMap_Rank!AP25 -> 1 | B47: =iMap_Rank!AQ25 -> Spain | C47: =iMap_Rank!AR25 -> 61.01349764 | D47: =iMap_Rank!AS25 -> 1 | E47: =iMap_Rank!AT25 -> South Korea | F47: =iMap_Rank!AU25 -> 52.73273811 | G47: =iMap_Rank!AV25 -> 0 | H47: =iMap_Rank!AW25 ->  | I47: =iMap_Rank!AX25 -> 
A48: =iMap_Rank!AP26 -> 1 | B48: =iMap_Rank!AQ26 -> Australia | C48: =iMap_Rank!AR26 -> 60.08847513 | D48: =iMap_Rank!AS26 -> 1 | E48: =iMap_Rank!AT26 -> Thailand | F48: =iMap_Rank!AU26 -> 50.5465773 | G48: =iMap_Rank!AV26 -> 0 | H48: =iMap_Rank!AW26 ->  | I48: =iMap_Rank!AX26 -> 
A49: =iMap_Rank!AP27 -> 1 | B49: =iMap_Rank!AQ27 -> United Kingdom | C49: =iMap_Rank!AR27 -> 60.0302724 | D49: =iMap_Rank!AS27 -> 0 | E49: =iMap_Rank!AT27 ->  | F49: =iMap_Rank!AU27 ->  | G49: =iMap_Rank!AV27 -> 0 | H49: =iMap_Rank!AW27 ->  | I49: =iMap_Rank!AX27 -> 
A50: =iMap_Rank!AP28 -> 1 | B50: =iMap_Rank!AQ28 -> Japan | C50: =iMap_Rank!AR28 -> 58.96584517 | D50: =iMap_Rank!AS28 -> 0 | E50: =iMap_Rank!AT28 ->  | F50: =iMap_Rank!AU28 ->  | G50: =iMap_Rank!AV28 -> 0 | H50: =iMap_Rank!AW28 ->  | I50: =iMap_Rank!AX28 -> 
A51: =iMap_Rank!AP29 -> 1 | B51: =iMap_Rank!AQ29 -> Netherlands | C51: =iMap_Rank!AR29 -> 58.90313749 | D51: =iMap_Rank!AS29 -> 0 | E51: =iMap_Rank!AT29 ->  | F51: =iMap_Rank!AU29 ->  | G51: =iMap_Rank!AV29 -> 0 | H51: =iMap_Rank!AW29 ->  | I51: =iMap_Rank!AX29 -> 
A52: =iMap_Rank!AP30 -> 1 | B52: =iMap_Rank!AQ30 -> United States | C52: =iMap_Rank!AR30 -> 58.8605402 | D52: =iMap_Rank!AS30 -> 0 | E52: =iMap_Rank!AT30 ->  | F52: =iMap_Rank!AU30 ->  | G52: =iMap_Rank!AV30 -> 0 | H52: =iMap_Rank!AW30 ->  | I52: =iMap_Rank!AX30 -> 
A53: =iMap_Rank!AP31 -> 0 | B53: =iMap_Rank!AQ31 ->  | C53: =iMap_Rank!AR31 ->  | D53: =iMap_Rank!AS31 -> 0 | E53: =iMap_Rank!AT31 ->  | F53: =iMap_Rank!AU31 ->  | G53: =iMap_Rank!AV31 -> 0 | H53: =iMap_Rank!AW31 ->  | I53: =iMap_Rank!AX31 -> 
A54: =iMap_Rank!AP32 -> 0 | B54: =iMap_Rank!AQ32 ->  | C54: =iMap_Rank!AR32 ->  | D54: =iMap_Rank!AS32 -> 0 | E54: =iMap_Rank!AT32 ->  | F54: =iMap_Rank!AU32 ->  | G54: =iMap_Rank!AV32 -> 0 | H54: =iMap_Rank!AW32 ->  | I54: =iMap_Rank!AX32 -> 
A55: =iMap_Rank!AP33 -> 0 | B55: =iMap_Rank!AQ33 ->  | C55: =iMap_Rank!AR33 ->  | D55: =iMap_Rank!AS33 -> 0 | E55: =iMap_Rank!AT33 ->  | F55: =iMap_Rank!AU33 ->  | G55: =iMap_Rank!AV33 -> 0 | H55: =iMap_Rank!AW33 ->  | I55: =iMap_Rank!AX33 -> 
A56: =iMap_Rank!AP34 -> 0 | B56: =iMap_Rank!AQ34 ->  | C56: =iMap_Rank!AR34 ->  | D56: =iMap_Rank!AS34 -> 0 | E56: =iMap_Rank!AT34 ->  | F56: =iMap_Rank!AU34 ->  | G56: =iMap_Rank!AV34 -> 0 | H56: =iMap_Rank!AW34 ->  | I56: =iMap_Rank!AX34 -> 
A57: =iMap_Rank!AP35 -> 0 | B57: =iMap_Rank!AQ35 ->  | C57: =iMap_Rank!AR35 ->  | D57: =iMap_Rank!AS35 -> 0 | E57: =iMap_Rank!AT35 ->  | F57: =iMap_Rank!AU35 ->  | G57: =iMap_Rank!AV35 -> 0 | H57: =iMap_Rank!AW35 ->  | I57: =iMap_Rank!AX35 -> 
A58: =iMap_Rank!AP36 -> 0 | B58: =iMap_Rank!AQ36 ->  | C58: =iMap_Rank!AR36 ->  | D58: =iMap_Rank!AS36 -> 0 | E58: =iMap_Rank!AT36 ->  | F58: =iMap_Rank!AU36 ->  | G58: =iMap_Rank!AV36 -> 0 | H58: =iMap_Rank!AW36 ->  | I58: =iMap_Rank!AX36 -> 
A59: =iMap_Rank!AP37 -> 0 | B59: =iMap_Rank!AQ37 ->  | C59: =iMap_Rank!AR37 ->  | D59: =iMap_Rank!AS37 -> 0 | E59: =iMap_Rank!AT37 ->  | F59: =iMap_Rank!AU37 ->  | G59: =iMap_Rank!AV37 -> 0 | H59: =iMap_Rank!AW37 ->  | I59: =iMap_Rank!AX37 -> 
A60: =iMap_Rank!AP38 -> 0 | B60: =iMap_Rank!AQ38 ->  | C60: =iMap_Rank!AR38 ->  | D60: =iMap_Rank!AS38 -> 0 | E60: =iMap_Rank!AT38 ->  | F60: =iMap_Rank!AU38 ->  | G60: =iMap_Rank!AV38 -> 0 | H60: =iMap_Rank!AW38 ->  | I60: =iMap_Rank!AX38 -> 
A61: =iMap_Rank!AP39 -> 0 | B61: =iMap_Rank!AQ39 ->  | C61: =iMap_Rank!AR39 ->  | D61: =iMap_Rank!AS39 -> 0 | E61: =iMap_Rank!AT39 ->  | F61: =iMap_Rank!AU39 ->  | G61: =iMap_Rank!AV39 -> 0 | H61: =iMap_Rank!AW39 ->  | I61: =iMap_Rank!AX39 -> 
A62: =iMap_Rank!AP40 -> 0 | B62: =iMap_Rank!AQ40 ->  | C62: =iMap_Rank!AR40 ->  | D62: =iMap_Rank!AS40 -> 0 | E62: =iMap_Rank!AT40 ->  | F62: =iMap_Rank!AU40 ->  | G62: =iMap_Rank!AV40 -> 0 | H62: =iMap_Rank!AW40 ->  | I62: =iMap_Rank!AX40 -> 
A63: =iMap_Rank!AP41 -> 0 | B63: =iMap_Rank!AQ41 ->  | C63: =iMap_Rank!AR41 ->  | D63: =iMap_Rank!AS41 -> 0 | E63: =iMap_Rank!AT41 ->  | F63: =iMap_Rank!AU41 ->  | G63: =iMap_Rank!AV41 -> 0 | H63: =iMap_Rank!AW41 ->  | I63: =iMap_Rank!AX41 -> 
A64: =iMap_Rank!AP42 -> 0 | B64: =iMap_Rank!AQ42 ->  | C64: =iMap_Rank!AR42 ->  | D64: =iMap_Rank!AS42 -> 0 | E64: =iMap_Rank!AT42 ->  | F64: =iMap_Rank!AU42 ->  | G64: =iMap_Rank!AV42 -> 0 | H64: =iMap_Rank!AW42 ->  | I64: =iMap_Rank!AX42 -> 
A65: =iMap_Rank!AP43 -> 0 | B65: =iMap_Rank!AQ43 ->  | C65: =iMap_Rank!AR43 ->  | D65: =iMap_Rank!AS43 -> 0 | E65: =iMap_Rank!AT43 ->  | F65: =iMap_Rank!AU43 ->  | G65: =iMap_Rank!AV43 -> 0 | H65: =iMap_Rank!AW43 ->  | I65: =iMap_Rank!AX43 -> 

Sheet SummaryC (hidden)
BA1: 3 | BB1: 1
E4: =iSummary!N6 -> OVERALL SCORE
D8: =UPPER(tblIndiSets!$A$227) -> FOOD AND BEVERAGE | K8: =UPPER(tblIndiSets!$A$228) -> CONSUMER GOODS | R8: =UPPER(tblIndiSets!$A$229) -> HEALTHCARE SERVICES | Y8: =UPPER(tblIndiSets!$A$230) -> HOSPITALITY SERVICES
B9: =iSummary!M8 -> 1 | C9: =IF(G9<=30,0,IF(G9<=50,1,IF(G9<=70,2,3))) -> 2 | E9: =iSummary!N8 -> 1 | F9: =iSummary!O8 -> France | G9: =iSummary!P8 -> 65.71 | I9: =iSummary!X8 -> 1 | J9: =IF(N9<=30,0,IF(N9<=50,1,IF(N9<=70,2,3))) -> 2 | L9: =iSummary!Y8 -> 1 | M9: =iSummary!Z8 -> United Kingdom | N9: =iSummary!AA8 -> 64.53 | P9: =iSummary!AI8 -> 1 | Q9: =IF(U9<=30,0,IF(U9<=50,1,IF(U9<=70,2,3))) -> 2 | S9: =iSummary!AJ8 -> 1 | T9: =iSummary!AK8 -> United States | U9: =iSummary!AL8 -> 68.61 | W9: =iSummary!AT8 -> 1 | X9: =IF(AB9<=30,0,IF(AB9<=50,1,IF(AB9<=70,2,3))) -> 2 | Z9: =iSummary!AU8 -> 1 | AA9: =iSummary!AV8 -> Sweden | AB9: =iSummary!AW8 -> 67.57
B10: =iSummary!M9 -> 1 | C10: =IF(G10<=30,0,IF(G10<=50,1,IF(G10<=70,2,3))) -> 2 | E10: =iSummary!N9 -> 2 | F10: =iSummary!O9 -> Japan | G10: =iSummary!P9 -> 63.86 | I10: =iSummary!X9 -> 1 | J10: =IF(N10<=30,0,IF(N10<=50,1,IF(N10<=70,2,3))) -> 2 | L10: =iSummary!Y9 -> 2 | M10: =iSummary!Z9 -> France | N10: =iSummary!AA9 -> 64.17 | P10: =iSummary!AI9 -> 1 | Q10: =IF(U10<=30,0,IF(U10<=50,1,IF(U10<=70,2,3))) -> 2 | S10: =iSummary!AJ9 -> 2 | T10: =iSummary!AK9 -> Sweden | U10: =iSummary!AL9 -> 65.69 | W10: =iSummary!AT9 -> 1 | X10: =IF(AB10<=30,0,IF(AB10<=50,1,IF(AB10<=70,2,3))) -> 2 | Z10: =iSummary!AU9 -> 2 | AA10: =iSummary!AV9 -> Norway | AB10: =iSummary!AW9 -> 66.12
B11: =iSummary!M10 -> 1 | C11: 2 | E11: =iSummary!N10 -> 3 | F11: =iSummary!O10 -> United States | G11: =iSummary!P10 -> 63.58 | I11: =iSummary!X10 -> 1 | J11: 2 | L11: =iSummary!Y10 -> 3 | M11: =iSummary!Z10 -> Sweden | N11: =iSummary!AA10 -> 64.01 | P11: =iSummary!AI10 -> 1 | Q11: 2 | S11: =iSummary!AJ10 -> 3 | T11: =iSummary!AK10 -> Norway | U11: =iSummary!AL10 -> 64.8 | W11: =iSummary!AT10 -> 1 | X11: 2 | Z11: =iSummary!AU10 -> 3 | AA11: =iSummary!AV10 -> Germany | AB11: =iSummary!AW10 -> 64.5
B12: =iSummary!M11 -> 1 | C12: 2 | E12: =iSummary!N11 -> 4 | F12: =iSummary!O11 -> Norway | G12: =iSummary!P11 -> 63.23 | I12: =iSummary!X11 -> 1 | J12: 2 | L12: =iSummary!Y11 -> 4 | M12: =iSummary!Z11 -> Norway | N12: =iSummary!AA11 -> 63.84 | P12: =iSummary!AI11 -> 1 | Q12: 2 | S12: =iSummary!AJ11 -> 4 | T12: =iSummary!AK11 -> Canada | U12: =iSummary!AL11 -> 64.48 | W12: =iSummary!AT11 -> 1 | X12: 2 | Z12: =iSummary!AU11 -> 4 | AA12: =iSummary!AV11 -> Finland | AB12: =iSummary!AW11 -> 63.8
B13: =iSummary!M12 -> 1 | C13: 2 | E13: =iSummary!N12 -> 5 | F13: =iSummary!O12 -> United Kingdom | G13: =iSummary!P12 -> 62.69 | I13: =iSummary!X12 -> 1 | J13: 2 | L13: =iSummary!Y12 -> 5 | M13: =iSummary!Z12 -> Germany | N13: =iSummary!AA12 -> 63.8 | P13: =iSummary!AI12 -> 1 | Q13: 2 | S13: =iSummary!AJ12 -> 5 | T13: =iSummary!AK12 -> United Kingdom | U13: =iSummary!AL12 -> 63.62 | W13: =iSummary!AT12 -> 1 | X13: 2 | Z13: =iSummary!AU12 -> 5 | AA13: =iSummary!AV12 -> Chile | AB13: =iSummary!AW12 -> 62.83
B14: =iSummary!M13 -> 1 | C14: 2 | E14: =iSummary!N13 -> 6 | F14: =iSummary!O13 -> South Korea | G14: =iSummary!P13 -> 62.31 | I14: =iSummary!X13 -> 1 | J14: 2 | L14: =iSummary!Y13 -> 6 | M14: =iSummary!Z13 -> United States | N14: =iSummary!AA13 -> 63.56 | P14: =iSummary!AI13 -> 1 | Q14: 2 | S14: =iSummary!AJ13 -> 6 | T14: =iSummary!AK13 -> France | U14: =iSummary!AL13 -> 61.4 | W14: =iSummary!AT13 -> 1 | X14: 2 | Z14: =iSummary!AU13 -> 6 | AA14: =iSummary!AV13 -> France | AB14: =iSummary!AW13 -> 61.47
B15: =iSummary!M14 -> 1 | C15: 2 | E15: =iSummary!N14 -> 7 | F15: =iSummary!O14 -> Chile | G15: =iSummary!P14 -> 62.05 | I15: =iSummary!X14 -> 1 | J15: 2 | L15: =iSummary!Y14 -> 7 | M15: =iSummary!Z14 -> Finland | N15: =iSummary!AA14 -> 59.75 | P15: =iSummary!AI14 -> 1 | Q15: 2 | S15: =iSummary!AJ14 -> 7 | T15: =iSummary!AK14 -> Germany | U15: =iSummary!AL14 -> 61.3 | W15: =iSummary!AT14 -> 1 | X15: 2 | Z15: =iSummary!AU14 -> 7 | AA15: =iSummary!AV14 -> Spain | AB15: =iSummary!AW14 -> 61.01
B16: =iSummary!M15 -> 1 | C16: 2 | E16: =iSummary!N15 -> 8 | F16: =iSummary!O15 -> Sweden | G16: =iSummary!P15 -> 61.97 | I16: =iSummary!X15 -> 1 | J16: 2 | L16: =iSummary!Y15 -> 8 | M16: =iSummary!Z15 -> Netherlands | N16: =iSummary!AA15 -> 58.83 | P16: =iSummary!AI15 -> 1 | Q16: 2 | S16: =iSummary!AJ15 -> 8 | T16: =iSummary!AK15 -> Finland | U16: =iSummary!AL15 -> 60.07 | W16: =iSummary!AT15 -> 1 | X16: 2 | Z16: =iSummary!AU15 -> 8 | AA16: =iSummary!AV15 -> Australia | AB16: =iSummary!AW15 -> 60.09
B17: =iSummary!M16 -> 1 | C17: 2 | E17: =iSummary!N16 -> 9 | F17: =iSummary!O16 -> Germany | G17: =iSummary!P16 -> 61.09 | I17: =iSummary!X16 -> 1 | J17: 2 | L17: =iSummary!Y16 -> 9 | M17: =iSummary!Z16 -> Chile | N17: =iSummary!AA16 -> 58.58 | P17: =iSummary!AI16 -> 1 | Q17: 2 | S17: =iSummary!AJ16 -> 9 | T17: =iSummary!AK16 -> Spain | U17: =iSummary!AL16 -> 59.82 | W17: =iSummary!AT16 -> 1 | X17: 2 | Z17: =iSummary!AU16 -> 9 | AA17: =iSummary!AV16 -> United Kingdom | AB17: =iSummary!AW16 -> 60.03
B18: =iSummary!M17 -> 1 | C18: 2 | E18: =iSummary!N17 -> 10 | F18: =iSummary!O17 -> Finland | G18: =iSummary!P17 -> 60.57 | I18: =iSummary!X17 -> 1 | J18: 2 | L18: =iSummary!Y17 -> 10 | M18: =iSummary!Z17 -> South Korea | N18: =iSummary!AA17 -> 58.52 | P18: =iSummary!AI17 -> 1 | Q18: 2 | S18: =iSummary!AJ17 -> 10 | T18: =iSummary!AK17 -> Australia | U18: =iSummary!AL17 -> 59.79 | W18: =iSummary!AT17 -> 1 | X18: 2 | Z18: =iSummary!AU17 -> 10 | AA18: =iSummary!AV17 -> Japan | AB18: =iSummary!AW17 -> 58.97
B19: =iSummary!M18 -> 1 | C19: 2 | E19: =iSummary!N18 -> 11 | F19: =iSummary!O18 -> Australia | G19: =iSummary!P18 -> 60.31 | I19: =iSummary!X18 -> 1 | J19: 2 | L19: =iSummary!Y18 -> 11 | M19: =iSummary!Z18 -> Canada | N19: =iSummary!AA18 -> 58.09 | P19: =iSummary!AI18 -> 1 | Q19: 2 | S19: =iSummary!AJ18 -> 11 | T19: =iSummary!AK18 -> Japan | U19: =iSummary!AL18 -> 59.57 | W19: =iSummary!AT18 -> 1 | X19: 2 | Z19: =iSummary!AU18 -> 11 | AA19: =iSummary!AV18 -> Netherlands | AB19: =iSummary!AW18 -> 58.9
B20: =iSummary!M19 -> 1 | C20: 2 | E20: =iSummary!N19 -> 12 | F20: =iSummary!O19 -> Brazil | G20: =iSummary!P19 -> 59.2 | I20: =iSummary!X19 -> 1 | J20: 2 | L20: =iSummary!Y19 -> 12 | M20: =iSummary!Z19 -> Belgium | N20: =iSummary!AA19 -> 57.26 | P20: =iSummary!AI19 -> 1 | Q20: 2 | S20: =iSummary!AJ19 -> 12 | T20: =iSummary!AK19 -> Netherlands | U20: =iSummary!AL19 -> 59.56 | W20: =iSummary!AT19 -> 1 | X20: 2 | Z20: =iSummary!AU19 -> 12 | AA20: =iSummary!AV19 -> United States | AB20: =iSummary!AW19 -> 58.86
B21: =iSummary!M20 -> 1 | C21: 2 | E21: =iSummary!N20 -> 13 | F21: =iSummary!O20 -> Spain | G21: =iSummary!P20 -> 59.09 | I21: =iSummary!X20 -> 1 | J21: 2 | L21: =iSummary!Y20 -> 13 | M21: =iSummary!Z20 -> Japan | N21: =iSummary!AA20 -> 56.79 | P21: =iSummary!AI20 -> 1 | Q21: 2 | S21: =iSummary!AJ20 -> 13 | T21: =iSummary!AK20 -> Singapore | U21: =iSummary!AL20 -> 57.71 | W21: =iSummary!AT20 -> 1 | X21: 2 | Z21: =iSummary!AU20 -> 13 | AA21: =iSummary!AV20 -> Canada | AB21: =iSummary!AW20 -> 58.37
B22: =iSummary!M21 -> 1 | C22: 2 | E22: =iSummary!N21 -> 14 | F22: =iSummary!O21 -> Netherlands | G22: =iSummary!P21 -> 58.72 | I22: =iSummary!X21 -> 1 | J22: 2 | L22: =iSummary!Y21 -> 14 | M22: =iSummary!Z21 -> Spain | N22: =iSummary!AA21 -> 56.66 | P22: =iSummary!AI21 -> 1 | Q22: 2 | S22: =iSummary!AJ21 -> 14 | T22: =iSummary!AK21 -> Chile | U22: =iSummary!AL21 -> 56.83 | W22: =iSummary!AT21 -> 1 | X22: 2 | Z22: =iSummary!AU21 -> 14 | AA22: =iSummary!AV21 -> Brazil | AB22: =iSummary!AW21 -> 58.23
B23: =iSummary!M22 -> 1 | C23: 2 | E23: =iSummary!N22 -> 15 | F23: =iSummary!O22 -> Singapore | G23: =iSummary!P22 -> 58.51 | I23: =iSummary!X22 -> 1 | J23: 2 | L23: =iSummary!Y22 -> 15 | M23: =iSummary!Z22 -> Brazil | N23: =iSummary!AA22 -> 55.06 | P23: =iSummary!AI22 -> 1 | Q23: 2 | S23: =iSummary!AJ22 -> 15 | T23: =iSummary!AK22 -> South Korea | U23: =iSummary!AL22 -> 56.22 | W23: =iSummary!AT22 -> 1 | X23: 2 | Z23: =iSummary!AU22 -> 15 | AA23: =iSummary!AV22 -> Malaysia | AB23: =iSummary!AW22 -> 57.6
B24: =iSummary!M23 -> 1 | C24: 2 | E24: =iSummary!N23 -> 16 | F24: =iSummary!O23 -> Canada | G24: =iSummary!P23 -> 58.1 | I24: =iSummary!X23 -> 1 | J24: 2 | L24: =iSummary!Y23 -> 16 | M24: =iSummary!Z23 -> Australia | N24: =iSummary!AA23 -> 54.88 | P24: =iSummary!AI23 -> 1 | Q24: 2 | S24: =iSummary!AJ23 -> 16 | T24: =iSummary!AK23 -> Belgium | U24: =iSummary!AL23 -> 56.04 | W24: =iSummary!AT23 -> 1 | X24: 2 | Z24: =iSummary!AU23 -> 16 | AA24: =iSummary!AV23 -> Singapore | AB24: =iSummary!AW23 -> 57.24
B25: =iSummary!M24 -> 1 | C25: 2 | E25: =iSummary!N24 -> 17 | F25: =iSummary!O24 -> Belgium | G25: =iSummary!P24 -> 56.64 | I25: =iSummary!X24 -> 1 | J25: 2 | L25: =iSummary!Y24 -> 17 | M25: =iSummary!Z24 -> Singapore | N25: =iSummary!AA24 -> 53.68 | P25: =iSummary!AI24 -> 1 | Q25: 2 | S25: =iSummary!AJ24 -> 17 | T25: =iSummary!AK24 -> Brazil | U25: =iSummary!AL24 -> 54.84 | W25: =iSummary!AT24 -> 1 | X25: 2 | Z25: =iSummary!AU24 -> 17 | AA25: =iSummary!AV24 -> Belgium | AB25: =iSummary!AW24 -> 55.64
B26: =iSummary!M25 -> 1 | C26: 2 | E26: =iSummary!N25 -> 18 | F26: =iSummary!O25 -> Mexico | G26: =iSummary!P25 -> 55.62 | I26: =iSummary!X25 -> 1 | J26: 2 | L26: =iSummary!Y25 -> 18 | M26: =iSummary!Z25 -> Mexico | N26: =iSummary!AA25 -> 52.88 | P26: =iSummary!AI25 -> 1 | Q26: 2 | S26: =iSummary!AJ25 -> 18 | T26: =iSummary!AK25 -> Malaysia | U26: =iSummary!AL25 -> 52.7 | W26: =iSummary!AT25 -> 1 | X26: 2 | Z26: =iSummary!AU25 -> 18 | AA26: =iSummary!AV25 -> Mexico | AB26: =iSummary!AW25 -> 52.76
B27: =iSummary!M26 -> 1 | C27: 2 | E27: =iSummary!N26 -> 19 | F27: =iSummary!O26 -> Malaysia | G27: =iSummary!P26 -> 51.87 | I27: =iSummary!X26 -> 1 | J27: 1 | L27: =iSummary!Y26 -> 19 | M27: =iSummary!Z26 -> Argentina | N27: =iSummary!AA26 -> 49.19 | P27: =iSummary!AI26 -> 1 | Q27: 1 | S27: =iSummary!AJ26 -> 19 | T27: =iSummary!AK26 -> Mexico | U27: =iSummary!AL26 -> 47.69 | W27: =iSummary!AT26 -> 1 | X27: 2 | Z27: =iSummary!AU26 -> 19 | AA27: =iSummary!AV26 -> South Korea | AB27: =iSummary!AW26 -> 52.73
B28: =iSummary!M27 -> 1 | C28: 2 | E28: =iSummary!N27 -> 20 | F28: =iSummary!O27 -> Argentina | G28: =iSummary!P27 -> 51.35 | I28: =iSummary!X27 -> 1 | J28: 1 | L28: =iSummary!Y27 -> 20 | M28: =iSummary!Z27 -> India | N28: =iSummary!AA27 -> 48.36 | P28: =iSummary!AI27 -> 1 | Q28: 1 | S28: =iSummary!AJ27 -> 20 | T28: =iSummary!AK27 -> Argentina | U28: =iSummary!AL27 -> 45.02 | W28: =iSummary!AT27 -> 1 | X28: 2 | Z28: =iSummary!AU27 -> 20 | AA28: =iSummary!AV27 -> Thailand | AB28: =iSummary!AW27 -> 50.55
B29: =iSummary!M28 -> 1 | C29: 1 | E29: =iSummary!N28 -> 21 | F29: =iSummary!O28 -> India | G29: =iSummary!P28 -> 48.55 | I29: =iSummary!X28 -> 1 | J29: 1 | L29: =iSummary!Y28 -> 21 | M29: =iSummary!Z28 -> China | N29: =iSummary!AA28 -> 48.35 | P29: =iSummary!AI28 -> 1 | Q29: 1 | S29: =iSummary!AJ28 -> 21 | T29: =iSummary!AK28 -> China | U29: =iSummary!AL28 -> 44.32 | W29: =iSummary!AT28 -> 1 | X29: 1 | Z29: =iSummary!AU28 -> 21 | AA29: =iSummary!AV28 -> India | AB29: =iSummary!AW28 -> 48.65
B30: =iSummary!M29 -> 1 | C30: 1 | E30: =iSummary!N29 -> 22 | F30: =iSummary!O29 -> China | G30: =iSummary!P29 -> 47.44 | I30: =iSummary!X29 -> 1 | J30: 1 | L30: =iSummary!Y29 -> 22 | M30: =iSummary!Z29 -> Malaysia | N30: =iSummary!AA29 -> 47.64 | P30: =iSummary!AI29 -> 1 | Q30: 1 | S30: =iSummary!AJ29 -> 22 | T30: =iSummary!AK29 -> Thailand | U30: =iSummary!AL29 -> 44.06 | W30: =iSummary!AT29 -> 1 | X30: 1 | Z30: =iSummary!AU29 -> 22 | AA30: =iSummary!AV29 -> Argentina | AB30: =iSummary!AW29 -> 48.06
B31: =iSummary!M30 -> 1 | C31: 1 | E31: =iSummary!N30 -> 23 | F31: =iSummary!O30 -> Vietnam | G31: =iSummary!P30 -> 46.99 | I31: =iSummary!X30 -> 1 | J31: 1 | L31: =iSummary!Y30 -> 23 | M31: =iSummary!Z30 -> Vietnam | N31: =iSummary!AA30 -> 42.56 | P31: =iSummary!AI30 -> 1 | Q31: 1 | S31: =iSummary!AJ30 -> 23 | T31: =iSummary!AK30 -> Vietnam | U31: =iSummary!AL30 -> 42.54 | W31: =iSummary!AT30 -> 1 | X31: 1 | Z31: =iSummary!AU30 -> 23 | AA31: =iSummary!AV30 -> China | AB31: =iSummary!AW30 -> 47.25
B32: =iSummary!M31 -> 1 | C32: 1 | E32: =iSummary!N31 -> 24 | F32: =iSummary!O31 -> Thailand | G32: =iSummary!P31 -> 45.11 | I32: =iSummary!X31 -> 1 | J32: 1 | L32: =iSummary!Y31 -> 24 | M32: =iSummary!Z31 -> Thailand | N32: =iSummary!AA31 -> 40.89 | P32: =iSummary!AI31 -> 1 | Q32: 1 | S32: =iSummary!AJ31 -> 24 | T32: =iSummary!AK31 -> India | U32: =iSummary!AL31 -> 42.08 | W32: =iSummary!AT31 -> 1 | X32: 1 | Z32: =iSummary!AU31 -> 24 | AA32: =iSummary!AV31 -> Indonesia | AB32: =iSummary!AW31 -> 46.85
B33: =iSummary!M32 -> 1 | C33: 1 | E33: =iSummary!N32 -> 25 | F33: =iSummary!O32 -> Indonesia | G33: =iSummary!P32 -> 44.58 | I33: =iSummary!X32 -> 1 | J33: 1 | L33: =iSummary!Y32 -> 25 | M33: =iSummary!Z32 -> Indonesia | N33: =iSummary!AA32 -> 40.84 | P33: =iSummary!AI32 -> 1 | Q33: 1 | S33: =iSummary!AJ32 -> 25 | T33: =iSummary!AK32 -> Indonesia | U33: =iSummary!AL32 -> 38.81 | W33: =iSummary!AT32 -> 1 | X33: 1 | Z33: =iSummary!AU32 -> 25 | AA33: =iSummary!AV32 -> Vietnam | AB33: =iSummary!AW32 -> 45.43
E37: = before the rank indicates a tie in rank with another geography

Sheet iSummary (hidden)
A1: All tiers | B1: =uxb_works!B12 -> 1 | C1: ="Average: "&INDEX(luRegions,B2) -> Average: View all Regions
B2: =uxb_works!B14 -> 1
A3: Rounding | B3: 2
H5: =uxb_works!$B$71 -> 1 | S5: =uxb_works!$B$71 -> 1 | AD5: =uxb_works!$B$71 -> 1 | AO5: =uxb_works!$B$71 -> 1
H6: =INDEX(tblIndiSets!$B$12:$B$27,H5) -> 1 | N6: =INDEX(tblIndiSets!$C$12:$C$27,H5) -> OVERALL SCORE | S6: =INDEX(tblIndiSets!$H$12:$H$27,S5) -> 1 | AD6: =INDEX(tblIndiSets!$N$12:$N$27,AD5) -> 1 | AO6: =INDEX(tblIndiSets!$R$12:$R$27,AO5) -> 1
B7: IN/OUT Group | D7: IsRegion | E7: ActiveStatus | F7: All Tiers | H7: Score | I7: Rank | J7: LU | K7: RankRounded | P7: Score | S7: Score | T7: Rank | U7: LU | V7: RankRounded | AA7: Score | AD7: Score | AE7: Rank | AF7: LU | AG7: RankRounded | AL7: Score | AO7: Score | AP7: Rank | AQ7: LU | AR7: RankRounded | AW7: Score
A8: =tblTerritories!A3 -> 1 | B8: =INDEX(tblTerritories!$R$3:$W$27,$A8,$B$1) -> 1 | C8: =tblTerritories!E3 -> Argentina | D8: =tblTerritories!D3 -> 0 | E8: =tblTerritories!G3 -> 1 | F8: =VLOOKUP(C8,tblTerritories!$F$3:$L$27,7,FALSE)+10 -> 12 | H8: =IF($E8=0,"",ROUND(INDEX(aScoresFB,H$6,$A8),$B$3)) -> 51.35 | I8: =IF($E8=0,"",RANK(H8,H$8:H$32,0)+COUNTIF(H$8:H8,H8)-1) -> 20 | J8: =IF(ISERROR(MATCH($A8,I$8:I$32,0)),"",MATCH($A8,I$8:I$32,0)) -> 9 | K8: =IF(J8="","",RANK(P8,P$8:P$32)) -> 1 | L8: =IF(J8="","",COUNTIF(P$8:P$32,P8)) -> 1 | M8: =IF(J8="",0,INDEX($E$8:$E$32,J8)) -> 1 | N8: =IF(J8="","",IF(L8>1,CONCATENATE("=",K8),K8)) -> 1 | O8: =IF(J8="","",INDEX($C$8:$C$32,J8)) -> France | P8: =IF(J8="","",INDEX(H$8:H$32,J8)) -> 65.71 | S8: =IF($E8=0,"",ROUND(INDEX(aScoresCG,S$6,$A8),$B$3)) -> 49.19 | T8: =IF($E8=0,"",RANK(S8,S$8:S$32,0)+COUNTIF(S$8:S8,S8)-1) -> 19 | U8: =IF(ISERROR(MATCH($A8,T$8:T$32,0)),"",MATCH($A8,T$8:T$32,0)) -> 23 | V8: =IF(U8="","",RANK(AA8,AA$8:AA$32)) -> 1 | W8: =IF(U8="","",COUNTIF(AA$8:AA$32,AA8)) -> 1 | X8: =IF(U8="",0,INDEX($E$8:$E$32,U8)) -> 1 | Y8: =IF(U8="","",IF(W8>1,CONCATENATE("=",V8),V8)) -> 1 | Z8: =IF(U8="","",INDEX($C$8:$C$32,U8)) -> United Kingdom | AA8: =IF(U8="","",INDEX(S$8:S$32,U8)) -> 64.53 | AD8: =IF($E8=0,"",ROUND(INDEX(aScoresHS,AD$6,$A8),$B$3)) -> 45.02 | AE8: =IF($E8=0,"",RANK(AD8,AD$8:AD$32,0)+COUNTIF(AD$8:AD8,AD8)-1) -> 20 | AF8: =IF(ISERROR(MATCH($A8,AE$8:AE$32,0)),"",MATCH($A8,AE$8:AE$32,0)) -> 24 | AG8: =IF(AF8="","",RANK(AL8,AL$8:AL$32)) -> 1 | AH8: =IF(AF8="","",COUNTIF(AL$8:AL$32,AL8)) -> 1 | AI8: =IF(AF8="",0,INDEX($E$8:$E$32,AF8)) -> 1 | AJ8: =IF(AF8="","",IF(AH8>1,CONCATENATE("=",AG8),AG8)) -> 1 | AK8: =IF(AF8="","",INDEX($C$8:$C$32,AF8)) -> United States | AL8: =IF(AF8="","",INDEX(AD$8:AD$32,AF8)) -> 68.61 | AO8: =IF($E8=0,"",ROUND(INDEX(aScoresHT,AO$6,$A8),$B$3)) -> 48.06 | AP8: =IF($E8=0,"",RANK(AO8,AO$8:AO$32,0)+COUNTIF(AO$8:AO8,AO8)-1) -> 22 | AQ8: =IF(ISERROR(MATCH($A8,AP$8:AP$32,0)),"",MATCH($A8,AP$8:AP$32,0)) -> 21 | AR8: =IF(AQ8="","",RANK(AW8,AW$8:AW$32)) -> 1 | AS8: =IF(AQ8="","",COUNTIF(AW$8:AW$32,AW8)) -> 1 | AT8: =IF(AQ8="",0,INDEX($E$8:$E$32,AQ8)) -> 1 | AU8: =IF(AQ8="","",IF(AS8>1,CONCATENATE("=",AR8),AR8)) -> 1 | AV8: =IF(AQ8="","",INDEX($C$8:$C$32,AQ8)) -> Sweden | AW8: =IF(AQ8="","",INDEX(AO$8:AO$32,AQ8)) -> 67.57
A9: =tblTerritories!A4 -> 2 | B9: =INDEX(tblTerritories!$R$3:$W$27,$A9,$B$1) -> 1 | C9: =tblTerritories!E4 -> Australia | D9: =tblTerritories!D4 -> 0 | E9: =tblTerritories!G4 -> 1 | F9: =VLOOKUP(C9,tblTerritories!$F$3:$L$27,7,FALSE)+10 -> 14 | H9: 60.31 | I9: =IF($E9=0,"",RANK(H9,H$8:H$32,0)+COUNTIF(H$8:H9,H9)-1) -> 11 | J9: 13 | K9: 2 | L9: 1 | M9: 1 | N9: =IF(J9="","",IF(L9>1,CONCATENATE("=",K9),K9)) -> 2 | O9: Japan | P9: 63.86 | S9: 54.88 | T9: =IF($E9=0,"",RANK(S9,S$8:S$32,0)+COUNTIF(S$8:S9,S9)-1) -> 16 | U9: 9 | V9: 2 | W9: 1 | X9: 1 | Y9: =IF(U9="","",IF(W9>1,CONCATENATE("=",V9),V9)) -> 2 | Z9: France | AA9: 64.17 | AD9: 59.79 | AE9: =IF($E9=0,"",RANK(AD9,AD$8:AD$32,0)+COUNTIF(AD$8:AD9,AD9)-1) -> 10 | AF9: 21 | AG9: 2 | AH9: 1 | AI9: 1 | AJ9: =IF(AF9="","",IF(AH9>1,CONCATENATE("=",AG9),AG9)) -> 2 | AK9: Sweden | AL9: 65.69 | AO9: 60.09 | AP9: =IF($E9=0,"",RANK(AO9,AO$8:AO$32,0)+COUNTIF(AO$8:AO9,AO9)-1) -> 8 | AQ9: 17 | AR9: 2 | AS9: 1 | AT9: 1 | AU9: =IF(AQ9="","",IF(AS9>1,CONCATENATE("=",AR9),AR9)) -> 2 | AV9: Norway | AW9: 66.12
A10: =tblTerritories!A5 -> 3 | B10: =INDEX(tblTerritories!$R$3:$W$27,$A10,$B$1) -> 1 | C10: =tblTerritories!E5 -> Belgium | D10: =tblTerritories!D5 -> 0 | E10: =tblTerritories!G5 -> 1 | F10: =VLOOKUP(C10,tblTerritories!$F$3:$L$27,7,FALSE)+10 -> 13 | H10: 56.64 | I10: =IF($E10=0,"",RANK(H10,H$8:H$32,0)+COUNTIF(H$8:H10,H10)-1) -> 17 | J10: 24 | K10: 3 | L10: 1 | M10: 1 | N10: 3 | O10: United States | P10: 63.58 | S10: 57.26 | T10: =IF($E10=0,"",RANK(S10,S$8:S$32,0)+COUNTIF(S$8:S10,S10)-1) -> 12 | U10: 21 | V10: 3 | W10: 1 | X10: 1 | Y10: 3 | Z10: Sweden | AA10: 64.01 | AD10: 56.04 | AE10: =IF($E10=0,"",RANK(AD10,AD$8:AD$32,0)+COUNTIF(AD$8:AD10,AD10)-1) -> 16 | AF10: 17 | AG10: 3 | AH10: 1 | AI10: 1 | AJ10: 3 | AK10: Norway | AL10: 64.8 | AO10: 55.64 | AP10: =IF($E10=0,"",RANK(AO10,AO$8:AO$32,0)+COUNTIF(AO$8:AO10,AO10)-1) -> 17 | AQ10: 10 | AR10: 3 | AS10: 1 | AT10: 1 | AU10: 3 | AV10: Germany | AW10: 64.5
A11: =tblTerritories!A6 -> 4 | B11: =INDEX(tblTerritories!$R$3:$W$27,$A11,$B$1) -> 1 | C11: =tblTerritories!E6 -> Brazil | D11: =tblTerritories!D6 -> 0 | E11: =tblTerritories!G6 -> 1 | F11: =VLOOKUP(C11,tblTerritories!$F$3:$L$27,7,FALSE)+10 -> 12 | H11: 59.2 | I11: =IF($E11=0,"",RANK(H11,H$8:H$32,0)+COUNTIF(H$8:H11,H11)-1) -> 12 | J11: 17 | K11: 4 | L11: 1 | M11: 1 | N11: 4 | O11: Norway | P11: 63.23 | S11: 55.06 | T11: =IF($E11=0,"",RANK(S11,S$8:S$32,0)+COUNTIF(S$8:S11,S11)-1) -> 15 | U11: 17 | V11: 4 | W11: 1 | X11: 1 | Y11: 4 | Z11: Norway | AA11: 63.84 | AD11: 54.84 | AE11: =IF($E11=0,"",RANK(AD11,AD$8:AD$32,0)+COUNTIF(AD$8:AD11,AD11)-1) -> 17 | AF11: 5 | AG11: 4 | AH11: 1 | AI11: 1 | AJ11: 4 | AK11: Canada | AL11: 64.48 | AO11: 58.23 | AP11: =IF($E11=0,"",RANK(AO11,AO$8:AO$32,0)+COUNTIF(AO$8:AO11,AO11)-1) -> 14 | AQ11: 8 | AR11: 4 | AS11: 1 | AT11: 1 | AU11: 4 | AV11: Finland | AW11: 63.8
A12: =tblTerritories!A7 -> 5 | B12: =INDEX(tblTerritories!$R$3:$W$27,$A12,$B$1) -> 1 | C12: =tblTerritories!E7 -> Canada | D12: =tblTerritories!D7 -> 0 | E12: =tblTerritories!G7 -> 1 | F12: =VLOOKUP(C12,tblTerritories!$F$3:$L$27,7,FALSE)+10 -> 11 | H12: 58.1 | I12: =IF($E12=0,"",RANK(H12,H$8:H$32,0)+COUNTIF(H$8:H12,H12)-1) -> 16 | J12: 23 | K12: 5 | L12: 1 | M12: 1 | N12: 5 | O12: United Kingdom | P12: 62.69 | S12: 58.09 | T12: =IF($E12=0,"",RANK(S12,S$8:S$32,0)+COUNTIF(S$8:S12,S12)-1) -> 11 | U12: 10 | V12: 5 | W12: 1 | X12: 1 | Y12: 5 | Z12: Germany | AA12: 63.8 | AD12: 64.48 | AE12: =IF($E12=0,"",RANK(AD12,AD$8:AD$32,0)+COUNTIF(AD$8:AD12,AD12)-1) -> 4 | AF12: 23 | AG12: 5 | AH12: 1 | AI12: 1 | AJ12: 5 | AK12: United Kingdom | AL12: 63.62 | AO12: 58.37 | AP12: =IF($E12=0,"",RANK(AO12,AO$8:AO$32,0)+COUNTIF(AO$8:AO12,AO12)-1) -> 13 | AQ12: 6 | AR12: 5 | AS12: 1 | AT12: 1 | AU12: 5 | AV12: Chile | AW12: 62.83
A13: =tblTerritories!A8 -> 6 | B13: =INDEX(tblTerritories!$R$3:$W$27,$A13,$B$1) -> 1 | C13: =tblTerritories!E8 -> Chile | D13: =tblTerritories!D8 -> 0 | E13: =tblTerritories!G8 -> 1 | F13: =VLOOKUP(C13,tblTerritories!$F$3:$L$27,7,FALSE)+10 -> 12 | H13: 62.05 | I13: =IF($E13=0,"",RANK(H13,H$8:H$32,0)+COUNTIF(H$8:H13,H13)-1) -> 7 | J13: 19 | K13: 6 | L13: 1 | M13: 1 | N13: 6 | O13: South Korea | P13: 62.31 | S13: 58.58 | T13: =IF($E13=0,"",RANK(S13,S$8:S$32,0)+COUNTIF(S$8:S13,S13)-1) -> 9 | U13: 24 | V13: 6 | W13: 1 | X13: 1 | Y13: 6 | Z13: United States | AA13: 63.56 | AD13: 56.83 | AE13: =IF($E13=0,"",RANK(AD13,AD$8:AD$32,0)+COUNTIF(AD$8:AD13,AD13)-1) -> 14 | AF13: 9 | AG13: 6 | AH13: 1 | AI13: 1 | AJ13: 6 | AK13: France | AL13: 61.4 | AO13: 62.83 | AP13: =IF($E13=0,"",RANK(AO13,AO$8:AO$32,0)+COUNTIF(AO$8:AO13,AO13)-1) -> 5 | AQ13: 9 | AR13: 6 | AS13: 1 | AT13: 1 | AU13: 6 | AV13: France | AW13: 61.47
A14: =tblTerritories!A9 -> 7 | B14: =INDEX(tblTerritories!$R$3:$W$27,$A14,$B$1) -> 1 | C14: =tblTerritories!E9 -> China | D14: =tblTerritories!D9 -> 0 | E14: =tblTerritories!G9 -> 1 | F14: =VLOOKUP(C14,tblTerritories!$F$3:$L$27,7,FALSE)+10 -> 15 | H14: 47.44 | I14: =IF($E14=0,"",RANK(H14,H$8:H$32,0)+COUNTIF(H$8:H14,H14)-1) -> 22 | J14: 6 | K14: 7 | L14: 1 | M14: 1 | N14: 7 | O14: Chile | P14: 62.05 | S14: 48.35 | T14: =IF($E14=0,"",RANK(S14,S$8:S$32,0)+COUNTIF(S$8:S14,S14)-1) -> 21 | U14: 8 | V14: 7 | W14: 1 | X14: 1 | Y14: 7 | Z14: Finland | AA14: 59.75 | AD14: 44.32 | AE14: =IF($E14=0,"",RANK(AD14,AD$8:AD$32,0)+COUNTIF(AD$8:AD14,AD14)-1) -> 21 | AF14: 10 | AG14: 7 | AH14: 1 | AI14: 1 | AJ14: 7 | AK14: Germany | AL14: 61.3 | AO14: 47.25 | AP14: =IF($E14=0,"",RANK(AO14,AO$8:AO$32,0)+COUNTIF(AO$8:AO14,AO14)-1) -> 23 | AQ14: 20 | AR14: 7 | AS14: 1 | AT14: 1 | AU14: 7 | AV14: Spain | AW14: 61.01
A15: =tblTerritories!A10 -> 8 | B15: =INDEX(tblTerritories!$R$3:$W$27,$A15,$B$1) -> 1 | C15: =tblTerritories!E10 -> Finland | D15: =tblTerritories!D10 -> 0 | E15: =tblTerritories!G10 -> 1 | F15: =VLOOKUP(C15,tblTerritories!$F$3:$L$27,7,FALSE)+10 -> 13 | H15: 60.57 | I15: =IF($E15=0,"",RANK(H15,H$8:H$32,0)+COUNTIF(H$8:H15,H15)-1) -> 10 | J15: 21 | K15: 8 | L15: 1 | M15: 1 | N15: 8 | O15: Sweden | P15: 61.97 | S15: 59.75 | T15: =IF($E15=0,"",RANK(S15,S$8:S$32,0)+COUNTIF(S$8:S15,S15)-1) -> 7 | U15: 16 | V15: 8 | W15: 1 | X15: 1 | Y15: 8 | Z15: Netherlands | AA15: 58.83 | AD15: 60.07 | AE15: =IF($E15=0,"",RANK(AD15,AD$8:AD$32,0)+COUNTIF(AD$8:AD15,AD15)-1) -> 8 | AF15: 8 | AG15: 8 | AH15: 1 | AI15: 1 | AJ15: 8 | AK15: Finland | AL15: 60.07 | AO15: 63.8 | AP15: =IF($E15=0,"",RANK(AO15,AO$8:AO$32,0)+COUNTIF(AO$8:AO15,AO15)-1) -> 4 | AQ15: 2 | AR15: 8 | AS15: 1 | AT15: 1 | AU15: 8 | AV15: Australia | AW15: 60.09
A16: =tblTerritories!A11 -> 9 | B16: =INDEX(tblTerritories!$R$3:$W$27,$A16,$B$1) -> 1 | C16: =tblTerritories!E11 -> France | D16: =tblTerritories!D11 -> 0 | E16: =tblTerritories!G11 -> 1 | F16: =VLOOKUP(C16,tblTerritories!$F$3:$L$27,7,FALSE)+10 -> 13 | H16: 65.71 | I16: =IF($E16=0,"",RANK(H16,H$8:H$32,0)+COUNTIF(H$8:H16,H16)-1) -> 1 | J16: 10 | K16: 9 | L16: 1 | M16: 1 | N16: 9 | O16: Germany | P16: 61.09 | S16: 64.17 | T16: =IF($E16=0,"",RANK(S16,S$8:S$32,0)+COUNTIF(S$8:S16,S16)-1) -> 2 | U16: 6 | V16: 9 | W16: 1 | X16: 1 | Y16: 9 | Z16: Chile | AA16: 58.58 | AD16: 61.4 | AE16: =IF($E16=0,"",RANK(AD16,AD$8:AD$32,0)+COUNTIF(AD$8:AD16,AD16)-1) -> 6 | AF16: 20 | AG16: 9 | AH16: 1 | AI16: 1 | AJ16: 9 | AK16: Spain | AL16: 59.82 | AO16: 61.47 | AP16: =IF($E16=0,"",RANK(AO16,AO$8:AO$32,0)+COUNTIF(AO$8:AO16,AO16)-1) -> 6 | AQ16: 23 | AR16: 9 | AS16: 1 | AT16: 1 | AU16: 9 | AV16: United Kingdom | AW16: 60.03
A17: =tblTerritories!A12 -> 10 | B17: =INDEX(tblTerritories!$R$3:$W$27,$A17,$B$1) -> 1 | C17: =tblTerritories!E12 -> Germany | D17: =tblTerritories!D12 -> 0 | E17: =tblTerritories!G12 -> 1 | F17: =VLOOKUP(C17,tblTerritories!$F$3:$L$27,7,FALSE)+10 -> 13 | H17: 61.09 | I17: =IF($E17=0,"",RANK(H17,H$8:H$32,0)+COUNTIF(H$8:H17,H17)-1) -> 9 | J17: 8 | K17: 10 | L17: 1 | M17: 1 | N17: 10 | O17: Finland | P17: 60.57 | S17: 63.8 | T17: =IF($E17=0,"",RANK(S17,S$8:S$32,0)+COUNTIF(S$8:S17,S17)-1) -> 5 | U17: 19 | V17: 10 | W17: 1 | X17: 1 | Y17: 10 | Z17: South Korea | AA17: 58.52 | AD17: 61.3 | AE17: =IF($E17=0,"",RANK(AD17,AD$8:AD$32,0)+COUNTIF(AD$8:AD17,AD17)-1) -> 7 | AF17: 2 | AG17: 10 | AH17: 1 | AI17: 1 | AJ17: 10 | AK17: Australia | AL17: 59.79 | AO17: 64.5 | AP17: =IF($E17=0,"",RANK(AO17,AO$8:AO$32,0)+COUNTIF(AO$8:AO17,AO17)-1) -> 3 | AQ17: 13 | AR17: 10 | AS17: 1 | AT17: 1 | AU17: 10 | AV17: Japan | AW17: 58.97
A18: =tblTerritories!A13 -> 11 | B18: =INDEX(tblTerritories!$R$3:$W$27,$A18,$B$1) -> 1 | C18: =tblTerritories!E13 -> India | D18: =tblTerritories!D13 -> 0 | E18: =tblTerritories!G13 -> 1 | F18: =VLOOKUP(C18,tblTerritories!$F$3:$L$27,7,FALSE)+10 -> 15 | H18: 48.55 | I18: =IF($E18=0,"",RANK(H18,H$8:H$32,0)+COUNTIF(H$8:H18,H18)-1) -> 21 | J18: 2 | K18: 11 | L18: 1 | M18: 1 | N18: 11 | O18: Australia | P18: 60.31 | S18: 48.36 | T18: =IF($E18=0,"",RANK(S18,S$8:S$32,0)+COUNTIF(S$8:S18,S18)-1) -> 20 | U18: 5 | V18: 11 | W18: 1 | X18: 1 | Y18: 11 | Z18: Canada | AA18: 58.09 | AD18: 42.08 | AE18: =IF($E18=0,"",RANK(AD18,AD$8:AD$32,0)+COUNTIF(AD$8:AD18,AD18)-1) -> 24 | AF18: 13 | AG18: 11 | AH18: 1 | AI18: 1 | AJ18: 11 | AK18: Japan | AL18: 59.57 | AO18: 48.65 | AP18: =IF($E18=0,"",RANK(AO18,AO$8:AO$32,0)+COUNTIF(AO$8:AO18,AO18)-1) -> 21 | AQ18: 16 | AR18: 11 | AS18: 1 | AT18: 1 | AU18: 11 | AV18: Netherlands | AW18: 58.9
A19: =tblTerritories!A14 -> 12 | B19: =INDEX(tblTerritories!$R$3:$W$27,$A19,$B$1) -> 1 | C19: =tblTerritories!E14 -> Indonesia | D19: =tblTerritories!D14 -> 0 | E19: =tblTerritories!G14 -> 1 | F19: =VLOOKUP(C19,tblTerritories!$F$3:$L$27,7,FALSE)+10 -> 15 | H19: 44.58 | I19: =IF($E19=0,"",RANK(H19,H$8:H$32,0)+COUNTIF(H$8:H19,H19)-1) -> 25 | J19: 4 | K19: 12 | L19: 1 | M19: 1 | N19: 12 | O19: Brazil | P19: 59.2 | S19: 40.84 | T19: =IF($E19=0,"",RANK(S19,S$8:S$32,0)+COUNTIF(S$8:S19,S19)-1) -> 25 | U19: 3 | V19: 12 | W19: 1 | X19: 1 | Y19: 12 | Z19: Belgium | AA19: 57.26 | AD19: 38.81 | AE19: =IF($E19=0,"",RANK(AD19,AD$8:AD$32,0)+COUNTIF(AD$8:AD19,AD19)-1) -> 25 | AF19: 16 | AG19: 12 | AH19: 1 | AI19: 1 | AJ19: 12 | AK19: Netherlands | AL19: 59.56 | AO19: 46.85 | AP19: =IF($E19=0,"",RANK(AO19,AO$8:AO$32,0)+COUNTIF(AO$8:AO19,AO19)-1) -> 24 | AQ19: 24 | AR19: 12 | AS19: 1 | AT19: 1 | AU19: 12 | AV19: United States | AW19: 58.86
A20: =tblTerritories!A15 -> 13 | B20: =INDEX(tblTerritories!$R$3:$W$27,$A20,$B$1) -> 1 | C20: =tblTerritories!E15 -> Japan | D20: =tblTerritories!D15 -> 0 | E20: =tblTerritories!G15 -> 1 | F20: =VLOOKUP(C20,tblTerritories!$F$3:$L$27,7,FALSE)+10 -> 14 | H20: 63.86 | I20: =IF($E20=0,"",RANK(H20,H$8:H$32,0)+COUNTIF(H$8:H20,H20)-1) -> 2 | J20: 20 | K20: 13 | L20: 1 | M20: 1 | N20: 13 | O20: Spain | P20: 59.09 | S20: 56.79 | T20: =IF($E20=0,"",RANK(S20,S$8:S$32,0)+COUNTIF(S$8:S20,S20)-1) -> 13 | U20: 13 | V20: 13 | W20: 1 | X20: 1 | Y20: 13 | Z20: Japan | AA20: 56.79 | AD20: 59.57 | AE20: =IF($E20=0,"",RANK(AD20,AD$8:AD$32,0)+COUNTIF(AD$8:AD20,AD20)-1) -> 11 | AF20: 18 | AG20: 13 | AH20: 1 | AI20: 1 | AJ20: 13 | AK20: Singapore | AL20: 57.71 | AO20: 58.97 | AP20: =IF($E20=0,"",RANK(AO20,AO$8:AO$32,0)+COUNTIF(AO$8:AO20,AO20)-1) -> 10 | AQ20: 5 | AR20: 13 | AS20: 1 | AT20: 1 | AU20: 13 | AV20: Canada | AW20: 58.37
A21: =tblTerritories!A16 -> 14 | B21: =INDEX(tblTerritories!$R$3:$W$27,$A21,$B$1) -> 1 | C21: =tblTerritories!E16 -> Malaysia | D21: =tblTerritories!D16 -> 0 | E21: =tblTerritories!G16 -> 1 | F21: =VLOOKUP(C21,tblTerritories!$F$3:$L$27,7,FALSE)+10 -> 15 | H21: 51.87 | I21: =IF($E21=0,"",RANK(H21,H$8:H$32,0)+COUNTIF(H$8:H21,H21)-1) -> 19 | J21: 16 | K21: 14 | L21: 1 | M21: 1 | N21: 14 | O21: Netherlands | P21: 58.72 | S21: 47.64 | T21: =IF($E21=0,"",RANK(S21,S$8:S$32,0)+COUNTIF(S$8:S21,S21)-1) -> 22 | U21: 20 | V21: 14 | W21: 1 | X21: 1 | Y21: 14 | Z21: Spain | AA21: 56.66 | AD21: 52.7 | AE21: =IF($E21=0,"",RANK(AD21,AD$8:AD$32,0)+COUNTIF(AD$8:AD21,AD21)-1) -> 18 | AF21: 6 | AG21: 14 | AH21: 1 | AI21: 1 | AJ21: 14 | AK21: Chile | AL21: 56.83 | AO21: 57.6 | AP21: =IF($E21=0,"",RANK(AO21,AO$8:AO$32,0)+COUNTIF(AO$8:AO21,AO21)-1) -> 15 | AQ21: 4 | AR21: 14 | AS21: 1 | AT21: 1 | AU21: 14 | AV21: Brazil | AW21: 58.23
A22: =tblTerritories!A17 -> 15 | B22: =INDEX(tblTerritories!$R$3:$W$27,$A22,$B$1) -> 1 | C22: =tblTerritories!E17 -> Mexico | D22: =tblTerritories!D17 -> 0 | E22: =tblTerritories!G17 -> 1 | F22: =VLOOKUP(C22,tblTerritories!$F$3:$L$27,7,FALSE)+10 -> 12 | H22: 55.62 | I22: =IF($E22=0,"",RANK(H22,H$8:H$32,0)+COUNTIF(H$8:H22,H22)-1) -> 18 | J22: 18 | K22: 15 | L22: 1 | M22: 1 | N22: 15 | O22: Singapore | P22: 58.51 | S22: 52.88 | T22: =IF($E22=0,"",RANK(S22,S$8:S$32,0)+COUNTIF(S$8:S22,S22)-1) -> 18 | U22: 4 | V22: 15 | W22: 1 | X22: 1 | Y22: 15 | Z22: Brazil | AA22: 55.06 | AD22: 47.69 | AE22: =IF($E22=0,"",RANK(AD22,AD$8:AD$32,0)+COUNTIF(AD$8:AD22,AD22)-1) -> 19 | AF22: 19 | AG22: 15 | AH22: 1 | AI22: 1 | AJ22: 15 | AK22: South Korea | AL22: 56.22 | AO22: 52.76 | AP22: =IF($E22=0,"",RANK(AO22,AO$8:AO$32,0)+COUNTIF(AO$8:AO22,AO22)-1) -> 18 | AQ22: 14 | AR22: 15 | AS22: 1 | AT22: 1 | AU22: 15 | AV22: Malaysia | AW22: 57.6
A23: =tblTerritories!A18 -> 16 | B23: =INDEX(tblTerritories!$R$3:$W$27,$A23,$B$1) -> 1 | C23: =tblTerritories!E18 -> Netherlands | D23: =tblTerritories!D18 -> 0 | E23: =tblTerritories!G18 -> 1 | F23: =VLOOKUP(C23,tblTerritories!$F$3:$L$27,7,FALSE)+10 -> 13 | H23: 58.72 | I23: =IF($E23=0,"",RANK(H23,H$8:H$32,0)+COUNTIF(H$8:H23,H23)-1) -> 14 | J23: 5 | K23: 16 | L23: 1 | M23: 1 | N23: 16 | O23: Canada | P23: 58.1 | S23: 58.83 | T23: =IF($E23=0,"",RANK(S23,S$8:S$32,0)+COUNTIF(S$8:S23,S23)-1) -> 8 | U23: 2 | V23: 16 | W23: 1 | X23: 1 | Y23: 16 | Z23: Australia | AA23: 54.88 | AD23: 59.56 | AE23: =IF($E23=0,"",RANK(AD23,AD$8:AD$32,0)+COUNTIF(AD$8:AD23,AD23)-1) -> 12 | AF23: 3 | AG23: 16 | AH23: 1 | AI23: 1 | AJ23: 16 | AK23: Belgium | AL23: 56.04 | AO23: 58.9 | AP23: =IF($E23=0,"",RANK(AO23,AO$8:AO$32,0)+COUNTIF(AO$8:AO23,AO23)-1) -> 11 | AQ23: 18 | AR23: 16 | AS23: 1 | AT23: 1 | AU23: 16 | AV23: Singapore | AW23: 57.24
A24: =tblTerritories!A19 -> 17 | B24: =INDEX(tblTerritories!$R$3:$W$27,$A24,$B$1) -> 1 | C24: =tblTerritories!E19 -> Norway | D24: =tblTerritories!D19 -> 0 | E24: =tblTerritories!G19 -> 1 | F24: =VLOOKUP(C24,tblTerritories!$F$3:$L$27,7,FALSE)+10 -> 13 | H24: 63.23 | I24: =IF($E24=0,"",RANK(H24,H$8:H$32,0)+COUNTIF(H$8:H24,H24)-1) -> 4 | J24: 3 | K24: 17 | L24: 1 | M24: 1 | N24: 17 | O24: Belgium | P24: 56.64 | S24: 63.84 | T24: =IF($E24=0,"",RANK(S24,S$8:S$32,0)+COUNTIF(S$8:S24,S24)-1) -> 4 | U24: 18 | V24: 17 | W24: 1 | X24: 1 | Y24: 17 | Z24: Singapore | AA24: 53.68 | AD24: 64.8 | AE24: =IF($E24=0,"",RANK(AD24,AD$8:AD$32,0)+COUNTIF(AD$8:AD24,AD24)-1) -> 3 | AF24: 4 | AG24: 17 | AH24: 1 | AI24: 1 | AJ24: 17 | AK24: Brazil | AL24: 54.84 | AO24: 66.12 | AP24: =IF($E24=0,"",RANK(AO24,AO$8:AO$32,0)+COUNTIF(AO$8:AO24,AO24)-1) -> 2 | AQ24: 3 | AR24: 17 | AS24: 1 | AT24: 1 | AU24: 17 | AV24: Belgium | AW24: 55.64
A25: =tblTerritories!A20 -> 18 | B25: =INDEX(tblTerritories!$R$3:$W$27,$A25,$B$1) -> 1 | C25: =tblTerritories!E20 -> Singapore | D25: =tblTerritories!D20 -> 0 | E25: =tblTerritories!G20 -> 1 | F25: =VLOOKUP(C25,tblTerritories!$F$3:$L$27,7,FALSE)+10 -> 14 | H25: 58.51 | I25: =IF($E25=0,"",RANK(H25,H$8:H$32,0)+COUNTIF(H$8:H25,H25)-1) -> 15 | J25: 15 | K25: 18 | L25: 1 | M25: 1 | N25: 18 | O25: Mexico | P25: 55.62 | S25: 53.68 | T25: =IF($E25=0,"",RANK(S25,S$8:S$32,0)+COUNTIF(S$8:S25,S25)-1) -> 17 | U25: 15 | V25: 18 | W25: 1 | X25: 1 | Y25: 18 | Z25: Mexico | AA25: 52.88 | AD25: 57.71 | AE25: =IF($E25=0,"",RANK(AD25,AD$8:AD$32,0)+COUNTIF(AD$8:AD25,AD25)-1) -> 13 | AF25: 14 | AG25: 18 | AH25: 1 | AI25: 1 | AJ25: 18 | AK25: Malaysia | AL25: 52.7 | AO25: 57.24 | AP25: =IF($E25=0,"",RANK(AO25,AO$8:AO$32,0)+COUNTIF(AO$8:AO25,AO25)-1) -> 16 | AQ25: 15 | AR25: 18 | AS25: 1 | AT25: 1 | AU25: 18 | AV25: Mexico | AW25: 52.76
A26: =tblTerritories!A21 -> 19 | B26: =INDEX(tblTerritories!$R$3:$W$27,$A26,$B$1) -> 1 | C26: =tblTerritories!E21 -> South Korea | D26: =tblTerritories!D21 -> 0 | E26: =tblTerritories!G21 -> 1 | F26: =VLOOKUP(C26,tblTerritories!$F$3:$L$27,7,FALSE)+10 -> 14 | H26: 62.31 | I26: =IF($E26=0,"",RANK(H26,H$8:H$32,0)+COUNTIF(H$8:H26,H26)-1) -> 6 | J26: 14 | K26: 19 | L26: 1 | M26: 1 | N26: 19 | O26: Malaysia | P26: 51.87 | S26: 58.52 | T26: =IF($E26=0,"",RANK(S26,S$8:S$32,0)+COUNTIF(S$8:S26,S26)-1) -> 10 | U26: 1 | V26: 19 | W26: 1 | X26: 1 | Y26: 19 | Z26: Argentina | AA26: 49.19 | AD26: 56.22 | AE26: =IF($E26=0,"",RANK(AD26,AD$8:AD$32,0)+COUNTIF(AD$8:AD26,AD26)-1) -> 15 | AF26: 15 | AG26: 19 | AH26: 1 | AI26: 1 | AJ26: 19 | AK26: Mexico | AL26: 47.69 | AO26: 52.73 | AP26: =IF($E26=0,"",RANK(AO26,AO$8:AO$32,0)+COUNTIF(AO$8:AO26,AO26)-1) -> 19 | AQ26: 19 | AR26: 19 | AS26: 1 | AT26: 1 | AU26: 19 | AV26: South Korea | AW26: 52.73
A27: =tblTerritories!A22 -> 20 | B27: =INDEX(tblTerritories!$R$3:$W$27,$A27,$B$1) -> 1 | C27: =tblTerritories!E22 -> Spain | D27: =tblTerritories!D22 -> 0 | E27: =tblTerritories!G22 -> 1 | F27: =VLOOKUP(C27,tblTerritories!$F$3:$L$27,7,FALSE)+10 -> 13 | H27: 59.09 | I27: =IF($E27=0,"",RANK(H27,H$8:H$32,0)+COUNTIF(H$8:H27,H27)-1) -> 13 | J27: 1 | K27: 20 | L27: 1 | M27: 1 | N27: 20 | O27: Argentina | P27: 51.35 | S27: 56.66 | T27: =IF($E27=0,"",RANK(S27,S$8:S$32,0)+COUNTIF(S$8:S27,S27)-1) -> 14 | U27: 11 | V27: 20 | W27: 1 | X27: 1 | Y27: 20 | Z27: India | AA27: 48.36 | AD27: 59.82 | AE27: =IF($E27=0,"",RANK(AD27,AD$8:AD$32,0)+COUNTIF(AD$8:AD27,AD27)-1) -> 9 | AF27: 1 | AG27: 20 | AH27: 1 | AI27: 1 | AJ27: 20 | AK27: Argentina | AL27: 45.02 | AO27: 61.01 | AP27: =IF($E27=0,"",RANK(AO27,AO$8:AO$32,0)+COUNTIF(AO$8:AO27,AO27)-1) -> 7 | AQ27: 22 | AR27: 20 | AS27: 1 | AT27: 1 | AU27: 20 | AV27: Thailand | AW27: 50.55
A28: =tblTerritories!A23 -> 21 | B28: =INDEX(tblTerritories!$R$3:$W$27,$A28,$B$1) -> 1 | C28: =tblTerritories!E23 -> Sweden | D28: =tblTerritories!D23 -> 0 | E28: =tblTerritories!G23 -> 1 | F28: =VLOOKUP(C28,tblTerritories!$F$3:$L$27,7,FALSE)+10 -> 13 | H28: 61.97 | I28: =IF($E28=0,"",RANK(H28,H$8:H$32,0)+COUNTIF(H$8:H28,H28)-1) -> 8 | J28: 11 | K28: 21 | L28: 1 | M28: 1 | N28: 21 | O28: India | P28: 48.55 | S28: 64.01 | T28: =IF($E28=0,"",RANK(S28,S$8:S$32,0)+COUNTIF(S$8:S28,S28)-1) -> 3 | U28: 7 | V28: 21 | W28: 1 | X28: 1 | Y28: 21 | Z28: China | AA28: 48.35 | AD28: 65.69 | AE28: =IF($E28=0,"",RANK(AD28,AD$8:AD$32,0)+COUNTIF(AD$8:AD28,AD28)-1) -> 2 | AF28: 7 | AG28: 21 | AH28: 1 | AI28: 1 | AJ28: 21 | AK28: China | AL28: 44.32 | AO28: 67.57 | AP28: =IF($E28=0,"",RANK(AO28,AO$8:AO$32,0)+COUNTIF(AO$8:AO28,AO28)-1) -> 1 | AQ28: 11 | AR28: 21 | AS28: 1 | AT28: 1 | AU28: 21 | AV28: India | AW28: 48.65
A29: =tblTerritories!A24 -> 22 | B29: =INDEX(tblTerritories!$R$3:$W$27,$A29,$B$1) -> 1 | C29: =tblTerritories!E24 -> Thailand | D29: =tblTerritories!D24 -> 0 | E29: =tblTerritories!G24 -> 1 | F29: =VLOOKUP(C29,tblTerritories!$F$3:$L$27,7,FALSE)+10 -> 15 | H29: 45.11 | I29: =IF($E29=0,"",RANK(H29,H$8:H$32,0)+COUNTIF(H$8:H29,H29)-1) -> 24 | J29: 7 | K29: 22 | L29: 1 | M29: 1 | N29: 22 | O29: China | P29: 47.44 | S29: 40.89 | T29: =IF($E29=0,"",RANK(S29,S$8:S$32,0)+COUNTIF(S$8:S29,S29)-1) -> 24 | U29: 14 | V29: 22 | W29: 1 | X29: 1 | Y29: 22 | Z29: Malaysia | AA29: 47.64 | AD29: 44.06 | AE29: =IF($E29=0,"",RANK(AD29,AD$8:AD$32,0)+COUNTIF(AD$8:AD29,AD29)-1) -> 22 | AF29: 22 | AG29: 22 | AH29: 1 | AI29: 1 | AJ29: 22 | AK29: Thailand | AL29: 44.06 | AO29: 50.55 | AP29: =IF($E29=0,"",RANK(AO29,AO$8:AO$32,0)+COUNTIF(AO$8:AO29,AO29)-1) -> 20 | AQ29: 1 | AR29: 22 | AS29: 1 | AT29: 1 | AU29: 22 | AV29: Argentina | AW29: 48.06
A30: =tblTerritories!A25 -> 23 | B30: =INDEX(tblTerritories!$R$3:$W$27,$A30,$B$1) -> 1 | C30: =tblTerritories!E25 -> United Kingdom | D30: =tblTerritories!D25 -> 0 | E30: =tblTerritories!G25 -> 1 | F30: =VLOOKUP(C30,tblTerritories!$F$3:$L$27,7,FALSE)+10 -> 13 | H30: 62.69 | I30: =IF($E30=0,"",RANK(H30,H$8:H$32,0)+COUNTIF(H$8:H30,H30)-1) -> 5 | J30: 25 | K30: 23 | L30: 1 | M30: 1 | N30: 23 | O30: Vietnam | P30: 46.99 | S30: 64.53 | T30: =IF($E30=0,"",RANK(S30,S$8:S$32,0)+COUNTIF(S$8:S30,S30)-1) -> 1 | U30: 25 | V30: 23 | W30: 1 | X30: 1 | Y30: 23 | Z30: Vietnam | AA30: 42.56 | AD30: 63.62 | AE30: =IF($E30=0,"",RANK(AD30,AD$8:AD$32,0)+COUNTIF(AD$8:AD30,AD30)-1) -> 5 | AF30: 25 | AG30: 23 | AH30: 1 | AI30: 1 | AJ30: 23 | AK30: Vietnam | AL30: 42.54 | AO30: 60.03 | AP30: =IF($E30=0,"",RANK(AO30,AO$8:AO$32,0)+COUNTIF(AO$8:AO30,AO30)-1) -> 9 | AQ30: 7 | AR30: 23 | AS30: 1 | AT30: 1 | AU30: 23 | AV30: China | AW30: 47.25
A31: =tblTerritories!A26 -> 24 | B31: =INDEX(tblTerritories!$R$3:$W$27,$A31,$B$1) -> 1 | C31: =tblTerritories!E26 -> United States | D31: =tblTerritories!D26 -> 0 | E31: =tblTerritories!G26 -> 1 | F31: =VLOOKUP(C31,tblTerritories!$F$3:$L$27,7,FALSE)+10 -> 11 | H31: 63.58 | I31: =IF($E31=0,"",RANK(H31,H$8:H$32,0)+COUNTIF(H$8:H31,H31)-1) -> 3 | J31: 22 | K31: 24 | L31: 1 | M31: 1 | N31: 24 | O31: Thailand | P31: 45.11 | S31: 63.56 | T31: =IF($E31=0,"",RANK(S31,S$8:S$32,0)+COUNTIF(S$8:S31,S31)-1) -> 6 | U31: 22 | V31: 24 | W31: 1 | X31: 1 | Y31: 24 | Z31: Thailand | AA31: 40.89 | AD31: 68.61 | AE31: =IF($E31=0,"",RANK(AD31,AD$8:AD$32,0)+COUNTIF(AD$8:AD31,AD31)-1) -> 1 | AF31: 11 | AG31: 24 | AH31: 1 | AI31: 1 | AJ31: 24 | AK31: India | AL31: 42.08 | AO31: 58.86 | AP31: =IF($E31=0,"",RANK(AO31,AO$8:AO$32,0)+COUNTIF(AO$8:AO31,AO31)-1) -> 12 | AQ31: 12 | AR31: 24 | AS31: 1 | AT31: 1 | AU31: 24 | AV31: Indonesia | AW31: 46.85
A32: =tblTerritories!A27 -> 25 | B32: =INDEX(tblTerritories!$R$3:$W$27,$A32,$B$1) -> 1 | C32: =tblTerritories!E27 -> Vietnam | D32: =tblTerritories!D27 -> 0 | E32: =tblTerritories!G27 -> 1 | F32: =VLOOKUP(C32,tblTerritories!$F$3:$L$27,7,FALSE)+10 -> 15 | H32: 46.99 | I32: =IF($E32=0,"",RANK(H32,H$8:H$32,0)+COUNTIF(H$8:H32,H32)-1) -> 23 | J32: 12 | K32: 25 | L32: 1 | M32: 1 | N32: 25 | O32: Indonesia | P32: 44.58 | S32: 42.56 | T32: =IF($E32=0,"",RANK(S32,S$8:S$32,0)+COUNTIF(S$8:S32,S32)-1) -> 23 | U32: 12 | V32: 25 | W32: 1 | X32: 1 | Y32: 25 | Z32: Indonesia | AA32: 40.84 | AD32: 42.54 | AE32: =IF($E32=0,"",RANK(AD32,AD$8:AD$32,0)+COUNTIF(AD$8:AD32,AD32)-1) -> 23 | AF32: 12 | AG32: 25 | AH32: 1 | AI32: 1 | AJ32: 25 | AK32: Indonesia | AL32: 38.81 | AO32: 45.43 | AP32: =IF($E32=0,"",RANK(AO32,AO$8:AO$32,0)+COUNTIF(AO$8:AO32,AO32)-1) -> 25 | AQ32: 25 | AR32: 25 | AS32: 1 | AT32: 1 | AU32: 25 | AV32: Vietnam | AW32: 45.43
B35: =SUM(B8:B32) -> 25 | F35: =C1 -> Average: View all Regions | G35: =RANK(H35,H8:H35) -> 17 | H35: =AVERAGE(H8:H32) -> 57.1656 | R35: =RANK(S35,S8:S35) -> 15 | S35: =AVERAGE(S8:S32) -> 55.3088 | AC35: =RANK(AD35,AD8:AD35) -> 17 | AD35: =AVERAGE(AD8:AD32) -> 55.5028 | AN35: =RANK(AO35,AO8:AO35) -> 17 | AO35: =AVERAGE(AO8:AO32) -> 56.9404
G36: =G35-1&" < x < "&G35 -> 16 < x < 17 | H36: =COUNT(H8:H32) -> 25 | R36: =R35-1&" < x < "&R35 -> 14 < x < 15 | S36: =COUNT(S8:S32) -> 25 | AC36: =AC35-1&" < x < "&AC35 -> 16 < x < 17 | AN36: =AN35-1&" < x < "&AN35 -> 16 < x < 17

Sheet iSummaryReg (hidden)
A1: All tiers | B1: =uxb_works!B85 -> 2 | C1: ="Average: "&INDEX(luRegions,B2) -> Average: View all Regions
B2: =uxb_works!B14 -> 1
A3: Rounding | B3: 2
H5: =uxb_works!$B$71 -> 1 | S5: =uxb_works!$B$71 -> 1 | AD5: =uxb_works!$B$71 -> 1 | AO5: =uxb_works!$B$71 -> 1
H6: =INDEX(tblIndiSets!$B$12:$B$27,H5) -> 1 | N6: =INDEX(tblIndiSets!$C$12:$C$27,H5) -> OVERALL SCORE | S6: =INDEX(tblIndiSets!$H$12:$H$27,S5) -> 1 | AD6: =INDEX(tblIndiSets!$N$12:$N$27,AD5) -> 1 | AO6: =INDEX(tblIndiSets!$R$12:$R$27,AO5) -> 1
B7: IN/OUT Group | D7: IsRegion | E7: ActiveStatus | F7: All Tiers | H7: Score | I7: Rank | J7: LU | K7: RankRounded | P7: Score | S7: Score | T7: Rank | U7: LU | V7: RankRounded | AA7: Score | AD7: Score | AE7: Rank | AF7: LU | AG7: RankRounded | AL7: Score | AO7: Score | AP7: Rank | AQ7: LU | AR7: RankRounded | AW7: Score
A8: =tblTerritories!A3 -> 1 | B8: 0 | C8: =tblTerritories!O4 -> View all Regions | D8: =tblTerritories!D3 -> 0 | E8: =tblTerritories!I4 -> 3 | H8: =IF($E8=0,"",ROUND(INDEX(aScoresRegionFB,H$6,$A8),$B$3)) -> 57.17 | I8: =IF($E8=0,"",RANK(H8,H$8:H$13,0)+COUNTIF(H$8:H8,H8)-1) -> 4 | J8: =IF(ISERROR(MATCH($A8,I$8:I$13,0)),"",MATCH($A8,I$8:I$13,0)) -> 5 | K8: =IF(J8="","",RANK(P8,P$8:P$13)) -> 1 | L8: =IF(J8="","",COUNTIF(P$8:P$13,P8)) -> 1 | M8: =IF(J8="",0,IF(INDEX($E$8:$E$13,J8)=3,3,INDEX($A$8:$A$13,J8)+10)) -> 15 | N8: =IF(J8="","",IF(L8>1,CONCATENATE("=",K8),K8)) -> 1 | O8: =IF(J8="","",INDEX($C$8:$C$13,J8)) -> Asia (high-income) | P8: =IF(J8="","",INDEX(H$8:H$13,J8)) -> 61.25 | S8: =IF($E8=0,"",ROUND(INDEX(aScoresRegionCG,S$6,$A8),$B$3)) -> 55.31 | T8: =IF($E8=0,"",RANK(S8,S$8:S$13,0)+COUNTIF(S$8:S8,S8)-1) -> 4 | U8: =IF(ISERROR(MATCH($A8,T$8:T$13,0)),"",MATCH($A8,T$8:T$13,0)) -> 4 | V8: =IF(U8="","",RANK(AA8,AA$8:AA$13)) -> 1 | W8: =IF(U8="","",COUNTIF(AA$8:AA$13,AA8)) -> 1 | X8: =IF(U8="",0,IF(INDEX($E$8:$E$13,U8)=3,3,INDEX($A$8:$A$13,U8)+10)) -> 14 | Y8: =IF(U8="","",IF(W8>1,CONCATENATE("=",V8),V8)) -> 1 | Z8: =IF(U8="","",INDEX($C$8:$C$13,U8)) -> Europe | AA8: =IF(U8="","",INDEX(S$8:S$13,U8)) -> 61.43 | AD8: =IF($E8=0,"",ROUND(INDEX(aScoresRegionHS,AD$6,$A8),$B$3)) -> 55.5 | AE8: =IF($E8=0,"",RANK(AD8,AD$8:AD$13,0)+COUNTIF(AD$8:AD8,AD8)-1) -> 4 | AF8: =IF(ISERROR(MATCH($A8,AE$8:AE$13,0)),"",MATCH($A8,AE$8:AE$13,0)) -> 2 | AG8: =IF(AF8="","",RANK(AL8,AL$8:AL$13)) -> 1 | AH8: =IF(AF8="","",COUNTIF(AL$8:AL$13,AL8)) -> 1 | AI8: =IF(AF8="",0,IF(INDEX($E$8:$E$13,AF8)=3,3,INDEX($A$8:$A$13,AF8)+10)) -> 12 | AJ8: =IF(AF8="","",IF(AH8>1,CONCATENATE("=",AG8),AG8)) -> 1 | AK8: =IF(AF8="","",INDEX($C$8:$C$13,AF8)) -> North America | AL8: =IF(AF8="","",INDEX(AD$8:AD$13,AF8)) -> 66.55 | AO8: =IF($E8=0,"",ROUND(INDEX(aScoresRegionHT,AO$6,$A8),$B$3)) -> 56.94 | AP8: =IF($E8=0,"",RANK(AO8,AO$8:AO$13,0)+COUNTIF(AO$8:AO8,AO8)-1) -> 4 | AQ8: =IF(ISERROR(MATCH($A8,AP$8:AP$13,0)),"",MATCH($A8,AP$8:AP$13,0)) -> 4 | AR8: =IF(AQ8="","",RANK(AW8,AW$8:AW$13)) -> 1 | AS8: =IF(AQ8="","",COUNTIF(AW$8:AW$13,AW8)) -> 1 | AT8: =IF(AQ8="",0,IF(INDEX($E$8:$E$13,AQ8)=3,3,INDEX($A$8:$A$13,AQ8)+10)) -> 14 | AU8: =IF(AQ8="","",IF(AS8>1,CONCATENATE("=",AR8),AR8)) -> 1 | AV8: =IF(AQ8="","",INDEX($C$8:$C$13,AQ8)) -> Europe | AW8: =IF(AQ8="","",INDEX(AO$8:AO$13,AQ8)) -> 62.12
A9: =tblTerritories!A4 -> 2 | B9: 0 | C9: =tblTerritories!O5 -> North America | D9: =tblTerritories!D4 -> 0 | E9: =tblTerritories!I5 -> 1 | H9: 60.84 | I9: =IF($E9=0,"",RANK(H9,H$8:H$13,0)+COUNTIF(H$8:H9,H9)-1) -> 3 | J9: 4 | K9: 2 | L9: 1 | M9: =IF(J9="",0,IF(INDEX($E$8:$E$13,J9)=3,3,INDEX($A$8:$A$13,J9)+10)) -> 14 | N9: =IF(J9="","",IF(L9>1,CONCATENATE("=",K9),K9)) -> 2 | O9: Europe | P9: 61.08 | S9: 60.83 | T9: =IF($E9=0,"",RANK(S9,S$8:S$13,0)+COUNTIF(S$8:S9,S9)-1) -> 2 | U9: 2 | V9: 2 | W9: 1 | X9: =IF(U9="",0,IF(INDEX($E$8:$E$13,U9)=3,3,INDEX($A$8:$A$13,U9)+10)) -> 12 | Y9: =IF(U9="","",IF(W9>1,CONCATENATE("=",V9),V9)) -> 2 | Z9: North America | AA9: 60.83 | AD9: 66.55 | AE9: =IF($E9=0,"",RANK(AD9,AD$8:AD$13,0)+COUNTIF(AD$8:AD9,AD9)-1) -> 1 | AF9: 4 | AG9: 2 | AH9: 1 | AI9: =IF(AF9="",0,IF(INDEX($E$8:$E$13,AF9)=3,3,INDEX($A$8:$A$13,AF9)+10)) -> 14 | AJ9: =IF(AF9="","",IF(AH9>1,CONCATENATE("=",AG9),AG9)) -> 2 | AK9: Europe | AL9: 61.37 | AO9: 58.61 | AP9: =IF($E9=0,"",RANK(AO9,AO$8:AO$13,0)+COUNTIF(AO$8:AO9,AO9)-1) -> 2 | AQ9: 2 | AR9: 2 | AS9: 1 | AT9: =IF(AQ9="",0,IF(INDEX($E$8:$E$13,AQ9)=3,3,INDEX($A$8:$A$13,AQ9)+10)) -> 12 | AU9: =IF(AQ9="","",IF(AS9>1,CONCATENATE("=",AR9),AR9)) -> 2 | AV9: North America | AW9: 58.61
A10: =tblTerritories!A5 -> 3 | B10: 0 | C10: =tblTerritories!O6 -> Latin America | D10: =tblTerritories!D5 -> 0 | E10: =tblTerritories!I6 -> 1 | H10: 57.06 | I10: =IF($E10=0,"",RANK(H10,H$8:H$13,0)+COUNTIF(H$8:H10,H10)-1) -> 5 | J10: 2 | K10: 3 | L10: 1 | M10: 12 | N10: 3 | O10: North America | P10: 60.84 | S10: 53.93 | T10: =IF($E10=0,"",RANK(S10,S$8:S$13,0)+COUNTIF(S$8:S10,S10)-1) -> 5 | U10: 5 | V10: 3 | W10: 1 | X10: 15 | Y10: 3 | Z10: Asia (high-income) | AA10: 55.97 | AD10: 51.09 | AE10: =IF($E10=0,"",RANK(AD10,AD$8:AD$13,0)+COUNTIF(AD$8:AD10,AD10)-1) -> 5 | AF10: 5 | AG10: 3 | AH10: 1 | AI10: 15 | AJ10: 3 | AK10: Asia (high-income) | AL10: 58.32 | AO10: 55.47 | AP10: =IF($E10=0,"",RANK(AO10,AO$8:AO$13,0)+COUNTIF(AO$8:AO10,AO10)-1) -> 5 | AQ10: 5 | AR10: 3 | AS10: 1 | AT10: 15 | AU10: 3 | AV10: Asia (high-income) | AW10: 57.26
A11: =tblTerritories!A6 -> 4 | B11: 0 | C11: =tblTerritories!O7 -> Europe | D11: =tblTerritories!D6 -> 0 | E11: =tblTerritories!I7 -> 1 | H11: 61.08 | I11: =IF($E11=0,"",RANK(H11,H$8:H$13,0)+COUNTIF(H$8:H11,H11)-1) -> 2 | J11: 1 | K11: 4 | L11: 1 | M11: 3 | N11: 4 | O11: View all Regions | P11: 57.17 | S11: 61.43 | T11: =IF($E11=0,"",RANK(S11,S$8:S$13,0)+COUNTIF(S$8:S11,S11)-1) -> 1 | U11: 1 | V11: 4 | W11: 1 | X11: 3 | Y11: 4 | Z11: View all Regions | AA11: 55.31 | AD11: 61.37 | AE11: =IF($E11=0,"",RANK(AD11,AD$8:AD$13,0)+COUNTIF(AD$8:AD11,AD11)-1) -> 2 | AF11: 1 | AG11: 4 | AH11: 1 | AI11: 3 | AJ11: 4 | AK11: View all Regions | AL11: 55.5 | AO11: 62.12 | AP11: =IF($E11=0,"",RANK(AO11,AO$8:AO$13,0)+COUNTIF(AO$8:AO11,AO11)-1) -> 1 | AQ11: 1 | AR11: 4 | AS11: 1 | AT11: 3 | AU11: 4 | AV11: View all Regions | AW11: 56.94
A12: =tblTerritories!A7 -> 5 | B12: 0 | C12: =tblTerritories!O8 -> Asia (high-income) | D12: =tblTerritories!D7 -> 0 | E12: =tblTerritories!I8 -> 1 | H12: 61.25 | I12: =IF($E12=0,"",RANK(H12,H$8:H$13,0)+COUNTIF(H$8:H12,H12)-1) -> 1 | J12: 3 | K12: 5 | L12: 1 | M12: 13 | N12: 5 | O12: Latin America | P12: 57.06 | S12: 55.97 | T12: =IF($E12=0,"",RANK(S12,S$8:S$13,0)+COUNTIF(S$8:S12,S12)-1) -> 3 | U12: 3 | V12: 5 | W12: 1 | X12: 13 | Y12: 5 | Z12: Latin America | AA12: 53.93 | AD12: 58.32 | AE12: =IF($E12=0,"",RANK(AD12,AD$8:AD$13,0)+COUNTIF(AD$8:AD12,AD12)-1) -> 3 | AF12: 3 | AG12: 5 | AH12: 1 | AI12: 13 | AJ12: 5 | AK12: Latin America | AL12: 51.09 | AO12: 57.26 | AP12: =IF($E12=0,"",RANK(AO12,AO$8:AO$13,0)+COUNTIF(AO$8:AO12,AO12)-1) -> 3 | AQ12: 3 | AR12: 5 | AS12: 1 | AT12: 13 | AU12: 5 | AV12: Latin America | AW12: 55.47
A13: =tblTerritories!A8 -> 6 | B13: 0 | C13: =tblTerritories!O9 -> Asia (emerging-market) | D13: =tblTerritories!D8 -> 0 | E13: =tblTerritories!I9 -> 1 | H13: 47.43 | I13: =IF($E13=0,"",RANK(H13,H$8:H$13,0)+COUNTIF(H$8:H13,H13)-1) -> 6 | J13: 6 | K13: 6 | L13: 1 | M13: 16 | N13: 6 | O13: Asia (emerging-market) | P13: 47.43 | S13: 44.77 | T13: =IF($E13=0,"",RANK(S13,S$8:S$13,0)+COUNTIF(S$8:S13,S13)-1) -> 6 | U13: 6 | V13: 6 | W13: 1 | X13: 16 | Y13: 6 | Z13: Asia (emerging-market) | AA13: 44.77 | AD13: 44.09 | AE13: =IF($E13=0,"",RANK(AD13,AD$8:AD$13,0)+COUNTIF(AD$8:AD13,AD13)-1) -> 6 | AF13: 6 | AG13: 6 | AH13: 1 | AI13: 16 | AJ13: 6 | AK13: Asia (emerging-market) | AL13: 44.09 | AO13: 49.39 | AP13: =IF($E13=0,"",RANK(AO13,AO$8:AO$13,0)+COUNTIF(AO$8:AO13,AO13)-1) -> 6 | AQ13: 6 | AR13: 6 | AS13: 1 | AT13: 16 | AU13: 6 | AV13: Asia (emerging-market) | AW13: 49.39
B16: =SUM(B8:B13) -> 0 | F16: =C1 -> Average: View all Regions | G16: =RANK(H16,H8:H16) -> 4 | H16: =AVERAGE(H8:H13) -> 57.47166667 | R16: =RANK(S16,S8:S16) -> 4 | S16: =AVERAGE(S8:S13) -> 55.37333333 | AC16: =RANK(AD16,AD8:AD16) -> 4 | AD16: =AVERAGE(AD8:AD13) -> 56.15333333 | AN16: =RANK(AO16,AO8:AO16) -> 5 | AO16: =AVERAGE(AO8:AO13) -> 56.63166667
G17: =G16-1&" < x < "&G16 -> 3 < x < 4 | H17: =COUNT(H8:H13) -> 6 | R17: =R16-1&" < x < "&R16 -> 3 < x < 4 | S17: =COUNT(S8:S13) -> 6 | AC17: =AC16-1&" < x < "&AC16 -> 3 < x < 4 | AN17: =AN16-1&" < x < "&AN16 -> 4 < x < 5

Sheet RegionSummary (hidden)
BA1: 3 | BB1: 2
C4: =iSummaryReg!N6 -> OVERALL SCORE
C8: =UPPER(tblIndiSets!$A$227) -> FOOD AND BEVERAGE | H8: =UPPER(tblIndiSets!$A$228) -> CONSUMER GOODS | M8: =UPPER(tblIndiSets!$A$229) -> HEALTHCARE SERVICES | R8: =UPPER(tblIndiSets!$A$230) -> HOSPITALITY SERVICES
B9: =iSummaryReg!M8 -> 15 | C9: =iSummaryReg!N8 -> 1 | D9: =iSummaryReg!O8 -> Asia (high-income) | E9: =iSummaryReg!P8 -> 61.25 | G9: =iSummaryReg!X8 -> 14 | H9: =iSummaryReg!Y8 -> 1 | I9: =iSummaryReg!Z8 -> Europe | J9: =iSummaryReg!AA8 -> 61.43 | L9: =iSummaryReg!AI8 -> 12 | M9: =iSummaryReg!AJ8 -> 1 | N9: =iSummaryReg!AK8 -> North America | O9: =iSummaryReg!AL8 -> 66.55 | Q9: =iSummaryReg!AT8 -> 14 | R9: =iSummaryReg!AU8 -> 1 | S9: =iSummaryReg!AV8 -> Europe | T9: =iSummaryReg!AW8 -> 62.12
B10: =iSummaryReg!M9 -> 14 | C10: =iSummaryReg!N9 -> 2 | D10: =iSummaryReg!O9 -> Europe | E10: =iSummaryReg!P9 -> 61.08 | G10: =iSummaryReg!X9 -> 12 | H10: =iSummaryReg!Y9 -> 2 | I10: =iSummaryReg!Z9 -> North America | J10: =iSummaryReg!AA9 -> 60.83 | L10: =iSummaryReg!AI9 -> 14 | M10: =iSummaryReg!AJ9 -> 2 | N10: =iSummaryReg!AK9 -> Europe | O10: =iSummaryReg!AL9 -> 61.37 | Q10: =iSummaryReg!AT9 -> 12 | R10: =iSummaryReg!AU9 -> 2 | S10: =iSummaryReg!AV9 -> North America | T10: =iSummaryReg!AW9 -> 58.61
B11: =iSummaryReg!M10 -> 12 | C11: =iSummaryReg!N10 -> 3 | D11: =iSummaryReg!O10 -> North America | E11: =iSummaryReg!P10 -> 60.84 | G11: =iSummaryReg!X10 -> 15 | H11: =iSummaryReg!Y10 -> 3 | I11: =iSummaryReg!Z10 -> Asia (high-income) | J11: =iSummaryReg!AA10 -> 55.97 | L11: =iSummaryReg!AI10 -> 15 | M11: =iSummaryReg!AJ10 -> 3 | N11: =iSummaryReg!AK10 -> Asia (high-income) | O11: =iSummaryReg!AL10 -> 58.32 | Q11: =iSummaryReg!AT10 -> 15 | R11: =iSummaryReg!AU10 -> 3 | S11: =iSummaryReg!AV10 -> Asia (high-income) | T11: =iSummaryReg!AW10 -> 57.26
B12: =iSummaryReg!M11 -> 3 | C12: =iSummaryReg!N11 -> 4 | D12: =iSummaryReg!O11 -> View all Regions | E12: =iSummaryReg!P11 -> 57.17 | G12: =iSummaryReg!X11 -> 3 | H12: =iSummaryReg!Y11 -> 4 | I12: =iSummaryReg!Z11 -> View all Regions | J12: =iSummaryReg!AA11 -> 55.31 | L12: =iSummaryReg!AI11 -> 3 | M12: =iSummaryReg!AJ11 -> 4 | N12: =iSummaryReg!AK11 -> View all Regions | O12: =iSummaryReg!AL11 -> 55.5 | Q12: =iSummaryReg!AT11 -> 3 | R12: =iSummaryReg!AU11 -> 4 | S12: =iSummaryReg!AV11 -> View all Regions | T12: =iSummaryReg!AW11 -> 56.94
B13: =iSummaryReg!M12 -> 13 | C13: =iSummaryReg!N12 -> 5 | D13: =iSummaryReg!O12 -> Latin America | E13: =iSummaryReg!P12 -> 57.06 | G13: =iSummaryReg!X12 -> 13 | H13: =iSummaryReg!Y12 -> 5 | I13: =iSummaryReg!Z12 -> Latin America | J13: =iSummaryReg!AA12 -> 53.93 | L13: =iSummaryReg!AI12 -> 13 | M13: =iSummaryReg!AJ12 -> 5 | N13: =iSummaryReg!AK12 -> Latin America | O13: =iSummaryReg!AL12 -> 51.09 | Q13: =iSummaryReg!AT12 -> 13 | R13: =iSummaryReg!AU12 -> 5 | S13: =iSummaryReg!AV12 -> Latin America | T13: =iSummaryReg!AW12 -> 55.47
B14: =iSummaryReg!M13 -> 16 | C14: =iSummaryReg!N13 -> 6 | D14: =iSummaryReg!O13 -> Asia (emerging-market) | E14: =iSummaryReg!P13 -> 47.43 | G14: =iSummaryReg!X13 -> 16 | H14: =iSummaryReg!Y13 -> 6 | I14: =iSummaryReg!Z13 -> Asia (emerging-market) | J14: =iSummaryReg!AA13 -> 44.77 | L14: =iSummaryReg!AI13 -> 16 | M14: =iSummaryReg!AJ13 -> 6 | N14: =iSummaryReg!AK13 -> Asia (emerging-market) | O14: =iSummaryReg!AL13 -> 44.09 | Q14: =iSummaryReg!AT13 -> 16 | R14: =iSummaryReg!AU13 -> 6 | S14: =iSummaryReg!AV13 -> Asia (emerging-market) | T14: =iSummaryReg!AW13 -> 49.39

Sheet iCCompSpiderFB (hidden)
A1: Overall Score | D1: Score | E1: Rank
A2: =uxb_works!A35 -> COUNTRY_COMPARE_1 | B2: =uxb_works!B35 -> 1 | C2: =CONCATENATE("Description: ",uxb_works!C35) -> Description: Argentina | D2: =E6 -> 51.34794276 | E2: =INDEX(iIndiRankFB!$H$6:$H$120,$B$2) -> 20 | F2: =IF(E2<E3,"*","") ->  | H2: =uxb_works!C35 -> Argentina
A3: =uxb_works!A36 -> COUNTRY_COMPARE_2 | B3: =uxb_works!B36 -> 1 | C3: =CONCATENATE("Description: ",uxb_works!C36) -> Description: Argentina | D3: =G6 -> 51.34794276 | E3: =INDEX(iIndiRankFB!$H$6:$H$120,$B$3) -> 20 | F3: =IF(E3<E2,"*","") ->  | H3: =uxb_works!C36 -> Argentina
A4: =uxb_works!A40 -> REGION_COMPARE | B4: =uxb_works!B40 -> 1 | C4: =uxb_works!C40 -> View all Regions
E5: Score | F5: rank | G5: Score | H5: Rank | U5: Total
E6: =INDEX(aScoresFB,1,$B$2) -> 51.34794276 | F6: =INDEX(aRankFB,1,$B$2) -> 20 | G6: =INDEX(aScoresFB,1,$B$3) -> 51.34794276 | H6: =INDEX(aRankFB,1,$B$3) -> 20 | N6: 1
E7: City 1 | G7: City 2 | N7: =INDEX(tblIndiSets!$B$5:$B$12,N6) -> 1 | U7: 1 | V7: 1 | W7: 2 | X7: 3 | Y7: 4 | Z7: 5
C8: ActiveStatus | E8: Score | F8: Data | G8: Score | H8: Data | I8: Average | N8: Score | O8: Rank | P8: LU | Q8: Rank | U8: Name | V8: Score | W8: Data | X8: Score | Y8: Data | Z8: Average | AA8: Rank` | AC8: units | AD8: Star | AE8: Star | AH8: units
A9: =tblCategories!A3 -> 1 | B9: =tblCategories!D3 -> OVERALL SCORE | C9: 0 | D9: 1 | E9: =INDEX(aScoresFB,$A9,$B$2) -> 51.34794276 | F9: =IF(INDEX(aDataFB,$A9,$B$2)="","",INDEX(aDataFB,$A9,$B$2)) ->  | G9: =INDEX(aScoresFB,$A9,$B$3) -> 51.34794276 | H9: =IF(INDEX(aDataFB,$A9,$B$3)="","",INDEX(aDataFB,$A9,$B$3)) ->  | I9: =INDEX(iScoresFB!$AQ$5:$AV$107,iCCompSpiderFB!A9,iCCompSpiderFB!$B$4) -> 57.16607662 | N9: =IF($C9=0,"",(INDEX($D$9:$H$111,$A9,N$7))) ->  | O9: =IF($C9=0,"",RANK(N9,N$9:N$111,1)+COUNTIF(N$9:N9,N9)-1) ->  | P9: =IF(ISERROR(MATCH($A9,O$9:O$111,0)),"",MATCH($A9,O$9:O$111,0)) -> 2 | Q9: =IF(P9="","",RANK(V9,V$9:V$111,0)) -> 3 | R9: =IF(P9="","",COUNTIF(V$9:V$111,V9)) -> 1 | S9: =IF(P9="",0,INDEX($D$9:$D$111,P9)) -> 1 | T9: =IF(P9="","",IF(R9>1,CONCATENATE("=",Q9),Q9)) -> 3 | U9: =IF($P9="","",INDEX($B$9:$H$111,$P9,U$7)) -> 1) NATURAL RESOURCE INPUTS | V9: =IF($P9="","",INDEX($E$9:$L$111,$P9,V$7)) -> 45.52068378 | X9: =IF($P9="","",INDEX($E$9:$H$111,$P9,X$7)) -> 45.52068378 | Y9: =IF($P9="","",INDEX($E$9:$L$111,$P9,Y$7)) ->  | Z9: 49.71434531 | AA9: =IF(Q9="","",IF(ISERROR(INDEX(aRankFB,$P9+1,uxb_works!$B$25)),"",INDEX(aRankFB,$P9+1,uxb_works!$B$25))) -> 25 | AC9: =IF(P9="","",INDEX('tblIndicators-FB'!$G$3:$G$155,iCCompSpiderFB!P9)) -> Natural Resource Inputs - Use | AD9: =IF(Z9<AA9,"*","") -> * | AE9: =IF(AA9<Z9,"*","") ->  | AH9: =IF(P9="","",INDEX('tblIndicators-FB'!$Y$3:$Y$96,iCCompSpiderFB!P9)) -> #0.0
A10: =tblCategories!A4 -> 2 | B10: =tblCategories!D4 -> 1) NATURAL RESOURCE INPUTS | C10: =tblCategories!AG4 -> 1 | D10: 1 | E10: 45.52068378 | G10: 45.52068378 | I10: =INDEX(iScoresFB!$AQ$5:$AV$107,iCCompSpiderFB!A10,iCCompSpiderFB!$B$4) -> 49.71434531 | N10: 1 | O10: =IF($C10=0,"",RANK(N10,N$9:N$111,1)+COUNTIF(N$9:N10,N10)-1) -> 1 | P10: 46 | Q10: 1 | R10: 1 | S10: 1 | T10: =IF(P10="","",IF(R10>1,CONCATENATE("=",Q10),Q10)) -> 1 | U10: 2) PHYSICAL RESOURCE INFRASTRUCTURE | V10: 60.76305752 | X10: 60.76305752 | Z10: 66.21593312 | AA10: =IF(Q10="","",IF(ISERROR(INDEX(aRankFB,$P10+1,uxb_works!$B$25)),"",INDEX(aRankFB,$P10+1,uxb_works!$B$25))) -> 23 | AC10: =IF(P10="","",INDEX('tblIndicators-FB'!$G$3:$G$155,iCCompSpiderFB!P10)) -> Physical Resource Infrastructure - Use | AD10: =IF(Z10<AA10,"*","") -> * | AE10: =IF(AA10<Z10,"*","") ->  | AH10: =IF(P10="","",INDEX('tblIndicators-FB'!$Y$3:$Y$96,iCCompSpiderFB!P10)) -> #0.0
A11: =tblCategories!A5 -> 3 | B11: =tblCategories!D5 -> 1A) Natural Resource Inputs - Use | C11: =tblCategories!AG5 -> 0 | D11: 1 | E11: 63.24297189 | G11: 63.24297189 | I11: =INDEX(iScoresFB!$AQ$5:$AV$107,iCCompSpiderFB!A11,iCCompSpiderFB!$B$4) -> 55.41184739 | O11: =IF($C11=0,"",RANK(N11,N$9:N$111,1)+COUNTIF(N$9:N11,N11)-1) ->  | P11: 72 | Q11: 2 | R11: 1 | S11: 1 | T11: 2 | U11: 3) LABOUR RESOURCES | V11: 49.70250664 | X11: 49.70250664 | Z11: 58.05186186 | AA11: =IF(Q11="","",IF(ISERROR(INDEX(aRankFB,$P11+1,uxb_works!$B$25)),"",INDEX(aRankFB,$P11+1,uxb_works!$B$25))) -> 14 | AC11: =IF(P11="","",INDEX('tblIndicators-FB'!$G$3:$G$155,iCCompSpiderFB!P11)) -> Labour Resources - Use | AD11: * | AH11: =IF(P11="","",INDEX('tblIndicators-FB'!$Y$3:$Y$96,iCCompSpiderFB!P11)) -> #0.0
A12: =tblCategories!A6 -> 4 | B12: =tblCategories!D6 -> 1.01) Carbon intensity for food and beverage | C12: =tblCategories!AG6 -> 0 | D12: 1 | E12: 66.66666667 | F12: 2 | G12: 66.66666667 | H12: 2 | I12: =INDEX(iScoresFB!$AQ$5:$AV$107,iCCompSpiderFB!A12,iCCompSpiderFB!$B$4) -> 60 | O12: =IF($C12=0,"",RANK(N12,N$9:N$111,1)+COUNTIF(N$9:N12,N12)-1) ->  | S12: 0 | AA12: =IF(Q12="","",IF(ISERROR(INDEX(aRankFB,$P12+1,uxb_works!$B$25)),"",INDEX(aRankFB,$P12+1,uxb_works!$B$25))) ->  | AC12: =IF(P12="","",INDEX('tblIndicators-FB'!$G$3:$G$155,iCCompSpiderFB!P12)) ->  | AH12: =IF(P12="","",INDEX('tblIndicators-FB'!$Y$3:$Y$96,iCCompSpiderFB!P12)) -> 
A13: =tblCategories!A7 -> 5 | B13: =tblCategories!D7 -> 1.02) Energy intensity for food and beverage | C13: =tblCategories!AG7 -> 0 | D13: 1 | E13: 66.66666667 | F13: 2 | G13: 66.66666667 | H13: 2 | I13: =INDEX(iScoresFB!$AQ$5:$AV$107,iCCompSpiderFB!A13,iCCompSpiderFB!$B$4) -> 53.33333333 | O13: =IF($C13=0,"",RANK(N13,N$9:N$111,1)+COUNTIF(N$9:N13,N13)-1) ->  | S13: 0 | AA13: =IF(Q13="","",IF(ISERROR(INDEX(aRankFB,$P13+1,uxb_works!$B$25)),"",INDEX(aRankFB,$P13+1,uxb_works!$B$25))) ->  | AC13: =IF(P13="","",INDEX('tblIndicators-FB'!$G$3:$G$155,iCCompSpiderFB!P13)) ->  | AH13: =IF(P13="","",INDEX('tblIndicators-FB'!$Y$3:$Y$96,iCCompSpiderFB!P13)) -> 
A14: =tblCategories!A8 -> 6 | B14: =tblCategories!D8 -> 1.03) Water intensity for food and beverage | C14: =tblCategories!AG8 -> 0 | D14: 1 | E14: 66.66666667 | F14: 2 | G14: 66.66666667 | H14: 2 | I14: =INDEX(iScoresFB!$AQ$5:$AV$107,iCCompSpiderFB!A14,iCCompSpiderFB!$B$4) -> 52 | O14: =IF($C14=0,"",RANK(N14,N$9:N$111,1)+COUNTIF(N$9:N14,N14)-1) ->  | S14: 0 | AA14: =IF(Q14="","",IF(ISERROR(INDEX(aRankFB,$P14+1,uxb_works!$B$25)),"",INDEX(aRankFB,$P14+1,uxb_works!$B$25))) ->  | AC14: =IF(P14="","",INDEX('tblIndicators-FB'!$G$3:$G$155,iCCompSpiderFB!P14)) ->  | AH14: =IF(P14="","",INDEX('tblIndicators-FB'!$Y$3:$Y$96,iCCompSpiderFB!P14)) -> 
A15: =tblCategories!A9 -> 7 | B15: =tblCategories!D9 -> 1.04) Waste generation intensity for food and beverage | C15: =tblCategories!AG9 -> 0 | D15: 1 | E15: 33.33333333 | F15: 1 | G15: 33.33333333 | H15: 1 | I15: =INDEX(iScoresFB!$AQ$5:$AV$107,iCCompSpiderFB!A15,iCCompSpiderFB!$B$4) -> 54.66666667 | O15: =IF($C15=0,"",RANK(N15,N$9:N$111,1)+COUNTIF(N$9:N15,N15)-1) ->  | S15: 0 | AA15: =IF(Q15="","",IF(ISERROR(INDEX(aRankFB,$P15+1,uxb_works!$B$25)),"",INDEX(aRankFB,$P15+1,uxb_works!$B$25))) ->  | AC15: =IF(P15="","",INDEX('tblIndicators-FB'!$G$3:$G$155,iCCompSpiderFB!P15)) ->  | AH15: =IF(P15="","",INDEX('tblIndicators-FB'!$Y$3:$Y$96,iCCompSpiderFB!P15)) -> 
A16: =tblCategories!A10 -> 8 | B16: =tblCategories!D10 -> 1.05) Mineral and forest depletion | C16: =tblCategories!AG10 -> 0 | D16: 1 | E16: 98.19277108 | G16: 98.19277108 | I16: =INDEX(iScoresFB!$AQ$5:$AV$107,iCCompSpiderFB!A16,iCCompSpiderFB!$B$4) -> 89.57028112 | O16: =IF($C16=0,"",RANK(N16,N$9:N$111,1)+COUNTIF(N$9:N16,N16)-1) ->  | S16: 0 | AA16: =IF(Q16="","",IF(ISERROR(INDEX(aRankFB,$P16+1,uxb_works!$B$25)),"",INDEX(aRankFB,$P16+1,uxb_works!$B$25))) ->  | AC16: =IF(P16="","",INDEX('tblIndicators-FB'!$G$3:$G$155,iCCompSpiderFB!P16)) ->  | AH16: =IF(P16="","",INDEX('tblIndicators-FB'!$Y$3:$Y$96,iCCompSpiderFB!P16)) -> 
A17: =tblCategories!A11 -> 9 | B17: =tblCategories!D11 -> 1.05.1) Mineral depletion | C17: =tblCategories!AG11 -> 0 | D17: 1 | E17: 96.38554217 | F17: 0.3 | G17: 96.38554217 | H17: 0.3 | I17: =INDEX(iScoresFB!$AQ$5:$AV$107,iCCompSpiderFB!A17,iCCompSpiderFB!$B$4) -> 91.80722892 | O17: =IF($C17=0,"",RANK(N17,N$9:N$111,1)+COUNTIF(N$9:N17,N17)-1) ->  | S17: 0 | AA17: =IF(Q17="","",IF(ISERROR(INDEX(aRankFB,$P17+1,uxb_works!$B$25)),"",INDEX(aRankFB,$P17+1,uxb_works!$B$25))) ->  | AC17: =IF(P17="","",INDEX('tblIndicators-FB'!$G$3:$G$155,iCCompSpiderFB!P17)) ->  | AH17: =IF(P17="","",INDEX('tblIndicators-FB'!$Y$3:$Y$96,iCCompSpiderFB!P17)) -> 
A18: =tblCategories!A12 -> 10 | B18: =tblCategories!D12 -> 1.05.2) Net forest depletion | C18: =tblCategories!AG12 -> 0 | D18: 1 | E18: 100 | F18: 0 | G18: 100 | H18: 0 | I18: =INDEX(iScoresFB!$AQ$5:$AV$107,iCCompSpiderFB!A18,iCCompSpiderFB!$B$4) -> 87.33333333 | O18: =IF($C18=0,"",RANK(N18,N$9:N$111,1)+COUNTIF(N$9:N18,N18)-1) ->  | S18: 0 | AA18: =IF(Q18="","",IF(ISERROR(INDEX(aRankFB,$P18+1,uxb_works!$B$25)),"",INDEX(aRankFB,$P18+1,uxb_works!$B$25))) ->  | AC18: =IF(P18="","",INDEX('tblIndicators-FB'!$G$3:$G$155,iCCompSpiderFB!P18)) ->  | AH18: =IF(P18="","",INDEX('tblIndicators-FB'!$Y$3:$Y$96,iCCompSpiderFB!P18)) -> 
A19: =tblCategories!A13 -> 11 | B19: =tblCategories!D13 -> 1B) Natural Resource Inputs - Capacity | C19: =tblCategories!AG13 -> 0 | D19: 1 | E19: 29.08577315 | G19: 29.08577315 | I19: =INDEX(iScoresFB!$AQ$5:$AV$107,iCCompSpiderFB!A19,iCCompSpiderFB!$B$4) -> 43.38433339 | O19: =IF($C19=0,"",RANK(N19,N$9:N$111,1)+COUNTIF(N$9:N19,N19)-1) ->  | S19: 0 | AA19: =IF(Q19="","",IF(ISERROR(INDEX(aRankFB,$P19+1,uxb_works!$B$25)),"",INDEX(aRankFB,$P19+1,uxb_works!$B$25))) ->  | AC19: =IF(P19="","",INDEX('tblIndicators-FB'!$G$3:$G$155,iCCompSpiderFB!P19)) ->  | AH19: =IF(P19="","",INDEX('tblIndicators-FB'!$Y$3:$Y$96,iCCompSpiderFB!P19)) -> 
A20: =tblCategories!A14 -> 12 | B20: =tblCategories!D14 -> 1.06) Renewable energy | C20: =tblCategories!AG14 -> 0 | D20: 1 | E20: 22.62163072 | G20: 22.62163072 | I20: =INDEX(iScoresFB!$AQ$5:$AV$107,iCCompSpiderFB!A20,iCCompSpiderFB!$B$4) -> 36.18290423 | O20: =IF($C20=0,"",RANK(N20,N$9:N$111,1)+COUNTIF(N$9:N20,N20)-1) ->  | S20: 0 | AA20: =IF(Q20="","",IF(ISERROR(INDEX(aRankFB,$P20+1,uxb_works!$B$25)),"",INDEX(aRankFB,$P20+1,uxb_works!$B$25))) ->  | AC20: =IF(P20="","",INDEX('tblIndicators-FB'!$G$3:$G$155,iCCompSpiderFB!P20)) ->  | AH20: =IF(P20="","",INDEX('tblIndicators-FB'!$Y$3:$Y$96,iCCompSpiderFB!P20)) -> 
A21: =tblCategories!A15 -> 13 | B21: =tblCategories!D15 -> 1.06.1) Renewable energy supply | C21: =tblCategories!AG15 -> 0 | D21: 1 | E21: 18.42105263 | F21: 8 | G21: 18.42105263 | H21: 8 | I21: =INDEX(iScoresFB!$AQ$5:$AV$107,iCCompSpiderFB!A21,iCCompSpiderFB!$B$4) -> 39.89473684 | O21: =IF($C21=0,"",RANK(N21,N$9:N$111,1)+COUNTIF(N$9:N21,N21)-1) ->  | P21: =IF(ISERROR(MATCH($A21,O$9:O$111,0)),"",MATCH($A21,O$9:O$111,0)) ->  | Q21: =IF(P21="","",RANK(V21,V$9:V$111,0)) ->  | R21: =IF(P21="","",COUNTIF(V$9:V$111,V21)) ->  | S21: =IF(P21="",0,INDEX($D$9:$D$111,P21)) -> 0 | T21: =IF(P21="","",IF(R21>1,CONCATENATE("=",Q21),Q21)) ->  | AA21: =IF(Q21="","",IF(ISERROR(INDEX(aRankFB,$P21+1,uxb_works!$B$25)),"",INDEX(aRankFB,$P21+1,uxb_works!$B$25))) ->  | AC21: =IF(P21="","",INDEX('tblIndicators-FB'!$G$3:$G$155,iCCompSpiderFB!P21)) ->  | AD21: =IF(Z21<AA21,"*","") ->  | AE21: =IF(AA21<Z21,"*","") ->  | AH21: =IF(P21="","",INDEX('tblIndicators-FB'!$Y$3:$Y$96,iCCompSpiderFB!P21)) -> 
A22: =tblCategories!A16 -> 14 | B22: =tblCategories!D16 -> 1.06.2) Renewable energy generation capacity | C22: =tblCategories!AG16 -> 0 | D22: 1 | E22: 26.82220881 | F22: 26.39393506 | G22: 26.82220881 | H22: 26.39393506 | I22: =INDEX(iScoresFB!$AQ$5:$AV$107,iCCompSpiderFB!A22,iCCompSpiderFB!$B$4) -> 32.47107162 | O22: =IF($C22=0,"",RANK(N22,N$9:N$111,1)+COUNTIF(N$9:N22,N22)-1) ->  | S22: 0 | AA22: =IF(Q22="","",IF(ISERROR(INDEX(aRankFB,$P22+1,uxb_works!$B$25)),"",INDEX(aRankFB,$P22+1,uxb_works!$B$25))) ->  | AC22: =IF(P22="","",INDEX('tblIndicators-FB'!$G$3:$G$155,iCCompSpiderFB!P22)) ->  | AH22: =IF(P22="","",INDEX('tblIndicators-FB'!$Y$3:$Y$96,iCCompSpiderFB!P22)) -> 
A23: =tblCategories!A17 -> 15 | B23: =tblCategories!D17 -> 1.07) Net energy imports | C23: =tblCategories!AG17 -> 0 | D23: 1 | E23: 13.435946 | F23: 11.3750071 | G23: 13.435946 | H23: 11.3750071 | I23: =INDEX(iScoresFB!$AQ$5:$AV$107,iCCompSpiderFB!A23,iCCompSpiderFB!$B$4) -> 15.91760787 | O23: =IF($C23=0,"",RANK(N23,N$9:N$111,1)+COUNTIF(N$9:N23,N23)-1) ->  | S23: 0 | AA23: =IF(Q23="","",IF(ISERROR(INDEX(aRankFB,$P23+1,uxb_works!$B$25)),"",INDEX(aRankFB,$P23+1,uxb_works!$B$25))) ->  | AC23: =IF(P23="","",INDEX('tblIndicators-FB'!$G$3:$G$155,iCCompSpiderFB!P23)) ->  | AH23: =IF(P23="","",INDEX('tblIndicators-FB'!$Y$3:$Y$96,iCCompSpiderFB!P23)) -> 
A24: =tblCategories!A18 -> 16 | B24: =tblCategories!D18 -> 1.08) Water risk and dependency | C24: =tblCategories!AG18 -> 0 | D24: 1 | E24: 40.14275794 | G24: 40.14275794 | I24: =INDEX(iScoresFB!$AQ$5:$AV$107,iCCompSpiderFB!A24,iCCompSpiderFB!$B$4) -> 60.71841074 | O24: =IF($C24=0,"",RANK(N24,N$9:N$111,1)+COUNTIF(N$9:N24,N24)-1) ->  | S24: 0 | AA24: =IF(Q24="","",IF(ISERROR(INDEX(aRankFB,$P24+1,uxb_works!$B$25)),"",INDEX(aRankFB,$P24+1,uxb_works!$B$25))) ->  | AC24: =IF(P24="","",INDEX('tblIndicators-FB'!$G$3:$G$155,iCCompSpiderFB!P24)) ->  | AH24: =IF(P24="","",INDEX('tblIndicators-FB'!$Y$3:$Y$96,iCCompSpiderFB!P24)) -> 
A25: =tblCategories!A19 -> 17 | B25: =tblCategories!D19 -> 1.08.1) Dependency ratio in renewable water | C25: =tblCategories!AG19 -> 0 | D25: 1 | E25: 24.16107383 | F25: 66.67 | G25: 24.16107383 | H25: 66.67 | I25: =INDEX(iScoresFB!$AQ$5:$AV$107,iCCompSpiderFB!A25,iCCompSpiderFB!$B$4) -> 79.96237061 | O25: =IF($C25=0,"",RANK(N25,N$9:N$111,1)+COUNTIF(N$9:N25,N25)-1) ->  | S25: 0 | AA25: =IF(Q25="","",IF(ISERROR(INDEX(aRankFB,$P25+1,uxb_works!$B$25)),"",INDEX(aRankFB,$P25+1,uxb_works!$B$25))) ->  | AC25: =IF(P25="","",INDEX('tblIndicators-FB'!$G$3:$G$155,iCCompSpiderFB!P25)) ->  | AH25: =IF(P25="","",INDEX('tblIndicators-FB'!$Y$3:$Y$96,iCCompSpiderFB!P25)) -> 
A26: =tblCategories!A20 -> 18 | B26: =tblCategories!D20 -> 1.08.2) Current water risk stress | C26: =tblCategories!AG20 -> 0 | D26: 1 | E26: 50 | F26: 2.5 | G26: 50 | H26: 2.5 | I26: =INDEX(iScoresFB!$AQ$5:$AV$107,iCCompSpiderFB!A26,iCCompSpiderFB!$B$4) -> 50.8 | O26: =IF($C26=0,"",RANK(N26,N$9:N$111,1)+COUNTIF(N$9:N26,N26)-1) ->  | S26: 0 | AA26: =IF(Q26="","",IF(ISERROR(INDEX(aRankFB,$P26+1,uxb_works!$B$25)),"",INDEX(aRankFB,$P26+1,uxb_works!$B$25))) ->  | AC26: =IF(P26="","",INDEX('tblIndicators-FB'!$G$3:$G$155,iCCompSpiderFB!P26)) ->  | AH26: =IF(P26="","",INDEX('tblIndicators-FB'!$Y$3:$Y$96,iCCompSpiderFB!P26)) -> 
A27: =tblCategories!A21 -> 19 | B27: =tblCategories!D21 -> 1.08.3) Projected water stress in 2020 | C27: =tblCategories!AG21 -> 0 | D27: 1 | E27: 46.2672 | F27: 2.68664 | G27: 46.2672 | H27: 2.68664 | I27: =INDEX(iScoresFB!$AQ$5:$AV$107,iCCompSpiderFB!A27,iCCompSpiderFB!$B$4) -> 51.3928616 | O27: =IF($C27=0,"",RANK(N27,N$9:N$111,1)+COUNTIF(N$9:N27,N27)-1) ->  | S27: 0 | AA27: =IF(Q27="","",IF(ISERROR(INDEX(aRankFB,$P27+1,uxb_works!$B$25)),"",INDEX(aRankFB,$P27+1,uxb_works!$B$25))) ->  | AC27: =IF(P27="","",INDEX('tblIndicators-FB'!$G$3:$G$155,iCCompSpiderFB!P27)) ->  | AH27: =IF(P27="","",INDEX('tblIndicators-FB'!$Y$3:$Y$96,iCCompSpiderFB!P27)) -> 
A28: =tblCategories!A22 -> 20 | B28: =tblCategories!D22 -> 1C) Natural Resource Inputs - Commitment to Sustainability | C28: =tblCategories!AG22 -> 0 | D28: 1 | E28: 40.02066173 | G28: 40.02066173 | I28: =INDEX(iScoresFB!$AQ$5:$AV$107,iCCompSpiderFB!A28,iCCompSpiderFB!$B$4) -> 39.72213382 | O28: =IF($C28=0,"",RANK(N28,N$9:N$111,1)+COUNTIF(N$9:N28,N28)-1) ->  | S28: 0 | AA28: =IF(Q28="","",IF(ISERROR(INDEX(aRankFB,$P28+1,uxb_works!$B$25)),"",INDEX(aRankFB,$P28+1,uxb_works!$B$25))) ->  | AC28: =IF(P28="","",INDEX('tblIndicators-FB'!$G$3:$G$155,iCCompSpiderFB!P28)) ->  | AH28: =IF(P28="","",INDEX('tblIndicators-FB'!$Y$3:$Y$96,iCCompSpiderFB!P28)) -> 
A29: =tblCategories!A23 -> 21 | B29: =tblCategories!D23 -> 1.09) Global voluntary commitments | C29: =tblCategories!AG23 -> 0 | D29: 1 | E29: 83.33333333 | G29: 83.33333333 | I29: =INDEX(iScoresFB!$AQ$5:$AV$107,iCCompSpiderFB!A29,iCCompSpiderFB!$B$4) -> 50.66666667 | O29: =IF($C29=0,"",RANK(N29,N$9:N$111,1)+COUNTIF(N$9:N29,N29)-1) ->  | S29: 0 | AA29: =IF(Q29="","",IF(ISERROR(INDEX(aRankFB,$P29+1,uxb_works!$B$25)),"",INDEX(aRankFB,$P29+1,uxb_works!$B$25))) ->  | AC29: =IF(P29="","",INDEX('tblIndicators-FB'!$G$3:$G$155,iCCompSpiderFB!P29)) ->  | AH29: =IF(P29="","",INDEX('tblIndicators-FB'!$Y$3:$Y$96,iCCompSpiderFB!P29)) -> 
A30: =tblCategories!A24 -> 22 | B30: =tblCategories!D24 -> 1.09.1) Global voluntary commitments: UN Global Compact | C30: =tblCategories!AG24 -> 0 | D30: 1 | E30: 83.33333333 | F30: 5 | G30: 83.33333333 | H30: 5 | I30: =INDEX(iScoresFB!$AQ$5:$AV$107,iCCompSpiderFB!A30,iCCompSpiderFB!$B$4) -> 53.33333333 | O30: =IF($C30=0,"",RANK(N30,N$9:N$111,1)+COUNTIF(N$9:N30,N30)-1) ->  | S30: 0 | AA30: =IF(Q30="","",IF(ISERROR(INDEX(aRankFB,$P30+1,uxb_works!$B$25)),"",INDEX(aRankFB,$P30+1,uxb_works!$B$25))) ->  | AC30: =IF(P30="","",INDEX('tblIndicators-FB'!$G$3:$G$155,iCCompSpiderFB!P30)) ->  | AH30: =IF(P30="","",INDEX('tblIndicators-FB'!$Y$3:$Y$96,iCCompSpiderFB!P30)) -> 
A31: =tblCategories!A25 -> 23 | B31: =tblCategories!D25 -> 1.09.2) Global voluntary commitments: GRI G4 reporting guidelines | C31: =tblCategories!AG25 -> 0 | D31: 1 | E31: 83.33333333 | F31: 5 | G31: 83.33333333 | H31: 5 | I31: =INDEX(iScoresFB!$AQ$5:$AV$107,iCCompSpiderFB!A31,iCCompSpiderFB!$B$4) -> 48 | O31: =IF($C31=0,"",RANK(N31,N$9:N$111,1)+COUNTIF(N$9:N31,N31)-1) ->  | S31: 0 | V31: =IF($P31="","",INDEX($E$9:$L$111,$P31,V$7)) ->  | Y31: =IF($P31="","",INDEX($E$9:$L$111,$P31,Y$7)) ->  | AA31: =IF(Q31="","",IF(ISERROR(INDEX(aRankFB,$P31+1,uxb_works!$B$25)),"",INDEX(aRankFB,$P31+1,uxb_works!$B$25))) ->  | AC31: =IF(P31="","",INDEX('tblIndicators-FB'!$G$3:$G$155,iCCompSpiderFB!P31)) ->  | AH31: =IF(P31="","",INDEX('tblIndicators-FB'!$Y$3:$Y$96,iCCompSpiderFB!P31)) -> 
A32: =tblCategories!A26 -> 24 | B32: =tblCategories!D26 -> 1.10) National-level voluntary commitments | C32: =tblCategories!AG26 -> 0 | D32: 1 | E32: 0 | G32: 0 | I32: =INDEX(iScoresFB!$AQ$5:$AV$107,iCCompSpiderFB!A32,iCCompSpiderFB!$B$4) -> 61 | O32: =IF($C32=0,"",RANK(N32,N$9:N$111,1)+COUNTIF(N$9:N32,N32)-1) ->  | S32: 0 | AA32: =IF(Q32="","",IF(ISERROR(INDEX(aRankFB,$P32+1,uxb_works!$B$25)),"",INDEX(aRankFB,$P32+1,uxb_works!$B$25))) ->  | AC32: =IF(P32="","",INDEX('tblIndicators-FB'!$G$3:$G$155,iCCompSpiderFB!P32)) ->  | AH32: =IF(P32="","",INDEX('tblIndicators-FB'!$Y$3:$Y$96,iCCompSpiderFB!P32)) -> 
A33: =tblCategories!A27 -> 25 | B33: =tblCategories!D27 -> 1.10.1) National-level voluntary commitments: Sustainability guidance | C33: =tblCategories!AG27 -> 0 | D33: 1 | E33: 0 | F33: 0 | G33: 0 | H33: 0 | I33: =INDEX(iScoresFB!$AQ$5:$AV$107,iCCompSpiderFB!A33,iCCompSpiderFB!$B$4) -> 42 | O33: =IF($C33=0,"",RANK(N33,N$9:N$111,1)+COUNTIF(N$9:N33,N33)-1) ->  | S33: 0 | AA33: =IF(Q33="","",IF(ISERROR(INDEX(aRankFB,$P33+1,uxb_works!$B$25)),"",INDEX(aRankFB,$P33+1,uxb_works!$B$25))) ->  | AC33: =IF(P33="","",INDEX('tblIndicators-FB'!$G$3:$G$155,iCCompSpiderFB!P33)) ->  | AH33: =IF(P33="","",INDEX('tblIndicators-FB'!$Y$3:$Y$96,iCCompSpiderFB!P33)) -> 
A34: =tblCategories!A28 -> 26 | B34: =tblCategories!D28 -> 1.10.2) National-level voluntary commitments: Sustainability indices | C34: =tblCategories!AG28 -> 0 | D34: 1 | E34: 0 | F34: 0 | G34: 0 | H34: 0 | I34: =INDEX(iScoresFB!$AQ$5:$AV$107,iCCompSpiderFB!A34,iCCompSpiderFB!$B$4) -> 80 | O34: =IF($C34=0,"",RANK(N34,N$9:N$111,1)+COUNTIF(N$9:N34,N34)-1) ->  | S34: 0 | AA34: =IF(Q34="","",IF(ISERROR(INDEX(aRankFB,$P34+1,uxb_works!$B$25)),"",INDEX(aRankFB,$P34+1,uxb_works!$B$25))) ->  | AC34: =IF(P34="","",INDEX('tblIndicators-FB'!$G$3:$G$155,iCCompSpiderFB!P34)) ->  | AH34: =IF(P34="","",INDEX('tblIndicators-FB'!$Y$3:$Y$96,iCCompSpiderFB!P34)) -> 
A35: =tblCategories!A29 -> 27 | B35: =tblCategories!D29 -> 1.11) Company-level voluntary information ESG disclosures | C35: =tblCategories!AG29 -> 0 | D35: 1 | E35: 26.70799012 | F35: 26.70799012 | G35: 26.70799012 | H35: 26.70799012 | I35: =INDEX(iScoresFB!$AQ$5:$AV$107,iCCompSpiderFB!A35,iCCompSpiderFB!$B$4) -> 25.27966158 | O35: =IF($C35=0,"",RANK(N35,N$9:N$111,1)+COUNTIF(N$9:N35,N35)-1) ->  | S35: 0 | AA35: =IF(Q35="","",IF(ISERROR(INDEX(aRankFB,$P35+1,uxb_works!$B$25)),"",INDEX(aRankFB,$P35+1,uxb_works!$B$25))) ->  | AC35: =IF(P35="","",INDEX('tblIndicators-FB'!$G$3:$G$155,iCCompSpiderFB!P35)) ->  | AH35: =IF(P35="","",INDEX('tblIndicators-FB'!$Y$3:$Y$96,iCCompSpiderFB!P35)) -> 
A36: =tblCategories!A30 -> 28 | B36: =tblCategories!D30 -> 1.12) Average climate performance score | C36: =tblCategories!AG30 -> 0 | D36: 1 | E36: 47.22222222 | F36: 2.888888889 | G36: 47.22222222 | H36: 2.888888889 | I36: =INDEX(iScoresFB!$AQ$5:$AV$107,iCCompSpiderFB!A36,iCCompSpiderFB!$B$4) -> 54.77434343 | O36: =IF($C36=0,"",RANK(N36,N$9:N$111,1)+COUNTIF(N$9:N36,N36)-1) ->  | S36: 0 | AA36: =IF(Q36="","",IF(ISERROR(INDEX(aRankFB,$P36+1,uxb_works!$B$25)),"",INDEX(aRankFB,$P36+1,uxb_works!$B$25))) ->  | AC36: =IF(P36="","",INDEX('tblIndicators-FB'!$G$3:$G$155,iCCompSpiderFB!P36)) ->  | AH36: =IF(P36="","",INDEX('tblIndicators-FB'!$Y$3:$Y$96,iCCompSpiderFB!P36)) -> 
A37: =tblCategories!A31 -> 29 | B37: =tblCategories!D31 -> 1D) Natural Resource Inputs- Regulation | C37: =tblCategories!AG31 -> 0 | D37: 1 | E37: 40.72689932 | G37: 40.72689932 | I37: =INDEX(iScoresFB!$AQ$5:$AV$107,iCCompSpiderFB!A37,iCCompSpiderFB!$B$4) -> 63.62387947 | O37: =IF($C37=0,"",RANK(N37,N$9:N$111,1)+COUNTIF(N$9:N37,N37)-1) ->  | S37: 0 | AA37: =IF(Q37="","",IF(ISERROR(INDEX(aRankFB,$P37+1,uxb_works!$B$25)),"",INDEX(aRankFB,$P37+1,uxb_works!$B$25))) ->  | AC37: =IF(P37="","",INDEX('tblIndicators-FB'!$G$3:$G$155,iCCompSpiderFB!P37)) ->  | AH37: =IF(P37="","",INDEX('tblIndicators-FB'!$Y$3:$Y$96,iCCompSpiderFB!P37)) -> 
A38: =tblCategories!A32 -> 30 | B38: =tblCategories!D32 -> 1.13) Carbon taxes | C38: =tblCategories!AG32 -> 0 | D38: 1 | E38: 0 | F38: 0 | G38: 0 | H38: 0 | I38: =INDEX(iScoresFB!$AQ$5:$AV$107,iCCompSpiderFB!A38,iCCompSpiderFB!$B$4) -> 28 | O38: =IF($C38=0,"",RANK(N38,N$9:N$111,1)+COUNTIF(N$9:N38,N38)-1) ->  | S38: 0 | AA38: =IF(Q38="","",IF(ISERROR(INDEX(aRankFB,$P38+1,uxb_works!$B$25)),"",INDEX(aRankFB,$P38+1,uxb_works!$B$25))) ->  | AC38: =IF(P38="","",INDEX('tblIndicators-FB'!$G$3:$G$155,iCCompSpiderFB!P38)) ->  | AH38: =IF(P38="","",INDEX('tblIndicators-FB'!$Y$3:$Y$96,iCCompSpiderFB!P38)) -> 
A39: =tblCategories!A33 -> 31 | B39: =tblCategories!D33 -> 1.14) Environmental governance: Emissions targets | C39: =tblCategories!AG33 -> 0 | D39: 1 | E39: 100 | G39: 100 | I39: =INDEX(iScoresFB!$AQ$5:$AV$107,iCCompSpiderFB!A39,iCCompSpiderFB!$B$4) -> 55.33333333 | O39: =IF($C39=0,"",RANK(N39,N$9:N$111,1)+COUNTIF(N$9:N39,N39)-1) ->  | S39: 0 | AA39: =IF(Q39="","",IF(ISERROR(INDEX(aRankFB,$P39+1,uxb_works!$B$25)),"",INDEX(aRankFB,$P39+1,uxb_works!$B$25))) ->  | AC39: =IF(P39="","",INDEX('tblIndicators-FB'!$G$3:$G$155,iCCompSpiderFB!P39)) ->  | AH39: =IF(P39="","",INDEX('tblIndicators-FB'!$Y$3:$Y$96,iCCompSpiderFB!P39)) -> 
A40: =tblCategories!A34 -> 32 | B40: =tblCategories!D34 -> 1.14.1) Environmental governance: Kyoto Protocol | C40: =tblCategories!AG34 -> 0 | D40: 1 | E40: 100 | F40: 2 | G40: 100 | H40: 2 | I40: =INDEX(iScoresFB!$AQ$5:$AV$107,iCCompSpiderFB!A40,iCCompSpiderFB!$B$4) -> 94 | O40: =IF($C40=0,"",RANK(N40,N$9:N$111,1)+COUNTIF(N$9:N40,N40)-1) ->  | S40: 0 | AA40: =IF(Q40="","",IF(ISERROR(INDEX(aRankFB,$P40+1,uxb_works!$B$25)),"",INDEX(aRankFB,$P40+1,uxb_works!$B$25))) ->  | AC40: =IF(P40="","",INDEX('tblIndicators-FB'!$G$3:$G$155,iCCompSpiderFB!P40)) ->  | AH40: =IF(P40="","",INDEX('tblIndicators-FB'!$Y$3:$Y$96,iCCompSpiderFB!P40)) -> 
A41: =tblCategories!A35 -> 33 | B41: =tblCategories!D35 -> 1.14.2) Environmental governance: Doha Amendment | C41: =tblCategories!AG35 -> 0 | D41: 1 | E41: 100 | F41: 2 | G41: 100 | H41: 2 | I41: =INDEX(iScoresFB!$AQ$5:$AV$107,iCCompSpiderFB!A41,iCCompSpiderFB!$B$4) -> 36 | O41: =IF($C41=0,"",RANK(N41,N$9:N$111,1)+COUNTIF(N$9:N41,N41)-1) ->  | S41: 0 | AA41: =IF(Q41="","",IF(ISERROR(INDEX(aRankFB,$P41+1,uxb_works!$B$25)),"",INDEX(aRankFB,$P41+1,uxb_works!$B$25))) ->  | AC41: =IF(P41="","",INDEX('tblIndicators-FB'!$G$3:$G$155,iCCompSpiderFB!P41)) ->  | AH41: =IF(P41="","",INDEX('tblIndicators-FB'!$Y$3:$Y$96,iCCompSpiderFB!P41)) -> 
A42: =tblCategories!A36 -> 34 | B42: =tblCategories!D36 -> 1.15) Environmental governance: International agreements | C42: =tblCategories!AG36 -> 0 | D42: 1 | E42: 82.5 | G42: 82.5 | I42: =INDEX(iScoresFB!$AQ$5:$AV$107,iCCompSpiderFB!A42,iCCompSpiderFB!$B$4) -> 90.2 | O42: =IF($C42=0,"",RANK(N42,N$9:N$111,1)+COUNTIF(N$9:N42,N42)-1) ->  | S42: 0 | AA42: =IF(Q42="","",IF(ISERROR(INDEX(aRankFB,$P42+1,uxb_works!$B$25)),"",INDEX(aRankFB,$P42+1,uxb_works!$B$25))) ->  | AC42: =IF(P42="","",INDEX('tblIndicators-FB'!$G$3:$G$155,iCCompSpiderFB!P42)) ->  | AH42: =IF(P42="","",INDEX('tblIndicators-FB'!$Y$3:$Y$96,iCCompSpiderFB!P42)) -> 
A43: =tblCategories!A37 -> 35 | B43: =tblCategories!D37 -> 1.15.1) Environmental governance: MARPOL and respective annexes | C43: =tblCategories!AG37 -> 0 | D43: 1 | E43: 80 | F43: 4 | G43: 80 | H43: 4 | I43: =INDEX(iScoresFB!$AQ$5:$AV$107,iCCompSpiderFB!A43,iCCompSpiderFB!$B$4) -> 92.8 | O43: =IF($C43=0,"",RANK(N43,N$9:N$111,1)+COUNTIF(N$9:N43,N43)-1) ->  | S43: 0 | AA43: =IF(Q43="","",IF(ISERROR(INDEX(aRankFB,$P43+1,uxb_works!$B$25)),"",INDEX(aRankFB,$P43+1,uxb_works!$B$25))) ->  | AC43: =IF(P43="","",INDEX('tblIndicators-FB'!$G$3:$G$155,iCCompSpiderFB!P43)) ->  | AH43: =IF(P43="","",INDEX('tblIndicators-FB'!$Y$3:$Y$96,iCCompSpiderFB!P43)) -> 
A44: =tblCategories!A38 -> 36 | B44: =tblCategories!D38 -> 1.15.2) Environmental governance: Montreal Protocol | C44: =tblCategories!AG38 -> 0 | D44: 1 | E44: 100 | F44: 1 | G44: 100 | H44: 1 | I44: =INDEX(iScoresFB!$AQ$5:$AV$107,iCCompSpiderFB!A44,iCCompSpiderFB!$B$4) -> 100 | O44: =IF($C44=0,"",RANK(N44,N$9:N$111,1)+COUNTIF(N$9:N44,N44)-1) ->  | S44: 0 | AA44: =IF(Q44="","",IF(ISERROR(INDEX(aRankFB,$P44+1,uxb_works!$B$25)),"",INDEX(aRankFB,$P44+1,uxb_works!$B$25))) ->  | AC44: =IF(P44="","",INDEX('tblIndicators-FB'!$G$3:$G$155,iCCompSpiderFB!P44)) ->  | AH44: =IF(P44="","",INDEX('tblIndicators-FB'!$Y$3:$Y$96,iCCompSpiderFB!P44)) -> 
A45: =tblCategories!A39 -> 37 | B45: =tblCategories!D39 -> 1.15.3) Environmental governance: London Convention and Protocol | C45: =tblCategories!AG39 -> 0 | D45: 1 | E45: 50 | F45: 1 | G45: 50 | H45: 1 | I45: =INDEX(iScoresFB!$AQ$5:$AV$107,iCCompSpiderFB!A45,iCCompSpiderFB!$B$4) -> 68 | O45: =IF($C45=0,"",RANK(N45,N$9:N$111,1)+COUNTIF(N$9:N45,N45)-1) ->  | S45: 0 | AA45: =IF(Q45="","",IF(ISERROR(INDEX(aRankFB,$P45+1,uxb_works!$B$25)),"",INDEX(aRankFB,$P45+1,uxb_works!$B$25))) ->  | AC45: =IF(P45="","",INDEX('tblIndicators-FB'!$G$3:$G$155,iCCompSpiderFB!P45)) ->  | AH45: =IF(P45="","",INDEX('tblIndicators-FB'!$Y$3:$Y$96,iCCompSpiderFB!P45)) -> 
A46: =tblCategories!A40 -> 38 | B46: =tblCategories!D40 -> 1.15.4) Environmental governance: Rotterdam Convention | C46: =tblCategories!AG40 -> 0 | D46: 1 | E46: 100 | F46: 1 | G46: 100 | H46: 1 | I46: =INDEX(iScoresFB!$AQ$5:$AV$107,iCCompSpiderFB!A46,iCCompSpiderFB!$B$4) -> 100 | O46: =IF($C46=0,"",RANK(N46,N$9:N$111,1)+COUNTIF(N$9:N46,N46)-1) ->  | S46: 0 | AA46: =IF(Q46="","",IF(ISERROR(INDEX(aRankFB,$P46+1,uxb_works!$B$25)),"",INDEX(aRankFB,$P46+1,uxb_works!$B$25))) ->  | AC46: =IF(P46="","",INDEX('tblIndicators-FB'!$G$3:$G$155,iCCompSpiderFB!P46)) ->  | AH46: =IF(P46="","",INDEX('tblIndicators-FB'!$Y$3:$Y$96,iCCompSpiderFB!P46)) -> 
A47: =tblCategories!A41 -> 39 | B47: =tblCategories!D41 -> 1.16) Environmental laws | C47: =tblCategories!AG41 -> 0 | D47: 1 | E47: 33.33333333 | G47: 33.33333333 | I47: =INDEX(iScoresFB!$AQ$5:$AV$107,iCCompSpiderFB!A47,iCCompSpiderFB!$B$4) -> 74 | O47: =IF($C47=0,"",RANK(N47,N$9:N$111,1)+COUNTIF(N$9:N47,N47)-1) ->  | S47: 0 | AA47: =IF(Q47="","",IF(ISERROR(INDEX(aRankFB,$P47+1,uxb_works!$B$25)),"",INDEX(aRankFB,$P47+1,uxb_works!$B$25))) ->  | AC47: =IF(P47="","",INDEX('tblIndicators-FB'!$G$3:$G$155,iCCompSpiderFB!P47)) ->  | AH47: =IF(P47="","",INDEX('tblIndicators-FB'!$Y$3:$Y$96,iCCompSpiderFB!P47)) -> 
A48: =tblCategories!A42 -> 40 | B48: =tblCategories!D42 -> 1.16.1) Environmental laws: Environmental information | C48: =tblCategories!AG42 -> 0 | D48: 1 | E48: 33.33333333 | F48: 1 | G48: 33.33333333 | H48: 1 | I48: =INDEX(iScoresFB!$AQ$5:$AV$107,iCCompSpiderFB!A48,iCCompSpiderFB!$B$4) -> 81.33333333 | O48: =IF($C48=0,"",RANK(N48,N$9:N$111,1)+COUNTIF(N$9:N48,N48)-1) ->  | S48: 0 | AA48: =IF(Q48="","",IF(ISERROR(INDEX(aRankFB,$P48+1,uxb_works!$B$25)),"",INDEX(aRankFB,$P48+1,uxb_works!$B$25))) ->  | AC48: =IF(P48="","",INDEX('tblIndicators-FB'!$G$3:$G$155,iCCompSpiderFB!P48)) ->  | AH48: =IF(P48="","",INDEX('tblIndicators-FB'!$Y$3:$Y$96,iCCompSpiderFB!P48)) -> 
A49: =tblCategories!A43 -> 41 | B49: =tblCategories!D43 -> 1.16.2) Environmental laws: Environmental performance and compliance | C49: =tblCategories!AG43 -> 0 | D49: 1 | E49: 33.33333333 | F49: 1 | G49: 33.33333333 | H49: 1 | I49: =INDEX(iScoresFB!$AQ$5:$AV$107,iCCompSpiderFB!A49,iCCompSpiderFB!$B$4) -> 66.66666667 | O49: =IF($C49=0,"",RANK(N49,N$9:N$111,1)+COUNTIF(N$9:N49,N49)-1) ->  | S49: 0 | AA49: =IF(Q49="","",IF(ISERROR(INDEX(aRankFB,$P49+1,uxb_works!$B$25)),"",INDEX(aRankFB,$P49+1,uxb_works!$B$25))) ->  | AC49: =IF(P49="","",INDEX('tblIndicators-FB'!$G$3:$G$155,iCCompSpiderFB!P49)) ->  | AH49: =IF(P49="","",INDEX('tblIndicators-FB'!$Y$3:$Y$96,iCCompSpiderFB!P49)) -> 
A50: =tblCategories!A44 -> 42 | B50: =tblCategories!D44 -> 1.17) Biome protection | C50: =tblCategories!AG44 -> 0 | D50: 1 | E50: 8.102326498 | G50: 8.102326498 | I50: =INDEX(iScoresFB!$AQ$5:$AV$107,iCCompSpiderFB!A50,iCCompSpiderFB!$B$4) -> 33.70546136 | O50: =IF($C50=0,"",RANK(N50,N$9:N$111,1)+COUNTIF(N$9:N50,N50)-1) ->  | S50: 0 | AA50: =IF(Q50="","",IF(ISERROR(INDEX(aRankFB,$P50+1,uxb_works!$B$25)),"",INDEX(aRankFB,$P50+1,uxb_works!$B$25))) ->  | AC50: =IF(P50="","",INDEX('tblIndicators-FB'!$G$3:$G$155,iCCompSpiderFB!P50)) ->  | AH50: =IF(P50="","",INDEX('tblIndicators-FB'!$Y$3:$Y$96,iCCompSpiderFB!P50)) -> 
A51: =tblCategories!A45 -> 43 | B51: =tblCategories!D45 -> 1.17.1) Biome protection: Terrestrial protected areas | C51: =tblCategories!AG45 -> 0 | D51: 1 | E51: 4.375 | F51: 6.8 | G51: 4.375 | H51: 6.8 | I51: =INDEX(iScoresFB!$AQ$5:$AV$107,iCCompSpiderFB!A51,iCCompSpiderFB!$B$4) -> 36.9125 | O51: =IF($C51=0,"",RANK(N51,N$9:N$111,1)+COUNTIF(N$9:N51,N51)-1) ->  | S51: 0 | AA51: =IF(Q51="","",IF(ISERROR(INDEX(aRankFB,$P51+1,uxb_works!$B$25)),"",INDEX(aRankFB,$P51+1,uxb_works!$B$25))) ->  | AC51: =IF(P51="","",INDEX('tblIndicators-FB'!$G$3:$G$155,iCCompSpiderFB!P51)) ->  | AH51: =IF(P51="","",INDEX('tblIndicators-FB'!$Y$3:$Y$96,iCCompSpiderFB!P51)) -> 
A52: =tblCategories!A46 -> 44 | B52: =tblCategories!D46 -> 1.17.2) Biome protection: Marine protected areas | C52: =tblCategories!AG46 -> 0 | D52: 1 | E52: 11.829653 | F52: 8.9 | G52: 11.829653 | H52: 8.9 | I52: =INDEX(iScoresFB!$AQ$5:$AV$107,iCCompSpiderFB!A52,iCCompSpiderFB!$B$4) -> 30.49842271 | O52: =IF($C52=0,"",RANK(N52,N$9:N$111,1)+COUNTIF(N$9:N52,N52)-1) ->  | S52: 0 | AA52: =IF(Q52="","",IF(ISERROR(INDEX(aRankFB,$P52+1,uxb_works!$B$25)),"",INDEX(aRankFB,$P52+1,uxb_works!$B$25))) ->  | AC52: =IF(P52="","",INDEX('tblIndicators-FB'!$G$3:$G$155,iCCompSpiderFB!P52)) ->  | AH52: =IF(P52="","",INDEX('tblIndicators-FB'!$Y$3:$Y$96,iCCompSpiderFB!P52)) -> 
A53: =tblCategories!A47 -> 45 | B53: =tblCategories!D47 -> 1.18) Implementation of Globally Harmonized System of Classification and Labelling (GHS) | C53: =tblCategories!AG47 -> 0 | D53: 1 | E53: 50 | F53: 1 | G53: 50 | H53: 1 | I53: =INDEX(iScoresFB!$AQ$5:$AV$107,iCCompSpiderFB!A53,iCCompSpiderFB!$B$4) -> 78 | O53: =IF($C53=0,"",RANK(N53,N$9:N$111,1)+COUNTIF(N$9:N53,N53)-1) ->  | S53: 0 | AA53: =IF(Q53="","",IF(ISERROR(INDEX(aRankFB,$P53+1,uxb_works!$B$25)),"",INDEX(aRankFB,$P53+1,uxb_works!$B$25))) ->  | AC53: =IF(P53="","",INDEX('tblIndicators-FB'!$G$3:$G$155,iCCompSpiderFB!P53)) ->  | AH53: =IF(P53="","",INDEX('tblIndicators-FB'!$Y$3:$Y$96,iCCompSpiderFB!P53)) -> 
A54: =tblCategories!A48 -> 46 | B54: =tblCategories!D48 -> 2) PHYSICAL RESOURCE INFRASTRUCTURE | C54: =tblCategories!AG48 -> 1 | D54: 1 | E54: 60.76305752 | G54: 60.76305752 | I54: =INDEX(iScoresFB!$AQ$5:$AV$107,iCCompSpiderFB!A54,iCCompSpiderFB!$B$4) -> 66.21593312 | N54: 1 | O54: =IF($C54=0,"",RANK(N54,N$9:N$111,1)+COUNTIF(N$9:N54,N54)-1) -> 2 | S54: 0 | AA54: =IF(Q54="","",IF(ISERROR(INDEX(aRankFB,$P54+1,uxb_works!$B$25)),"",INDEX(aRankFB,$P54+1,uxb_works!$B$25))) ->  | AC54: =IF(P54="","",INDEX('tblIndicators-FB'!$G$3:$G$155,iCCompSpiderFB!P54)) ->  | AH54: =IF(P54="","",INDEX('tblIndicators-FB'!$Y$3:$Y$96,iCCompSpiderFB!P54)) -> 
A55: =tblCategories!A49 -> 47 | B55: =tblCategories!D49 -> 2A) Physical Resource Infrastructure - Use | C55: =tblCategories!AG49 -> 0 | D55: 1 | E55: 67.92438203 | G55: 67.92438203 | I55: =INDEX(iScoresFB!$AQ$5:$AV$107,iCCompSpiderFB!A55,iCCompSpiderFB!$B$4) -> 69.0597817 | O55: =IF($C55=0,"",RANK(N55,N$9:N$111,1)+COUNTIF(N$9:N55,N55)-1) ->  | S55: 0 | AA55: =IF(Q55="","",IF(ISERROR(INDEX(aRankFB,$P55+1,uxb_works!$B$25)),"",INDEX(aRankFB,$P55+1,uxb_works!$B$25))) ->  | AC55: =IF(P55="","",INDEX('tblIndicators-FB'!$G$3:$G$155,iCCompSpiderFB!P55)) ->  | AH55: =IF(P55="","",INDEX('tblIndicators-FB'!$Y$3:$Y$96,iCCompSpiderFB!P55)) -> 
A56: =tblCategories!A50 -> 48 | B56: =tblCategories!D50 -> 2.01) Wastewater treatment | C56: =tblCategories!AG50 -> 0 | D56: 1 | E56: 62.13492154 | F56: 66.94 | G56: 62.13492154 | H56: 66.94 | I56: =INDEX(iScoresFB!$AQ$5:$AV$107,iCCompSpiderFB!A56,iCCompSpiderFB!$B$4) -> 79.04982247 | O56: =IF($C56=0,"",RANK(N56,N$9:N$111,1)+COUNTIF(N$9:N56,N56)-1) ->  | S56: 0 | AA56: =IF(Q56="","",IF(ISERROR(INDEX(aRankFB,$P56+1,uxb_works!$B$25)),"",INDEX(aRankFB,$P56+1,uxb_works!$B$25))) ->  | AC56: =IF(P56="","",INDEX('tblIndicators-FB'!$G$3:$G$155,iCCompSpiderFB!P56)) ->  | AH56: =IF(P56="","",INDEX('tblIndicators-FB'!$Y$3:$Y$96,iCCompSpiderFB!P56)) -> 
A57: =tblCategories!A51 -> 49 | B57: =tblCategories!D51 -> 2.02) Commercial vehicles | C57: =tblCategories!AG51 -> 0 | D57: 1 | E57: 89.38466278 | F57: 4.053790865 | G57: 89.38466278 | H57: 4.053790865 | I57: =INDEX(iScoresFB!$AQ$5:$AV$107,iCCompSpiderFB!A57,iCCompSpiderFB!$B$4) -> 83.06332843 | O57: =IF($C57=0,"",RANK(N57,N$9:N$111,1)+COUNTIF(N$9:N57,N57)-1) ->  | S57: 0 | AA57: =IF(Q57="","",IF(ISERROR(INDEX(aRankFB,$P57+1,uxb_works!$B$25)),"",INDEX(aRankFB,$P57+1,uxb_works!$B$25))) ->  | AC57: =IF(P57="","",INDEX('tblIndicators-FB'!$G$3:$G$155,iCCompSpiderFB!P57)) ->  | AH57: =IF(P57="","",INDEX('tblIndicators-FB'!$Y$3:$Y$96,iCCompSpiderFB!P57)) -> 
A58: =tblCategories!A52 -> 50 | B58: =tblCategories!D52 -> 2.03) Forecasted growth in consumer expenditure | C58: =tblCategories!AG52 -> 0 | D58: 1 | E58: 98.87571333 | F58: -0.1054159677 | G58: 98.87571333 | H58: -0.1054159677 | I58: =INDEX(iScoresFB!$AQ$5:$AV$107,iCCompSpiderFB!A58,iCCompSpiderFB!$B$4) -> 66.72886177 | O58: =IF($C58=0,"",RANK(N58,N$9:N$111,1)+COUNTIF(N$9:N58,N58)-1) ->  | S58: 0 | AA58: =IF(Q58="","",IF(ISERROR(INDEX(aRankFB,$P58+1,uxb_works!$B$25)),"",INDEX(aRankFB,$P58+1,uxb_works!$B$25))) ->  | AC58: =IF(P58="","",INDEX('tblIndicators-FB'!$G$3:$G$155,iCCompSpiderFB!P58)) ->  | AH58: =IF(P58="","",INDEX('tblIndicators-FB'!$Y$3:$Y$96,iCCompSpiderFB!P58)) -> 
A59: =tblCategories!A53 -> 51 | B59: =tblCategories!D53 -> 2.04) Recycling capacity | C59: =tblCategories!AG53 -> 0 | D59: 1 | E59: 0 | F59: - | G59: 0 | H59: - | I59: =INDEX(iScoresFB!$AQ$5:$AV$107,iCCompSpiderFB!A59,iCCompSpiderFB!$B$4) -> 33.0779661 | O59: =IF($C59=0,"",RANK(N59,N$9:N$111,1)+COUNTIF(N$9:N59,N59)-1) ->  | S59: 0 | AA59: =IF(Q59="","",IF(ISERROR(INDEX(aRankFB,$P59+1,uxb_works!$B$25)),"",INDEX(aRankFB,$P59+1,uxb_works!$B$25))) ->  | AC59: =IF(P59="","",INDEX('tblIndicators-FB'!$G$3:$G$155,iCCompSpiderFB!P59)) ->  | AH59: =IF(P59="","",INDEX('tblIndicators-FB'!$Y$3:$Y$96,iCCompSpiderFB!P59)) -> 
A60: =tblCategories!A54 -> 52 | B60: =tblCategories!D54 -> 2B) Physical Resource Infrastructure - Capacity | C60: =tblCategories!AG54 -> 0 | D60: 1 | E60: 67.14285714 | G60: 67.14285714 | I60: =INDEX(iScoresFB!$AQ$5:$AV$107,iCCompSpiderFB!A60,iCCompSpiderFB!$B$4) -> 77.75714286 | O60: =IF($C60=0,"",RANK(N60,N$9:N$111,1)+COUNTIF(N$9:N60,N60)-1) ->  | S60: 0 | AA60: =IF(Q60="","",IF(ISERROR(INDEX(aRankFB,$P60+1,uxb_works!$B$25)),"",INDEX(aRankFB,$P60+1,uxb_works!$B$25))) ->  | AC60: =IF(P60="","",INDEX('tblIndicators-FB'!$G$3:$G$155,iCCompSpiderFB!P60)) ->  | AH60: =IF(P60="","",INDEX('tblIndicators-FB'!$Y$3:$Y$96,iCCompSpiderFB!P60)) -> 
A61: =tblCategories!A55 -> 53 | B61: =tblCategories!D55 -> 2.05) National infrastructure | C61: =tblCategories!AG55 -> 0 | D61: 1 | E61: 50 | G61: 50 | I61: =INDEX(iScoresFB!$AQ$5:$AV$107,iCCompSpiderFB!A61,iCCompSpiderFB!$B$4) -> 71.5 | O61: =IF($C61=0,"",RANK(N61,N$9:N$111,1)+COUNTIF(N$9:N61,N61)-1) ->  | S61: 0 | AA61: =IF(Q61="","",IF(ISERROR(INDEX(aRankFB,$P61+1,uxb_works!$B$25)),"",INDEX(aRankFB,$P61+1,uxb_works!$B$25))) ->  | AC61: =IF(P61="","",INDEX('tblIndicators-FB'!$G$3:$G$155,iCCompSpiderFB!P61)) ->  | AH61: =IF(P61="","",INDEX('tblIndicators-FB'!$Y$3:$Y$96,iCCompSpiderFB!P61)) -> 
A62: =tblCategories!A56 -> 54 | B62: =tblCategories!D56 -> 2.05.1) Infrastructure: port facilities | C62: =tblCategories!AG56 -> 0 | D62: 1 | E62: 50 | F62: 2 | G62: 50 | H62: 2 | I62: =INDEX(iScoresFB!$AQ$5:$AV$107,iCCompSpiderFB!A62,iCCompSpiderFB!$B$4) -> 75 | O62: =IF($C62=0,"",RANK(N62,N$9:N$111,1)+COUNTIF(N$9:N62,N62)-1) ->  | S62: 0 | AA62: =IF(Q62="","",IF(ISERROR(INDEX(aRankFB,$P62+1,uxb_works!$B$25)),"",INDEX(aRankFB,$P62+1,uxb_works!$B$25))) ->  | AC62: =IF(P62="","",INDEX('tblIndicators-FB'!$G$3:$G$155,iCCompSpiderFB!P62)) ->  | AH62: =IF(P62="","",INDEX('tblIndicators-FB'!$Y$3:$Y$96,iCCompSpiderFB!P62)) -> 
A63: =tblCategories!A57 -> 55 | B63: =tblCategories!D57 -> 2.05.2) Infrastructure: air transport facilities | C63: =tblCategories!AG57 -> 0 | D63: 1 | E63: 75 | F63: 1 | G63: 75 | H63: 1 | I63: =INDEX(iScoresFB!$AQ$5:$AV$107,iCCompSpiderFB!A63,iCCompSpiderFB!$B$4) -> 79 | O63: =IF($C63=0,"",RANK(N63,N$9:N$111,1)+COUNTIF(N$9:N63,N63)-1) ->  | S63: 0 | AA63: =IF(Q63="","",IF(ISERROR(INDEX(aRankFB,$P63+1,uxb_works!$B$25)),"",INDEX(aRankFB,$P63+1,uxb_works!$B$25))) ->  | AC63: =IF(P63="","",INDEX('tblIndicators-FB'!$G$3:$G$155,iCCompSpiderFB!P63)) ->  | AH63: =IF(P63="","",INDEX('tblIndicators-FB'!$Y$3:$Y$96,iCCompSpiderFB!P63)) -> 
A64: =tblCategories!A58 -> 56 | B64: =tblCategories!D58 -> 2.05.3) Infrastructure: road network | C64: =tblCategories!AG58 -> 0 | D64: 1 | E64: 50 | F64: 2 | G64: 50 | H64: 2 | I64: =INDEX(iScoresFB!$AQ$5:$AV$107,iCCompSpiderFB!A64,iCCompSpiderFB!$B$4) -> 64 | O64: =IF($C64=0,"",RANK(N64,N$9:N$111,1)+COUNTIF(N$9:N64,N64)-1) ->  | S64: 0 | AA64: =IF(Q64="","",IF(ISERROR(INDEX(aRankFB,$P64+1,uxb_works!$B$25)),"",INDEX(aRankFB,$P64+1,uxb_works!$B$25))) ->  | AC64: =IF(P64="","",INDEX('tblIndicators-FB'!$G$3:$G$155,iCCompSpiderFB!P64)) ->  | AH64: =IF(P64="","",INDEX('tblIndicators-FB'!$Y$3:$Y$96,iCCompSpiderFB!P64)) -> 
A65: =tblCategories!A59 -> 57 | B65: =tblCategories!D59 -> 2.05.4) Infrastructure: rail network | C65: =tblCategories!AG59 -> 0 | D65: 1 | E65: 50 | F65: 2 | G65: 50 | H65: 2 | I65: =INDEX(iScoresFB!$AQ$5:$AV$107,iCCompSpiderFB!A65,iCCompSpiderFB!$B$4) -> 69 | O65: =IF($C65=0,"",RANK(N65,N$9:N$111,1)+COUNTIF(N$9:N65,N65)-1) ->  | S65: 0 | AA65: =IF(Q65="","",IF(ISERROR(INDEX(aRankFB,$P65+1,uxb_works!$B$25)),"",INDEX(aRankFB,$P65+1,uxb_works!$B$25))) ->  | AC65: =IF(P65="","",INDEX('tblIndicators-FB'!$G$3:$G$155,iCCompSpiderFB!P65)) ->  | AH65: =IF(P65="","",INDEX('tblIndicators-FB'!$Y$3:$Y$96,iCCompSpiderFB!P65)) -> 
A66: =tblCategories!A60 -> 58 | B66: =tblCategories!D60 -> 2.05.5) Infrastructure: power network | C66: =tblCategories!AG60 -> 0 | D66: 1 | E66: 25 | F66: 3 | G66: 25 | H66: 3 | I66: =INDEX(iScoresFB!$AQ$5:$AV$107,iCCompSpiderFB!A66,iCCompSpiderFB!$B$4) -> 70 | O66: =IF($C66=0,"",RANK(N66,N$9:N$111,1)+COUNTIF(N$9:N66,N66)-1) ->  | S66: 0 | AA66: =IF(Q66="","",IF(ISERROR(INDEX(aRankFB,$P66+1,uxb_works!$B$25)),"",INDEX(aRankFB,$P66+1,uxb_works!$B$25))) ->  | AC66: =IF(P66="","",INDEX('tblIndicators-FB'!$G$3:$G$155,iCCompSpiderFB!P66)) ->  | AH66: =IF(P66="","",INDEX('tblIndicators-FB'!$Y$3:$Y$96,iCCompSpiderFB!P66)) -> 
A67: =tblCategories!A61 -> 59 | B67: =tblCategories!D61 -> 2.05.6) Infrastructure: retail and distribution network | C67: =tblCategories!AG61 -> 0 | D67: 1 | E67: 50 | F67: 2 | G67: 50 | H67: 2 | I67: =INDEX(iScoresFB!$AQ$5:$AV$107,iCCompSpiderFB!A67,iCCompSpiderFB!$B$4) -> 72 | O67: =IF($C67=0,"",RANK(N67,N$9:N$111,1)+COUNTIF(N$9:N67,N67)-1) ->  | S67: 0 | AA67: =IF(Q67="","",IF(ISERROR(INDEX(aRankFB,$P67+1,uxb_works!$B$25)),"",INDEX(aRankFB,$P67+1,uxb_works!$B$25))) ->  | AC67: =IF(P67="","",INDEX('tblIndicators-FB'!$G$3:$G$155,iCCompSpiderFB!P67)) ->  | AH67: =IF(P67="","",INDEX('tblIndicators-FB'!$Y$3:$Y$96,iCCompSpiderFB!P67)) -> 
A68: =tblCategories!A62 -> 60 | B68: =tblCategories!D62 -> 2.06) Quality of national water supply | C68: =tblCategories!AG62 -> 0 | D68: 1 | E68: 92.85714286 | F68: 99.1 | G68: 92.85714286 | H68: 99.1 | I68: =INDEX(iScoresFB!$AQ$5:$AV$107,iCCompSpiderFB!A68,iCCompSpiderFB!$B$4) -> 87.14285714 | O68: =IF($C68=0,"",RANK(N68,N$9:N$111,1)+COUNTIF(N$9:N68,N68)-1) ->  | S68: 0 | AA68: =IF(Q68="","",IF(ISERROR(INDEX(aRankFB,$P68+1,uxb_works!$B$25)),"",INDEX(aRankFB,$P68+1,uxb_works!$B$25))) ->  | AC68: =IF(P68="","",INDEX('tblIndicators-FB'!$G$3:$G$155,iCCompSpiderFB!P68)) ->  | AH68: =IF(P68="","",INDEX('tblIndicators-FB'!$Y$3:$Y$96,iCCompSpiderFB!P68)) -> 
A69: =tblCategories!A63 -> 61 | B69: =tblCategories!D63 -> 2C) Physical Resource Infrastructure - Sustainability Initiatives | C69: =tblCategories!AG63 -> 0 | D69: 1 | E69: 45.64444444 | G69: 45.64444444 | I69: =INDEX(iScoresFB!$AQ$5:$AV$107,iCCompSpiderFB!A69,iCCompSpiderFB!$B$4) -> 44.78577778 | O69: =IF($C69=0,"",RANK(N69,N$9:N$111,1)+COUNTIF(N$9:N69,N69)-1) ->  | S69: 0 | AA69: =IF(Q69="","",IF(ISERROR(INDEX(aRankFB,$P69+1,uxb_works!$B$25)),"",INDEX(aRankFB,$P69+1,uxb_works!$B$25))) ->  | AC69: =IF(P69="","",INDEX('tblIndicators-FB'!$G$3:$G$155,iCCompSpiderFB!P69)) ->  | AH69: =IF(P69="","",INDEX('tblIndicators-FB'!$Y$3:$Y$96,iCCompSpiderFB!P69)) -> 
A70: =tblCategories!A64 -> 62 | B70: =tblCategories!D64 -> 2.07) Environmental management system certifications | C70: =tblCategories!AG64 -> 0 | D70: 1 | E70: 66.66666667 | F70: 4 | G70: 66.66666667 | H70: 4 | I70: =INDEX(iScoresFB!$AQ$5:$AV$107,iCCompSpiderFB!A70,iCCompSpiderFB!$B$4) -> 60 | O70: =IF($C70=0,"",RANK(N70,N$9:N$111,1)+COUNTIF(N$9:N70,N70)-1) ->  | S70: 0 | AA70: =IF(Q70="","",IF(ISERROR(INDEX(aRankFB,$P70+1,uxb_works!$B$25)),"",INDEX(aRankFB,$P70+1,uxb_works!$B$25))) ->  | AC70: =IF(P70="","",INDEX('tblIndicators-FB'!$G$3:$G$155,iCCompSpiderFB!P70)) ->  | AH70: =IF(P70="","",INDEX('tblIndicators-FB'!$Y$3:$Y$96,iCCompSpiderFB!P70)) -> 
A71: =tblCategories!A65 -> 63 | B71: =tblCategories!D65 -> 2.08) Green building | C71: =tblCategories!AG65 -> 0 | D71: 1 | E71: 55.55555556 | G71: 55.55555556 | I71: =INDEX(iScoresFB!$AQ$5:$AV$107,iCCompSpiderFB!A71,iCCompSpiderFB!$B$4) -> 56.88888889 | O71: =IF($C71=0,"",RANK(N71,N$9:N$111,1)+COUNTIF(N$9:N71,N71)-1) ->  | S71: 0 | AA71: =IF(Q71="","",IF(ISERROR(INDEX(aRankFB,$P71+1,uxb_works!$B$25)),"",INDEX(aRankFB,$P71+1,uxb_works!$B$25))) ->  | AC71: =IF(P71="","",INDEX('tblIndicators-FB'!$G$3:$G$155,iCCompSpiderFB!P71)) ->  | AH71: =IF(P71="","",INDEX('tblIndicators-FB'!$Y$3:$Y$96,iCCompSpiderFB!P71)) -> 
A72: =tblCategories!A66 -> 64 | B72: =tblCategories!D66 -> 2.08.1) Domestic green building council | C72: =tblCategories!AG66 -> 0 | D72: 1 | E72: 100 | F72: 3 | G72: 100 | H72: 3 | I72: =INDEX(iScoresFB!$AQ$5:$AV$107,iCCompSpiderFB!A72,iCCompSpiderFB!$B$4) -> 73.33333333 | O72: =IF($C72=0,"",RANK(N72,N$9:N$111,1)+COUNTIF(N$9:N72,N72)-1) ->  | S72: 0 | AA72: =IF(Q72="","",IF(ISERROR(INDEX(aRankFB,$P72+1,uxb_works!$B$25)),"",INDEX(aRankFB,$P72+1,uxb_works!$B$25))) ->  | AC72: =IF(P72="","",INDEX('tblIndicators-FB'!$G$3:$G$155,iCCompSpiderFB!P72)) ->  | AH72: =IF(P72="","",INDEX('tblIndicators-FB'!$Y$3:$Y$96,iCCompSpiderFB!P72)) -> 
A73: =tblCategories!A67 -> 65 | B73: =tblCategories!D67 -> 2.08.2) Green-certified building projects within manufacturing | C73: =tblCategories!AG67 -> 0 | D73: 1 | E73: =INDEX(aScoresFB,$A73,$B$2) -> 33.33333333 | F73: =IF(INDEX(aDataFB,$A73,$B$2)="","",INDEX(aDataFB,$A73,$B$2)) -> 2 | G73: =INDEX(aScoresFB,$A73,$B$3) -> 33.33333333 | H73: =IF(INDEX(aDataFB,$A73,$B$3)="","",INDEX(aDataFB,$A73,$B$3)) -> 2 | I73: =INDEX(iScoresFB!$AQ$5:$AV$107,iCCompSpiderFB!A73,iCCompSpiderFB!$B$4) -> 48.66666667 | O73: =IF($C73=0,"",RANK(N73,N$9:N$111,1)+COUNTIF(N$9:N73,N73)-1) ->  | S73: 0 | AA73: =IF(Q73="","",IF(ISERROR(INDEX(aRankFB,$P73+1,uxb_works!$B$25)),"",INDEX(aRankFB,$P73+1,uxb_works!$B$25))) ->  | AC73: =IF(P73="","",INDEX('tblIndicators-FB'!$G$3:$G$155,iCCompSpiderFB!P73)) ->  | AH73: =IF(P73="","",INDEX('tblIndicators-FB'!$Y$3:$Y$96,iCCompSpiderFB!P73)) -> 
A74: =tblCategories!A68 -> 66 | B74: =tblCategories!D68 -> 2.09) Signatories to sustainability certification schemes | C74: =tblCategories!AG68 -> 0 | D74: 1 | E74: 4 | F74: 0.2 | G74: 4 | H74: 0.2 | I74: =INDEX(iScoresFB!$AQ$5:$AV$107,iCCompSpiderFB!A74,iCCompSpiderFB!$B$4) -> 11.36 | O74: =IF($C74=0,"",RANK(N74,N$9:N$111,1)+COUNTIF(N$9:N74,N74)-1) ->  | S74: 0 | AA74: =IF(Q74="","",IF(ISERROR(INDEX(aRankFB,$P74+1,uxb_works!$B$25)),"",INDEX(aRankFB,$P74+1,uxb_works!$B$25))) ->  | AC74: =IF(P74="","",INDEX('tblIndicators-FB'!$G$3:$G$155,iCCompSpiderFB!P74)) ->  | AH74: =IF(P74="","",INDEX('tblIndicators-FB'!$Y$3:$Y$96,iCCompSpiderFB!P74)) -> 
A75: =tblCategories!A69 -> 67 | B75: =tblCategories!D69 -> 2D) Physical Resource Infrastructure - Regulation | C75: =tblCategories!AG69 -> 0 | D75: 1 | E75: 50 | G75: 50 | I75: =INDEX(iScoresFB!$AQ$5:$AV$107,iCCompSpiderFB!A75,iCCompSpiderFB!$B$4) -> 60 | N75: =IF($C75=0,"",(INDEX($D$9:$H$111,$A75,N$7))) ->  | O75: =IF($C75=0,"",RANK(N75,N$9:N$111,1)+COUNTIF(N$9:N75,N75)-1) ->  | S75: 0 | U75: =IF($P75="","",INDEX($B$9:$H$111,$P75,U$7)) ->  | X75: =IF($P75="","",INDEX($E$9:$H$111,$P75,X$7)) ->  | AA75: =IF(Q75="","",IF(ISERROR(INDEX(aRankFB,$P75+1,uxb_works!$B$25)),"",INDEX(aRankFB,$P75+1,uxb_works!$B$25))) ->  | AC75: =IF(P75="","",INDEX('tblIndicators-FB'!$G$3:$G$155,iCCompSpiderFB!P75)) ->  | AH75: =IF(P75="","",INDEX('tblIndicators-FB'!$Y$3:$Y$96,iCCompSpiderFB!P75)) -> 
A76: =tblCategories!A70 -> 68 | B76: =tblCategories!D70 -> 2.10) Public disclosure | C76: =tblCategories!AG70 -> 0 | D76: 1 | E76: 50 | G76: 50 | I76: =INDEX(iScoresFB!$AQ$5:$AV$107,iCCompSpiderFB!A76,iCCompSpiderFB!$B$4) -> 60 | O76: =IF($C76=0,"",RANK(N76,N$9:N$111,1)+COUNTIF(N$9:N76,N76)-1) ->  | S76: 0 | AA76: =IF(Q76="","",IF(ISERROR(INDEX(aRankFB,$P76+1,uxb_works!$B$25)),"",INDEX(aRankFB,$P76+1,uxb_works!$B$25))) ->  | AC76: =IF(P76="","",INDEX('tblIndicators-FB'!$G$3:$G$155,iCCompSpiderFB!P76)) ->  | AH76: =IF(P76="","",INDEX('tblIndicators-FB'!$Y$3:$Y$96,iCCompSpiderFB!P76)) -> 
A77: =tblCategories!A71 -> 69 | B77: =tblCategories!D71 -> 2.10.1) Public disclosure: environmental impact assessments accessible to the public | C77: =tblCategories!AG71 -> 0 | D77: 1 | E77: 50 | F77: 1 | G77: 50 | H77: 1 | I77: =INDEX(iScoresFB!$AQ$5:$AV$107,iCCompSpiderFB!A77,iCCompSpiderFB!$B$4) -> 74 | O77: =IF($C77=0,"",RANK(N77,N$9:N$111,1)+COUNTIF(N$9:N77,N77)-1) ->  | S77: 0 | AA77: =IF(Q77="","",IF(ISERROR(INDEX(aRankFB,$P77+1,uxb_works!$B$25)),"",INDEX(aRankFB,$P77+1,uxb_works!$B$25))) ->  | AC77: =IF(P77="","",INDEX('tblIndicators-FB'!$G$3:$G$155,iCCompSpiderFB!P77)) ->  | AH77: =IF(P77="","",INDEX('tblIndicators-FB'!$Y$3:$Y$96,iCCompSpiderFB!P77)) -> 
A78: =tblCategories!A72 -> 70 | B78: =tblCategories!D72 -> 2.10.2) Public disclosure: Wastewater discharge and air emission violations | C78: =tblCategories!AG72 -> 0 | D78: 1 | E78: 50 | F78: 1 | G78: 50 | H78: 1 | I78: =INDEX(iScoresFB!$AQ$5:$AV$107,iCCompSpiderFB!A78,iCCompSpiderFB!$B$4) -> 46 | O78: =IF($C78=0,"",RANK(N78,N$9:N$111,1)+COUNTIF(N$9:N78,N78)-1) ->  | S78: 0 | AA78: =IF(Q78="","",IF(ISERROR(INDEX(aRankFB,$P78+1,uxb_works!$B$25)),"",INDEX(aRankFB,$P78+1,uxb_works!$B$25))) ->  | AC78: =IF(P78="","",INDEX('tblIndicators-FB'!$G$3:$G$155,iCCompSpiderFB!P78)) ->  | AH78: =IF(P78="","",INDEX('tblIndicators-FB'!$Y$3:$Y$96,iCCompSpiderFB!P78)) -> 
A79: =tblCategories!A73 -> 71 | B79: =tblCategories!D73 -> 2.11) [Indicator not applicable to this industry] | C79: =tblCategories!AG73 -> 0 | D79: 1 | E79: 0 | G79: 0 | I79: =INDEX(iScoresFB!$AQ$5:$AV$107,iCCompSpiderFB!A79,iCCompSpiderFB!$B$4) -> 0 | O79: =IF($C79=0,"",RANK(N79,N$9:N$111,1)+COUNTIF(N$9:N79,N79)-1) ->  | S79: 0 | AA79: =IF(Q79="","",IF(ISERROR(INDEX(aRankFB,$P79+1,uxb_works!$B$25)),"",INDEX(aRankFB,$P79+1,uxb_works!$B$25))) ->  | AC79: =IF(P79="","",INDEX('tblIndicators-FB'!$G$3:$G$155,iCCompSpiderFB!P79)) ->  | AH79: =IF(P79="","",INDEX('tblIndicators-FB'!$Y$3:$Y$96,iCCompSpiderFB!P79)) -> 
A80: =tblCategories!A74 -> 72 | B80: =tblCategories!D74 -> 3) LABOUR RESOURCES | C80: =tblCategories!AG74 -> 1 | D80: 1 | E80: 49.70250664 | G80: 49.70250664 | I80: =INDEX(iScoresFB!$AQ$5:$AV$107,iCCompSpiderFB!A80,iCCompSpiderFB!$B$4) -> 58.05186186 | N80: 1 | O80: =IF($C80=0,"",RANK(N80,N$9:N$111,1)+COUNTIF(N$9:N80,N80)-1) -> 3 | S80: 0 | AA80: =IF(Q80="","",IF(ISERROR(INDEX(aRankFB,$P80+1,uxb_works!$B$25)),"",INDEX(aRankFB,$P80+1,uxb_works!$B$25))) ->  | AC80: =IF(P80="","",INDEX('tblIndicators-FB'!$G$3:$G$155,iCCompSpiderFB!P80)) ->  | AH80: =IF(P80="","",INDEX('tblIndicators-FB'!$Y$3:$Y$96,iCCompSpiderFB!P80)) -> 
A81: =tblCategories!A75 -> 73 | B81: =tblCategories!D75 -> 3A) Labour Resources - Use | C81: =tblCategories!AG75 -> 0 | D81: 1 | E81: 49.5648511 | G81: 49.5648511 | I81: =INDEX(iScoresFB!$AQ$5:$AV$107,iCCompSpiderFB!A81,iCCompSpiderFB!$B$4) -> 57.40224415 | O81: =IF($C81=0,"",RANK(N81,N$9:N$111,1)+COUNTIF(N$9:N81,N81)-1) ->  | S81: 0 | AA81: =IF(Q81="","",IF(ISERROR(INDEX(aRankFB,$P81+1,uxb_works!$B$25)),"",INDEX(aRankFB,$P81+1,uxb_works!$B$25))) ->  | AC81: =IF(P81="","",INDEX('tblIndicators-FB'!$G$3:$G$155,iCCompSpiderFB!P81)) ->  | AH81: =IF(P81="","",INDEX('tblIndicators-FB'!$Y$3:$Y$96,iCCompSpiderFB!P81)) -> 
A82: =tblCategories!A76 -> 74 | B82: =tblCategories!D76 -> 3.01) Current workforce: skills | C82: =tblCategories!AG76 -> 0 | D82: 1 | E82: 20.55544109 | G82: 20.55544109 | I82: =INDEX(iScoresFB!$AQ$5:$AV$107,iCCompSpiderFB!A82,iCCompSpiderFB!$B$4) -> 30.82918705 | O82: =IF($C82=0,"",RANK(N82,N$9:N$111,1)+COUNTIF(N$9:N82,N82)-1) ->  | S82: 0 | AA82: =IF(Q82="","",IF(ISERROR(INDEX(aRankFB,$P82+1,uxb_works!$B$25)),"",INDEX(aRankFB,$P82+1,uxb_works!$B$25))) ->  | AC82: =IF(P82="","",INDEX('tblIndicators-FB'!$G$3:$G$155,iCCompSpiderFB!P82)) ->  | AH82: =IF(P82="","",INDEX('tblIndicators-FB'!$Y$3:$Y$96,iCCompSpiderFB!P82)) -> 
A83: =tblCategories!A77 -> 75 | B83: =tblCategories!D77 -> 3.01.1) High-skilled employment share | C83: =tblCategories!AG77 -> 0 | D83: 1 | E83: 27.30944866 | F83: 23.91814357 | G83: 27.30944866 | H83: 23.91814357 | I83: =INDEX(iScoresFB!$AQ$5:$AV$107,iCCompSpiderFB!A83,iCCompSpiderFB!$B$4) -> 43.16932029 | O83: =IF($C83=0,"",RANK(N83,N$9:N$111,1)+COUNTIF(N$9:N83,N83)-1) ->  | S83: 0 | AA83: =IF(Q83="","",IF(ISERROR(INDEX(aRankFB,$P83+1,uxb_works!$B$25)),"",INDEX(aRankFB,$P83+1,uxb_works!$B$25))) ->  | AC83: =IF(P83="","",INDEX('tblIndicators-FB'!$G$3:$G$155,iCCompSpiderFB!P83)) ->  | AH83: =IF(P83="","",INDEX('tblIndicators-FB'!$Y$3:$Y$96,iCCompSpiderFB!P83)) -> 
A84: =tblCategories!A78 -> 76 | B84: =tblCategories!D78 -> 3.01.2) Low-skilled employment share | C84: =tblCategories!AG78 -> 0 | D84: 1 | E84: 16.05276937 | F84: 14.29236262 | G84: 16.05276937 | H84: 14.29236262 | I84: =INDEX(iScoresFB!$AQ$5:$AV$107,iCCompSpiderFB!A84,iCCompSpiderFB!$B$4) -> 22.60243155 | O84: =IF($C84=0,"",RANK(N84,N$9:N$111,1)+COUNTIF(N$9:N84,N84)-1) ->  | S84: 0 | AA84: =IF(Q84="","",IF(ISERROR(INDEX(aRankFB,$P84+1,uxb_works!$B$25)),"",INDEX(aRankFB,$P84+1,uxb_works!$B$25))) ->  | AC84: =IF(P84="","",INDEX('tblIndicators-FB'!$G$3:$G$155,iCCompSpiderFB!P84)) ->  | AH84: =IF(P84="","",INDEX('tblIndicators-FB'!$Y$3:$Y$96,iCCompSpiderFB!P84)) -> 
A85: =tblCategories!A79 -> 77 | B85: =tblCategories!D79 -> 3.02) Growth in hourly compensation cost, manufacturing | C85: =tblCategories!AG79 -> 0 | D85: 1 | E85: 67.48861681 | F85: 5.626065974 | G85: 67.48861681 | H85: 5.626065974 | I85: =INDEX(iScoresFB!$AQ$5:$AV$107,iCCompSpiderFB!A85,iCCompSpiderFB!$B$4) -> 73.13507172 | O85: =IF($C85=0,"",RANK(N85,N$9:N$111,1)+COUNTIF(N$9:N85,N85)-1) ->  | P85: =IF(ISERROR(MATCH($A85,O$9:O$111,0)),"",MATCH($A85,O$9:O$111,0)) ->  | Q85: =IF(P85="","",RANK(V85,V$9:V$111,0)) ->  | R85: =IF(P85="","",COUNTIF(V$9:V$111,V85)) ->  | S85: =IF(P85="",0,INDEX($D$9:$D$111,P85)) -> 0 | T85: =IF(P85="","",IF(R85>1,CONCATENATE("=",Q85),Q85)) ->  | AA85: =IF(Q85="","",IF(ISERROR(INDEX(aRankFB,$P85+1,uxb_works!$B$25)),"",INDEX(aRankFB,$P85+1,uxb_works!$B$25))) ->  | AC85: =IF(P85="","",INDEX('tblIndicators-FB'!$G$3:$G$155,iCCompSpiderFB!P85)) ->  | AD85: =IF(Z85<AA85,"*","") ->  | AE85: =IF(AA85<Z85,"*","") ->  | AH85: =IF(P85="","",INDEX('tblIndicators-FB'!$Y$3:$Y$96,iCCompSpiderFB!P85)) -> 
A86: =tblCategories!A80 -> 78 | B86: =tblCategories!D80 -> 3.03) Economic participation and opportunity gender gap | C86: =tblCategories!AG80 -> 0 | D86: 1 | E86: 61.5 | F86: 0.615 | G86: 61.5 | H86: 0.615 | I86: =INDEX(iScoresFB!$AQ$5:$AV$107,iCCompSpiderFB!A86,iCCompSpiderFB!$B$4) -> 69.432 | O86: =IF($C86=0,"",RANK(N86,N$9:N$111,1)+COUNTIF(N$9:N86,N86)-1) ->  | S86: 0 | AA86: =IF(Q86="","",IF(ISERROR(INDEX(aRankFB,$P86+1,uxb_works!$B$25)),"",INDEX(aRankFB,$P86+1,uxb_works!$B$25))) ->  | AC86: =IF(P86="","",INDEX('tblIndicators-FB'!$G$3:$G$155,iCCompSpiderFB!P86)) ->  | AH86: =IF(P86="","",INDEX('tblIndicators-FB'!$Y$3:$Y$96,iCCompSpiderFB!P86)) -> 
A87: =tblCategories!A81 -> 79 | B87: =tblCategories!D81 -> 3B) Labour Resources - Capacity | C87: =tblCategories!AG81 -> 0 | D87: 1 | E87: 53.14960252 | G87: 53.14960252 | I87: =INDEX(iScoresFB!$AQ$5:$AV$107,iCCompSpiderFB!A87,iCCompSpiderFB!$B$4) -> 53.7388695 | O87: =IF($C87=0,"",RANK(N87,N$9:N$111,1)+COUNTIF(N$9:N87,N87)-1) ->  | S87: 0 | AA87: =IF(Q87="","",IF(ISERROR(INDEX(aRankFB,$P87+1,uxb_works!$B$25)),"",INDEX(aRankFB,$P87+1,uxb_works!$B$25))) ->  | AC87: =IF(P87="","",INDEX('tblIndicators-FB'!$G$3:$G$155,iCCompSpiderFB!P87)) ->  | AH87: =IF(P87="","",INDEX('tblIndicators-FB'!$Y$3:$Y$96,iCCompSpiderFB!P87)) -> 
A88: =tblCategories!A82 -> 80 | B88: =tblCategories!D82 -> 3.04) Talent pipeline: labour force growth | C88: =tblCategories!AG82 -> 0 | D88: 1 | E88: 45.90932521 | G88: 45.90932521 | I88: =INDEX(iScoresFB!$AQ$5:$AV$107,iCCompSpiderFB!A88,iCCompSpiderFB!$B$4) -> 43.36174621 | O88: =IF($C88=0,"",RANK(N88,N$9:N$111,1)+COUNTIF(N$9:N88,N88)-1) ->  | S88: 0 | AA88: =IF(Q88="","",IF(ISERROR(INDEX(aRankFB,$P88+1,uxb_works!$B$25)),"",INDEX(aRankFB,$P88+1,uxb_works!$B$25))) ->  | AC88: =IF(P88="","",INDEX('tblIndicators-FB'!$G$3:$G$155,iCCompSpiderFB!P88)) ->  | AH88: =IF(P88="","",INDEX('tblIndicators-FB'!$Y$3:$Y$96,iCCompSpiderFB!P88)) -> 
A89: =tblCategories!A83 -> 81 | B89: =tblCategories!D83 -> 3.04.1) High-skilled labor force growth | C89: =tblCategories!AG83 -> 0 | D89: 1 | E89: 9.392618848 | F89: 2.006903827 | G89: 9.392618848 | H89: 2.006903827 | I89: =INDEX(iScoresFB!$AQ$5:$AV$107,iCCompSpiderFB!A89,iCCompSpiderFB!$B$4) -> 29.76632952 | O89: =IF($C89=0,"",RANK(N89,N$9:N$111,1)+COUNTIF(N$9:N89,N89)-1) ->  | S89: 0 | AA89: =IF(Q89="","",IF(ISERROR(INDEX(aRankFB,$P89+1,uxb_works!$B$25)),"",INDEX(aRankFB,$P89+1,uxb_works!$B$25))) ->  | AC89: =IF(P89="","",INDEX('tblIndicators-FB'!$G$3:$G$155,iCCompSpiderFB!P89)) ->  | AH89: =IF(P89="","",INDEX('tblIndicators-FB'!$Y$3:$Y$96,iCCompSpiderFB!P89)) -> 
A90: =tblCategories!A84 -> 82 | B90: =tblCategories!D84 -> 3.04.2) Low-skilled labor force growth | C90: =tblCategories!AG84 -> 0 | D90: 1 | E90: 70.25379612 | F90: -0.8185017918 | G90: 70.25379612 | H90: -0.8185017918 | I90: =INDEX(iScoresFB!$AQ$5:$AV$107,iCCompSpiderFB!A90,iCCompSpiderFB!$B$4) -> 52.42535734 | O90: =IF($C90=0,"",RANK(N90,N$9:N$111,1)+COUNTIF(N$9:N90,N90)-1) ->  | S90: 0 | AA90: =IF(Q90="","",IF(ISERROR(INDEX(aRankFB,$P90+1,uxb_works!$B$25)),"",INDEX(aRankFB,$P90+1,uxb_works!$B$25))) ->  | AC90: =IF(P90="","",INDEX('tblIndicators-FB'!$G$3:$G$155,iCCompSpiderFB!P90)) ->  | AH90: =IF(P90="","",INDEX('tblIndicators-FB'!$Y$3:$Y$96,iCCompSpiderFB!P90)) -> 
A91: =tblCategories!A85 -> 83 | B91: =tblCategories!D85 -> 3.05) Talent pipeline: education | C91: =tblCategories!AG85 -> 0 | D91: 1 | E91: 57.74712439 | G91: 57.74712439 | I91: =INDEX(iScoresFB!$AQ$5:$AV$107,iCCompSpiderFB!A91,iCCompSpiderFB!$B$4) -> 44.92383958 | O91: =IF($C91=0,"",RANK(N91,N$9:N$111,1)+COUNTIF(N$9:N91,N91)-1) ->  | S91: 0 | AA91: =IF(Q91="","",IF(ISERROR(INDEX(aRankFB,$P91+1,uxb_works!$B$25)),"",INDEX(aRankFB,$P91+1,uxb_works!$B$25))) ->  | AC91: =IF(P91="","",INDEX('tblIndicators-FB'!$G$3:$G$155,iCCompSpiderFB!P91)) ->  | AH91: =IF(P91="","",INDEX('tblIndicators-FB'!$Y$3:$Y$96,iCCompSpiderFB!P91)) -> 
A92: =tblCategories!A86 -> 84 | B92: =tblCategories!D86 -> 3.05.1) Enrollment in STEM per 100,000 | C92: =tblCategories!AG86 -> 0 | D92: 1 | E92: 48.82758211 | F92: 1189.04804 | G92: 48.82758211 | H92: 1189.04804 | I92: =INDEX(iScoresFB!$AQ$5:$AV$107,iCCompSpiderFB!A92,iCCompSpiderFB!$B$4) -> 41.84767916 | O92: =IF($C92=0,"",RANK(N92,N$9:N$111,1)+COUNTIF(N$9:N92,N92)-1) ->  | S92: 0 | AA92: =IF(Q92="","",IF(ISERROR(INDEX(aRankFB,$P92+1,uxb_works!$B$25)),"",INDEX(aRankFB,$P92+1,uxb_works!$B$25))) ->  | AC92: =IF(P92="","",INDEX('tblIndicators-FB'!$G$3:$G$155,iCCompSpiderFB!P92)) ->  | AH92: =IF(P92="","",INDEX('tblIndicators-FB'!$Y$3:$Y$96,iCCompSpiderFB!P92)) -> 
A93: =tblCategories!A87 -> 85 | B93: =tblCategories!D87 -> 3.05.2) Youth technology skills gap | C93: =tblCategories!AG87 -> 0 | D93: 1 | E93: 66.66666667 | F93: 2 | G93: 66.66666667 | H93: 2 | I93: =INDEX(iScoresFB!$AQ$5:$AV$107,iCCompSpiderFB!A93,iCCompSpiderFB!$B$4) -> 48 | O93: =IF($C93=0,"",RANK(N93,N$9:N$111,1)+COUNTIF(N$9:N93,N93)-1) ->  | S93: 0 | AA93: =IF(Q93="","",IF(ISERROR(INDEX(aRankFB,$P93+1,uxb_works!$B$25)),"",INDEX(aRankFB,$P93+1,uxb_works!$B$25))) ->  | AC93: =IF(P93="","",INDEX('tblIndicators-FB'!$G$3:$G$155,iCCompSpiderFB!P93)) ->  | AH93: =IF(P93="","",INDEX('tblIndicators-FB'!$Y$3:$Y$96,iCCompSpiderFB!P93)) -> 
A94: =tblCategories!A88 -> 86 | B94: =tblCategories!D88 -> 3.06) Brain drain and labour flows | C94: =tblCategories!AG88 -> 0 | D94: 1 | E94: 84.93639329 | G94: 84.93639329 | I94: =INDEX(iScoresFB!$AQ$5:$AV$107,iCCompSpiderFB!A94,iCCompSpiderFB!$B$4) -> 77.69997258 | O94: =IF($C94=0,"",RANK(N94,N$9:N$111,1)+COUNTIF(N$9:N94,N94)-1) ->  | S94: 0 | AA94: =IF(Q94="","",IF(ISERROR(INDEX(aRankFB,$P94+1,uxb_works!$B$25)),"",INDEX(aRankFB,$P94+1,uxb_works!$B$25))) ->  | AC94: =IF(P94="","",INDEX('tblIndicators-FB'!$G$3:$G$155,iCCompSpiderFB!P94)) ->  | AH94: =IF(P94="","",INDEX('tblIndicators-FB'!$Y$3:$Y$96,iCCompSpiderFB!P94)) -> 
A95: =tblCategories!A89 -> 87 | B95: =tblCategories!D89 -> 3.06.1) Brain drain: Emigration rate of highly-skilled workers | C95: =tblCategories!AG89 -> 0 | D95: 1 | E95: 68.68524142 | F95: 7.653016705 | G95: 68.68524142 | H95: 7.653016705 | I95: =INDEX(iScoresFB!$AQ$5:$AV$107,iCCompSpiderFB!A95,iCCompSpiderFB!$B$4) -> 72.97009321 | O95: =IF($C95=0,"",RANK(N95,N$9:N$111,1)+COUNTIF(N$9:N95,N95)-1) ->  | S95: 0 | V95: =IF($P95="","",INDEX($E$9:$L$111,$P95,V$7)) ->  | Y95: =IF($P95="","",INDEX($E$9:$L$111,$P95,Y$7)) ->  | AA95: =IF(Q95="","",IF(ISERROR(INDEX(aRankFB,$P95+1,uxb_works!$B$25)),"",INDEX(aRankFB,$P95+1,uxb_works!$B$25))) ->  | AC95: =IF(P95="","",INDEX('tblIndicators-FB'!$G$3:$G$155,iCCompSpiderFB!P95)) ->  | AH95: =IF(P95="","",INDEX('tblIndicators-FB'!$Y$3:$Y$96,iCCompSpiderFB!P95)) -> 
A96: =tblCategories!A90 -> 88 | B96: =tblCategories!D90 -> 3.06.2) Labour flows: Emigration rate of low-skilled workers | C96: =tblCategories!AG90 -> 0 | D96: 1 | E96: 95.77049454 | F96: 0.8343480803 | G96: 95.77049454 | H96: 0.8343480803 | I96: =INDEX(iScoresFB!$AQ$5:$AV$107,iCCompSpiderFB!A96,iCCompSpiderFB!$B$4) -> 80.8532255 | O96: =IF($C96=0,"",RANK(N96,N$9:N$111,1)+COUNTIF(N$9:N96,N96)-1) ->  | S96: 0 | AA96: =IF(Q96="","",IF(ISERROR(INDEX(aRankFB,$P96+1,uxb_works!$B$25)),"",INDEX(aRankFB,$P96+1,uxb_works!$B$25))) ->  | AC96: =IF(P96="","",INDEX('tblIndicators-FB'!$G$3:$G$155,iCCompSpiderFB!P96)) ->  | AH96: =IF(P96="","",INDEX('tblIndicators-FB'!$Y$3:$Y$96,iCCompSpiderFB!P96)) -> 
A97: =tblCategories!A91 -> 89 | B97: =tblCategories!D91 -> 3.07) Talent management | C97: =tblCategories!AG91 -> 0 | D97: 1 | E97: 31.81098079 | G97: 31.81098079 | I97: =INDEX(iScoresFB!$AQ$5:$AV$107,iCCompSpiderFB!A97,iCCompSpiderFB!$B$4) -> 55.83756489 | O97: =IF($C97=0,"",RANK(N97,N$9:N$111,1)+COUNTIF(N$9:N97,N97)-1) ->  | S97: 0 | AA97: =IF(Q97="","",IF(ISERROR(INDEX(aRankFB,$P97+1,uxb_works!$B$25)),"",INDEX(aRankFB,$P97+1,uxb_works!$B$25))) ->  | AC97: =IF(P97="","",INDEX('tblIndicators-FB'!$G$3:$G$155,iCCompSpiderFB!P97)) ->  | AH97: =IF(P97="","",INDEX('tblIndicators-FB'!$Y$3:$Y$96,iCCompSpiderFB!P97)) -> 
A98: =tblCategories!A92 -> 90 | B98: =tblCategories!D92 -> 3.07.1) Talent management: Capacity to attract talent | C98: =tblCategories!AG92 -> 0 | D98: 1 | E98: 24.95780739 | F98: 1.497468443 | G98: 24.95780739 | H98: 1.497468443 | I98: =INDEX(iScoresFB!$AQ$5:$AV$107,iCCompSpiderFB!A98,iCCompSpiderFB!$B$4) -> 54.45838432 | O98: =IF($C98=0,"",RANK(N98,N$9:N$111,1)+COUNTIF(N$9:N98,N98)-1) ->  | S98: 0 | AA98: =IF(Q98="","",IF(ISERROR(INDEX(aRankFB,$P98+1,uxb_works!$B$25)),"",INDEX(aRankFB,$P98+1,uxb_works!$B$25))) ->  | AC98: =IF(P98="","",INDEX('tblIndicators-FB'!$G$3:$G$155,iCCompSpiderFB!P98)) ->  | AH98: =IF(P98="","",INDEX('tblIndicators-FB'!$Y$3:$Y$96,iCCompSpiderFB!P98)) -> 
A99: =tblCategories!A93 -> 91 | B99: =tblCategories!D93 -> 3.07.2) Talent management: Capacity to retain talent | C99: =tblCategories!AG93 -> 0 | D99: 1 | E99: 38.66415419 | F99: 2.319849251 | G99: 38.66415419 | H99: 2.319849251 | I99: =INDEX(iScoresFB!$AQ$5:$AV$107,iCCompSpiderFB!A99,iCCompSpiderFB!$B$4) -> 57.21674546 | O99: =IF($C99=0,"",RANK(N99,N$9:N$111,1)+COUNTIF(N$9:N99,N99)-1) ->  | S99: 0 | AA99: =IF(Q99="","",IF(ISERROR(INDEX(aRankFB,$P99+1,uxb_works!$B$25)),"",INDEX(aRankFB,$P99+1,uxb_works!$B$25))) ->  | AC99: =IF(P99="","",INDEX('tblIndicators-FB'!$G$3:$G$155,iCCompSpiderFB!P99)) ->  | AH99: =IF(P99="","",INDEX('tblIndicators-FB'!$Y$3:$Y$96,iCCompSpiderFB!P99)) -> 
A100: =tblCategories!A94 -> 92 | B100: =tblCategories!D94 -> 3C) Labour Resources - Sustainability Initiatives | C100: =tblCategories!AG94 -> 0 | D100: 1 | E100: 18.20455142 | G100: 18.20455142 | I100: =INDEX(iScoresFB!$AQ$5:$AV$107,iCCompSpiderFB!A100,iCCompSpiderFB!$B$4) -> 56.12155444 | O100: =IF($C100=0,"",RANK(N100,N$9:N$111,1)+COUNTIF(N$9:N100,N100)-1) ->  | S100: 0 | AA100: =IF(Q100="","",IF(ISERROR(INDEX(aRankFB,$P100+1,uxb_works!$B$25)),"",INDEX(aRankFB,$P100+1,uxb_works!$B$25))) ->  | AC100: =IF(P100="","",INDEX('tblIndicators-FB'!$G$3:$G$155,iCCompSpiderFB!P100)) ->  | AH100: =IF(P100="","",INDEX('tblIndicators-FB'!$Y$3:$Y$96,iCCompSpiderFB!P100)) -> 
